Workbook

Sheet Project Information
B1: Project Name | C1: Freight Test | E1: Project Description and Notes | F1: Example for Freight | G1: ^Click on Plus sign for data definitions
B2: Organization | C2: DRPT
B7: Applicant Entry Field Name | C7: Information Entry | E7: Units or Accepted Values | F7: Description/Definition
A8: Project Timeline | B8: Current Year | E8: 4-Digit Year | F8: The current year, the year in which projects are scored.
B9: Project Start | E9: 4-Digit Year | F9: The year in which project construction is slated to begin.
B10: Project Finish | E10: 4-Digit Year | F10: The first full year in which project construction will be finished, project benefits will start to be realized in this year. | AJ10: =IF('Project Information'!C58="","N",IF(AM10="N","Y","N")) -> N
A12: Project Location | B12: Associated Highway | C12: Multiple | E12: (I-64, I-66, I-81, I-95, US29, US58, US460, and/or Select Counties) | F12: The highway(s) that new rail freight or passenger service is diverting from when switching from highway use. Click to select one or more highways from the list at left. For state average, select all highways. To select or remove individual counties from selected highways go to Detailed Location worksheet (Make Highway Selection First).
C13: Mileage | D13: Percentage | E13: Calculates mileages and percentages of highways associated with the project (selected above). Highway names that are highlighted in orange have had counties removed from the totals. Highways can be reset on the Detail Location worksheet.
B14: I-64 | C14: ='Detailed Location'!I25 -> 0 | D14: =IF(C14="",0,IF(C14=0,0,C14/$C$21)) -> 0 | H14: I-64 | I14: =IF(COUNTIF('Project Information'!$G$13,"*1*"),"x","") -> 
B15: I-66 | C15: ='Detailed Location'!I34 -> 0 | D15: 0 | H15: I-66 | I15: =IF(COUNTIF('Project Information'!$G$13,"*2*"),"x","") -> 
B16: I-81 | C16: ='Detailed Location'!I54 -> 0 | D16: 0 | H16: I-81 | I16: =IF(COUNTIF('Project Information'!$G$13,"*3*"),"x","") -> 
B17: I-95 | C17: ='Detailed Location'!I73 -> 0 | D17: 0 | H17: I-95 | I17: =IF(COUNTIF('Project Information'!$G$13,"*4*"),"x","") -> 
B18: US29 | C18: ='Detailed Location'!I91 -> 0 | D18: 0 | H18: US29 | I18: =IF(COUNTIF('Project Information'!$G$13,"*5*"),"x","") -> 
B19: US58 | C19: ='Detailed Location'!I121 -> 0 | D19: 0 | H19: US58 | I19: =IF(COUNTIF('Project Information'!$G$13,"*6*"),"x","") -> 
B20: US460 | C20: ='Detailed Location'!I146 -> 0 | D20: 0 | H20: US460 | I20: =IF(COUNTIF('Project Information'!$G$13,"*7*"),"x","") -> 
B21: Total | C21: =SUM(C14:C20) -> 0 | D21: =SUM(D14:D20) -> 0
C22: Rural | D22: Urban
B23: Rural and Urban Breakdown | C23: =IF(G13<>"",'Detailed Location'!H149,"") ->  | D23: =IF(G13<>"",'Detailed Location'!G149,"") ->  | E23: Rural Percentage, Left; Urban Percentage, Right | F23: Percentages of Rural and Urban along the selected routes.
A25: Rail Freight Data | B25: Annual tons of rail shipments (current) | C25: =IF(C26=0,"",C26*C28) ->  | E25: tons/year | F25: The current tonnage of rail shipments being made that can be associated with the project that start in, finish in, travel within or go through Virginia. | G25: Return to Required Fields Page
B26: Current Railcar Demand | E26: # of railcars/year | F26: Number of rail cars hauled on the line or branch serving the project (previous year).
B27: Additional Annual Railcar Demand | C27: Please See Railcar/Passenger Demand Worksheet | E27: # of railcars/year | F27: Projected number, in addition to the current railcar demand, of railcars needed for service, by year, after project completion.
B28: Rail tons per railcar | C28: 70.2 | E28: tons/railcar | F28: The average number of tons carried by one railcar on the project route. This value can be changed if detailed information about the shipments made on this route are available and will override the default value listed for trucks per railcar. The default value is 70.2 tons/railcar.
B29: Railcars per train | E29: railcars/train | F29: Average number of railcars in a train for the freight service associated with this project.
B30: Freight Rail Route Length, current | E30: mi | F30: Length of the current route.
B31: Freight Rail Route length, after project completion | E31: mi | F31: Length of the new route after project construction.
B32: Reduced Freight Mileage | C32: =C30-C31 -> 0 | E32: mi | F32: Distance the track in VA has been shortened, in miles, due to the construction of the project. (current-after project completion)
B33: Number of Rail Crossings removed | E33: number | F33: Number of rail crossings removed due to the construction of the project.
A35: Truck Freight Data | B35: Truck Trip Length, Current (VA) | E35: miles | F35: Average distance traveled per trip by freight trucks, that will switch to rail after project completion. The mileage reflects highway miles driven in Virginia.
B36: Trucks per railcar | C36: =C28/C37 -> 3.40942205 | E36: # | F36: The average number of trucks required to replace one railcar. The default value is based on freight movements starting in, ending in, travelling through or travelling within the State of Virginia. This value will be overwritten if rail tons per railcar and/or tons per truck load are overwritten.
B37: Tons per Truck Load | C37: 20.59 | E37: tons/truckload | F37: The average number of tons carried by one truck related to the the project route. This value can be changed if detailed information about the shipments made on this route are available and will override the default value listed for trucks per railcar. The default value is 20.59 tons/truck.
C39: Amtrak | D39: VRE
A40: Rail Passenger Data | B40: Number of Passengers per year (Current) | E40: # | F40: Number of passengers in the most current year. (Amtrak and VRE) This number accounts for the Virginia ridership in the current year on routes associated with the project. | G40: Return to Required Fields Page | H40: =IF(C40+D40>0,1,"") -> 
B41: Additional Passenger Demand | C41: Please See Railcar/Passenger Demand Worksheet | E41: # | F41: Number of additional passengers per year expected after project completion (Amtrak and VRE). These values are projected by year and account for Virginia ridership on routes that will benefit from project construction.
B42: Number of Passenger Trains per year (Current) | E42: # | F42: The current number of passenger trains that can be associated with the project that start in, finish in, travel within or go through Virginia. | H42: =IF(C42+D42>0,1,"") -> 
B43: Passenger Trip Length (Existing, Rail) | E43: miles | F43: The current average length of trip, in miles, per passenger | G43: =IF(C43+D43>0,1,"") -> 
B44: Passenger Trip Length (After Project, Rail) | E44: miles | F44: The average length of trip, in miles after the project is complete, per passenger
B45: Reduced Passenger Mileage | C45: =C43-C44 -> 0 | D45: =D43-D44 -> 0 | E45: miles | F45: The reduction of passenger miles due to project completion, per trip.
B46: Travel time per trip (current train) | E46: minutes | F46: The average amount it time it takes one passenger to complete the route (current).
B47: Travel time per trip (After Project) | E47: minutes | F47: The average amount it time it will take one passenger to complete the route after project completion.
B48: Reduction in Travel Time | C48: =C46-C47 -> 0 | D48: =D46-D47 -> 0 | E48: minutes | F48: The travel time saved between the current and completed routes. | G48: =IF(OR((C48+D48>0), (C60+D60>1)),1,"") -> 
B49: Number of Rail Crossings removed | C49: =C33 -> 0 | E49: number | F49: Number of rail crossings removed due to the construction of the project.
B50: Passenger Travel Purpose | C50: Breakdown in Percent for Amtrak Users | D50: Breakdown in Percent for VRE Users | E50: Local, Intercity, Business, Aggregated Local, Aggregated Intercity | F50: The reason why passengers are using rail service. For each category, a percentage or value can be given. Local travel represents people travelling within the same city. Intercity travel is for travel between cities. Business travel represents passengers that are traveling for business. The aggregated values represent the combination of business and local or business and aggregated values based on county, regional or state levels. Values default to aggregated local Value of Time for VRE passengers and aggregated intercity Value of Time for Amtrak passengers. | G50: =IF(C48+D48>0,1,"") -> 
B51: Local Personal VOT | G51: =IF(C51+D51>0,1,"") -> 
B52: Intercity Personal VOT
B53: Business VOT
B54: Aggregated local VOT | D54: 100 | G54: 1
B55: Aggregated intercity VOT | C55: 100 | G55: 1
B56: Total | C56: =SUM(C51:C55) -> 100 | D56: =SUM(D51:D55) -> 100 | F56: Warning: Must total 100 each for Amtrak and for VRE. | G56: 1
A58: Vehicle Passenger Data | B58: Automobile trip length | E58: miles | F58: Average distance traveled in automobiles by (automobile) passengers, that will switch to rail after project completion.
B59: Current travel time by vehicle | E59: minutes | F59: Current time to travel by vehicle.
B60: Change in travel time for switching | C60: =C59-C47 -> 0 | D60: =D59-D47 -> 0 | E60: minutes | F60: Time savings realized by switching to train travel from passenger vehicle.

Sheet Railcar and Passenger Demand
A1: Freight | B1: Projected number of railcars needed for service (total, in Virginia), by year, after project completion. | C1: Number of Railcars needed in addition to current service demand. (Total Needed - Current Used) | E1: Passenger | F1: Projected number of passengers per year expected after project completion (total, in Virginia) (Amtrak). These values account for Virginia ridership on routes that will benefit from project construction. | G1: Number of additional passengers per year expected after project completion (Amtrak). (Total needed - Current used) | H1: Projected number of passengers per year expected after project completion (total, in Virginia)(VRE). These values account for Virginia ridership on routes that will benefit from project construction. | I1: Number of additional passengers per year expected after project completion (VRE). (Total needed - Current Used) | J1: Return to Required Fields Worksheet
A2: =IF('Project Information'!C8>2040, "No Values Available", 'Project Information'!C8) -> 0 | B2: ='Project Information'!C26 -> 0 | E2: =A2 -> 0 | F2: ='Project Information'!C40 -> 0 | H2: ='Project Information'!D40 -> 0
A3: =IF('Project Information'!C8+1>2040, "No Values Available", 'Project Information'!C8+1) -> 1 | C3: =IF(B3="","",IF(B3="No Value","No Value",B3-$B$2)) ->  | E3: =IF('Project Information'!C8+1>2040, "No Values Available", 'Project Information'!C8+1) -> 1 | G3: =IF(F3="","",IF(F3="No Value","No Value",F3-$F$2)) ->  | I3: =IF(H3="","",IF(H3="No Value","No Value",H3-$H$2)) -> 
A4: =IFERROR((IF(A3+1>2040,"No Values Available",A3+1)),"No Values Available") -> 2 | C4: =IF(B4="","",IF(B4="No Value","No Value",B4-$B$2)) ->  | E4: =IFERROR((IF(E3+1>2040,"No Values Available",E3+1)),"No Values Available") -> 2
A5: =IFERROR((IF(A4+1>2040,"No Values Available",A4+1)),"No Values Available") -> 3 | E5: =IFERROR((IF(E4+1>2040,"No Values Available",E4+1)),"No Values Available") -> 3
A6: 4 | E6: 4
A7: 5 | E7: 5
A8: 6 | E8: 6
A9: 7 | E9: 7
A10: 8 | E10: 8
A11: 9 | E11: 9
A12: 10 | E12: 10 | I12: =IF(H12="","",IF(H12="No Value","No Value",H12-$H$2)) -> 
A13: 11 | E13: 11
A14: 12 | E14: 12
A15: 13 | E15: 13
A16: 14 | E16: 14
A17: 15 | E17: 15 | G17: =IF(F17="","",IF(F17="No Value","No Value",F17-$F$2)) -> 
A18: 16 | E18: 16
A19: 17 | E19: 17
A20: 18 | E20: 18
A21: 19 | E21: 19
A22: 20 | E22: 20
A23: 21 | E23: 21
A24: 22 | E24: 22
A25: 23 | E25: 23
A26: 24 | E26: 24 | J26: Return to Project Information Worksheet
A27: 25 | E27: 25
A29: Project Start | B29: =SUM(B3:B27) -> 0 | E29: Project Start
A30: Project Completion | E30: Project Completion

Sheet Project Cost
B1: Capital Costs (All Costs Associated with the Project, DRPT + Other sources of funding)
A2: 1) Fill in Project Costs | B2: Capital Costs (All Costs Associated, DRPT + Other sources of funding) | C2: Environmental Evaluation/ Permitting | D2: Public Involvement | E2: Design Engineering | F2: Right of Way Acquisition/ Utilities | G2: Construction | H2: Construction Management | I2: Lease/ Acquisition of Equipment | J2: Other | K2: In Kind Contributions | L2: Total Project Cost by Year
A3: ='Project Information'!C8 -> 0 | L3: =SUM(B3:J3) -> 0 | M3: =A3 -> 0
A4: =IF(A3=2040,"No Values Available",IF(A3="No Values Available","No Values Available",A3+1)) -> 1 | L4: =SUM(B4:J4) -> 0 | M4: =IF(M3=2040,"No Values Available",IF(M3="No Values Available","No Values Available",M3+1)) -> 1
A5: =IF(A4=2040,"No Values Available",IF(A4="No Values Available","No Values Available",A4+1)) -> 2 | L5: 0 | M5: =IF(M4=2040,"No Values Available",IF(M4="No Values Available","No Values Available",M4+1)) -> 2
A6: 3 | L6: 0 | M6: 3
A7: 4 | L7: 0 | M7: 4
A8: 5 | L8: 0 | M8: 5
A9: 6 | L9: 0 | M9: 6
A10: 7 | L10: 0 | M10: 7
A11: 8 | L11: 0 | M11: 8
A12: 9 | L12: 0 | M12: 9
A13: 10 | L13: 0 | M13: 10
A14: 11 | L14: 0 | M14: 11
A15: 12 | L15: 0 | M15: 12
A16: 13 | L16: 0 | M16: 13
A17: 14 | L17: 0 | M17: 14
A18: 15 | L18: 0 | M18: 15
A19: 16 | L19: 0 | M19: 16
A20: 17 | L20: 0 | M20: 17
A21: 18 | L21: 0 | M21: 18
A22: 19 | L22: 0 | M22: 19
A23: 20 | L23: 0 | M23: 20
A24: 21 | L24: 0 | M24: 21
A25: 22 | L25: 0 | M25: 22
A26: 23 | L26: 0 | M26: 23
A27: 24 | L27: 0 | M27: 24
C29: Funding Sources
A30: 2) Classify Funding Sources by entering DRPT Percentage>>> | B30: Project Total Costs by Year | C30: DRPT Funds | D30: Outside Funds | G30: Project Costs | J30: Project Benefit
C31: 0.7 | D31: =1-C31 -> 0.3 | G31: Project Total Costs by Year | H31: Net Present Value at 3% Rate | I31: Net Present Value at 7% rate | J31: Benefit by Year | K31: Net Present Value at 3% Rate | L31: Net Present Value at 7% rate | N31: DRPT Funds | O31: Net Present Value at 3% Rate | P31: Net Present Value at 7% rate | Q31: Outside Funds | R31: Net Present Value at 3% Rate | S31: Net Present Value at 7% rate
A32: ='Project Information'!C8 -> 0 | B32: =SUM(B3:J3) -> 0 | C32: =B32*$C$31 -> 0 | D32: =$D$31*B32 -> 0 | F32: =A32 -> 0 | G32: =IF(F32-'Project Information'!$C$8<=$H$61,B32,0) -> 0 | H32: =G32 -> 0 | I32: =G32 -> 0 | J32: =IF(F32-'Project Information'!$C$8<='Project Cost'!$H$61,IF(A32<'Project Information'!$C$10,0,('Freight Calcs'!I34+'Passenger Calcs'!K34)),0) ->  | K32: =J32 ->  | L32: =J32 ->  | N32: =B32*$C$31 -> 0 | O32: =N32 -> 0 | P32: =N32 -> 0 | Q32: =$D$31*B32 -> 0 | R32: =Q32 -> 0 | S32: =Q32 -> 0
A33: =IF(A32=2040,"No Values Available",IF(A32="No Values Available","No Values Available",A32+1)) -> 1 | B33: 0 | C33: 0 | D33: 0 | F33: =IF(F32=2040,"No Values Available",IF(F32="No Values Available","No Values Available",F32+1)) -> 1 | G33: =IF(F33-'Project Information'!$C$8<=$H$61,B33,0) -> 0 | H33: =PV(0.03,1,0,-G33) -> 0 | I33: =PV(0.07,1,0,-G33) -> 0 | J33: =IF(F33-'Project Information'!$C$8<='Project Cost'!$H$61,IF(A33<'Project Information'!$C$10,0,('Freight Calcs'!I35+'Passenger Calcs'!K35)),0) ->  | K33: =PV(0.03,1,0,-J33) ->  | L33: =PV(0.07,1,0,-J33) ->  | N33: =B33*$C$31 -> 0 | O33: =PV(0.03,1,0,-N33) -> 0 | P33: =PV(0.07,1,0,-N33) -> 0 | Q33: =$D$31*B33 -> 0 | R33: =PV(0.03,1,0,-Q33) -> 0 | S33: =PV(0.07,1,0,-Q33) -> 0
A34: =IF(A33=2040,"No Values Available",IF(A33="No Values Available","No Values Available",A33+1)) -> 2 | B34: 0 | C34: 0 | D34: 0 | F34: =IF(F33=2040,"No Values Available",IF(F33="No Values Available","No Values Available",F33+1)) -> 2 | G34: =IF(F34-'Project Information'!$C$8<=$H$61,B34,0) -> 0 | H34: =PV(0.03,2,0,-G34) -> 0 | I34: =PV(0.07,2,0,-G34) -> 0 | J34: =IF(F34-'Project Information'!$C$8<='Project Cost'!$H$61,IF(A34<'Project Information'!$C$10,0,('Freight Calcs'!I36+'Passenger Calcs'!K36)),0) ->  | K34: =PV(0.03,2,0,-J34) ->  | L34: =PV(0.07,2,0,-J34) ->  | N34: 0 | O34: =PV(0.03,2,0,-N34) -> 0 | P34: =PV(0.07,2,0,-N34) -> 0 | Q34: 0 | R34: =PV(0.03,2,0,-Q34) -> 0 | S34: =PV(0.07,2,0,-Q34) -> 0
A35: 3 | B35: 0 | C35: 0 | D35: 0 | F35: 3 | G35: =IF(F35-'Project Information'!$C$8<=$H$61,B35,0) -> 0 | H35: =PV(0.03,3,0,-G35) -> 0 | I35: =PV(0.07,3,0,-G35) -> 0 | J35: =IF(F35-'Project Information'!$C$8<='Project Cost'!$H$61,IF(A35<'Project Information'!$C$10,0,('Freight Calcs'!I37+'Passenger Calcs'!K37)),0) ->  | K35: =PV(0.03,3,0,-J35) ->  | L35: =PV(0.07,3,0,-J35) ->  | N35: 0 | O35: =PV(0.03,3,0,-N35) -> 0 | P35: =PV(0.07,3,0,-N35) -> 0 | Q35: 0 | R35: =PV(0.03,3,0,-Q35) -> 0 | S35: =PV(0.07,3,0,-Q35) -> 0
A36: 4 | B36: 0 | C36: 0 | D36: 0 | F36: 4 | G36: =IF(F36-'Project Information'!$C$8<=$H$61,B36,0) -> 0 | H36: =PV(0.03,4,0,-G36) -> 0 | I36: =PV(0.07,4,0,-G36) -> 0 | J36: =IF(F36-'Project Information'!$C$8<='Project Cost'!$H$61,IF(A36<'Project Information'!$C$10,0,('Freight Calcs'!I38+'Passenger Calcs'!K38)),0) ->  | K36: =PV(0.03,4,0,-J36) ->  | L36: =PV(0.07,4,0,-J36) ->  | N36: 0 | O36: =PV(0.03,4,0,-N36) -> 0 | P36: =PV(0.07,4,0,-N36) -> 0 | Q36: 0 | R36: =PV(0.03,4,0,-Q36) -> 0 | S36: =PV(0.07,4,0,-Q36) -> 0
A37: 5 | B37: 0 | C37: 0 | D37: 0 | F37: 5 | G37: =IF(F37-'Project Information'!$C$8<=$H$61,B37,0) -> 0 | H37: =PV(0.03,5,0,-G37) -> 0 | I37: =PV(0.07,5,0,-G37) -> 0 | J37: =IF(F37-'Project Information'!$C$8<='Project Cost'!$H$61,IF(A37<'Project Information'!$C$10,0,('Freight Calcs'!I39+'Passenger Calcs'!K39)),0) ->  | K37: =PV(0.03,5,0,-J37) ->  | L37: =PV(0.07,5,0,-J37) ->  | N37: 0 | O37: =PV(0.03,5,0,-N37) -> 0 | P37: =PV(0.07,5,0,-N37) -> 0 | Q37: 0 | R37: =PV(0.03,5,0,-Q37) -> 0 | S37: =PV(0.07,5,0,-Q37) -> 0
A38: 6 | B38: 0 | C38: 0 | D38: 0 | F38: 6 | G38: =IF(F38-'Project Information'!$C$8<=$H$61,B38,0) -> 0 | H38: =PV(0.03,6,0,-G38) -> 0 | I38: =PV(0.07,6,0,-G38) -> 0 | J38: =IF(F38-'Project Information'!$C$8<='Project Cost'!$H$61,IF(A38<'Project Information'!$C$10,0,('Freight Calcs'!I40+'Passenger Calcs'!K40)),0) ->  | K38: =PV(0.03,6,0,-J38) ->  | L38: =PV(0.07,6,0,-J38) ->  | N38: 0 | O38: =PV(0.03,6,0,-N38) -> 0 | P38: =PV(0.07,6,0,-N38) -> 0 | Q38: 0 | R38: =PV(0.03,6,0,-Q38) -> 0 | S38: =PV(0.07,6,0,-Q38) -> 0
A39: 7 | B39: 0 | C39: 0 | D39: 0 | F39: 7 | G39: =IF(F39-'Project Information'!$C$8<=$H$61,B39,0) -> 0 | H39: =PV(0.03,7,0,-G39) -> 0 | I39: =PV(0.07,7,0,-G39) -> 0 | J39: =IF(F39-'Project Information'!$C$8<='Project Cost'!$H$61,IF(A39<'Project Information'!$C$10,0,('Freight Calcs'!I41+'Passenger Calcs'!K41)),0) ->  | K39: =PV(0.03,7,0,-J39) ->  | L39: =PV(0.07,7,0,-J39) ->  | N39: 0 | O39: =PV(0.03,7,0,-N39) -> 0 | P39: =PV(0.07,7,0,-N39) -> 0 | Q39: 0 | R39: =PV(0.03,7,0,-Q39) -> 0 | S39: =PV(0.07,7,0,-Q39) -> 0
A40: 8 | B40: 0 | C40: 0 | D40: 0 | F40: 8 | G40: =IF(F40-'Project Information'!$C$8<=$H$61,B40,0) -> 0 | H40: =PV(0.03,8,0,-G40) -> 0 | I40: =PV(0.07,8,0,-G40) -> 0 | J40: =IF(F40-'Project Information'!$C$8<='Project Cost'!$H$61,IF(A40<'Project Information'!$C$10,0,('Freight Calcs'!I42+'Passenger Calcs'!K42)),0) ->  | K40: =PV(0.03,8,0,-J40) ->  | L40: =PV(0.07,8,0,-J40) ->  | N40: 0 | O40: =PV(0.03,8,0,-N40) -> 0 | P40: =PV(0.07,8,0,-N40) -> 0 | Q40: 0 | R40: =PV(0.03,8,0,-Q40) -> 0 | S40: =PV(0.07,8,0,-Q40) -> 0
A41: 9 | B41: 0 | C41: 0 | D41: 0 | F41: 9 | G41: =IF(F41-'Project Information'!$C$8<=$H$61,B41,0) -> 0 | H41: =PV(0.03,9,0,-G41) -> 0 | I41: =PV(0.07,9,0,-G41) -> 0 | J41: =IF(F41-'Project Information'!$C$8<='Project Cost'!$H$61,IF(A41<'Project Information'!$C$10,0,('Freight Calcs'!I43+'Passenger Calcs'!K43)),0) ->  | K41: =PV(0.03,9,0,-J41) ->  | L41: =PV(0.07,9,0,-J41) ->  | N41: 0 | O41: =PV(0.03,9,0,-N41) -> 0 | P41: =PV(0.07,9,0,-N41) -> 0 | Q41: 0 | R41: =PV(0.03,9,0,-Q41) -> 0 | S41: =PV(0.07,9,0,-Q41) -> 0
A42: 10 | B42: 0 | C42: 0 | D42: 0 | F42: 10 | G42: =IF(F42-'Project Information'!$C$8<=$H$61,B42,0) -> 0 | H42: =PV(0.03,10,0,-G42) -> 0 | I42: =PV(0.07,10,0,-G42) -> 0 | J42: =IF(F42-'Project Information'!$C$8<='Project Cost'!$H$61,IF(A42<'Project Information'!$C$10,0,('Freight Calcs'!I44+'Passenger Calcs'!K44)),0) ->  | K42: =PV(0.03,10,0,-J42) ->  | L42: =PV(0.07,10,0,-J42) ->  | N42: 0 | O42: =PV(0.03,10,0,-N42) -> 0 | P42: =PV(0.07,10,0,-N42) -> 0 | Q42: 0 | R42: =PV(0.03,10,0,-Q42) -> 0 | S42: =PV(0.07,10,0,-Q42) -> 0
A43: 11 | B43: 0 | C43: 0 | D43: 0 | F43: 11 | G43: =IF(F43-'Project Information'!$C$8<=$H$61,B43,0) -> 0 | H43: =PV(0.03,11,0,-G43) -> 0 | I43: =PV(0.07,11,0,-G43) -> 0 | J43: =IF(F43-'Project Information'!$C$8<='Project Cost'!$H$61,IF(A43<'Project Information'!$C$10,0,('Freight Calcs'!I45+'Passenger Calcs'!K45)),0) ->  | K43: =PV(0.03,11,0,-J43) ->  | L43: =PV(0.07,11,0,-J43) ->  | N43: 0 | O43: =PV(0.03,11,0,-N43) -> 0 | P43: =PV(0.07,11,0,-N43) -> 0 | Q43: 0 | R43: =PV(0.03,11,0,-Q43) -> 0 | S43: =PV(0.07,11,0,-Q43) -> 0
A44: 12 | B44: 0 | C44: 0 | D44: 0 | F44: 12 | G44: =IF(F44-'Project Information'!$C$8<=$H$61,B44,0) -> 0 | H44: =PV(0.03,12,0,-G44) -> 0 | I44: =PV(0.07,12,0,-G44) -> 0 | J44: =IF(F44-'Project Information'!$C$8<='Project Cost'!$H$61,IF(A44<'Project Information'!$C$10,0,('Freight Calcs'!I46+'Passenger Calcs'!K46)),0) ->  | K44: =PV(0.03,12,0,-J44) ->  | L44: =PV(0.07,12,0,-J44) ->  | N44: 0 | O44: =PV(0.03,12,0,-N44) -> 0 | P44: =PV(0.07,12,0,-N44) -> 0 | Q44: 0 | R44: =PV(0.03,12,0,-Q44) -> 0 | S44: =PV(0.07,12,0,-Q44) -> 0
A45: 13 | B45: 0 | C45: 0 | D45: 0 | F45: 13 | G45: =IF(F45-'Project Information'!$C$8<=$H$61,B45,0) -> 0 | H45: =PV(0.03,13,0,-G45) -> 0 | I45: =PV(0.07,13,0,-G45) -> 0 | J45: =IF(F45-'Project Information'!$C$8<='Project Cost'!$H$61,IF(A45<'Project Information'!$C$10,0,('Freight Calcs'!I47+'Passenger Calcs'!K47)),0) ->  | K45: =PV(0.03,13,0,-J45) ->  | L45: =PV(0.07,13,0,-J45) ->  | N45: 0 | O45: =PV(0.03,13,0,-N45) -> 0 | P45: =PV(0.07,13,0,-N45) -> 0 | Q45: 0 | R45: =PV(0.03,13,0,-Q45) -> 0 | S45: =PV(0.07,13,0,-Q45) -> 0
A46: 14 | B46: 0 | C46: 0 | D46: 0 | F46: 14 | G46: =IF(F46-'Project Information'!$C$8<=$H$61,B46,0) -> 0 | H46: =PV(0.03,14,0,-G46) -> 0 | I46: =PV(0.07,14,0,-G46) -> 0 | J46: =IF(F46-'Project Information'!$C$8<='Project Cost'!$H$61,IF(A46<'Project Information'!$C$10,0,('Freight Calcs'!I48+'Passenger Calcs'!K48)),0) ->  | K46: =PV(0.03,14,0,-J46) ->  | L46: =PV(0.07,14,0,-J46) ->  | N46: 0 | O46: =PV(0.03,14,0,-N46) -> 0 | P46: =PV(0.07,14,0,-N46) -> 0 | Q46: 0 | R46: =PV(0.03,14,0,-Q46) -> 0 | S46: =PV(0.07,14,0,-Q46) -> 0
A47: 15 | B47: 0 | C47: 0 | D47: 0 | F47: 15 | G47: =IF(F47-'Project Information'!$C$8<=$H$61,B47,0) -> 0 | H47: =PV(0.03,15,0,-G47) -> 0 | I47: =PV(0.07,15,0,-G47) -> 0 | J47: =IF(F47-'Project Information'!$C$8<='Project Cost'!$H$61,IF(A47<'Project Information'!$C$10,0,('Freight Calcs'!I49+'Passenger Calcs'!K49)),0) -> 0 | K47: =PV(0.03,15,0,-J47) -> 0 | L47: =PV(0.07,15,0,-J47) -> 0 | N47: 0 | O47: =PV(0.03,15,0,-N47) -> 0 | P47: =PV(0.07,15,0,-N47) -> 0 | Q47: 0 | R47: =PV(0.03,15,0,-Q47) -> 0 | S47: =PV(0.07,15,0,-Q47) -> 0
A48: 16 | B48: 0 | C48: 0 | D48: 0 | F48: 16 | G48: =IF(F48-'Project Information'!$C$8<=$H$61,B48,0) -> 0 | H48: =PV(0.03,16,0,-G48) -> 0 | I48: =PV(0.07,16,0,-G48) -> 0 | J48: =IF(F48-'Project Information'!$C$8<='Project Cost'!$H$61,IF(A48<'Project Information'!$C$10,0,('Freight Calcs'!I50+'Passenger Calcs'!K50)),0) -> 0 | K48: =PV(0.03,16,0,-J48) -> 0 | L48: =PV(0.07,16,0,-J48) -> 0 | N48: 0 | O48: =PV(0.03,16,0,-N48) -> 0 | P48: =PV(0.07,16,0,-N48) -> 0 | Q48: 0 | R48: =PV(0.03,16,0,-Q48) -> 0 | S48: =PV(0.07,16,0,-Q48) -> 0
A49: 17 | B49: 0 | C49: 0 | D49: 0 | F49: 17 | G49: =IF(F49-'Project Information'!$C$8<=$H$61,B49,0) -> 0 | H49: =PV(0.03,17,0,-G49) -> 0 | I49: =PV(0.07,17,0,-G49) -> 0 | J49: =IF(F49-'Project Information'!$C$8<='Project Cost'!$H$61,IF(A49<'Project Information'!$C$10,0,('Freight Calcs'!I51+'Passenger Calcs'!K51)),0) -> 0 | K49: =PV(0.03,17,0,-J49) -> 0 | L49: =PV(0.07,17,0,-J49) -> 0 | N49: 0 | O49: =PV(0.03,17,0,-N49) -> 0 | P49: =PV(0.07,17,0,-N49) -> 0 | Q49: 0 | R49: =PV(0.03,17,0,-Q49) -> 0 | S49: =PV(0.07,17,0,-Q49) -> 0
A50: 18 | B50: 0 | C50: 0 | D50: 0 | F50: 18 | G50: =IF(F50-'Project Information'!$C$8<=$H$61,B50,0) -> 0 | H50: =PV(0.03,18,0,-G50) -> 0 | I50: =PV(0.07,18,0,-G50) -> 0 | J50: =IF(F50-'Project Information'!$C$8<='Project Cost'!$H$61,IF(A50<'Project Information'!$C$10,0,('Freight Calcs'!I52+'Passenger Calcs'!K52)),0) -> 0 | K50: =PV(0.03,18,0,-J50) -> 0 | L50: =PV(0.07,18,0,-J50) -> 0 | N50: 0 | O50: =PV(0.03,18,0,-N50) -> 0 | P50: =PV(0.07,18,0,-N50) -> 0 | Q50: 0 | R50: =PV(0.03,18,0,-Q50) -> 0 | S50: =PV(0.07,18,0,-Q50) -> 0
A51: 19 | B51: 0 | C51: 0 | D51: 0 | F51: 19 | G51: =IF(F51-'Project Information'!$C$8<=$H$61,B51,0) -> 0 | H51: =PV(0.03,19,0,-G51) -> 0 | I51: =PV(0.07,19,0,-G51) -> 0 | J51: =IF(F51-'Project Information'!$C$8<='Project Cost'!$H$61,IF(A51<'Project Information'!$C$10,0,('Freight Calcs'!I53+'Passenger Calcs'!K53)),0) -> 0 | K51: =PV(0.03,19,0,-J51) -> 0 | L51: =PV(0.07,19,0,-J51) -> 0 | N51: 0 | O51: =PV(0.03,19,0,-N51) -> 0 | P51: =PV(0.07,19,0,-N51) -> 0 | Q51: 0 | R51: =PV(0.03,19,0,-Q51) -> 0 | S51: =PV(0.07,19,0,-Q51) -> 0
A52: 20 | B52: 0 | C52: 0 | D52: 0 | F52: 20 | G52: =IF(F52-'Project Information'!$C$8<=$H$61,B52,0) -> 0 | H52: =PV(0.03,20,0,-G52) -> 0 | I52: =PV(0.07,20,0,-G52) -> 0 | J52: =IF(F52-'Project Information'!$C$8<='Project Cost'!$H$61,IF(A52<'Project Information'!$C$10,0,('Freight Calcs'!I54+'Passenger Calcs'!K54)),0) -> 0 | K52: =PV(0.03,20,0,-J52) -> 0 | L52: =PV(0.07,20,0,-J52) -> 0 | N52: 0 | O52: =PV(0.03,20,0,-N52) -> 0 | P52: =PV(0.07,20,0,-N52) -> 0 | Q52: 0 | R52: =PV(0.03,20,0,-Q52) -> 0 | S52: =PV(0.07,20,0,-Q52) -> 0
A53: 21 | B53: 0 | C53: 0 | D53: 0 | F53: 21 | G53: =IF(F53-'Project Information'!$C$8<=$H$61,B53,0) -> 0 | H53: =PV(0.03,21,0,-G53) -> 0 | I53: =PV(0.07,21,0,-G53) -> 0 | J53: =IF(F53-'Project Information'!$C$8<='Project Cost'!$H$61,IF(A53<'Project Information'!$C$10,0,('Freight Calcs'!I55+'Passenger Calcs'!K55)),0) -> 0 | K53: =PV(0.03,21,0,-J53) -> 0 | L53: =PV(0.07,21,0,-J53) -> 0 | N53: 0 | O53: =PV(0.03,21,0,-N53) -> 0 | P53: =PV(0.07,21,0,-N53) -> 0 | Q53: 0 | R53: =PV(0.03,21,0,-Q53) -> 0 | S53: =PV(0.07,21,0,-Q53) -> 0
A54: 22 | B54: 0 | C54: 0 | D54: 0 | F54: 22 | G54: =IF(F54-'Project Information'!$C$8<=$H$61,B54,0) -> 0 | H54: =PV(0.03,22,0,-G54) -> 0 | I54: =PV(0.07,22,0,-G54) -> 0 | J54: =IF(F54-'Project Information'!$C$8<='Project Cost'!$H$61,IF(A54<'Project Information'!$C$10,0,('Freight Calcs'!I56+'Passenger Calcs'!K56)),0) -> 0 | K54: =PV(0.03,22,0,-J54) -> 0 | L54: =PV(0.07,22,0,-J54) -> 0 | N54: 0 | O54: =PV(0.03,22,0,-N54) -> 0 | P54: =PV(0.07,22,0,-N54) -> 0 | Q54: 0 | R54: =PV(0.03,22,0,-Q54) -> 0 | S54: =PV(0.07,22,0,-Q54) -> 0
A55: 23 | B55: 0 | C55: 0 | D55: 0 | F55: 23 | G55: =IF(F55-'Project Information'!$C$8<=$H$61,B55,0) -> 0 | H55: =PV(0.03,23,0,-G55) -> 0 | I55: =PV(0.07,23,0,-G55) -> 0 | J55: =IF(F55-'Project Information'!$C$8<='Project Cost'!$H$61,IF(A55<'Project Information'!$C$10,0,('Freight Calcs'!I57+'Passenger Calcs'!K57)),0) -> 0 | K55: =PV(0.03,23,0,-J55) -> 0 | L55: =PV(0.07,23,0,-J55) -> 0 | N55: 0 | O55: =PV(0.03,23,0,-N55) -> 0 | P55: =PV(0.07,23,0,-N55) -> 0 | Q55: 0 | R55: =PV(0.03,23,0,-Q55) -> 0 | S55: =PV(0.07,23,0,-Q55) -> 0
A56: 24 | B56: 0 | C56: 0 | D56: 0 | F56: 24 | G56: =IF(F56-'Project Information'!$C$8<=$H$61,B56,0) -> 0 | H56: =PV(0.03,24,0,-G56) -> 0 | I56: =PV(0.07,24,0,-G56) -> 0 | J56: =IF(F56-'Project Information'!$C$8<='Project Cost'!$H$61,IF(A56<'Project Information'!$C$10,0,('Freight Calcs'!I58+'Passenger Calcs'!K58)),0) -> 0 | K56: =PV(0.03,24,0,-J56) -> 0 | L56: =PV(0.07,24,0,-J56) -> 0 | N56: 0 | O56: =PV(0.03,24,0,-N56) -> 0 | P56: =PV(0.07,24,0,-N56) -> 0 | Q56: 0 | R56: =PV(0.03,24,0,-Q56) -> 0 | S56: =PV(0.07,24,0,-Q56) -> 0
B57: =SUM(B32:B56) -> 0 | C57: =SUM(C32:C56) -> 0 | D57: =SUM(D32:D56) -> 0 | F57: Totals | G57: =SUM(G32:G56) -> 0 | H57: 0 | I57: 0 | N57: =SUM(N32:N56) -> 0 | O57: 0 | P57: 0 | Q57: 0 | R57: 0 | S57: 0
B60: Benefit Cost NPV 3% | C60: Benefit Cost NPV 7% | N60: Freight (Not Adjusted) | O60: Congestion Cost | P60: Environmental Improvement - (Shift from trucks to trains) | Q60: Environmental Improvement - (Distance Reduction) | R60: Shipping Cost Reduction - (Distance Reduction) | S60: Shipping Cost Reduction - (Mode Switch) | T60: Savings in Pavement Maintenance | U60: Reduced Accident Costs | V60: Freight Benefits | Y60: Freight (3%) | Z60: Congestion Cost | AA60: Environmental Improvement - (Shift from trucks to trains) | AB60: Environmental Improvement - (Distance Reduction) | AC60: Shipping Cost Reduction - (Distance Reduction) | AD60: Shipping Cost Reduction - (Mode Switch) | AE60: Savings in Pavement Maintenance | AF60: Reduced Accident Costs | AG60: Freight Benefits | AJ60: Freight (7%) | AK60: Congestion Cost | AL60: Environmental Improvement - (Shift from trucks to trains) | AM60: Environmental Improvement - (Distance Reduction) | AN60: Shipping Cost Reduction - (Distance Reduction) | AO60: Shipping Cost Reduction - (Mode Switch) | AP60: Savings in Pavement Maintenance | AQ60: Reduced Accident Costs | AR60: Freight Benefits
A61: DRPT Funds | B61: =K57/O57 ->  | C61: =L57/P57 ->  | F61: Number of Years to Calculate: | H61: 15 | N61: ='Freight Calcs'!A4 -> 0 | O61: ='Freight Calcs'!C4 -> 0 | P61: ='Freight Calcs'!E4 -> 0 | Q61: ='Freight Calcs'!G4 ->  | R61: ='Freight Calcs'!I4 ->  | S61: ='Freight Calcs'!C34 -> 0 | T61: ='Freight Calcs'!E34 -> 0 | U61: ='Freight Calcs'!G34 -> 0 | V61: ='Freight Calcs'!I34 -> 0 | Y61: =N61 -> 0 | Z61: =PV(0.03,0,0,-O61) -> 0 | AA61: =PV(0.03,0,0,-P61) -> 0 | AD61: 0 | AE61: 0 | AF61: 0 | AG61: 0 | AJ61: =N61 -> 0 | AK61: =PV(0.07,0,0,-O61) -> 0 | AL61: =PV(0.07,0,0,-P61) -> 0 | AO61: 0 | AP61: 0 | AQ61: 0 | AR61: 0
A62: Total Funds | B62: =K57/H57 ->  | C62: =L57/I57 ->  | N62: ='Freight Calcs'!A5 -> 1 | O62: ='Freight Calcs'!C5 -> 0 | P62: ='Freight Calcs'!E5 -> 0 | Q62: ='Freight Calcs'!G5 ->  | R62: ='Freight Calcs'!I5 ->  | S62: ='Freight Calcs'!C35 -> 0 | T62: ='Freight Calcs'!E35 -> 0 | U62: ='Freight Calcs'!G35 -> 0 | V62: ='Freight Calcs'!I35 -> 0 | Y62: =N62 -> 1 | Z62: =PV(0.03,1,0,-O62) -> 0 | AA62: =PV(0.03,1,0,-P62) -> 0 | AD62: 0 | AE62: 0 | AF62: 0 | AG62: 0 | AJ62: =N62 -> 1 | AK62: =PV(0.07,1,0,-O62) -> 0 | AL62: =PV(0.07,1,0,-P62) -> 0 | AO62: 0 | AP62: 0 | AQ62: 0 | AR62: 0
N63: ='Freight Calcs'!A6 -> 2 | O63: ='Freight Calcs'!C6 -> 0 | P63: ='Freight Calcs'!E6 -> 0 | Q63: ='Freight Calcs'!G6 ->  | R63: ='Freight Calcs'!I6 ->  | S63: ='Freight Calcs'!C36 -> 0 | T63: ='Freight Calcs'!E36 -> 0 | U63: ='Freight Calcs'!G36 -> 0 | V63: ='Freight Calcs'!I36 -> 0 | Y63: 2 | Z63: =PV(0.03,2,0,-O63) -> 0 | AA63: =PV(0.03,2,0,-P63) -> 0 | AD63: 0 | AE63: 0 | AF63: 0 | AG63: 0 | AJ63: 2 | AK63: =PV(0.07,2,0,-O63) -> 0 | AL63: =PV(0.07,2,0,-P63) -> 0 | AO63: 0 | AP63: 0 | AQ63: 0 | AR63: 0
N64: ='Freight Calcs'!A7 -> 3 | O64: ='Freight Calcs'!C7 -> 0 | P64: ='Freight Calcs'!E7 -> 0 | Q64: ='Freight Calcs'!G7 ->  | R64: ='Freight Calcs'!I7 ->  | S64: ='Freight Calcs'!C37 -> 0 | T64: ='Freight Calcs'!E37 -> 0 | U64: ='Freight Calcs'!G37 -> 0 | V64: ='Freight Calcs'!I37 -> 0 | Y64: 3 | Z64: =PV(0.03,3,0,-O64) -> 0 | AA64: =PV(0.03,3,0,-P64) -> 0 | AD64: 0 | AE64: 0 | AF64: 0 | AG64: 0 | AJ64: 3 | AK64: =PV(0.07,3,0,-O64) -> 0 | AL64: =PV(0.07,3,0,-P64) -> 0 | AO64: 0 | AP64: 0 | AQ64: 0 | AR64: 0
N65: ='Freight Calcs'!A8 -> 4 | O65: ='Freight Calcs'!C8 -> 0 | P65: ='Freight Calcs'!E8 -> 0 | Q65: ='Freight Calcs'!G8 ->  | R65: ='Freight Calcs'!I8 ->  | S65: ='Freight Calcs'!C38 -> 0 | T65: ='Freight Calcs'!E38 -> 0 | U65: ='Freight Calcs'!G38 -> 0 | V65: ='Freight Calcs'!I38 -> 0 | Y65: 4 | Z65: =PV(0.03,4,0,-O65) -> 0 | AA65: =PV(0.03,4,0,-P65) -> 0 | AD65: 0 | AE65: 0 | AF65: 0 | AG65: 0 | AJ65: 4 | AK65: =PV(0.07,4,0,-O65) -> 0 | AL65: =PV(0.07,4,0,-P65) -> 0 | AO65: 0 | AP65: 0 | AQ65: 0 | AR65: 0
N66: ='Freight Calcs'!A9 -> 5 | O66: ='Freight Calcs'!C9 -> 0 | P66: ='Freight Calcs'!E9 -> 0 | Q66: ='Freight Calcs'!G9 ->  | R66: ='Freight Calcs'!I9 ->  | S66: ='Freight Calcs'!C39 -> 0 | T66: ='Freight Calcs'!E39 -> 0 | U66: ='Freight Calcs'!G39 -> 0 | V66: ='Freight Calcs'!I39 -> 0 | Y66: 5 | Z66: =PV(0.03,5,0,-O66) -> 0 | AA66: =PV(0.03,5,0,-P66) -> 0 | AD66: 0 | AE66: 0 | AF66: 0 | AG66: 0 | AJ66: 5 | AK66: =PV(0.07,5,0,-O66) -> 0 | AL66: =PV(0.07,5,0,-P66) -> 0 | AO66: 0 | AP66: 0 | AQ66: 0 | AR66: 0
N67: ='Freight Calcs'!A10 -> 6 | O67: ='Freight Calcs'!C10 -> 0 | P67: ='Freight Calcs'!E10 -> 0 | Q67: ='Freight Calcs'!G10 ->  | R67: ='Freight Calcs'!I10 ->  | S67: ='Freight Calcs'!C40 -> 0 | T67: ='Freight Calcs'!E40 -> 0 | U67: ='Freight Calcs'!G40 -> 0 | V67: ='Freight Calcs'!I40 -> 0 | Y67: 6 | Z67: =PV(0.03,6,0,-O67) -> 0 | AA67: =PV(0.03,6,0,-P67) -> 0 | AD67: 0 | AE67: 0 | AF67: 0 | AG67: 0 | AJ67: 6 | AK67: =PV(0.07,6,0,-O67) -> 0 | AL67: =PV(0.07,6,0,-P67) -> 0 | AO67: 0 | AP67: 0 | AQ67: 0 | AR67: 0
N68: ='Freight Calcs'!A11 -> 7 | O68: ='Freight Calcs'!C11 -> 0 | P68: ='Freight Calcs'!E11 -> 0 | Q68: ='Freight Calcs'!G11 ->  | R68: ='Freight Calcs'!I11 ->  | S68: ='Freight Calcs'!C41 -> 0 | T68: ='Freight Calcs'!E41 -> 0 | U68: ='Freight Calcs'!G41 -> 0 | V68: ='Freight Calcs'!I41 -> 0 | Y68: 7 | Z68: =PV(0.03,7,0,-O68) -> 0 | AA68: =PV(0.03,7,0,-P68) -> 0 | AD68: 0 | AE68: 0 | AF68: 0 | AG68: 0 | AJ68: 7 | AK68: =PV(0.07,7,0,-O68) -> 0 | AL68: =PV(0.07,7,0,-P68) -> 0 | AO68: 0 | AP68: 0 | AQ68: 0 | AR68: 0
N69: ='Freight Calcs'!A12 -> 8 | O69: ='Freight Calcs'!C12 -> 0 | P69: ='Freight Calcs'!E12 -> 0 | Q69: ='Freight Calcs'!G12 ->  | R69: ='Freight Calcs'!I12 ->  | S69: ='Freight Calcs'!C42 -> 0 | T69: ='Freight Calcs'!E42 -> 0 | U69: ='Freight Calcs'!G42 -> 0 | V69: ='Freight Calcs'!I42 -> 0 | Y69: 8 | Z69: =PV(0.03,8,0,-O69) -> 0 | AA69: =PV(0.03,8,0,-P69) -> 0 | AD69: 0 | AE69: 0 | AF69: 0 | AG69: 0 | AJ69: 8 | AK69: =PV(0.07,8,0,-O69) -> 0 | AL69: =PV(0.07,8,0,-P69) -> 0 | AO69: 0 | AP69: 0 | AQ69: 0 | AR69: 0
N70: ='Freight Calcs'!A13 -> 9 | O70: ='Freight Calcs'!C13 -> 0 | P70: ='Freight Calcs'!E13 -> 0 | Q70: ='Freight Calcs'!G13 ->  | R70: ='Freight Calcs'!I13 ->  | S70: ='Freight Calcs'!C43 -> 0 | T70: ='Freight Calcs'!E43 -> 0 | U70: ='Freight Calcs'!G43 -> 0 | V70: ='Freight Calcs'!I43 -> 0 | Y70: 9 | Z70: =PV(0.03,9,0,-O70) -> 0 | AA70: =PV(0.03,9,0,-P70) -> 0 | AD70: 0 | AE70: 0 | AF70: 0 | AG70: 0 | AJ70: 9 | AK70: =PV(0.07,9,0,-O70) -> 0 | AL70: =PV(0.07,9,0,-P70) -> 0 | AO70: 0 | AP70: 0 | AQ70: 0 | AR70: 0
N71: ='Freight Calcs'!A14 -> 10 | O71: ='Freight Calcs'!C14 -> 0 | P71: ='Freight Calcs'!E14 -> 0 | Q71: ='Freight Calcs'!G14 ->  | R71: ='Freight Calcs'!I14 ->  | S71: ='Freight Calcs'!C44 -> 0 | T71: ='Freight Calcs'!E44 -> 0 | U71: ='Freight Calcs'!G44 -> 0 | V71: ='Freight Calcs'!I44 -> 0 | Y71: 10 | Z71: =PV(0.03,10,0,-O71) -> 0 | AA71: =PV(0.03,10,0,-P71) -> 0 | AD71: 0 | AE71: 0 | AF71: 0 | AG71: 0 | AJ71: 10 | AK71: =PV(0.07,10,0,-O71) -> 0 | AL71: =PV(0.07,10,0,-P71) -> 0 | AO71: 0 | AP71: 0 | AQ71: 0 | AR71: 0
N72: ='Freight Calcs'!A15 -> 11 | O72: ='Freight Calcs'!C15 -> 0 | P72: ='Freight Calcs'!E15 -> 0 | Q72: ='Freight Calcs'!G15 ->  | R72: ='Freight Calcs'!I15 ->  | S72: ='Freight Calcs'!C45 -> 0 | T72: ='Freight Calcs'!E45 -> 0 | U72: ='Freight Calcs'!G45 -> 0 | V72: ='Freight Calcs'!I45 -> 0 | Y72: 11 | Z72: =PV(0.03,11,0,-O72) -> 0 | AA72: =PV(0.03,11,0,-P72) -> 0 | AD72: 0 | AE72: 0 | AF72: 0 | AG72: 0 | AJ72: 11 | AK72: =PV(0.07,11,0,-O72) -> 0 | AL72: =PV(0.07,11,0,-P72) -> 0 | AO72: 0 | AP72: 0 | AQ72: 0 | AR72: 0
N73: ='Freight Calcs'!A16 -> 12 | O73: ='Freight Calcs'!C16 -> 0 | P73: ='Freight Calcs'!E16 -> 0 | Q73: ='Freight Calcs'!G16 ->  | R73: ='Freight Calcs'!I16 ->  | S73: ='Freight Calcs'!C46 -> 0 | T73: ='Freight Calcs'!E46 -> 0 | U73: ='Freight Calcs'!G46 -> 0 | V73: ='Freight Calcs'!I46 -> 0 | Y73: 12 | Z73: =PV(0.03,12,0,-O73) -> 0 | AA73: =PV(0.03,12,0,-P73) -> 0 | AD73: 0 | AE73: 0 | AF73: 0 | AG73: 0 | AJ73: 12 | AK73: =PV(0.07,12,0,-O73) -> 0 | AL73: =PV(0.07,12,0,-P73) -> 0 | AO73: 0 | AP73: 0 | AQ73: 0 | AR73: 0
N74: ='Freight Calcs'!A17 -> 13 | O74: ='Freight Calcs'!C17 -> 0 | P74: ='Freight Calcs'!E17 -> 0 | Q74: ='Freight Calcs'!G17 ->  | R74: ='Freight Calcs'!I17 ->  | S74: ='Freight Calcs'!C47 -> 0 | T74: ='Freight Calcs'!E47 -> 0 | U74: ='Freight Calcs'!G47 -> 0 | V74: ='Freight Calcs'!I47 -> 0 | Y74: 13 | Z74: =PV(0.03,13,0,-O74) -> 0 | AA74: =PV(0.03,13,0,-P74) -> 0 | AD74: 0 | AE74: 0 | AF74: 0 | AG74: 0 | AJ74: 13 | AK74: =PV(0.07,13,0,-O74) -> 0 | AL74: =PV(0.07,13,0,-P74) -> 0 | AO74: 0 | AP74: 0 | AQ74: 0 | AR74: 0
N75: ='Freight Calcs'!A18 -> 14 | O75: ='Freight Calcs'!C18 -> 0 | P75: ='Freight Calcs'!E18 -> 0 | Q75: ='Freight Calcs'!G18 ->  | R75: ='Freight Calcs'!I18 ->  | S75: ='Freight Calcs'!C48 -> 0 | T75: ='Freight Calcs'!E48 -> 0 | U75: ='Freight Calcs'!G48 -> 0 | V75: ='Freight Calcs'!I48 -> 0 | Y75: 14 | Z75: =PV(0.03,14,0,-O75) -> 0 | AA75: =PV(0.03,14,0,-P75) -> 0 | AD75: 0 | AE75: 0 | AF75: 0 | AG75: 0 | AJ75: 14 | AK75: =PV(0.07,14,0,-O75) -> 0 | AL75: =PV(0.07,14,0,-P75) -> 0 | AO75: 0 | AP75: 0 | AQ75: 0 | AR75: 0
N76: ='Freight Calcs'!A19 -> 15 | O76: ='Freight Calcs'!C19 -> 0 | P76: ='Freight Calcs'!E19 -> 0 | Q76: ='Freight Calcs'!G19 -> 0 | R76: ='Freight Calcs'!I19 -> 0 | S76: ='Freight Calcs'!C49 -> 0 | T76: ='Freight Calcs'!E49 -> 0 | U76: ='Freight Calcs'!G49 -> 0 | V76: ='Freight Calcs'!I49 -> 0 | Y76: 15 | Z76: =PV(0.03,15,0,-O76) -> 0 | AA76: =PV(0.03,15,0,-P76) -> 0 | AB76: 0 | AC76: 0 | AD76: 0 | AE76: 0 | AF76: 0 | AG76: 0 | AJ76: 15 | AK76: =PV(0.07,15,0,-O76) -> 0 | AL76: =PV(0.07,15,0,-P76) -> 0 | AM76: 0 | AN76: 0 | AO76: 0 | AP76: 0 | AQ76: 0 | AR76: 0
N77: ='Freight Calcs'!A20 -> 16 | O77: ='Freight Calcs'!C20 -> 0 | P77: ='Freight Calcs'!E20 -> 0 | Q77: ='Freight Calcs'!G20 -> 0 | R77: ='Freight Calcs'!I20 -> 0 | S77: ='Freight Calcs'!C50 -> 0 | T77: ='Freight Calcs'!E50 -> 0 | U77: ='Freight Calcs'!G50 -> 0 | V77: ='Freight Calcs'!I50 -> 0 | Y77: 16 | Z77: =PV(0.03,16,0,-O77) -> 0 | AA77: =PV(0.03,16,0,-P77) -> 0 | AB77: 0 | AC77: 0 | AD77: 0 | AE77: 0 | AF77: 0 | AG77: 0 | AJ77: 16 | AK77: =PV(0.07,16,0,-O77) -> 0 | AL77: =PV(0.07,16,0,-P77) -> 0 | AM77: 0 | AN77: 0 | AO77: 0 | AP77: 0 | AQ77: 0 | AR77: 0
N78: ='Freight Calcs'!A21 -> 17 | O78: ='Freight Calcs'!C21 -> 0 | P78: ='Freight Calcs'!E21 -> 0 | Q78: ='Freight Calcs'!G21 -> 0 | R78: ='Freight Calcs'!I21 -> 0 | S78: ='Freight Calcs'!C51 -> 0 | T78: ='Freight Calcs'!E51 -> 0 | U78: ='Freight Calcs'!G51 -> 0 | V78: ='Freight Calcs'!I51 -> 0 | Y78: 17 | Z78: =PV(0.03,17,0,-O78) -> 0 | AA78: =PV(0.03,17,0,-P78) -> 0 | AB78: 0 | AC78: 0 | AD78: 0 | AE78: 0 | AF78: 0 | AG78: 0 | AJ78: 17 | AK78: =PV(0.07,17,0,-O78) -> 0 | AL78: =PV(0.07,17,0,-P78) -> 0 | AM78: 0 | AN78: 0 | AO78: 0 | AP78: 0 | AQ78: 0 | AR78: 0
N79: ='Freight Calcs'!A22 -> 18 | O79: ='Freight Calcs'!C22 -> 0 | P79: ='Freight Calcs'!E22 -> 0 | Q79: ='Freight Calcs'!G22 -> 0 | R79: ='Freight Calcs'!I22 -> 0 | S79: ='Freight Calcs'!C52 -> 0 | T79: ='Freight Calcs'!E52 -> 0 | U79: ='Freight Calcs'!G52 -> 0 | V79: ='Freight Calcs'!I52 -> 0 | Y79: 18 | Z79: =PV(0.03,18,0,-O79) -> 0 | AA79: =PV(0.03,18,0,-P79) -> 0 | AB79: 0 | AC79: 0 | AD79: 0 | AE79: 0 | AF79: 0 | AG79: 0 | AJ79: 18 | AK79: =PV(0.07,18,0,-O79) -> 0 | AL79: =PV(0.07,18,0,-P79) -> 0 | AM79: 0 | AN79: 0 | AO79: 0 | AP79: 0 | AQ79: 0 | AR79: 0
N80: ='Freight Calcs'!A23 -> 19 | O80: ='Freight Calcs'!C23 -> 0 | P80: ='Freight Calcs'!E23 -> 0 | Q80: ='Freight Calcs'!G23 -> 0 | R80: ='Freight Calcs'!I23 -> 0 | S80: ='Freight Calcs'!C53 -> 0 | T80: ='Freight Calcs'!E53 -> 0 | U80: ='Freight Calcs'!G53 -> 0 | V80: ='Freight Calcs'!I53 -> 0 | Y80: 19 | Z80: =PV(0.03,19,0,-O80) -> 0 | AA80: =PV(0.03,19,0,-P80) -> 0 | AB80: 0 | AC80: 0 | AD80: 0 | AE80: 0 | AF80: 0 | AG80: 0 | AJ80: 19 | AK80: =PV(0.07,19,0,-O80) -> 0 | AL80: =PV(0.07,19,0,-P80) -> 0 | AM80: 0 | AN80: 0 | AO80: 0 | AP80: 0 | AQ80: 0 | AR80: 0
N81: ='Freight Calcs'!A24 -> 20 | O81: ='Freight Calcs'!C24 -> 0 | P81: ='Freight Calcs'!E24 -> 0 | Q81: ='Freight Calcs'!G24 -> 0 | R81: ='Freight Calcs'!I24 -> 0 | S81: ='Freight Calcs'!C54 -> 0 | T81: ='Freight Calcs'!E54 -> 0 | U81: ='Freight Calcs'!G54 -> 0 | V81: ='Freight Calcs'!I54 -> 0 | Y81: 20 | Z81: =PV(0.03,20,0,-O81) -> 0 | AA81: =PV(0.03,20,0,-P81) -> 0 | AB81: 0 | AC81: 0 | AD81: 0 | AE81: 0 | AF81: 0 | AG81: 0 | AJ81: 20 | AK81: =PV(0.07,20,0,-O81) -> 0 | AL81: =PV(0.07,20,0,-P81) -> 0 | AM81: 0 | AN81: 0 | AO81: 0 | AP81: 0 | AQ81: 0 | AR81: 0
N82: ='Freight Calcs'!A25 -> 21 | O82: ='Freight Calcs'!C25 -> 0 | P82: ='Freight Calcs'!E25 -> 0 | Q82: ='Freight Calcs'!G25 -> 0 | R82: ='Freight Calcs'!I25 -> 0 | S82: ='Freight Calcs'!C55 -> 0 | T82: ='Freight Calcs'!E55 -> 0 | U82: ='Freight Calcs'!G55 -> 0 | V82: ='Freight Calcs'!I55 -> 0 | Y82: 21 | Z82: =PV(0.03,21,0,-O82) -> 0 | AA82: =PV(0.03,21,0,-P82) -> 0 | AB82: 0 | AC82: 0 | AD82: 0 | AE82: 0 | AF82: 0 | AG82: 0 | AJ82: 21 | AK82: =PV(0.07,21,0,-O82) -> 0 | AL82: =PV(0.07,21,0,-P82) -> 0 | AM82: 0 | AN82: 0 | AO82: 0 | AP82: 0 | AQ82: 0 | AR82: 0
N83: ='Freight Calcs'!A26 -> 22 | O83: ='Freight Calcs'!C26 -> 0 | P83: ='Freight Calcs'!E26 -> 0 | Q83: ='Freight Calcs'!G26 -> 0 | R83: ='Freight Calcs'!I26 -> 0 | S83: ='Freight Calcs'!C56 -> 0 | T83: ='Freight Calcs'!E56 -> 0 | U83: ='Freight Calcs'!G56 -> 0 | V83: ='Freight Calcs'!I56 -> 0 | Y83: 22 | Z83: =PV(0.03,22,0,-O83) -> 0 | AA83: =PV(0.03,22,0,-P83) -> 0 | AB83: 0 | AC83: 0 | AD83: 0 | AE83: 0 | AF83: 0 | AG83: 0 | AJ83: 22 | AK83: =PV(0.07,22,0,-O83) -> 0 | AL83: =PV(0.07,22,0,-P83) -> 0 | AM83: 0 | AN83: 0 | AO83: 0 | AP83: 0 | AQ83: 0 | AR83: 0
N84: ='Freight Calcs'!A27 -> 23 | O84: ='Freight Calcs'!C27 -> 0 | P84: ='Freight Calcs'!E27 -> 0 | Q84: ='Freight Calcs'!G27 -> 0 | R84: ='Freight Calcs'!I27 -> 0 | S84: ='Freight Calcs'!C57 -> 0 | T84: ='Freight Calcs'!E57 -> 0 | U84: ='Freight Calcs'!G57 -> 0 | V84: ='Freight Calcs'!I57 -> 0 | Y84: 23 | Z84: =PV(0.03,23,0,-O84) -> 0 | AA84: =PV(0.03,23,0,-P84) -> 0 | AB84: 0 | AC84: 0 | AD84: 0 | AE84: 0 | AF84: 0 | AG84: 0 | AJ84: 23 | AK84: =PV(0.07,23,0,-O84) -> 0 | AL84: =PV(0.07,23,0,-P84) -> 0 | AM84: 0 | AN84: 0 | AO84: 0 | AP84: 0 | AQ84: 0 | AR84: 0
N85: ='Freight Calcs'!A28 -> 24 | O85: ='Freight Calcs'!C28 -> 0 | P85: ='Freight Calcs'!E28 -> 0 | Q85: ='Freight Calcs'!G28 -> 0 | R85: ='Freight Calcs'!I28 -> 0 | S85: ='Freight Calcs'!C58 -> 0 | T85: ='Freight Calcs'!E58 -> 0 | U85: ='Freight Calcs'!G58 -> 0 | V85: ='Freight Calcs'!I58 -> 0 | Y85: 24 | Z85: =PV(0.03,24,0,-O85) -> 0 | AA85: =PV(0.03,24,0,-P85) -> 0 | AB85: 0 | AC85: 0 | AD85: 0 | AE85: 0 | AF85: 0 | AG85: 0 | AJ85: 24 | AK85: =PV(0.07,24,0,-O85) -> 0 | AL85: =PV(0.07,24,0,-P85) -> 0 | AM85: 0 | AN85: 0 | AO85: 0 | AP85: 0 | AQ85: 0 | AR85: 0
N89: Passenger (Not Adjusted) | O89: Congestion Cost | P89: Reduced Accident Costs | Q89: Reduced Passenger Transportation Cost | R89: Travel Time Savings | S89: Environmental Improvement - (Shift from cars to trains) | T89: Environmental Improvement - (Distance Reduction) | U89: Wider Economic Benefits | V89: Savings in Pavement Maintenance | W89: Passenger Benefits | Y89: Passenger (3%) | Z89: Congestion Cost | AA89: Reduced Accident Costs | AB89: Reduced Passenger Transportation Cost | AC89: Travel Time Savings | AD89: Environmental Improvement - (Shift from cars to trains) | AE89: Environmental Improvement - (Distance Reduction) | AF89: Wider Economic Benefits | AG89: Savings in Pavement Maintenance | AH89: Passenger Benefits | AJ89: Passenger (7%) | AK89: Congestion Cost | AL89: Reduced Accident Costs | AM89: Reduced Passenger Transportation Cost | AN89: Travel Time Savings | AO89: Environmental Improvement - (Shift from cars to trains) | AP89: Environmental Improvement - (Distance Reduction) | AQ89: Wider Economic Benefits | AR89: Savings in Pavement Maintenance | AS89: Passenger Benefits
N90: ='Passenger Calcs'!A4 -> 0 | O90: ='Passenger Calcs'!C4 ->  | P90: ='Passenger Calcs'!E4 -> 0 | Q90: ='Passenger Calcs'!G4 -> 0 | R90: ='Passenger Calcs'!I4 ->  | S90: ='Passenger Calcs'!C34 -> 0 | T90: ='Passenger Calcs'!E34 ->  | U90: ='Passenger Calcs'!G34 -> 0 | V90: ='Passenger Calcs'!I34 -> 0 | W90: =SUM(O90:V90) ->  | Y90: =N90 -> 0 | Z90: =(PV(0.03,0,0,-O90)) ->  | AA90: =(PV(0.03,0,0,-P90)) -> 0 | AB90: 0 | AD90: 0 | AF90: 0 | AG90: 0 | AJ90: =N90 -> 0 | AK90: =(PV(0.07,0,0,-O90)) ->  | AL90: =(PV(0.07,0,0,-P90)) -> 0 | AM90: 0 | AO90: 0 | AQ90: 0 | AR90: 0
N91: =IFERROR((IF(N90+1>2040,"No Values Available",N90+1)),"No Values Available") -> 1 | O91: ='Passenger Calcs'!C5 ->  | P91: ='Passenger Calcs'!E5 -> 0 | Q91: ='Passenger Calcs'!G5 -> 0 | R91: ='Passenger Calcs'!I5 ->  | S91: ='Passenger Calcs'!C35 -> 0 | T91: ='Passenger Calcs'!E35 ->  | U91: ='Passenger Calcs'!G35 -> 0 | V91: ='Passenger Calcs'!I35 -> 0 | W91: =SUM(O91:V91) ->  | Y91: 1 | Z91: =(PV(0.03,1,0,-O91)) ->  | AA91: =(PV(0.03,1,0,-P91)) -> 0 | AB91: 0 | AD91: 0 | AF91: 0 | AG91: 0 | AJ91: 1 | AK91: =(PV(0.07,1,0,-O91)) ->  | AL91: =(PV(0.07,1,0,-P91)) -> 0 | AM91: 0 | AO91: 0 | AQ91: 0 | AR91: 0
N92: =IFERROR((IF(N91+1>2040,"No Values Available",N91+1)),"No Values Available") -> 2 | O92: ='Passenger Calcs'!C6 ->  | P92: ='Passenger Calcs'!E6 -> 0 | Q92: ='Passenger Calcs'!G6 -> 0 | R92: ='Passenger Calcs'!I6 ->  | S92: ='Passenger Calcs'!C36 -> 0 | T92: ='Passenger Calcs'!E36 ->  | U92: ='Passenger Calcs'!G36 -> 0 | V92: ='Passenger Calcs'!I36 -> 0 | Y92: 2 | Z92: =(PV(0.03,2,0,-O92)) ->  | AA92: =(PV(0.03,2,0,-P92)) -> 0 | AB92: 0 | AD92: 0 | AF92: 0 | AG92: 0 | AJ92: 2 | AK92: =(PV(0.07,2,0,-O92)) ->  | AL92: =(PV(0.07,2,0,-P92)) -> 0 | AM92: 0 | AO92: 0 | AQ92: 0 | AR92: 0
N93: 3 | O93: ='Passenger Calcs'!C7 ->  | P93: ='Passenger Calcs'!E7 -> 0 | Q93: ='Passenger Calcs'!G7 -> 0 | R93: ='Passenger Calcs'!I7 ->  | S93: ='Passenger Calcs'!C37 -> 0 | T93: ='Passenger Calcs'!E37 ->  | U93: ='Passenger Calcs'!G37 -> 0 | V93: ='Passenger Calcs'!I37 -> 0 | Y93: 3 | Z93: =(PV(0.03,3,0,-O93)) ->  | AA93: =(PV(0.03,3,0,-P93)) -> 0 | AB93: 0 | AD93: 0 | AF93: 0 | AG93: 0 | AJ93: 3 | AK93: =(PV(0.07,3,0,-O93)) ->  | AL93: =(PV(0.07,3,0,-P93)) -> 0 | AM93: 0 | AO93: 0 | AQ93: 0 | AR93: 0
N94: 4 | O94: ='Passenger Calcs'!C8 ->  | P94: ='Passenger Calcs'!E8 -> 0 | Q94: ='Passenger Calcs'!G8 -> 0 | R94: ='Passenger Calcs'!I8 ->  | S94: ='Passenger Calcs'!C38 -> 0 | T94: ='Passenger Calcs'!E38 ->  | U94: ='Passenger Calcs'!G38 -> 0 | V94: ='Passenger Calcs'!I38 -> 0 | Y94: 4 | Z94: =(PV(0.03,4,0,-O94)) ->  | AA94: =(PV(0.03,4,0,-P94)) -> 0 | AB94: 0 | AD94: 0 | AF94: 0 | AG94: 0 | AJ94: 4 | AK94: =(PV(0.07,4,0,-O94)) ->  | AL94: =(PV(0.07,4,0,-P94)) -> 0 | AM94: 0 | AO94: 0 | AQ94: 0 | AR94: 0
N95: 5 | O95: ='Passenger Calcs'!C9 ->  | P95: ='Passenger Calcs'!E9 -> 0 | Q95: ='Passenger Calcs'!G9 -> 0 | R95: ='Passenger Calcs'!I9 ->  | S95: ='Passenger Calcs'!C39 -> 0 | T95: ='Passenger Calcs'!E39 ->  | U95: ='Passenger Calcs'!G39 -> 0 | V95: ='Passenger Calcs'!I39 -> 0 | Y95: 5 | Z95: =(PV(0.03,5,0,-O95)) ->  | AA95: =(PV(0.03,5,0,-P95)) -> 0 | AB95: 0 | AD95: 0 | AF95: 0 | AG95: 0 | AJ95: 5 | AK95: =(PV(0.07,5,0,-O95)) ->  | AL95: =(PV(0.07,5,0,-P95)) -> 0 | AM95: 0 | AO95: 0 | AQ95: 0 | AR95: 0
N96: 6 | O96: ='Passenger Calcs'!C10 ->  | P96: ='Passenger Calcs'!E10 -> 0 | Q96: ='Passenger Calcs'!G10 -> 0 | R96: ='Passenger Calcs'!I10 ->  | S96: ='Passenger Calcs'!C40 -> 0 | T96: ='Passenger Calcs'!E40 ->  | U96: ='Passenger Calcs'!G40 -> 0 | V96: ='Passenger Calcs'!I40 -> 0 | Y96: 6 | Z96: =(PV(0.03,6,0,-O96)) ->  | AA96: =(PV(0.03,6,0,-P96)) -> 0 | AB96: 0 | AD96: 0 | AF96: 0 | AG96: 0 | AJ96: 6 | AK96: =(PV(0.07,6,0,-O96)) ->  | AL96: =(PV(0.07,6,0,-P96)) -> 0 | AM96: 0 | AO96: 0 | AQ96: 0 | AR96: 0
N97: 7 | O97: ='Passenger Calcs'!C11 ->  | P97: ='Passenger Calcs'!E11 -> 0 | Q97: ='Passenger Calcs'!G11 -> 0 | R97: ='Passenger Calcs'!I11 ->  | S97: ='Passenger Calcs'!C41 -> 0 | T97: ='Passenger Calcs'!E41 ->  | U97: ='Passenger Calcs'!G41 -> 0 | V97: ='Passenger Calcs'!I41 -> 0 | Y97: 7 | Z97: =(PV(0.03,7,0,-O97)) ->  | AA97: =(PV(0.03,7,0,-P97)) -> 0 | AB97: 0 | AD97: 0 | AF97: 0 | AG97: 0 | AJ97: 7 | AK97: =(PV(0.07,7,0,-O97)) ->  | AL97: =(PV(0.07,7,0,-P97)) -> 0 | AM97: 0 | AO97: 0 | AQ97: 0 | AR97: 0
N98: 8 | O98: ='Passenger Calcs'!C12 ->  | P98: ='Passenger Calcs'!E12 -> 0 | Q98: ='Passenger Calcs'!G12 -> 0 | R98: ='Passenger Calcs'!I12 ->  | S98: ='Passenger Calcs'!C42 -> 0 | T98: ='Passenger Calcs'!E42 ->  | U98: ='Passenger Calcs'!G42 -> 0 | V98: ='Passenger Calcs'!I42 -> 0 | Y98: 8 | Z98: =(PV(0.03,8,0,-O98)) ->  | AA98: =(PV(0.03,8,0,-P98)) -> 0 | AB98: 0 | AD98: 0 | AF98: 0 | AG98: 0 | AJ98: 8 | AK98: =(PV(0.07,8,0,-O98)) ->  | AL98: =(PV(0.07,8,0,-P98)) -> 0 | AM98: 0 | AO98: 0 | AQ98: 0 | AR98: 0
N99: 9 | O99: ='Passenger Calcs'!C13 ->  | P99: ='Passenger Calcs'!E13 -> 0 | Q99: ='Passenger Calcs'!G13 -> 0 | R99: ='Passenger Calcs'!I13 ->  | S99: ='Passenger Calcs'!C43 -> 0 | T99: ='Passenger Calcs'!E43 ->  | U99: ='Passenger Calcs'!G43 -> 0 | V99: ='Passenger Calcs'!I43 -> 0 | Y99: 9 | Z99: =(PV(0.03,9,0,-O99)) ->  | AA99: =(PV(0.03,9,0,-P99)) -> 0 | AB99: 0 | AD99: 0 | AF99: 0 | AG99: 0 | AJ99: 9 | AK99: =(PV(0.07,9,0,-O99)) ->  | AL99: =(PV(0.07,9,0,-P99)) -> 0 | AM99: 0 | AO99: 0 | AQ99: 0 | AR99: 0
N100: 10 | O100: ='Passenger Calcs'!C14 ->  | P100: ='Passenger Calcs'!E14 -> 0 | Q100: ='Passenger Calcs'!G14 -> 0 | R100: ='Passenger Calcs'!I14 ->  | S100: ='Passenger Calcs'!C44 -> 0 | T100: ='Passenger Calcs'!E44 ->  | U100: ='Passenger Calcs'!G44 -> 0 | V100: ='Passenger Calcs'!I44 -> 0 | Y100: 10 | Z100: =(PV(0.03,10,0,-O100)) ->  | AA100: =(PV(0.03,10,0,-P100)) -> 0 | AB100: 0 | AD100: 0 | AF100: 0 | AG100: 0 | AJ100: 10 | AK100: =(PV(0.07,10,0,-O100)) ->  | AL100: =(PV(0.07,10,0,-P100)) -> 0 | AM100: 0 | AO100: 0 | AQ100: 0 | AR100: 0
N101: 11 | O101: ='Passenger Calcs'!C15 ->  | P101: ='Passenger Calcs'!E15 -> 0 | Q101: ='Passenger Calcs'!G15 -> 0 | R101: ='Passenger Calcs'!I15 ->  | S101: ='Passenger Calcs'!C45 -> 0 | T101: ='Passenger Calcs'!E45 ->  | U101: ='Passenger Calcs'!G45 -> 0 | V101: ='Passenger Calcs'!I45 -> 0 | Y101: 11 | Z101: =(PV(0.03,11,0,-O101)) ->  | AA101: =(PV(0.03,11,0,-P101)) -> 0 | AB101: 0 | AD101: 0 | AF101: 0 | AG101: 0 | AJ101: 11 | AK101: =(PV(0.07,11,0,-O101)) ->  | AL101: =(PV(0.07,11,0,-P101)) -> 0 | AM101: 0 | AO101: 0 | AQ101: 0 | AR101: 0
N102: 12 | O102: ='Passenger Calcs'!C16 ->  | P102: ='Passenger Calcs'!E16 -> 0 | Q102: ='Passenger Calcs'!G16 -> 0 | R102: ='Passenger Calcs'!I16 ->  | S102: ='Passenger Calcs'!C46 -> 0 | T102: ='Passenger Calcs'!E46 ->  | U102: ='Passenger Calcs'!G46 -> 0 | V102: ='Passenger Calcs'!I46 -> 0 | Y102: 12 | Z102: =(PV(0.03,12,0,-O102)) ->  | AA102: =(PV(0.03,12,0,-P102)) -> 0 | AB102: 0 | AD102: 0 | AF102: 0 | AG102: 0 | AJ102: 12 | AK102: =(PV(0.07,12,0,-O102)) ->  | AL102: =(PV(0.07,12,0,-P102)) -> 0 | AM102: 0 | AO102: 0 | AQ102: 0 | AR102: 0
N103: 13 | O103: ='Passenger Calcs'!C17 ->  | P103: ='Passenger Calcs'!E17 -> 0 | Q103: ='Passenger Calcs'!G17 -> 0 | R103: ='Passenger Calcs'!I17 ->  | S103: ='Passenger Calcs'!C47 -> 0 | T103: ='Passenger Calcs'!E47 ->  | U103: ='Passenger Calcs'!G47 -> 0 | V103: ='Passenger Calcs'!I47 -> 0 | Y103: 13 | Z103: =(PV(0.03,13,0,-O103)) ->  | AA103: =(PV(0.03,13,0,-P103)) -> 0 | AB103: 0 | AD103: 0 | AF103: 0 | AG103: 0 | AJ103: 13 | AK103: =(PV(0.07,13,0,-O103)) ->  | AL103: =(PV(0.07,13,0,-P103)) -> 0 | AM103: 0 | AO103: 0 | AQ103: 0 | AR103: 0
N104: 14 | O104: ='Passenger Calcs'!C18 ->  | P104: ='Passenger Calcs'!E18 -> 0 | Q104: ='Passenger Calcs'!G18 -> 0 | R104: ='Passenger Calcs'!I18 ->  | S104: ='Passenger Calcs'!C48 -> 0 | T104: ='Passenger Calcs'!E48 ->  | U104: ='Passenger Calcs'!G48 -> 0 | V104: ='Passenger Calcs'!I48 -> 0 | Y104: 14 | Z104: =(PV(0.03,14,0,-O104)) ->  | AA104: =(PV(0.03,14,0,-P104)) -> 0 | AB104: 0 | AD104: 0 | AF104: 0 | AG104: 0 | AJ104: 14 | AK104: =(PV(0.07,14,0,-O104)) ->  | AL104: =(PV(0.07,14,0,-P104)) -> 0 | AM104: 0 | AO104: 0 | AQ104: 0 | AR104: 0
N105: 15 | O105: ='Passenger Calcs'!C19 -> 0 | P105: ='Passenger Calcs'!E19 -> 0 | Q105: ='Passenger Calcs'!G19 -> 0 | R105: ='Passenger Calcs'!I19 -> 0 | S105: ='Passenger Calcs'!C49 -> 0 | T105: ='Passenger Calcs'!E49 -> 0 | U105: ='Passenger Calcs'!G49 -> 0 | V105: ='Passenger Calcs'!I49 -> 0 | W105: 0 | Y105: 15 | Z105: =(PV(0.03,15,0,-O105)) -> 0 | AA105: =(PV(0.03,15,0,-P105)) -> 0 | AB105: 0 | AC105: 0 | AD105: 0 | AE105: 0 | AF105: 0 | AG105: 0 | AH105: 0 | AJ105: 15 | AK105: =(PV(0.07,15,0,-O105)) -> 0 | AL105: =(PV(0.07,15,0,-P105)) -> 0 | AM105: 0 | AN105: 0 | AO105: 0 | AP105: 0 | AQ105: 0 | AR105: 0 | AS105: 0
N106: 16 | O106: ='Passenger Calcs'!C20 -> 0 | P106: ='Passenger Calcs'!E20 -> 0 | Q106: ='Passenger Calcs'!G20 -> 0 | R106: ='Passenger Calcs'!I20 -> 0 | S106: ='Passenger Calcs'!C50 -> 0 | T106: ='Passenger Calcs'!E50 -> 0 | U106: ='Passenger Calcs'!G50 -> 0 | V106: ='Passenger Calcs'!I50 -> 0 | W106: 0 | Y106: 16 | Z106: =(PV(0.03,16,0,-O106)) -> 0 | AA106: =(PV(0.03,16,0,-P106)) -> 0 | AB106: 0 | AC106: 0 | AD106: 0 | AE106: 0 | AF106: 0 | AG106: 0 | AH106: 0 | AJ106: 16 | AK106: =(PV(0.07,16,0,-O106)) -> 0 | AL106: =(PV(0.07,16,0,-P106)) -> 0 | AM106: 0 | AN106: 0 | AO106: 0 | AP106: 0 | AQ106: 0 | AR106: 0 | AS106: 0
N107: 17 | O107: ='Passenger Calcs'!C21 -> 0 | P107: ='Passenger Calcs'!E21 -> 0 | Q107: ='Passenger Calcs'!G21 -> 0 | R107: ='Passenger Calcs'!I21 -> 0 | S107: ='Passenger Calcs'!C51 -> 0 | T107: ='Passenger Calcs'!E51 -> 0 | U107: ='Passenger Calcs'!G51 -> 0 | V107: ='Passenger Calcs'!I51 -> 0 | W107: 0 | Y107: 17 | Z107: =(PV(0.03,17,0,-O107)) -> 0 | AA107: =(PV(0.03,17,0,-P107)) -> 0 | AB107: 0 | AC107: 0 | AD107: 0 | AE107: 0 | AF107: 0 | AG107: 0 | AH107: 0 | AJ107: 17 | AK107: =(PV(0.07,17,0,-O107)) -> 0 | AL107: =(PV(0.07,17,0,-P107)) -> 0 | AM107: 0 | AN107: 0 | AO107: 0 | AP107: 0 | AQ107: 0 | AR107: 0 | AS107: 0
N108: 18 | O108: ='Passenger Calcs'!C22 -> 0 | P108: ='Passenger Calcs'!E22 -> 0 | Q108: ='Passenger Calcs'!G22 -> 0 | R108: ='Passenger Calcs'!I22 -> 0 | S108: ='Passenger Calcs'!C52 -> 0 | T108: ='Passenger Calcs'!E52 -> 0 | U108: ='Passenger Calcs'!G52 -> 0 | V108: ='Passenger Calcs'!I52 -> 0 | W108: 0 | Y108: 18 | Z108: =(PV(0.03,18,0,-O108)) -> 0 | AA108: =(PV(0.03,18,0,-P108)) -> 0 | AB108: 0 | AC108: 0 | AD108: 0 | AE108: 0 | AF108: 0 | AG108: 0 | AH108: 0 | AJ108: 18 | AK108: =(PV(0.07,18,0,-O108)) -> 0 | AL108: =(PV(0.07,18,0,-P108)) -> 0 | AM108: 0 | AN108: 0 | AO108: 0 | AP108: 0 | AQ108: 0 | AR108: 0 | AS108: 0
N109: 19 | O109: ='Passenger Calcs'!C23 -> 0 | P109: ='Passenger Calcs'!E23 -> 0 | Q109: ='Passenger Calcs'!G23 -> 0 | R109: ='Passenger Calcs'!I23 -> 0 | S109: ='Passenger Calcs'!C53 -> 0 | T109: ='Passenger Calcs'!E53 -> 0 | U109: ='Passenger Calcs'!G53 -> 0 | V109: ='Passenger Calcs'!I53 -> 0 | W109: 0 | Y109: 19 | Z109: =(PV(0.03,19,0,-O109)) -> 0 | AA109: =(PV(0.03,19,0,-P109)) -> 0 | AB109: 0 | AC109: 0 | AD109: 0 | AE109: 0 | AF109: 0 | AG109: 0 | AH109: 0 | AJ109: 19 | AK109: =(PV(0.07,19,0,-O109)) -> 0 | AL109: =(PV(0.07,19,0,-P109)) -> 0 | AM109: 0 | AN109: 0 | AO109: 0 | AP109: 0 | AQ109: 0 | AR109: 0 | AS109: 0
N110: 20 | O110: ='Passenger Calcs'!C24 -> 0 | P110: ='Passenger Calcs'!E24 -> 0 | Q110: ='Passenger Calcs'!G24 -> 0 | R110: ='Passenger Calcs'!I24 -> 0 | S110: ='Passenger Calcs'!C54 -> 0 | T110: ='Passenger Calcs'!E54 -> 0 | U110: ='Passenger Calcs'!G54 -> 0 | V110: ='Passenger Calcs'!I54 -> 0 | W110: 0 | Y110: 20 | Z110: =(PV(0.03,20,0,-O110)) -> 0 | AA110: =(PV(0.03,20,0,-P110)) -> 0 | AB110: 0 | AC110: 0 | AD110: 0 | AE110: 0 | AF110: 0 | AG110: 0 | AH110: 0 | AJ110: 20 | AK110: =(PV(0.07,20,0,-O110)) -> 0 | AL110: =(PV(0.07,20,0,-P110)) -> 0 | AM110: 0 | AN110: 0 | AO110: 0 | AP110: 0 | AQ110: 0 | AR110: 0 | AS110: 0
N111: 21 | O111: ='Passenger Calcs'!C25 -> 0 | P111: ='Passenger Calcs'!E25 -> 0 | Q111: ='Passenger Calcs'!G25 -> 0 | R111: ='Passenger Calcs'!I25 -> 0 | S111: ='Passenger Calcs'!C55 -> 0 | T111: ='Passenger Calcs'!E55 -> 0 | U111: ='Passenger Calcs'!G55 -> 0 | V111: ='Passenger Calcs'!I55 -> 0 | W111: 0 | Y111: 21 | Z111: =(PV(0.03,21,0,-O111)) -> 0 | AA111: =(PV(0.03,21,0,-P111)) -> 0 | AB111: 0 | AC111: 0 | AD111: 0 | AE111: 0 | AF111: 0 | AG111: 0 | AH111: 0 | AJ111: 21 | AK111: =(PV(0.07,21,0,-O111)) -> 0 | AL111: =(PV(0.07,21,0,-P111)) -> 0 | AM111: 0 | AN111: 0 | AO111: 0 | AP111: 0 | AQ111: 0 | AR111: 0 | AS111: 0
N112: 22 | O112: ='Passenger Calcs'!C26 -> 0 | P112: ='Passenger Calcs'!E26 -> 0 | Q112: ='Passenger Calcs'!G26 -> 0 | R112: ='Passenger Calcs'!I26 -> 0 | S112: ='Passenger Calcs'!C56 -> 0 | T112: ='Passenger Calcs'!E56 -> 0 | U112: ='Passenger Calcs'!G56 -> 0 | V112: ='Passenger Calcs'!I56 -> 0 | W112: 0 | Y112: 22 | Z112: =(PV(0.03,22,0,-O112)) -> 0 | AA112: =(PV(0.03,22,0,-P112)) -> 0 | AB112: 0 | AC112: 0 | AD112: 0 | AE112: 0 | AF112: 0 | AG112: 0 | AH112: 0 | AJ112: 22 | AK112: =(PV(0.07,22,0,-O112)) -> 0 | AL112: =(PV(0.07,22,0,-P112)) -> 0 | AM112: 0 | AN112: 0 | AO112: 0 | AP112: 0 | AQ112: 0 | AR112: 0 | AS112: 0
N113: 23 | O113: ='Passenger Calcs'!C27 -> 0 | P113: ='Passenger Calcs'!E27 -> 0 | Q113: ='Passenger Calcs'!G27 -> 0 | R113: ='Passenger Calcs'!I27 -> 0 | S113: ='Passenger Calcs'!C57 -> 0 | T113: ='Passenger Calcs'!E57 -> 0 | U113: ='Passenger Calcs'!G57 -> 0 | V113: ='Passenger Calcs'!I57 -> 0 | W113: 0 | Y113: 23 | Z113: =(PV(0.03,23,0,-O113)) -> 0 | AA113: =(PV(0.03,23,0,-P113)) -> 0 | AB113: 0 | AC113: 0 | AD113: 0 | AE113: 0 | AF113: 0 | AG113: 0 | AH113: 0 | AJ113: 23 | AK113: =(PV(0.07,23,0,-O113)) -> 0 | AL113: =(PV(0.07,23,0,-P113)) -> 0 | AM113: 0 | AN113: 0 | AO113: 0 | AP113: 0 | AQ113: 0 | AR113: 0 | AS113: 0
N114: 24 | O114: ='Passenger Calcs'!C28 -> 0 | P114: ='Passenger Calcs'!E28 -> 0 | Q114: ='Passenger Calcs'!G28 -> 0 | R114: ='Passenger Calcs'!I28 -> 0 | S114: ='Passenger Calcs'!C58 -> 0 | T114: ='Passenger Calcs'!E58 -> 0 | U114: ='Passenger Calcs'!G58 -> 0 | V114: ='Passenger Calcs'!I58 -> 0 | W114: 0 | Y114: 24 | Z114: =(PV(0.03,24,0,-O114)) -> 0 | AA114: =(PV(0.03,24,0,-P114)) -> 0 | AB114: 0 | AC114: 0 | AD114: 0 | AE114: 0 | AF114: 0 | AG114: 0 | AH114: 0 | AJ114: 24 | AK114: =(PV(0.07,24,0,-O114)) -> 0 | AL114: =(PV(0.07,24,0,-P114)) -> 0 | AM114: 0 | AN114: 0 | AO114: 0 | AP114: 0 | AQ114: 0 | AR114: 0 | AS114: 0
X143: =IFERROR((SUMIF(S113:V113,">0")+SUMIF(O113:R113,">0")),"") -> 0
X144: =IFERROR((SUMIF(S114:V114,">0")+SUMIF(O114:R114,">0")),"") -> 0

Sheet Detailed Location
D1: Urban (Mi) | E1: Rural (Mi) | F1: Total (Mi) | G1: Urban Selected (Mi) | H1: Rural Selected (Mi) | I1: Total Selected (Mi) | K1: Return to Project Information Page
A2: =IF(COUNTIF('Project Information'!$G$13,"*1*"),"x","") -> 
A3: =IF(COUNTIF('Project Information'!$G$13,"*1*"),"x","") ->  | B3: ALBEMARLE | C3: I-64 | D3: 3.11 | E3: 26.43 | F3: =SUM(D3:E3) -> 29.54 | G3: =IF(A3="x",D3,0) -> 0 | H3: =IF(A3="x",E3,0) -> 0 | I3: =IF(A3="x",F3,0) -> 0
A4: =IF(COUNTIF('Project Information'!$G$13,"*1*"),"x","") ->  | B4: ALLEGHANY | C4: I-64 | E4: 37.5 | F4: 37.5 | G4: =IF(A4="x",D4,0) -> 0 | H4: =IF(A4="x",E4,0) -> 0 | I4: =IF(A4="x",F4,0) -> 0
A5: =IF(COUNTIF('Project Information'!$G$13,"*1*"),"x","") ->  | B5: AUGUSTA | C5: I-64 | E5: 26.09 | F5: 26.09 | G5: 0 | H5: 0 | I5: 0
A6: =IF(COUNTIF('Project Information'!$G$13,"*1*"),"x","") ->  | B6: CHARLOTTESVILLE | C6: I-64 | D6: 0.19 | F6: 0.19 | G6: 0 | H6: 0 | I6: 0
A7: =IF(COUNTIF('Project Information'!$G$13,"*1*"),"x","") ->  | B7: CHESAPEAKE | C7: I-64 | D7: 12 | F7: 12 | G7: 0 | H7: 0 | I7: 0
A8: =IF(COUNTIF('Project Information'!$G$13,"*1*"),"x","") ->  | B8: CLIFTON FORGE | C8: I-64 | E8: 1.54 | F8: 1.54 | G8: 0 | H8: 0 | I8: 0
A9: =IF(COUNTIF('Project Information'!$G$13,"*1*"),"x","") ->  | B9: COVINGTON | C9: I-64 | D9: 1.41 | F9: 1.41 | G9: 0 | H9: 0 | I9: 0
A10: =IF(COUNTIF('Project Information'!$G$13,"*1*"),"x","") ->  | B10: FLUVANNA | C10: I-64 | E10: 1.61 | F10: 1.61 | G10: 0 | H10: 0 | I10: 0
A11: =IF(COUNTIF('Project Information'!$G$13,"*1*"),"x","") ->  | B11: GOOCHLAND | C11: I-64 | E11: 24 | F11: 24 | G11: 0 | H11: 0 | I11: 0
A12: =IF(COUNTIF('Project Information'!$G$13,"*1*"),"x","") ->  | B12: HAMPTON | C12: I-64 | D12: 12.47 | F12: 12.47 | G12: 0 | H12: 0 | I12: 0
A13: =IF(COUNTIF('Project Information'!$G$13,"*1*"),"x","") ->  | B13: HENRICO | C13: I-64 | D13: 18.97 | E13: 3.73 | F13: 22.7 | G13: 0 | H13: 0 | I13: 0
A14: =IF(COUNTIF('Project Information'!$G$13,"*1*"),"x","") ->  | B14: JAMES CITY | C14: I-64 | D14: 2.3 | E14: 8.63 | F14: 10.93 | G14: 0 | H14: 0 | I14: 0
A15: =IF(COUNTIF('Project Information'!$G$13,"*1*"),"x","") ->  | B15: LOUISA | C15: I-64 | E15: 18.78 | F15: 18.78 | G15: 0 | H15: 0 | I15: 0
A16: =IF(COUNTIF('Project Information'!$G$13,"*1*"),"x","") ->  | B16: NELSON | C16: I-64 | E16: 1.36 | F16: 1.36 | G16: 0 | H16: 0 | I16: 0
A17: =IF(COUNTIF('Project Information'!$G$13,"*1*"),"x","") ->  | B17: NEW KENT | C17: I-64 | E17: 20.16 | F17: 20.16 | G17: 0 | H17: 0 | I17: 0
A18: =IF(COUNTIF('Project Information'!$G$13,"*1*"),"x","") ->  | B18: NEWPORT NEWS | C18: I-64 | D18: 12.75 | F18: 12.75 | G18: 0 | H18: 0 | I18: 0
A19: =IF(COUNTIF('Project Information'!$G$13,"*1*"),"x","") ->  | B19: NORFOLK | C19: I-64 | D19: 13.4 | F19: 13.4 | G19: 0 | H19: 0 | I19: 0
A20: =IF(COUNTIF('Project Information'!$G$13,"*1*"),"x","") ->  | B20: RICHMOND | C20: I-64 | D20: 6 | F20: 6 | G20: 0 | H20: 0 | I20: 0
A21: =IF(COUNTIF('Project Information'!$G$13,"*1*"),"x","") ->  | B21: ROCKBRIDGE | C21: I-64 | E21: 30.6 | F21: 30.6 | G21: 0 | H21: 0 | I21: 0
A22: =IF(COUNTIF('Project Information'!$G$13,"*1*"),"x","") ->  | B22: VIRGINIA BEACH | C22: I-64 | D22: 2.9 | F22: 2.9 | G22: 0 | H22: 0 | I22: 0
A23: =IF(COUNTIF('Project Information'!$G$13,"*1*"),"x","") ->  | B23: WAYNESBORO | C23: I-64 | D23: 2.73 | F23: 2.73 | G23: 0 | H23: 0 | I23: 0
A24: =IF(COUNTIF('Project Information'!$G$13,"*1*"),"x","") ->  | B24: YORK | C24: I-64 | D24: 5.9 | E24: 5.43 | F24: 11.33 | G24: 0 | H24: 0 | I24: 0
G25: =SUM(G3:G24) -> 0 | H25: =SUM(H3:H24) -> 0 | I25: =SUM(I3:I24) -> 0
A26: =IF(COUNTIF('Project Information'!$G$13,"*2*"),"x","") ->  | B26: Reset I-66
A27: =IF(COUNTIF('Project Information'!$G$13,"*2*"),"x","") ->  | B27: ARLINGTON | C27: I-66 | D27: 6.97 | F27: =SUM(D27:E27) -> 6.97 | G27: =IF(A27="x",D27,0) -> 0 | H27: =IF(A27="x",E27,0) -> 0 | I27: =IF(A27="x",F27,0) -> 0
A28: =IF(COUNTIF('Project Information'!$G$13,"*2*"),"x","") ->  | B28: FAIRFAX COUNTY | C28: I-66 | D28: 18.3 | F28: =SUM(D28:E28) -> 18.3 | G28: 0 | H28: 0 | I28: 0
A29: =IF(COUNTIF('Project Information'!$G$13,"*2*"),"x","") ->  | B29: FAUQUIER | C29: I-66 | E29: 21.98 | F29: 21.98 | G29: 0 | H29: 0 | I29: 0
A30: =IF(COUNTIF('Project Information'!$G$13,"*2*"),"x","") ->  | B30: FREDERICK | C30: I-66 | E30: 0.09 | F30: 0.09 | G30: 0 | H30: 0 | I30: 0
A31: =IF(COUNTIF('Project Information'!$G$13,"*2*"),"x","") ->  | B31: PRINCE WILLIAM | C31: I-66 | E31: 12.42 | F31: 12.42 | G31: 0 | H31: 0 | I31: 0
A32: =IF(COUNTIF('Project Information'!$G$13,"*2*"),"x","") ->  | B32: WARREN | C32: I-66 | E32: 14.48 | F32: 14.48 | G32: 0 | H32: 0 | I32: 0
A33: =IF(COUNTIF('Project Information'!$G$13,"*2*"),"x","") ->  | B33: FAIRFAX | C33: I-66 | D33: 0.71 | F33: 0.71 | G33: 0 | H33: 0 | I33: 0
G34: =SUM(G27:G33) -> 0 | H34: =SUM(H27:H33) -> 0 | I34: =SUM(I27:I33) -> 0
A35: =IF(COUNTIF('Project Information'!$G$13,"*3*"),"x","") ->  | B35: I-81
A36: =IF(COUNTIF('Project Information'!$G$13,"*3*"),"x","") ->  | B36: AUGUSTA | C36: I-81 | E36: 12.73 | F36: =SUM(D36:E36) -> 12.73 | G36: =IF(A36="x",D36,0) -> 0 | H36: =IF(A36="x",E36,0) -> 0 | I36: =IF(A36="x",F36,0) -> 0
A37: =IF(COUNTIF('Project Information'!$G$13,"*3*"),"x","") ->  | B37: BOTETOURT | C37: I-81 | D37: 3.12 | E37: 23.63 | F37: =SUM(D37:E37) -> 26.75 | G37: 0 | H37: 0 | I37: 0
A38: =IF(COUNTIF('Project Information'!$G$13,"*3*"),"x","") ->  | B38: BRISTOL | C38: I-81 | D38: 7.49 | F38: 7.49 | G38: 0 | H38: 0 | I38: 0
A39: =IF(COUNTIF('Project Information'!$G$13,"*3*"),"x","") ->  | B39: FREDERICK | C39: I-81 | D39: 4.1 | E39: 19.67 | F39: 23.77 | G39: 0 | H39: 0 | I39: 0
A40: =IF(COUNTIF('Project Information'!$G$13,"*3*"),"x","") ->  | B40: HARRISONBURG | C40: I-81 | D40: 6.49 | F40: 6.49 | G40: 0 | H40: 0 | I40: 0
A41: =IF(COUNTIF('Project Information'!$G$13,"*3*"),"x","") ->  | B41: MONTGOMERY | C41: I-81 | D41: 4.53 | E41: 20.8 | F41: 25.33 | G41: 0 | H41: 0 | I41: 0
A42: =IF(COUNTIF('Project Information'!$G$13,"*3*"),"x","") ->  | B42: PULASKI | C42: I-81 | E42: 17.67 | F42: 17.67 | G42: 0 | H42: 0 | I42: 0
A43: =IF(COUNTIF('Project Information'!$G$13,"*3*"),"x","") ->  | B43: ROANOKE COUNTY | C43: I-81 | D43: 10.11 | E43: 3.88 | F43: 13.99 | G43: 0 | H43: 0 | I43: 0
A44: =IF(COUNTIF('Project Information'!$G$13,"*3*"),"x","") ->  | B44: ROCKBRIDGE | C44: I-81 | E44: 17.56 | F44: 17.56 | G44: 0 | H44: 0 | I44: 0
A45: =IF(COUNTIF('Project Information'!$G$13,"*3*"),"x","") ->  | B45: ROCKINGHAM | C45: I-81 | E45: 20.52 | F45: 20.52 | G45: 0 | H45: 0 | I45: 0
A46: =IF(COUNTIF('Project Information'!$G$13,"*3*"),"x","") ->  | B46: SALEM | C46: I-81 | D46: 2.7 | F46: 2.7 | G46: 0 | H46: 0 | I46: 0
A47: =IF(COUNTIF('Project Information'!$G$13,"*3*"),"x","") ->  | B47: SHENANDOAH | C47: I-81 | E47: 35.14 | F47: 35.14 | G47: 0 | H47: 0 | I47: 0
A48: =IF(COUNTIF('Project Information'!$G$13,"*3*"),"x","") ->  | B48: SMYTH | C48: I-81 | D48: 1.62 | E48: 21.51 | F48: 23.13 | G48: 0 | H48: 0 | I48: 0
A49: =IF(COUNTIF('Project Information'!$G$13,"*3*"),"x","") ->  | B49: STAUNTON | C49: I-81 | E49: 2.6 | F49: 2.6 | G49: 0 | H49: 0 | I49: 0
A50: =IF(COUNTIF('Project Information'!$G$13,"*3*"),"x","") ->  | B50: WARREN | C50: I-81 | E50: 1.29 | F50: 1.29 | G50: 0 | H50: 0 | I50: 0
A51: =IF(COUNTIF('Project Information'!$G$13,"*3*"),"x","") ->  | B51: WASHINGTON | C51: I-81 | D51: 4.71 | E51: 22.06 | F51: 26.77 | G51: 0 | H51: 0 | I51: 0
A52: =IF(COUNTIF('Project Information'!$G$13,"*3*"),"x","") ->  | B52: WINCHESTER | C52: I-81 | D52: 0.12 | F52: 0.12 | G52: 0 | H52: 0 | I52: 0
A53: =IF(COUNTIF('Project Information'!$G$13,"*3*"),"x","") ->  | B53: WYTHE | C53: I-81 | D53: 3.83 | E53: 17.27 | F53: 21.1 | G53: 0 | H53: 0 | I53: 0
G54: =SUM(G36:G53) -> 0 | H54: =SUM(H36:H53) -> 0 | I54: =SUM(I36:I53) -> 0
A55: =IF(COUNTIF('Project Information'!$G$13,"*4*"),"x","") ->  | B55: Reset I-95
A56: =IF(COUNTIF('Project Information'!$G$13,"*4*"),"x","") ->  | B56: ALEXANDRIA | C56: I-95 | D56: 2.45 | F56: =SUM(D56:E56) -> 2.45 | G56: =IF(A56="x",D56,0) -> 0 | H56: =IF(A56="x",E56,0) -> 0 | I56: =IF(A56="x",F56,0) -> 0
A57: =IF(COUNTIF('Project Information'!$G$13,"*4*"),"x","") ->  | B57: CAROLINE | C57: I-95 | E57: 15.65 | F57: =SUM(D57:E57) -> 15.65 | G57: 0 | H57: 0 | I57: 0
A58: =IF(COUNTIF('Project Information'!$G$13,"*4*"),"x","") ->  | B58: CHESTERFIELD | C58: I-95 | D58: 11.9 | F58: 11.9 | G58: 0 | H58: 0 | I58: 0
A59: =IF(COUNTIF('Project Information'!$G$13,"*4*"),"x","") ->  | B59: COLONIAL HEIGHTS | C59: I-95 | D59: 3.52 | F59: 3.52 | G59: 0 | H59: 0 | I59: 0
A60: =IF(COUNTIF('Project Information'!$G$13,"*4*"),"x","") ->  | B60: EMPORIA | C60: I-95 | D60: 2.65 | F60: 2.65 | G60: 0 | H60: 0 | I60: 0
A61: =IF(COUNTIF('Project Information'!$G$13,"*4*"),"x","") ->  | B61: FAIRFAX COUNTY | C61: I-95 | D61: 14.58 | F61: 14.58 | G61: 0 | H61: 0 | I61: 0
A62: =IF(COUNTIF('Project Information'!$G$13,"*4*"),"x","") ->  | B62: FREDERICKSBURG | C62: I-95 | D62: 3.24 | F62: 3.24 | G62: 0 | H62: 0 | I62: 0
A63: =IF(COUNTIF('Project Information'!$G$13,"*4*"),"x","") ->  | B63: GREENSVILLE | C63: I-95 | E63: 14.11 | F63: 14.11 | G63: 0 | H63: 0 | I63: 0
A64: =IF(COUNTIF('Project Information'!$G$13,"*4*"),"x","") ->  | B64: HANOVER | C64: I-95 | E64: 14.71 | F64: 14.71 | G64: 0 | H64: 0 | I64: 0
A65: =IF(COUNTIF('Project Information'!$G$13,"*4*"),"x","") ->  | B65: HENRICO | C65: I-95 | D65: 6.36 | F65: 6.36 | G65: 0 | H65: 0 | I65: 0
A66: =IF(COUNTIF('Project Information'!$G$13,"*4*"),"x","") ->  | B66: PETERSBURG | C66: I-95 | D66: 5.45 | F66: 5.45 | G66: 0 | H66: 0 | I66: 0
A67: =IF(COUNTIF('Project Information'!$G$13,"*4*"),"x","") ->  | B67: PRINCE GEORGE | C67: I-95 | D67: 2.19 | E67: 10.64 | F67: 12.83 | G67: 0 | H67: 0 | I67: 0
A68: =IF(COUNTIF('Project Information'!$G$13,"*4*"),"x","") ->  | B68: PRINCE WILLIAM | C68: I-95 | D68: 7.26 | E68: 5.79 | F68: 13.05 | G68: 0 | H68: 0 | I68: 0
A69: =IF(COUNTIF('Project Information'!$G$13,"*4*"),"x","") ->  | B69: RICHMOND | C69: I-95 | D69: 8.7 | F69: 8.7 | G69: 0 | H69: 0 | I69: 0
A70: =IF(COUNTIF('Project Information'!$G$13,"*4*"),"x","") ->  | B70: SPOTSYLVANIA | C70: I-95 | D70: 3.12 | E70: 9.27 | F70: 12.39 | G70: 0 | H70: 0 | I70: 0
A71: =IF(COUNTIF('Project Information'!$G$13,"*4*"),"x","") ->  | B71: STAFFORD | C71: I-95 | D71: 1.49 | E71: 14.04 | F71: 15.53 | G71: 0 | H71: 0 | I71: 0
A72: =IF(COUNTIF('Project Information'!$G$13,"*4*"),"x","") ->  | B72: SUSSEX | C72: I-95 | E72: 17.58 | F72: 17.58 | G72: 0 | H72: 0 | I72: 0
G73: =SUM(G56:G72) -> 0 | H73: =SUM(H56:H72) -> 0 | I73: =SUM(I56:I72) -> 0
A74: =IF(COUNTIF('Project Information'!$G$13,"*5*"),"x","") ->  | B74: Reset US-29
A75: =IF(COUNTIF('Project Information'!$G$13,"*5*"),"x","") ->  | B75: ALBEMARLE | C75: US29 | D75: =1.55+6.65 -> 8.2 | E75: 22.75 | F75: =SUM(D75:E75) -> 30.95 | G75: =IF(A75="x",D75,0) -> 0 | H75: =IF(A75="x",E75,0) -> 0 | I75: =IF(A75="x",F75,0) -> 0
A76: =IF(COUNTIF('Project Information'!$G$13,"*5*"),"x","") ->  | B76: AMHERST | C76: US29 | D76: =4.25+5.16 -> 9.41 | E76: 14.07 | F76: =SUM(D76:E76) -> 23.48 | G76: 0 | H76: 0 | I76: 0
A77: =IF(COUNTIF('Project Information'!$G$13,"*5*"),"x","") ->  | B77: ARLINGTON | C77: US29 | D77: 6.03 | F77: 6.03 | G77: 0 | H77: 0 | I77: 0
A78: =IF(COUNTIF('Project Information'!$G$13,"*5*"),"x","") ->  | B78: CAMPBELL | C78: US29 | D78: 0.16 | E78: 20.25 | F78: 20.41 | G78: 0 | H78: 0 | I78: 0
A79: =IF(COUNTIF('Project Information'!$G$13,"*5*"),"x","") ->  | B79: CHARLOTTESVILLE | C79: US29 | D79: =0.99+2.56 -> 3.55 | F79: 3.55 | G79: 0 | H79: 0 | I79: 0
A80: =IF(COUNTIF('Project Information'!$G$13,"*5*"),"x","") ->  | B80: CULPEPER | C80: US29 | D80: 0.82 | E80: 7.45 | F80: 8.27 | G80: 0 | H80: 0 | I80: 0
A81: =IF(COUNTIF('Project Information'!$G$13,"*5*"),"x","") ->  | B81: DANVILLE | C81: US29 | D81: =9.04+15.99 -> 25.03 | E81: 0.09 | F81: 25.12 | G81: 0 | H81: 0 | I81: 0
A82: =IF(COUNTIF('Project Information'!$G$13,"*5*"),"x","") ->  | B82: FAIRFAX | C82: US29 | D82: 3.33 | F82: 3.33 | G82: 0 | H82: 0 | I82: 0
A83: =IF(COUNTIF('Project Information'!$G$13,"*5*"),"x","") ->  | B83: FAIRFAX COUNTY | C83: US29 | D83: 14.94 | F83: 14.94 | G83: 0 | H83: 0 | I83: 0
A84: =IF(COUNTIF('Project Information'!$G$13,"*5*"),"x","") ->  | B84: FALLS CHURCH | C84: US29 | D84: 0.93 | F84: 0.93 | G84: 0 | H84: 0 | I84: 0
A85: =IF(COUNTIF('Project Information'!$G$13,"*5*"),"x","") ->  | B85: GREENE | C85: US29 | E85: 6.81 | F85: 6.81 | G85: 0 | H85: 0 | I85: 0
A86: =IF(COUNTIF('Project Information'!$G$13,"*5*"),"x","") ->  | B86: LYNCHBURG | C86: US29 | D86: =1.67+9.5 -> 11.17 | F86: 11.17 | G86: 0 | H86: 0 | I86: 0
A87: =IF(COUNTIF('Project Information'!$G$13,"*5*"),"x","") ->  | B87: MADISON | C87: US29 | E87: =16.66+1.36 -> 18.02 | F87: 18.02 | G87: 0 | H87: 0 | I87: 0
A88: =IF(COUNTIF('Project Information'!$G$13,"*5*"),"x","") ->  | B88: NELSON | C88: US29 | E88: 22.27 | F88: 22.27 | G88: 0 | H88: 0 | I88: 0
A89: =IF(COUNTIF('Project Information'!$G$13,"*5*"),"x","") ->  | B89: PITTSYLVANIA | C89: US29 | D89: 4.53 | E89: =38.53+1.28 -> 39.81 | F89: 44.34 | G89: 0 | H89: 0 | I89: 0
A90: =IF(COUNTIF('Project Information'!$G$13,"*5*"),"x","") ->  | B90: PRINCE WILLIAM | C90: US29 | E90: 9.19 | F90: 9.19 | G90: 0 | H90: 0 | I90: 0
G91: =SUM(G75:G90) -> 0 | H91: =SUM(H75:H90) -> 0 | I91: =SUM(I75:I90) -> 0
A92: =IF(COUNTIF('Project Information'!$G$13,"*6*"),"x","") ->  | B92: Insert US58
A93: =IF(COUNTIF('Project Information'!$G$13,"*6*"),"x","") ->  | B93: BRISTOL | C93: US58 | D93: 0.38 | F93: =SUM(D93:E93) -> 0.38 | G93: =IF(A93="x",D93,0) -> 0 | H93: =IF(A93="x",E93,0) -> 0 | I93: =IF(A93="x",F93,0) -> 0
A94: =IF(COUNTIF('Project Information'!$G$13,"*6*"),"x","") ->  | B94: BRUNSWICK | C94: US58 | E94: 24.17 | F94: =SUM(D94:E94) -> 24.17 | G94: 0 | H94: 0 | I94: 0
A95: =IF(COUNTIF('Project Information'!$G$13,"*6*"),"x","") ->  | B95: CARROLL | C95: US58 | E95: 26.36 | F95: 26.36 | G95: 0 | H95: 0 | I95: 0
A96: =IF(COUNTIF('Project Information'!$G$13,"*6*"),"x","") ->  | B96: CHESAPEAKE | C96: US58 | D96: 1.71 | F96: 1.71 | G96: 0 | H96: 0 | I96: 0
A97: =IF(COUNTIF('Project Information'!$G$13,"*6*"),"x","") ->  | B97: DANVILLE | C97: US58 | D97: 13.14 | F97: 13.14 | G97: 0 | H97: 0 | I97: 0
A98: =IF(COUNTIF('Project Information'!$G$13,"*6*"),"x","") ->  | B98: EMPORIA | C98: US58 | D98: 3.83 | F98: 3.83 | G98: 0 | H98: 0 | I98: 0
A99: =IF(COUNTIF('Project Information'!$G$13,"*6*"),"x","") ->  | B99: FLOYD | C99: US58 | E99: 1.56 | F99: 1.56 | G99: 0 | H99: 0 | I99: 0
A100: =IF(COUNTIF('Project Information'!$G$13,"*6*"),"x","") ->  | B100: FRANKLIN | C100: US58 | E100: 2.5 | F100: 2.5 | G100: 0 | H100: 0 | I100: 0
A101: =IF(COUNTIF('Project Information'!$G$13,"*6*"),"x","") ->  | B101: GALAX | C101: US58 | D101: 5.02 | F101: 5.02 | G101: 0 | H101: 0 | I101: 0
A102: =IF(COUNTIF('Project Information'!$G$13,"*6*"),"x","") ->  | B102: GRAYSON | C102: US58 | E102: 45.05 | F102: 45.05 | G102: 0 | H102: 0 | I102: 0
A103: =IF(COUNTIF('Project Information'!$G$13,"*6*"),"x","") ->  | B103: GREENSVILLE | C103: US58 | E103: 7.72 | F103: 7.72 | G103: 0 | H103: 0 | I103: 0
A104: =IF(COUNTIF('Project Information'!$G$13,"*6*"),"x","") ->  | B104: HALIFAX | C104: US58 | E104: 31.03 | F104: 31.03 | G104: 0 | H104: 0 | I104: 0
A105: =IF(COUNTIF('Project Information'!$G$13,"*6*"),"x","") ->  | B105: HENRY | C105: US58 | E105: =12.78+12.83 -> 25.61 | F105: 25.61 | G105: 0 | H105: 0 | I105: 0
A106: =IF(COUNTIF('Project Information'!$G$13,"*6*"),"x","") ->  | B106: LEE | C106: US58 | E106: 72.79 | F106: 72.79 | G106: 0 | H106: 0 | I106: 0
A107: =IF(COUNTIF('Project Information'!$G$13,"*6*"),"x","") ->  | B107: MARTINSVILLE | C107: US58 | D107: 3.16 | F107: 3.16 | G107: 0 | H107: 0 | I107: 0
A108: =IF(COUNTIF('Project Information'!$G$13,"*6*"),"x","") ->  | B108: MECKLENBURG | C108: US58 | E108: 33.83 | F108: 33.83 | G108: 0 | H108: 0 | I108: 0
A109: =IF(COUNTIF('Project Information'!$G$13,"*6*"),"x","") ->  | B109: NORFOLK | C109: US58 | D109: =7.79+0.91 -> 8.7 | F109: =SUM(D109:E109) -> 8.7 | G109: 0 | H109: 0 | I109: 0
A110: =IF(COUNTIF('Project Information'!$G$13,"*6*"),"x","") ->  | B110: NORTON | C110: US58 | D110: 0.79 | E110: 1.16 | F110: 1.95 | G110: 0 | H110: 0 | I110: 0
A111: =IF(COUNTIF('Project Information'!$G$13,"*6*"),"x","") ->  | B111: PATRICK | C111: US58 | E111: 32.55 | F111: 32.55 | G111: 0 | H111: 0 | I111: 0
A112: =IF(COUNTIF('Project Information'!$G$13,"*6*"),"x","") ->  | B112: PITTSYLVANIA | C112: US58 | D112: 10.35 | E112: 5.23 | F112: 15.58 | G112: 0 | H112: 0 | I112: 0
A113: =IF(COUNTIF('Project Information'!$G$13,"*6*"),"x","") ->  | B113: PORTSMOUTH | C113: US58 | D113: 4.3 | F113: 4.3 | G113: 0 | H113: 0 | I113: 0
A114: =IF(COUNTIF('Project Information'!$G$13,"*6*"),"x","") ->  | B114: RUSSELL | C114: US58 | E114: 14.71 | F114: 14.71 | G114: 0 | H114: 0 | I114: 0
A115: =IF(COUNTIF('Project Information'!$G$13,"*6*"),"x","") ->  | B115: SCOTT | C115: US58 | D115: 0.58 | E115: 21.71 | F115: 22.29 | G115: 0 | H115: 0 | I115: 0
A116: =IF(COUNTIF('Project Information'!$G$13,"*6*"),"x","") ->  | B116: SOUTHAMPTON | C116: US58 | E116: =31.63+2.07 -> 33.7 | F116: 33.7 | G116: 0 | H116: 0 | I116: 0
A117: =IF(COUNTIF('Project Information'!$G$13,"*6*"),"x","") ->  | B117: SUFFOLK | C117: US58 | D117: =8.09+2.89 -> 10.98 | E117: 13.38 | F117: 24.36 | G117: 0 | H117: 0 | I117: 0
A118: =IF(COUNTIF('Project Information'!$G$13,"*6*"),"x","") ->  | B118: VIRGINIA BEACH | C118: US58 | D118: 11.52 | F118: 11.52 | G118: 0 | H118: 0 | I118: 0
A119: =IF(COUNTIF('Project Information'!$G$13,"*6*"),"x","") ->  | B119: WASHINGTON | C119: US58 | D119: 0.75 | E119: 32.77 | F119: 33.52 | G119: 0 | H119: 0 | I119: 0
A120: =IF(COUNTIF('Project Information'!$G$13,"*6*"),"x","") ->  | B120: WISE | C120: US58 | E120: =19.25+3.59 -> 22.84 | F120: 22.84 | G120: 0 | H120: 0 | I120: 0
G121: =SUM(G93:G120) -> 0 | H121: =SUM(H93:H120) -> 0 | I121: =SUM(I93:I120) -> 0
A122: =IF(COUNTIF('Project Information'!$G$13,"*7*"),"x","") ->  | B122: Reset US460
A123: =IF(COUNTIF('Project Information'!$G$13,"*7*"),"x","") ->  | B123: APPOMATTOX | C123: US460 | E123: 19.29 | F123: =SUM(D123:E123) -> 19.29 | G123: =IF(A123="x",D123,0) -> 0 | H123: =IF(A123="x",E123,0) -> 0 | I123: =IF(A123="x",F123,0) -> 0
A124: =IF(COUNTIF('Project Information'!$G$13,"*7*"),"x","") ->  | B124: BEDFORD | C124: US460 | D124: =2.48+1.43 -> 3.91 | F124: 3.91 | G124: 0 | H124: 0 | I124: 0
A125: =IF(COUNTIF('Project Information'!$G$13,"*7*"),"x","") ->  | B125: BEDFORD COUNTY | C125: US460 | D125: 0.24 | E125: 12.5 | F125: 12.74 | G125: 0 | H125: 0 | I125: 0
A126: =IF(COUNTIF('Project Information'!$G$13,"*7*"),"x","") ->  | B126: BUCHANAN | C126: US460 | E126: 34.2 | F126: 34.2 | G126: 0 | H126: 0 | I126: 0
A127: =IF(COUNTIF('Project Information'!$G$13,"*7*"),"x","") ->  | B127: CAMPBELL | C127: US460 | D127: =5.1+6.42 -> 11.52 | E127: 5.82 | F127: 17.34 | G127: 0 | H127: 0 | I127: 0
A128: =IF(COUNTIF('Project Information'!$G$13,"*7*"),"x","") ->  | B128: DINWIDDIE | C128: US460 | D128: 4.25 | E128: 19.86 | F128: 24.11 | G128: 0 | H128: 0 | I128: 0
A129: =IF(COUNTIF('Project Information'!$G$13,"*7*"),"x","") ->  | B129: GILES | C129: US460 | E129: =23.76+0.075 -> 23.835 | F129: 23.835 | G129: 0 | H129: 0 | I129: 0
A130: =IF(COUNTIF('Project Information'!$G$13,"*7*"),"x","") ->  | B130: ISLE OF WIGHT | C130: US460 | E130: 9.62 | F130: 9.62 | G130: 0 | H130: 0 | I130: 0
A131: =IF(COUNTIF('Project Information'!$G$13,"*7*"),"x","") ->  | B131: LYNCHBURG | C131: US460 | D131: =6.22+5.59 -> 11.81 | F131: 11.81 | G131: 0 | H131: 0 | I131: 0
A132: =IF(COUNTIF('Project Information'!$G$13,"*7*"),"x","") ->  | B132: MONTGOMERY | C132: US460 | D132: 17.26 | E132: 7.11 | F132: 24.37 | G132: 0 | H132: 0 | I132: 0
A133: =IF(COUNTIF('Project Information'!$G$13,"*7*"),"x","") ->  | B133: NORFOLK | C133: US460 | D133: 9.01 | F133: 9.01 | G133: 0 | H133: 0 | I133: 0
A134: =IF(COUNTIF('Project Information'!$G$13,"*7*"),"x","") ->  | B134: NOTTOWAY | C134: US460 | E134: =21.29+3.71 -> 25 | F134: 25 | G134: 0 | H134: 0 | I134: 0
A135: =IF(COUNTIF('Project Information'!$G$13,"*7*"),"x","") ->  | B135: PETERSBURG | C135: US460 | D135: 7.35 | F135: 7.35 | G135: 0 | H135: 0 | I135: 0
A136: =IF(COUNTIF('Project Information'!$G$13,"*7*"),"x","") ->  | B136: PORTSMOUTH | C136: US460 | D136: 0.85 | F136: 0.85 | G136: 0 | H136: 0 | I136: 0
A137: =IF(COUNTIF('Project Information'!$G$13,"*7*"),"x","") ->  | B137: PRINCE EDWARD | C137: US460 | E137: 24.12 | F137: 24.12 | G137: 0 | H137: 0 | I137: 0
A138: =IF(COUNTIF('Project Information'!$G$13,"*7*"),"x","") ->  | B138: PRINCE GEORGE | C138: US460 | D138: 1.11 | E138: 9.37 | F138: 10.48 | G138: 0 | H138: 0 | I138: 0
A139: =IF(COUNTIF('Project Information'!$G$13,"*7*"),"x","") ->  | B139: ROANOKE | C139: US460 | D139: 5.39 | F139: 5.39 | G139: 0 | H139: 0 | I139: 0
A140: =IF(COUNTIF('Project Information'!$G$13,"*7*"),"x","") ->  | B140: SALEM | C140: US460 | D140: 1.56 | F140: 1.56 | G140: 0 | H140: 0 | I140: 0
A141: =IF(COUNTIF('Project Information'!$G$13,"*7*"),"x","") ->  | B141: SOUTHAMPTON | C141: US460 | E141: 8.38 | F141: 8.38 | G141: 0 | H141: 0 | I141: 0
A142: =IF(COUNTIF('Project Information'!$G$13,"*7*"),"x","") ->  | B142: SUFFOLK | C142: US460 | D142: 0.2 | E142: =5.15+1.52 -> 6.67 | F142: 6.87 | G142: 0 | H142: 0 | I142: 0
A143: =IF(COUNTIF('Project Information'!$G$13,"*7*"),"x","") ->  | B143: SURRY | C143: US460 | E143: 0.14 | F143: 0.14 | G143: 0 | H143: 0 | I143: 0
A144: =IF(COUNTIF('Project Information'!$G$13,"*7*"),"x","") ->  | B144: SUSSEX | C144: US460 | E144: 16.7 | F144: 16.7 | G144: 0 | H144: 0 | I144: 0
A145: =IF(COUNTIF('Project Information'!$G$13,"*7*"),"x","") ->  | B145: TAZEWELL | C145: US460 | D145: 3.54 | E145: 14.19 | F145: 17.73 | G145: 0 | H145: 0 | I145: 0
G146: =SUM(G123:G145) -> 0 | H146: =SUM(H123:H145) -> 0 | I146: =SUM(I123:I145) -> 0
B148: Subtotal of Selected Counties | G148: =G146+G121+G91+G73+G54+G34+G25 -> 0 | H148: =H146+H121+H91+H73+H54+H34+H25 -> 0 | I148: =I146+I121+I91+I73+I54+I34+I25 -> 0
G149: =G148/I148 ->  | H149: =H148/I148 -> 
G150: Urban | H150: Rural
B154: Location Summary, Based on Selected Highways | D154: Urban Selected (Mi) | E154: Rural Selected (Mi) | F154: Total Selected (Mi)
B155: ALBEMARLE | C155: I-64, US29 | D155: =G3+G75 -> 0 | E155: =H3+H75 -> 0 | F155: =I3+I75 -> 0 | G155: =F155/$F$251 -> 
B156: ALEXANDRIA | C156: I-95 | D156: =G56 -> 0 | E156: =H56 -> 0 | F156: =I56 -> 0 | G156: =F156/$F$251 -> 
B157: ALLEGHANY | C157: I-64 | D157: =G4 -> 0 | E157: =H4 -> 0 | F157: =I4 -> 0
B158: AMHERST | C158: US29 | D158: =G76 -> 0 | E158: =H76 -> 0 | F158: =I76 -> 0
B159: APPOMATTOX | C159: US460 | D159: =G123 -> 0 | E159: =H123 -> 0 | F159: =I123 -> 0
B160: ARLINGTON | C160: I-66, US29 | D160: =G27+G77 -> 0 | E160: =H27+H77 -> 0 | F160: =I27+I77 -> 0
B161: AUGUSTA | C161: I-64, I-81 | D161: =G5+G36 -> 0 | E161: =H5+H36 -> 0 | F161: =I5+I36 -> 0
B162: BEDFORD | C162: US460 | D162: =G124 -> 0 | E162: 0 | F162: 0
B163: BEDFORD COUNTY | C163: US460 | D163: 0 | E163: 0 | F163: 0
B164: BOTETOURT | C164: I-81 | D164: =G37 -> 0 | E164: =H37 -> 0 | F164: =I37 -> 0
B165: BRISTOL | C165: I-81, US58 | D165: =G38+G93 -> 0 | E165: =H38+H93 -> 0 | F165: =I38+I93 -> 0
B166: BRUNSWICK | C166: US58 | D166: =G94 -> 0 | E166: =H94 -> 0 | F166: =I94 -> 0
B167: BUCHANAN | C167: US460 | D167: =G126 -> 0 | E167: =H126 -> 0 | F167: =I126 -> 0
B168: CAMPBELL | C168: US29, US460 | D168: =G78+G127 -> 0 | E168: =H78+H127 -> 0 | F168: =I78+I127 -> 0
B169: CAROLINE | C169: I-95 | D169: =G57 -> 0 | E169: =H57 -> 0 | F169: =I57 -> 0
B170: CARROLL | C170: US58 | D170: =G95 -> 0 | E170: =H95 -> 0 | F170: =I95 -> 0
B171: CHARLOTTESVILLE | C171: I-64, US29 | D171: =G6+G79 -> 0 | E171: =H6+H79 -> 0 | F171: =I6+I79 -> 0
B172: CHESAPEAKE | C172: I-64, US58 | D172: =G96+G96 -> 0 | E172: =H96+H96 -> 0 | F172: =I96+I96 -> 0
B173: CHESTERFIELD | C173: I-95 | D173: =G58 -> 0 | E173: =H58 -> 0 | F173: =I58 -> 0
B174: CLIFTON FORGE | C174: I-64 | D174: =G8 -> 0 | E174: =H8 -> 0 | F174: =I8 -> 0
B175: COLONIAL HEIGHTS | C175: I-95 | D175: =G59 -> 0 | E175: =H59 -> 0 | F175: =I59 -> 0
B176: COVINGTON | C176: I-64 | D176: =G9 -> 0 | E176: =H9 -> 0 | F176: =I9 -> 0
B177: CULPEPER | C177: US29 | D177: =G80 -> 0 | E177: =H80 -> 0 | F177: =I80 -> 0
B178: DANVILLE | C178: US29, US58 | D178: =G81+G97 -> 0 | E178: =H81+H97 -> 0 | F178: =I81+I97 -> 0
B179: DINWIDDIE | C179: US460 | D179: =G128 -> 0 | E179: =H128 -> 0 | F179: =I128 -> 0
B180: EMPORIA | C180: I-95, US58 | D180: =G60+G98 -> 0 | E180: =H60+H98 -> 0 | F180: =I60+I98 -> 0
B181: FAIRFAX | C181: I-66, US29 | D181: =G33+G82 -> 0 | E181: =H33+H82 -> 0 | F181: =I33+I82 -> 0
B182: FAIRFAX COUNTY | C182: I-66, I-95, US29 | D182: =G28+G61+G83 -> 0 | E182: =H28+H61+H83 -> 0 | F182: =I28+I61+I83 -> 0
B183: FALLS CHURCH | C183: US29 | D183: =G84 -> 0 | E183: =H84 -> 0 | F183: =I84 -> 0
B184: FAUQUIER | C184: I-66 | D184: =G29 -> 0 | E184: =H29 -> 0 | F184: =I29 -> 0
B185: FLOYD | C185: US58 | D185: =G99 -> 0 | E185: =H99 -> 0 | F185: =I99 -> 0
B186: FLUVANNA | C186: I-64 | D186: =G10 -> 0 | E186: =H10 -> 0 | F186: =I10 -> 0
B187: FRANKLIN | C187: US58 | D187: =G100 -> 0 | E187: =H100 -> 0 | F187: =I100 -> 0
B188: FREDERICK | C188: I-66, I-81 | D188: =G30+G39 -> 0 | E188: =H30+H39 -> 0 | F188: =I30+I39 -> 0
B189: FREDERICKSBURG | C189: I-95 | D189: =G62 -> 0 | E189: =H62 -> 0 | F189: =I62 -> 0
B190: GALAX | C190: US58 | D190: =G101 -> 0 | E190: =H101 -> 0 | F190: =I101 -> 0
B191: GILES | C191: US460 | D191: =G129 -> 0 | E191: =H129 -> 0 | F191: =I129 -> 0
B192: GOOCHLAND | C192: I-64 | D192: =G11 -> 0 | E192: =H11 -> 0 | F192: =I11 -> 0
B193: GRAYSON | C193: US58 | D193: =G102 -> 0 | E193: =H102 -> 0 | F193: =I102 -> 0
B194: GREENE | C194: US29 | D194: =G85 -> 0 | E194: =H85 -> 0 | F194: =I85 -> 0
B195: GREENSVILLE | C195: I-95, US58 | D195: =G63+G103 -> 0 | E195: =H63+H103 -> 0 | F195: =I63+I103 -> 0
B196: HALIFAX | C196: US58 | D196: =G104 -> 0 | E196: =H104 -> 0 | F196: =I104 -> 0
B197: HAMPTON | C197: I-64 | D197: =G12 -> 0 | E197: =H12 -> 0 | F197: =I12 -> 0
B198: HANOVER | C198: I-95 | D198: =G64 -> 0 | E198: =H64 -> 0 | F198: =I64 -> 0
B199: HARRISONBURG | C199: I-81 | D199: =G40 -> 0 | E199: =H40 -> 0 | F199: =I40 -> 0
B200: HENRICO | C200: I-64, I-95 | D200: =G13+G65 -> 0 | E200: =H13+H65 -> 0 | F200: =I13+I65 -> 0
B201: HENRY | C201: US58 | D201: =G105 -> 0 | E201: =H105 -> 0 | F201: =I105 -> 0
B202: ISLE OF WIGHT | C202: US460 | D202: =G130 -> 0 | E202: =H130 -> 0 | F202: =I130 -> 0
B203: JAMES CITY | C203: I-64 | D203: =G14 -> 0 | E203: =H14 -> 0 | F203: =I14 -> 0
B204: LEE | C204: US58 | D204: =G106 -> 0 | E204: =H106 -> 0 | F204: =I106 -> 0
... 48 more rows

Sheet Required Fields
A1: Fields listed are required for specific criterion to be considered. In addition, Project Timeline information must be entered (Project Information C8-10).
A2: Freight | B2: Field Name | C2: Worksheet | D2: Field/ Column | E2: Congestion Cost | F2: Environmental Improvement - (Shift from trucks to trains) | G2: Environmental Improvement - (Distance Reduction) | H2: Shipping Cost Reduction - (Distance Reduction) | I2: Shipping Cost Reduction - (Mode Switch) | J2: Savings in Pavement Maintenance | K2: Reduced Accident Costs | N2: <<< Criterion title will turn Green if required information has been entered.
B3: Associated Highway | C3: Project Information | D3: C12 | E3: =IF('Project Information'!C21<>0,"Y","") ->  | F3: =IF('Project Information'!C21<>0,"Y","") ->  | J3: =IF('Project Information'!C21<>0,"Y","") ->  | N3: Cells requiring information to be entered in order for a criterion to be met will appear yellow. Those that are green have values entered into the required cell(s).
B4: Rail tons per railcar | C4: Project Information | D4: C27 | F4: =IF('Project Information'!$C$28<>"","Y","") -> Y | G4: =IF('Project Information'!$C$28<>"","Y","") -> Y | H4: =IF('Project Information'!$C$28<>"","Y","") -> Y | I4: =IF('Project Information'!$C$28<>"","Y","") -> Y | K4: =IF('Project Information'!$C$28<>"","Y","") -> Y
B5: Railcars per train | C5: Project Information | D5: C28 | F5: =IF('Project Information'!$C$29<>"","Y","") ->  | I5: =IF('Project Information'!$C$29<>"","Y","") -> 
B6: Freight Rail Route length, after project completion | C6: Project Information | D6: C30 | F6: =IF('Project Information'!$C$31<>"","Y","") ->  | I6: =IF('Project Information'!$C$31<>"","Y","") ->  | K6: =IF('Project Information'!$C$31<>"","Y","") -> 
B7: Reduced Freight Mileage | C7: Project Information | D7: C31 | G7: =IF('Project Information'!$C$32<>"","Y","") -> Y | H7: =IF('Project Information'!$C$32<>"","Y","") -> Y
B8: Number of Rail Crossings Removed | C8: Project Information | D8: C32 | K8: =IF('Project Information'!$C$33<>"","Y","") -> 
B9: Truck Trip Length, Current (VA) | C9: Project Information | D9: C34 | E9: =IF('Project Information'!$C$35<>"","Y","") ->  | F9: =IF('Project Information'!$C$35<>"","Y","") ->  | I9: =IF('Project Information'!$C$35<>"","Y","") ->  | J9: =IF('Project Information'!$C$35<>"","Y","") ->  | K9: =IF('Project Information'!$C$35<>"","Y","") -> 
B10: Trucks per railcar | C10: Project Information | D10: C35 | E10: =IF('Project Information'!$C$36<>"","Y","") -> Y | F10: =IF('Project Information'!$C$36<>"","Y","") -> Y | I10: =IF('Project Information'!$C$36<>"","Y","") -> Y | J10: =IF('Project Information'!$C$36<>"","Y","") -> Y | K10: =IF('Project Information'!$C$36<>"","Y","") -> Y
B11: Tons per truck load | C11: Project Information | D11: C36 | K11: =IF('Project Information'!$C$37<>"","Y","") -> Y
B12: Railcar demand | C12: Railcar and Passenger Demand | D12: B | E12: =IF('Railcar and Passenger Demand'!$B$29>0,"Y","") ->  | F12: =IF('Railcar and Passenger Demand'!$B$29>0,"Y","") ->  | G12: =IF('Railcar and Passenger Demand'!$B$29>0,"Y","") ->  | H12: =IF('Railcar and Passenger Demand'!$B$29>0,"Y","") ->  | I12: =IF('Railcar and Passenger Demand'!$B$29>0,"Y","") ->  | J12: =IF('Railcar and Passenger Demand'!$B$29>0,"Y","") ->  | K12: =IF('Railcar and Passenger Demand'!$B$29>0,"Y","") -> 
E13: =COUNTIF(E3:E12,"Y") -> 1 | F13: 2 | G13: 2 | H13: 2 | I13: 2 | J13: 1 | K13: =COUNTIF(K3:K7,"Y")+COUNTIF(K9:K12,"Y") -> 3
A14: Fields listed are required for specific criterion to be considered. In addition, Project Timeline information must be entered (Project Information C8-10).
A15: Passenger | B15: Field Name | C15: Worksheet | D15: Field/ Column | E15: Congestion Cost | F15: Reduced Accident Costs | G15: Reduced Passenger Transportation Cost | H15: Travel Time Savings | I15: Environmental Improvement - (Shift from cars to trains) | J15: Environmental Improvement - (Distance Reduction) | K15: Wider Economic Benefits | L15: Savings in Pavement Maintenance | N15: <<< Criterion title will turn Green if required information has been entered. Wider Economic Benefits will turn light green if one or two of the criteria are met, dark green if all three are met.
B16: Associated Highway | C16: Project Information | D16: C12 | E16: =IF('Project Information'!$C$21<>0,"Y","") ->  | F16: =IF('Project Information'!$C$21<>0,"Y","") ->  | L16: =IF('Project Information'!$C$21<>0,"Y","") ->  | N16: Cells requiring information to be entered in order for a criterion to be met will appear yellow. Those that are green have values entered into the required cell(s).
B17: Rail crossings removed | C17: Project Information | D17: C32 | F17: =IF('Project Information'!$C$33<>"","Y","") -> 
B18: Passengers per year | C18: Project Information | D18: C39 or D39 | H18: =IF(OR('Project Information'!$C$40<>"",'Project Information'!$D$40<>""),"Y","") -> 
B19: Passenger trains per year | C19: Project Information | D19: C41 or D41 | J19: =IF(OR('Project Information'!$C$42<>"",'Project Information'!$D$42<>""),"Y","") -> 
B20: Passenger trip length | C20: Project Information | D20: C43 or D43 | G20: =IF(OR('Project Information'!$C$44<>"",'Project Information'!$D$44<>""),"Y","") ->  | I20: =IF(OR('Project Information'!$C$44<>"",'Project Information'!$D$44<>""),"Y","") -> 
B21: Reduced passenger mileage | C21: Project Information | D21: C44 or D44 | J21: =IF(OR('Project Information'!$C$45<>"",'Project Information'!$D$45<>""),"Y","") -> Y
B22: Reduction in travel time | C22: Project Information | D22: C47 or D47 | H22: =IF(OR('Project Information'!$C$48<>"",'Project Information'!$D$48<>""),"Y","") -> Y
B23: Passenger travel purpose | C23: Project Information | D23: C55 | H23: =IF(OR('Project Information'!$C$56<>"",'Project Information'!$D$56<>""),"Y","") -> Y
B24: Automobile Trip Length | C24: Project Information | D24: C57 or D57 | E24: =IF(OR('Project Information'!$C$58<>"",'Project Information'!$D$58<>""),"Y","") ->  | F24: =IF(OR('Project Information'!$C$58<>"",'Project Information'!$D$58<>""),"Y","") ->  | G24: =IF(OR('Project Information'!$C$58<>"",'Project Information'!$D$58<>""),"Y","") ->  | I24: =IF(OR('Project Information'!$C$58<>"",'Project Information'!$D$58<>""),"Y","") ->  | L24: =IF(OR('Project Information'!$C$58<>"",'Project Information'!$D$58<>""),"Y","") -> 
B25: Projected Number of Riders after Project, Amtrak | C25: Railcar and Passenger Demand | D25: F or H | E25: =IF(OR(SUM('Railcar and Passenger Demand'!$F$3:$F$27)>0,SUM('Railcar and Passenger Demand'!$H$3:$H$27)>0),"Y","") ->  | F25: =IF(OR(SUM('Railcar and Passenger Demand'!$F$3:$F$27)>0,SUM('Railcar and Passenger Demand'!$H$3:$H$27)>0),"Y","") ->  | G25: =IF(OR(SUM('Railcar and Passenger Demand'!$F$3:$F$27)>0,SUM('Railcar and Passenger Demand'!$H$3:$H$27)>0),"Y","") ->  | H25: =IF(OR(SUM('Railcar and Passenger Demand'!$F$3:$F$27)>0,SUM('Railcar and Passenger Demand'!$H$3:$H$27)>0),"Y","") ->  | I25: =IF(OR(SUM('Railcar and Passenger Demand'!$F$3:$F$27)>0,SUM('Railcar and Passenger Demand'!$H$3:$H$27)>0),"Y","") ->  | J25: =IF(OR(SUM('Railcar and Passenger Demand'!$F$3:$F$27)>0,SUM('Railcar and Passenger Demand'!$H$3:$H$27)>0),"Y","") ->  | L25: =IF(OR(SUM('Railcar and Passenger Demand'!$F$3:$F$27)>0,SUM('Railcar and Passenger Demand'!$H$3:$H$27)>0),"Y","") -> 
B26: Reduced accident costs | C26: Criterion | K26: =IF(F29=4,"Y","") -> 
B27: Reduced passenger transportation cost | C27: Criterion | K27: =IF(G29=3,"Y","") -> 
B28: Time travel savings | C28: Criterion | K28: =IF(H29=4,"Y","") -> 
E29: =COUNTIF(E16:E28,"Y") -> 0 | F29: 0 | G29: 0 | H29: 2 | I29: 0 | J29: 1 | K29: 0 | L29: 0

Sheet Summary
B1: Project Name | C1: ='Project Information'!C1 -> Freight Test | E1: Project Description and Notes | F1: ='Project Information'!F1 -> Example for Freight
B2: Organization | C2: ='Project Information'!C2 -> DRPT
C4: Total | D4: NPV 3% | E4: NPV 7%
A5: Freight Benefits | B5: Congestion Cost | C5: =IFERROR(SUMIF('Freight Calcs'!C4:C28,">0"),"") -> 0 | D5: =SUM('Project Cost'!Z61:Z85) -> 0 | E5: =SUM('Project Cost'!AK61:AK85) -> 0
B6: Environmental Improvement - (Shift from trucks to trains) | C6: =IFERROR(SUMIF('Freight Calcs'!E4:E28,">0"),"") -> 0 | D6: =SUM('Project Cost'!AA61:AA85) -> 0 | E6: =SUM('Project Cost'!AL61:AL85) -> 0
B7: Environmental Improvement - (Distance Reduction) | C7: =IFERROR(SUMIF('Freight Calcs'!G4:G28,">0"),"") -> 0 | D7: =SUM('Project Cost'!AB61:AB85) ->  | E7: =SUM('Project Cost'!AM61:AM85) -> 
B8: Shipping Cost Reduction - (Distance Reduction) | C8: =IFERROR(SUMIF('Freight Calcs'!I4:I28,">0"),"") -> 0 | D8: =SUM('Project Cost'!AC61:AC85) ->  | E8: =SUM('Project Cost'!AN61:AN85) -> 
B9: Shipping Cost Reduction - (Mode Switch) | C9: =IFERROR(SUMIF('Freight Calcs'!C34:C58,">0"),"") -> 0 | D9: =SUM('Project Cost'!AD61:AD85) -> 0 | E9: =SUM('Project Cost'!AO61:AO85) -> 0
B10: Savings in Pavement Maintenance | C10: =IFERROR(SUMIF('Freight Calcs'!E34:E58,">0"),"") -> 0 | D10: =SUM('Project Cost'!AE61:AE85) -> 0 | E10: =SUM('Project Cost'!AP61:AP85) -> 0
B11: Reduced Accident Costs | C11: =IFERROR(SUMIF('Freight Calcs'!G34:G58,">0"),"") -> 0 | D11: =SUM('Project Cost'!AF61:AF85) -> 0 | E11: =SUM('Project Cost'!AQ61:AQ85) -> 0
C13: Total | D13: NPV 3% | E13: NPV 7%
A14: Passenger Benefits | B14: Congestion Cost | C14: =IFERROR(SUMIF('Passenger Calcs'!$C$4:$C$28,">0"),"") -> 0 | D14: =SUM('Project Cost'!Z$90:Z$114) ->  | E14: =SUM('Project Cost'!$AK$90:$AK$114) -> 
B15: Reduced Accident Costs | C15: =IFERROR(SUMIF('Passenger Calcs'!$E$4:$E$28,">0"),"") -> 0 | D15: =SUM('Project Cost'!AA$90:AA$114) -> 0 | E15: =SUM('Project Cost'!$AL$90:$AL$114) -> 0
B16: Reduced Passenger Transportation Cost | C16: =IFERROR(SUMIF('Passenger Calcs'!$G$4:$G$28,">0"),"") -> 0 | D16: =SUM('Project Cost'!AB$90:AB$114) -> 0 | E16: =SUM('Project Cost'!$AM$90:$AM$114) -> 0
B17: Travel Time Savings | C17: =IFERROR(SUMIF('Passenger Calcs'!$I$4:$I$28,">0"),"") -> 0 | D17: =SUM('Project Cost'!AC$90:AC$114) ->  | E17: =SUM('Project Cost'!$AN$90:$AN$114) -> 
B18: Environmental Improvement - (Shift from trucks to trains) | C18: =IFERROR(SUMIF('Passenger Calcs'!$C$34:$C$58,">0"),"") -> 0 | D18: =SUM('Project Cost'!AD$90:AD$114) -> 0 | E18: =SUM('Project Cost'!$AO$90:$AO$114) -> 0
B19: Environmental Improvement - (Distance Reduction) | C19: =IFERROR(SUMIF('Passenger Calcs'!$E$34:$E$58,">0"),"") -> 0 | D19: =SUM('Project Cost'!AE$90:AE$114) ->  | E19: =SUM('Project Cost'!$AP$90:$AP$114) -> 
B20: Wider Economic Benefits | C20: =IFERROR(SUMIF('Passenger Calcs'!$G$34:$G$58,">0"),"") -> 0 | D20: =SUM('Project Cost'!AF$90:AF$114) -> 0 | E20: =SUM('Project Cost'!$AQ$90:$AQ$114) -> 0
B21: Savings in Pavement Maintenance | C21: =IFERROR(SUMIF('Passenger Calcs'!$I$34:$I$58,">0"),"") -> 0 | D21: =SUM('Project Cost'!AG$90:AG$114) -> 0 | E21: =SUM('Project Cost'!$AR$90:$AR$114) -> 0
C22: Total | D22: NPV 3% | E22: NPV 7%
A23: Cost | B23: DRPT | C23: ='Project Cost'!N57 -> 0 | D23: ='Project Cost'!O57 -> 0 | E23: ='Project Cost'!P57 -> 0
B24: Other | C24: ='Project Cost'!D57 -> 0 | D24: ='Project Cost'!R57 -> 0 | E24: ='Project Cost'!S57 -> 0
B25: Total | C25: ='Project Cost'!B57 -> 0 | D25: =IFERROR(SUM(D23:D24),"") -> 0 | E25: =IFERROR(SUM(E23:E24),"") -> 0
A26: Benefit | B26: Benefit | C26: =IFERROR('Project Cost'!J57,"") ->  | D26: =IFERROR('Project Cost'!K57,"") ->  | E26: =IFERROR('Project Cost'!L57,"") -> 
D28: BC Ratio (NPV 3%) | E28: BC Ratio (NPV 7%)
C29: DRPT Funds Only | D29: =D26/D23 ->  | E29: =E26/E23 -> 
C30: Total (All Funds) | D30: =D26/D25 ->  | E30: =E26/E25 -> 

Sheet Intermediate Freight Calcs
B1: Congestion Cost
B2: Total reduction in truck VMT | C2: Number of Trucks replaced by Rail | D2: Round Down | E2: Round Up | F2: Min Congest Cost | G2: Max Congestion Cost | H2: Interpolated Truck Congestion Cost
B3: Calculates the mileage that trucks that switch to rail freight service will no longer be driving. These miles are those traveled in Virginia only. | C3: Calculates the Number of Trucks replaced by Railcar (annually) | D3: Rounds the number of trucks down to the nearest 10 | E3: Rounds the number of trucks up to the nearest 10 | F3: Looks up the Congestion Cost based on rounded down truck reduction, highway and year | G3: Looks up the Congestion Cost based on the rounded up truck reduction, highway and year | H3: Interpolates the Congestion cost per truck mile
A4: Year | B4: (Additional Annual Railcar Demand, by year) * (Trucks per railcar) * (Truck trip length) | C4: (Additional Railcar demand, by year) * (Number of Trucks per Railcar load)
A5: =IF('Project Information'!C9>2040, "No Values Available",'Project Information'!$C$8) -> 0 | B5: =IFERROR((IF(A5="No Values Available","No Values",'Railcar and Passenger Demand'!C2*'Project Information'!$C$36*'Project Information'!$C$35)),"") -> 0 | C5: =IFERROR((IF(B5="","",IF(B5="No Values","No Values",'Railcar and Passenger Demand'!C2*'Project Information'!$C$36))),"") -> 0 | D5: =IF(C5="","",IF(C5="No Values","No Values",IF(C5/250>130,130,(ROUNDDOWN(C5/250,-1))))) -> 0 | E5: =IF(C5="","",IF(C5="No Values","No Values",IF(C5/250>130,130,((ROUNDUP(C5/250,-1)))))) -> 0 | F5: =VLOOKUP(D5,'BCA Values Freight Congestion'!B105:AC118,'Project Information'!$C$8-2012,FALSE) ->  | G5: =VLOOKUP(E5,'BCA Values Freight Congestion'!$B$105:$AC$118,'Project Information'!$C$8-2012,FALSE) ->  | H5: =IFERROR(IF(D5=E5,F5,(F5+(G5-F5)*((C5/250-D5)/(E5-D5)))),"") -> 
A6: =IFERROR((IF(A5+1>2040,"No Values Available",A5+1)),"No Values Available") -> 1 | B6: =IFERROR((IF(A6="No Values Available","No Values",'Railcar and Passenger Demand'!C3*'Project Information'!$C$36*'Project Information'!$C$35)),"") ->  | C6: =IFERROR((IF(B6="","",IF(B6="No Values","No Values",'Railcar and Passenger Demand'!C3*'Project Information'!$C$36))),"") ->  | D6: =IF(C6="","",IF(C6="No Values","No Values",IF(C6/250>130,130,(ROUNDDOWN(C6/250,-1))))) ->  | E6: =IF(C6="","",IF(C6="No Values","No Values",IF(C6/250>130,130,((ROUNDUP(C6/250,-1)))))) ->  | F6: =VLOOKUP(D6,'BCA Values Freight Congestion'!B105:AC118,'Project Information'!$C$8-2011,FALSE) ->  | G6: =VLOOKUP(E6,'BCA Values Freight Congestion'!$B$105:$AC$118,'Project Information'!$C$8-2011,FALSE) ->  | H6: =IFERROR(IF(D6=E6,F6,(F6+(G6-F6)*((C6/250-D6)/(E6-D6)))),"") -> 
A7: =IFERROR((IF(A6+1>2040,"No Values Available",A6+1)),"No Values Available") -> 2 | B7: =IFERROR((IF(A7="No Values Available","No Values",'Railcar and Passenger Demand'!C4*'Project Information'!$C$36*'Project Information'!$C$35)),"") ->  | C7: =IFERROR((IF(B7="","",IF(B7="No Values","No Values",'Railcar and Passenger Demand'!C4*'Project Information'!$C$36))),"") ->  | F7: =VLOOKUP(D7,'BCA Values Freight Congestion'!B105:AC118,'Project Information'!$C$8-2010,FALSE) ->  | G7: =VLOOKUP(E7,'BCA Values Freight Congestion'!$B$105:$AC$118,'Project Information'!$C$8-2010,FALSE) -> 
A8: 3 | B8: =IFERROR((IF(A8="No Values Available","No Values",'Railcar and Passenger Demand'!C5*'Project Information'!$C$36*'Project Information'!$C$35)),"") ->  | C8: =IFERROR((IF(B8="","",IF(B8="No Values","No Values",'Railcar and Passenger Demand'!C5*'Project Information'!$C$36))),"") ->  | F8: =VLOOKUP(D8,'BCA Values Freight Congestion'!B105:AC118,'Project Information'!$C$8-2009,FALSE) ->  | G8: =VLOOKUP(E8,'BCA Values Freight Congestion'!$B$105:$AC$118,'Project Information'!$C$8-2009,FALSE) -> 
A9: 4 | B9: =IFERROR((IF(A9="No Values Available","No Values",'Railcar and Passenger Demand'!C6*'Project Information'!$C$36*'Project Information'!$C$35)),"") ->  | C9: =IFERROR((IF(B9="","",IF(B9="No Values","No Values",'Railcar and Passenger Demand'!C6*'Project Information'!$C$36))),"") ->  | F9: =VLOOKUP(D9,'BCA Values Freight Congestion'!B105:AC118,'Project Information'!$C$8-2008,FALSE) ->  | G9: =VLOOKUP(E9,'BCA Values Freight Congestion'!$B$105:$AC$118,'Project Information'!$C$8-2008,FALSE) -> 
A10: 5 | B10: =IFERROR((IF(A10="No Values Available","No Values",'Railcar and Passenger Demand'!C7*'Project Information'!$C$36*'Project Information'!$C$35)),"") ->  | C10: =IFERROR((IF(B10="","",IF(B10="No Values","No Values",'Railcar and Passenger Demand'!C7*'Project Information'!$C$36))),"") ->  | F10: =VLOOKUP(D10,'BCA Values Freight Congestion'!B105:AC118,'Project Information'!$C$8-2007,FALSE) ->  | G10: =VLOOKUP(E10,'BCA Values Freight Congestion'!$B$105:$AC$118,'Project Information'!$C$8-2007,FALSE) -> 
A11: 6 | B11: =IFERROR((IF(A11="No Values Available","No Values",'Railcar and Passenger Demand'!C8*'Project Information'!$C$36*'Project Information'!$C$35)),"") ->  | C11: =IFERROR((IF(B11="","",IF(B11="No Values","No Values",'Railcar and Passenger Demand'!C8*'Project Information'!$C$36))),"") ->  | F11: =VLOOKUP(D11,'BCA Values Freight Congestion'!B105:AC118,'Project Information'!$C$8-2006,FALSE) ->  | G11: =VLOOKUP(E11,'BCA Values Freight Congestion'!$B$105:$AC$118,'Project Information'!$C$8-2006,FALSE) -> 
A12: 7 | B12: =IFERROR((IF(A12="No Values Available","No Values",'Railcar and Passenger Demand'!C9*'Project Information'!$C$36*'Project Information'!$C$35)),"") ->  | C12: =IFERROR((IF(B12="","",IF(B12="No Values","No Values",'Railcar and Passenger Demand'!C9*'Project Information'!$C$36))),"") ->  | F12: =VLOOKUP(D12,'BCA Values Freight Congestion'!B105:AC118,'Project Information'!$C$8-2005,FALSE) ->  | G12: =VLOOKUP(E12,'BCA Values Freight Congestion'!$B$105:$AC$118,'Project Information'!$C$8-2005,FALSE) -> 
A13: 8 | B13: =IFERROR((IF(A13="No Values Available","No Values",'Railcar and Passenger Demand'!C10*'Project Information'!$C$36*'Project Information'!$C$35)),"") ->  | C13: =IFERROR((IF(B13="","",IF(B13="No Values","No Values",'Railcar and Passenger Demand'!C10*'Project Information'!$C$36))),"") ->  | F13: =VLOOKUP(D13,'BCA Values Freight Congestion'!B105:AC118,'Project Information'!$C$8-2004,FALSE) ->  | G13: =VLOOKUP(E13,'BCA Values Freight Congestion'!$B$105:$AC$118,'Project Information'!$C$8-2004,FALSE) -> 
A14: 9 | B14: =IFERROR((IF(A14="No Values Available","No Values",'Railcar and Passenger Demand'!C11*'Project Information'!$C$36*'Project Information'!$C$35)),"") ->  | C14: =IFERROR((IF(B14="","",IF(B14="No Values","No Values",'Railcar and Passenger Demand'!C11*'Project Information'!$C$36))),"") ->  | F14: =VLOOKUP(D14,'BCA Values Freight Congestion'!B105:AC118,'Project Information'!$C$8-2003,FALSE) ->  | G14: =VLOOKUP(E14,'BCA Values Freight Congestion'!$B$105:$AC$118,'Project Information'!$C$8-2003,FALSE) -> 
A15: 10 | B15: =IFERROR((IF(A15="No Values Available","No Values",'Railcar and Passenger Demand'!C12*'Project Information'!$C$36*'Project Information'!$C$35)),"") ->  | C15: =IFERROR((IF(B15="","",IF(B15="No Values","No Values",'Railcar and Passenger Demand'!C12*'Project Information'!$C$36))),"") ->  | F15: =VLOOKUP(D15,'BCA Values Freight Congestion'!B105:AC118,'Project Information'!$C$8-2002,FALSE) ->  | G15: =VLOOKUP(E15,'BCA Values Freight Congestion'!$B$105:$AC$118,'Project Information'!$C$8-2002,FALSE) -> 
A16: 11 | B16: =IFERROR((IF(A16="No Values Available","No Values",'Railcar and Passenger Demand'!C13*'Project Information'!$C$36*'Project Information'!$C$35)),"") ->  | C16: =IFERROR((IF(B16="","",IF(B16="No Values","No Values",'Railcar and Passenger Demand'!C13*'Project Information'!$C$36))),"") ->  | F16: =VLOOKUP(D16,'BCA Values Freight Congestion'!B105:AC118,'Project Information'!$C$8-2001,FALSE) ->  | G16: =VLOOKUP(E16,'BCA Values Freight Congestion'!$B$105:$AC$118,'Project Information'!$C$8-2001,FALSE) -> 
A17: 12 | B17: =IFERROR((IF(A17="No Values Available","No Values",'Railcar and Passenger Demand'!C14*'Project Information'!$C$36*'Project Information'!$C$35)),"") ->  | C17: =IFERROR((IF(B17="","",IF(B17="No Values","No Values",'Railcar and Passenger Demand'!C14*'Project Information'!$C$36))),"") ->  | F17: =VLOOKUP(D17,'BCA Values Freight Congestion'!B105:AC118,'Project Information'!$C$8-2000,FALSE) ->  | G17: =VLOOKUP(E17,'BCA Values Freight Congestion'!$B$105:$AC$118,'Project Information'!$C$8-2000,FALSE) -> 
A18: 13 | B18: =IFERROR((IF(A18="No Values Available","No Values",'Railcar and Passenger Demand'!C15*'Project Information'!$C$36*'Project Information'!$C$35)),"") ->  | C18: =IFERROR((IF(B18="","",IF(B18="No Values","No Values",'Railcar and Passenger Demand'!C15*'Project Information'!$C$36))),"") ->  | F18: =VLOOKUP(D18,'BCA Values Freight Congestion'!B105:AC118,'Project Information'!$C$8-1999,FALSE) ->  | G18: =VLOOKUP(E18,'BCA Values Freight Congestion'!$B$105:$AC$118,'Project Information'!$C$8-1999,FALSE) -> 
A19: 14 | B19: =IFERROR((IF(A19="No Values Available","No Values",'Railcar and Passenger Demand'!C16*'Project Information'!$C$36*'Project Information'!$C$35)),"") ->  | C19: =IFERROR((IF(B19="","",IF(B19="No Values","No Values",'Railcar and Passenger Demand'!C16*'Project Information'!$C$36))),"") ->  | F19: =VLOOKUP(D19,'BCA Values Freight Congestion'!B105:AC118,'Project Information'!$C$8-1998,FALSE) ->  | G19: =VLOOKUP(E19,'BCA Values Freight Congestion'!$B$105:$AC$118,'Project Information'!$C$8-1998,FALSE) -> 
A20: 15 | B20: =IFERROR((IF(A20="No Values Available","No Values",'Railcar and Passenger Demand'!C17*'Project Information'!$C$36*'Project Information'!$C$35)),"") ->  | C20: =IFERROR((IF(B20="","",IF(B20="No Values","No Values",'Railcar and Passenger Demand'!C17*'Project Information'!$C$36))),"") ->  | F20: =VLOOKUP(D20,'BCA Values Freight Congestion'!B105:AC118,'Project Information'!$C$8-1997,FALSE) ->  | G20: =VLOOKUP(E20,'BCA Values Freight Congestion'!$B$105:$AC$118,'Project Information'!$C$8-1997,FALSE) -> 
A21: 16 | B21: =IFERROR((IF(A21="No Values Available","No Values",'Railcar and Passenger Demand'!C18*'Project Information'!$C$36*'Project Information'!$C$35)),"") ->  | C21: =IFERROR((IF(B21="","",IF(B21="No Values","No Values",'Railcar and Passenger Demand'!C18*'Project Information'!$C$36))),"") ->  | F21: =VLOOKUP(D21,'BCA Values Freight Congestion'!B105:AC118,'Project Information'!$C$8-1996,FALSE) ->  | G21: =VLOOKUP(E21,'BCA Values Freight Congestion'!$B$105:$AC$118,'Project Information'!$C$8-1996,FALSE) -> 
A22: 17 | B22: =IFERROR((IF(A22="No Values Available","No Values",'Railcar and Passenger Demand'!C19*'Project Information'!$C$36*'Project Information'!$C$35)),"") ->  | C22: =IFERROR((IF(B22="","",IF(B22="No Values","No Values",'Railcar and Passenger Demand'!C19*'Project Information'!$C$36))),"") ->  | F22: =VLOOKUP(D22,'BCA Values Freight Congestion'!B105:AC118,'Project Information'!$C$8-1995,FALSE) ->  | G22: =VLOOKUP(E22,'BCA Values Freight Congestion'!$B$105:$AC$118,'Project Information'!$C$8-1995,FALSE) -> 
A23: 18 | B23: =IFERROR((IF(A23="No Values Available","No Values",'Railcar and Passenger Demand'!C20*'Project Information'!$C$36*'Project Information'!$C$35)),"") ->  | C23: =IFERROR((IF(B23="","",IF(B23="No Values","No Values",'Railcar and Passenger Demand'!C20*'Project Information'!$C$36))),"") ->  | F23: =VLOOKUP(D23,'BCA Values Freight Congestion'!B105:AC118,'Project Information'!$C$8-1994,FALSE) ->  | G23: =VLOOKUP(E23,'BCA Values Freight Congestion'!$B$105:$AC$118,'Project Information'!$C$8-1994,FALSE) -> 
A24: 19 | B24: =IFERROR((IF(A24="No Values Available","No Values",'Railcar and Passenger Demand'!C21*'Project Information'!$C$36*'Project Information'!$C$35)),"") ->  | C24: =IFERROR((IF(B24="","",IF(B24="No Values","No Values",'Railcar and Passenger Demand'!C21*'Project Information'!$C$36))),"") ->  | F24: =VLOOKUP(D24,'BCA Values Freight Congestion'!B105:AC118,'Project Information'!$C$8-1993,FALSE) ->  | G24: =VLOOKUP(E24,'BCA Values Freight Congestion'!$B$105:$AC$118,'Project Information'!$C$8-1993,FALSE) -> 
A25: 20 | B25: =IFERROR((IF(A25="No Values Available","No Values",'Railcar and Passenger Demand'!C22*'Project Information'!$C$36*'Project Information'!$C$35)),"") ->  | C25: =IFERROR((IF(B25="","",IF(B25="No Values","No Values",'Railcar and Passenger Demand'!C22*'Project Information'!$C$36))),"") ->  | F25: =VLOOKUP(D25,'BCA Values Freight Congestion'!B105:AC118,'Project Information'!$C$8-1992,FALSE) ->  | G25: =VLOOKUP(E25,'BCA Values Freight Congestion'!$B$105:$AC$118,'Project Information'!$C$8-1992,FALSE) -> 
A26: 21 | B26: =IFERROR((IF(A26="No Values Available","No Values",'Railcar and Passenger Demand'!C23*'Project Information'!$C$36*'Project Information'!$C$35)),"") ->  | C26: =IFERROR((IF(B26="","",IF(B26="No Values","No Values",'Railcar and Passenger Demand'!C23*'Project Information'!$C$36))),"") ->  | F26: =VLOOKUP(D26,'BCA Values Freight Congestion'!B105:AC118,'Project Information'!$C$8-1991,FALSE) ->  | G26: =VLOOKUP(E26,'BCA Values Freight Congestion'!$B$105:$AC$118,'Project Information'!$C$8-1991,FALSE) -> 
A27: 22 | B27: =IFERROR((IF(A27="No Values Available","No Values",'Railcar and Passenger Demand'!C24*'Project Information'!$C$36*'Project Information'!$C$35)),"") ->  | C27: =IFERROR((IF(B27="","",IF(B27="No Values","No Values",'Railcar and Passenger Demand'!C24*'Project Information'!$C$36))),"") ->  | F27: =VLOOKUP(D27,'BCA Values Freight Congestion'!B105:AC118,'Project Information'!$C$8-1990,FALSE) ->  | G27: =VLOOKUP(E27,'BCA Values Freight Congestion'!$B$105:$AC$118,'Project Information'!$C$8-1990,FALSE) -> 
A28: 23 | B28: =IFERROR((IF(A28="No Values Available","No Values",'Railcar and Passenger Demand'!C25*'Project Information'!$C$36*'Project Information'!$C$35)),"") ->  | C28: =IFERROR((IF(B28="","",IF(B28="No Values","No Values",'Railcar and Passenger Demand'!C25*'Project Information'!$C$36))),"") ->  | F28: =VLOOKUP(D28,'BCA Values Freight Congestion'!B105:AC118,'Project Information'!$C$8-1989,FALSE) ->  | G28: =VLOOKUP(E28,'BCA Values Freight Congestion'!$B$105:$AC$118,'Project Information'!$C$8-1989,FALSE) -> 
A29: =IFERROR((IF(A28+1>2040,"No Values Available",A28+1)),"No Values Available") -> 24 | B29: =IFERROR((IF(A29="No Values Available","No Values",'Railcar and Passenger Demand'!C26*'Project Information'!$C$36*'Project Information'!$C$35)),"") ->  | C29: =IFERROR((IF(B29="","",IF(B29="No Values","No Values",'Railcar and Passenger Demand'!C26*'Project Information'!$C$36))),"") ->  | F29: =VLOOKUP(D29,'BCA Values Freight Congestion'!B105:AC118,'Project Information'!$C$8-1988,FALSE) ->  | G29: =VLOOKUP(E29,'BCA Values Freight Congestion'!$B$105:$AC$118,'Project Information'!$C$8-1988,FALSE) -> 
B31: Environmental Improvement
B32: Reduction in Truck Pollution | D32: Addition of Train Pollution due to switch in mode
B33: Air pollution cost per truck VMT | C33: Noise pollution cost per truck VMT | D33: Train ton-miles | E33: Air Pollution cost per train ton-mile | F33: Noise pollution cost per train ton-mile
B34: The air pollution cost for each mile a truck travels. | C34: The noise pollution cost for each mile a truck travels. | D34: The number of additional ton-miles of freight service added by year due to the construction of the project. | E34: The cost in dollars per each ton-mile of each air pollutant. | F34: The cost in dollars per each ton-mile of noise pollution.
A35: Year | B35: Emission rate in grams (by year and urban or rural)* Emission cost per gram (for each pollutant) (by year) | C35: Value Lookup (By Year) | D35: (Additional annual intermodal unit demand (by year)) / (Railcars per train) * (Freight mileage in Virginia after project) * (Railcars per train) * (Rail tons per railcar) | E35: Emission rate in grams * Emission cost per gram (for each pollutant) (Each is calculated by year) | F35: Value Lookup (By Year)
A36: =A5 -> 0 | B36: ='Project Information'!$D$23*((HLOOKUP('Intermediate Freight Calcs'!A36,'BCA Values Freight'!$D$11:$AC$43,3,FALSE)*HLOOKUP('Intermediate Freight Calcs'!A36,'BCA Values Freight'!$D$11:$AC$43,28,FALSE))+(HLOOKUP('Intermediate Freight Calcs'!A36,'BCA Values Freight'!$D$11:$AC$43,5,FALSE)*HLOOKUP('Intermediate Freight Calcs'!A36,'BCA Values Freight'!$D$11:$AC$43,29,FALSE))+(HLOOKUP('Intermediate Freight Calcs'!A36,'BCA Values Freight'!$D$11:$AC$43,6,FALSE)*HLOOKUP('Intermediate Freight Calcs'!A36,'BCA Values Freight'!$D$11:$AC$43,30,FALSE))+(HLOOKUP('Intermediate Freight Calcs'!A36,'BCA Values Freight'!$D$11:$AC$43,7,FALSE)*HLOOKUP('Intermediate Freight Calcs'!A36,'BCA Values Freight'!$D$11:$AC$43,31,FALSE))+(HLOOKUP('Intermediate Freight Calcs'!A36,'BCA Values Freight'!$D$11:$AC$43,8,FALSE)*HLOOKUP('Intermediate Freight Calcs'!A36,'BCA Values Freight'!$D$11:$AC$43,32,FALSE))+(HLOOKUP('Intermediate Freight Calcs'!A36,'BCA Values Freight'!$D$11:$AC$43,9,FALSE)*HLOOKUP('Intermediate Freight Calcs'!A36,'BCA Values Freight'!$D$11:$AC$43,33,FALSE)))+'Project Information'!$C$23*((HLOOKUP('Intermediate Freight Calcs'!A36,'BCA Values Freight'!$D$11:$AC$43,12,FALSE)*HLOOKUP('Intermediate Freight Calcs'!A36,'BCA Values Freight'!$D$11:$AC$43,28,FALSE))+(HLOOKUP('Intermediate Freight Calcs'!A36,'BCA Values Freight'!$D$11:$AC$43,14,FALSE)*HLOOKUP('Intermediate Freight Calcs'!A36,'BCA Values Freight'!$D$11:$AC$43,29,FALSE))+(HLOOKUP('Intermediate Freight Calcs'!A36,'BCA Values Freight'!$D$11:$AC$43,15,FALSE)*HLOOKUP('Intermediate Freight Calcs'!A36,'BCA Values Freight'!$D$11:$AC$43,30,FALSE))+(HLOOKUP('Intermediate Freight Calcs'!A36,'BCA Values Freight'!$D$11:$AC$43,16,FALSE)*HLOOKUP('Intermediate Freight Calcs'!A36,'BCA Values Freight'!$D$11:$AC$43,31,FALSE))+(HLOOKUP('Intermediate Freight Calcs'!A36,'BCA Values Freight'!$D$11:$AC$43,17,FALSE)*HLOOKUP('Intermediate Freight Calcs'!A36,'BCA Values Freight'!$D$11:$AC$43,32,FALSE))+(HLOOKUP('Intermediate Freight Calcs'!A36,'BCA Values Freight'!$D$11:$AC$43,18,FALSE)*HLOOKUP('Intermediate Freight Calcs'!A36,'BCA Values Freight'!$D$11:$AC$43,33,FALSE))) ->  | C36: ='Project Information'!$D$23*HLOOKUP(A36,'BCA Values Freight'!$D$11:$AC$49,37,FALSE)+'Project Information'!$C$23*HLOOKUP(A36,'BCA Values Freight'!$D$11:$AC$49,38,FALSE) ->  | D36: =IFERROR((('Railcar and Passenger Demand'!C2/'Project Information'!$C$29)*'Project Information'!$C$31*'Project Information'!$C$29*'Project Information'!$C$28),"") ->  | E36: =HLOOKUP('Intermediate Freight Calcs'!A36,'BCA Values Freight'!$D$11:$AC$43,21,FALSE)*HLOOKUP('Intermediate Freight Calcs'!A36,'BCA Values Freight'!$D$11:$AC$43,28,FALSE)+HLOOKUP('Intermediate Freight Calcs'!A36,'BCA Values Freight'!$D$11:$AC$43,22,FALSE)*HLOOKUP('Intermediate Freight Calcs'!A36,'BCA Values Freight'!$D$11:$AC$43,29,FALSE)+HLOOKUP('Intermediate Freight Calcs'!A36,'BCA Values Freight'!$D$11:$AC$43,23,FALSE)*0.97*HLOOKUP('Intermediate Freight Calcs'!A36,'BCA Values Freight'!$D$11:$AC$43,30,FALSE)+HLOOKUP('Intermediate Freight Calcs'!A36,'BCA Values Freight'!$D$11:$AC$43,23,FALSE)*0.03*HLOOKUP('Intermediate Freight Calcs'!A36,'BCA Values Freight'!$D$11:$AC$43,31,FALSE)+HLOOKUP('Intermediate Freight Calcs'!A36,'BCA Values Freight'!$D$11:$AC$43,24,FALSE)*HLOOKUP('Intermediate Freight Calcs'!A36,'BCA Values Freight'!$D$11:$AC$43,32,FALSE)+HLOOKUP('Intermediate Freight Calcs'!A36,'BCA Values Freight'!$D$11:$AC$43,25,FALSE)*HLOOKUP('Intermediate Freight Calcs'!A36,'BCA Values Freight'!$D$11:$AC$43,33,FALSE) ->  | F36: =HLOOKUP(A36,'BCA Values Freight'!$D$11:$AD$49,39,FALSE) -> 
A37: 1 | B37: ='Project Information'!$D$23*((HLOOKUP('Intermediate Freight Calcs'!A37,'BCA Values Freight'!$D$11:$AC$43,3,FALSE)*HLOOKUP('Intermediate Freight Calcs'!A37,'BCA Values Freight'!$D$11:$AC$43,28,FALSE))+(HLOOKUP('Intermediate Freight Calcs'!A37,'BCA Values Freight'!$D$11:$AC$43,5,FALSE)*HLOOKUP('Intermediate Freight Calcs'!A37,'BCA Values Freight'!$D$11:$AC$43,29,FALSE))+(HLOOKUP('Intermediate Freight Calcs'!A37,'BCA Values Freight'!$D$11:$AC$43,6,FALSE)*HLOOKUP('Intermediate Freight Calcs'!A37,'BCA Values Freight'!$D$11:$AC$43,30,FALSE))+(HLOOKUP('Intermediate Freight Calcs'!A37,'BCA Values Freight'!$D$11:$AC$43,7,FALSE)*HLOOKUP('Intermediate Freight Calcs'!A37,'BCA Values Freight'!$D$11:$AC$43,31,FALSE))+(HLOOKUP('Intermediate Freight Calcs'!A37,'BCA Values Freight'!$D$11:$AC$43,8,FALSE)*HLOOKUP('Intermediate Freight Calcs'!A37,'BCA Values Freight'!$D$11:$AC$43,32,FALSE))+(HLOOKUP('Intermediate Freight Calcs'!A37,'BCA Values Freight'!$D$11:$AC$43,9,FALSE)*HLOOKUP('Intermediate Freight Calcs'!A37,'BCA Values Freight'!$D$11:$AC$43,33,FALSE)))+'Project Information'!$C$23*((HLOOKUP('Intermediate Freight Calcs'!A37,'BCA Values Freight'!$D$11:$AC$43,12,FALSE)*HLOOKUP('Intermediate Freight Calcs'!A37,'BCA Values Freight'!$D$11:$AC$43,28,FALSE))+(HLOOKUP('Intermediate Freight Calcs'!A37,'BCA Values Freight'!$D$11:$AC$43,14,FALSE)*HLOOKUP('Intermediate Freight Calcs'!A37,'BCA Values Freight'!$D$11:$AC$43,29,FALSE))+(HLOOKUP('Intermediate Freight Calcs'!A37,'BCA Values Freight'!$D$11:$AC$43,15,FALSE)*HLOOKUP('Intermediate Freight Calcs'!A37,'BCA Values Freight'!$D$11:$AC$43,30,FALSE))+(HLOOKUP('Intermediate Freight Calcs'!A37,'BCA Values Freight'!$D$11:$AC$43,16,FALSE)*HLOOKUP('Intermediate Freight Calcs'!A37,'BCA Values Freight'!$D$11:$AC$43,31,FALSE))+(HLOOKUP('Intermediate Freight Calcs'!A37,'BCA Values Freight'!$D$11:$AC$43,17,FALSE)*HLOOKUP('Intermediate Freight Calcs'!A37,'BCA Values Freight'!$D$11:$AC$43,32,FALSE))+(HLOOKUP('Intermediate Freight Calcs'!A37,'BCA Values Freight'!$D$11:$AC$43,18,FALSE)*HLOOKUP('Intermediate Freight Calcs'!A37,'BCA Values Freight'!$D$11:$AC$43,33,FALSE))) ->  | C37: ='Project Information'!$D$23*HLOOKUP(A37,'BCA Values Freight'!$D$11:$AC$49,37,FALSE)+'Project Information'!$C$23*HLOOKUP(A37,'BCA Values Freight'!$D$11:$AC$49,38,FALSE) ->  | D37: =IFERROR((('Railcar and Passenger Demand'!C3/'Project Information'!$C$29)*'Project Information'!$C$31*'Project Information'!$C$29*'Project Information'!$C$28),"") ->  | E37: =HLOOKUP('Intermediate Freight Calcs'!A37,'BCA Values Freight'!$D$11:$AC$43,21,FALSE)*HLOOKUP('Intermediate Freight Calcs'!A37,'BCA Values Freight'!$D$11:$AC$43,28,FALSE)+HLOOKUP('Intermediate Freight Calcs'!A37,'BCA Values Freight'!$D$11:$AC$43,22,FALSE)*HLOOKUP('Intermediate Freight Calcs'!A37,'BCA Values Freight'!$D$11:$AC$43,29,FALSE)+HLOOKUP('Intermediate Freight Calcs'!A37,'BCA Values Freight'!$D$11:$AC$43,23,FALSE)*0.97*HLOOKUP('Intermediate Freight Calcs'!A37,'BCA Values Freight'!$D$11:$AC$43,30,FALSE)+HLOOKUP('Intermediate Freight Calcs'!A37,'BCA Values Freight'!$D$11:$AC$43,23,FALSE)*0.03*HLOOKUP('Intermediate Freight Calcs'!A37,'BCA Values Freight'!$D$11:$AC$43,31,FALSE)+HLOOKUP('Intermediate Freight Calcs'!A37,'BCA Values Freight'!$D$11:$AC$43,24,FALSE)*HLOOKUP('Intermediate Freight Calcs'!A37,'BCA Values Freight'!$D$11:$AC$43,32,FALSE)+HLOOKUP('Intermediate Freight Calcs'!A37,'BCA Values Freight'!$D$11:$AC$43,25,FALSE)*HLOOKUP('Intermediate Freight Calcs'!A37,'BCA Values Freight'!$D$11:$AC$43,33,FALSE) ->  | F37: =HLOOKUP(A37,'BCA Values Freight'!$D$11:$AD$49,39,FALSE) -> 
A38: 2 | B38: ='Project Information'!$D$23*((HLOOKUP('Intermediate Freight Calcs'!A38,'BCA Values Freight'!$D$11:$AC$43,3,FALSE)*HLOOKUP('Intermediate Freight Calcs'!A38,'BCA Values Freight'!$D$11:$AC$43,28,FALSE))+(HLOOKUP('Intermediate Freight Calcs'!A38,'BCA Values Freight'!$D$11:$AC$43,5,FALSE)*HLOOKUP('Intermediate Freight Calcs'!A38,'BCA Values Freight'!$D$11:$AC$43,29,FALSE))+(HLOOKUP('Intermediate Freight Calcs'!A38,'BCA Values Freight'!$D$11:$AC$43,6,FALSE)*HLOOKUP('Intermediate Freight Calcs'!A38,'BCA Values Freight'!$D$11:$AC$43,30,FALSE))+(HLOOKUP('Intermediate Freight Calcs'!A38,'BCA Values Freight'!$D$11:$AC$43,7,FALSE)*HLOOKUP('Intermediate Freight Calcs'!A38,'BCA Values Freight'!$D$11:$AC$43,31,FALSE))+(HLOOKUP('Intermediate Freight Calcs'!A38,'BCA Values Freight'!$D$11:$AC$43,8,FALSE)*HLOOKUP('Intermediate Freight Calcs'!A38,'BCA Values Freight'!$D$11:$AC$43,32,FALSE))+(HLOOKUP('Intermediate Freight Calcs'!A38,'BCA Values Freight'!$D$11:$AC$43,9,FALSE)*HLOOKUP('Intermediate Freight Calcs'!A38,'BCA Values Freight'!$D$11:$AC$43,33,FALSE)))+'Project Information'!$C$23*((HLOOKUP('Intermediate Freight Calcs'!A38,'BCA Values Freight'!$D$11:$AC$43,12,FALSE)*HLOOKUP('Intermediate Freight Calcs'!A38,'BCA Values Freight'!$D$11:$AC$43,28,FALSE))+(HLOOKUP('Intermediate Freight Calcs'!A38,'BCA Values Freight'!$D$11:$AC$43,14,FALSE)*HLOOKUP('Intermediate Freight Calcs'!A38,'BCA Values Freight'!$D$11:$AC$43,29,FALSE))+(HLOOKUP('Intermediate Freight Calcs'!A38,'BCA Values Freight'!$D$11:$AC$43,15,FALSE)*HLOOKUP('Intermediate Freight Calcs'!A38,'BCA Values Freight'!$D$11:$AC$43,30,FALSE))+(HLOOKUP('Intermediate Freight Calcs'!A38,'BCA Values Freight'!$D$11:$AC$43,16,FALSE)*HLOOKUP('Intermediate Freight Calcs'!A38,'BCA Values Freight'!$D$11:$AC$43,31,FALSE))+(HLOOKUP('Intermediate Freight Calcs'!A38,'BCA Values Freight'!$D$11:$AC$43,17,FALSE)*HLOOKUP('Intermediate Freight Calcs'!A38,'BCA Values Freight'!$D$11:$AC$43,32,FALSE))+(HLOOKUP('Intermediate Freight Calcs'!A38,'BCA Values Freight'!$D$11:$AC$43,18,FALSE)*HLOOKUP('Intermediate Freight Calcs'!A38,'BCA Values Freight'!$D$11:$AC$43,33,FALSE))) ->  | C38: ='Project Information'!$D$23*HLOOKUP(A38,'BCA Values Freight'!$D$11:$AC$49,37,FALSE)+'Project Information'!$C$23*HLOOKUP(A38,'BCA Values Freight'!$D$11:$AC$49,38,FALSE) ->  | D38: =IFERROR((('Railcar and Passenger Demand'!C4/'Project Information'!$C$29)*'Project Information'!$C$31*'Project Information'!$C$29*'Project Information'!$C$28),"") ->  | E38: =HLOOKUP('Intermediate Freight Calcs'!A38,'BCA Values Freight'!$D$11:$AC$43,21,FALSE)*HLOOKUP('Intermediate Freight Calcs'!A38,'BCA Values Freight'!$D$11:$AC$43,28,FALSE)+HLOOKUP('Intermediate Freight Calcs'!A38,'BCA Values Freight'!$D$11:$AC$43,22,FALSE)*HLOOKUP('Intermediate Freight Calcs'!A38,'BCA Values Freight'!$D$11:$AC$43,29,FALSE)+HLOOKUP('Intermediate Freight Calcs'!A38,'BCA Values Freight'!$D$11:$AC$43,23,FALSE)*0.97*HLOOKUP('Intermediate Freight Calcs'!A38,'BCA Values Freight'!$D$11:$AC$43,30,FALSE)+HLOOKUP('Intermediate Freight Calcs'!A38,'BCA Values Freight'!$D$11:$AC$43,23,FALSE)*0.03*HLOOKUP('Intermediate Freight Calcs'!A38,'BCA Values Freight'!$D$11:$AC$43,31,FALSE)+HLOOKUP('Intermediate Freight Calcs'!A38,'BCA Values Freight'!$D$11:$AC$43,24,FALSE)*HLOOKUP('Intermediate Freight Calcs'!A38,'BCA Values Freight'!$D$11:$AC$43,32,FALSE)+HLOOKUP('Intermediate Freight Calcs'!A38,'BCA Values Freight'!$D$11:$AC$43,25,FALSE)*HLOOKUP('Intermediate Freight Calcs'!A38,'BCA Values Freight'!$D$11:$AC$43,33,FALSE) ->  | F38: =HLOOKUP(A38,'BCA Values Freight'!$D$11:$AD$49,39,FALSE) -> 
A39: 3 | B39: ='Project Information'!$D$23*((HLOOKUP('Intermediate Freight Calcs'!A39,'BCA Values Freight'!$D$11:$AC$43,3,FALSE)*HLOOKUP('Intermediate Freight Calcs'!A39,'BCA Values Freight'!$D$11:$AC$43,28,FALSE))+(HLOOKUP('Intermediate Freight Calcs'!A39,'BCA Values Freight'!$D$11:$AC$43,5,FALSE)*HLOOKUP('Intermediate Freight Calcs'!A39,'BCA Values Freight'!$D$11:$AC$43,29,FALSE))+(HLOOKUP('Intermediate Freight Calcs'!A39,'BCA Values Freight'!$D$11:$AC$43,6,FALSE)*HLOOKUP('Intermediate Freight Calcs'!A39,'BCA Values Freight'!$D$11:$AC$43,30,FALSE))+(HLOOKUP('Intermediate Freight Calcs'!A39,'BCA Values Freight'!$D$11:$AC$43,7,FALSE)*HLOOKUP('Intermediate Freight Calcs'!A39,'BCA Values Freight'!$D$11:$AC$43,31,FALSE))+(HLOOKUP('Intermediate Freight Calcs'!A39,'BCA Values Freight'!$D$11:$AC$43,8,FALSE)*HLOOKUP('Intermediate Freight Calcs'!A39,'BCA Values Freight'!$D$11:$AC$43,32,FALSE))+(HLOOKUP('Intermediate Freight Calcs'!A39,'BCA Values Freight'!$D$11:$AC$43,9,FALSE)*HLOOKUP('Intermediate Freight Calcs'!A39,'BCA Values Freight'!$D$11:$AC$43,33,FALSE)))+'Project Information'!$C$23*((HLOOKUP('Intermediate Freight Calcs'!A39,'BCA Values Freight'!$D$11:$AC$43,12,FALSE)*HLOOKUP('Intermediate Freight Calcs'!A39,'BCA Values Freight'!$D$11:$AC$43,28,FALSE))+(HLOOKUP('Intermediate Freight Calcs'!A39,'BCA Values Freight'!$D$11:$AC$43,14,FALSE)*HLOOKUP('Intermediate Freight Calcs'!A39,'BCA Values Freight'!$D$11:$AC$43,29,FALSE))+(HLOOKUP('Intermediate Freight Calcs'!A39,'BCA Values Freight'!$D$11:$AC$43,15,FALSE)*HLOOKUP('Intermediate Freight Calcs'!A39,'BCA Values Freight'!$D$11:$AC$43,30,FALSE))+(HLOOKUP('Intermediate Freight Calcs'!A39,'BCA Values Freight'!$D$11:$AC$43,16,FALSE)*HLOOKUP('Intermediate Freight Calcs'!A39,'BCA Values Freight'!$D$11:$AC$43,31,FALSE))+(HLOOKUP('Intermediate Freight Calcs'!A39,'BCA Values Freight'!$D$11:$AC$43,17,FALSE)*HLOOKUP('Intermediate Freight Calcs'!A39,'BCA Values Freight'!$D$11:$AC$43,32,FALSE))+(HLOOKUP('Intermediate Freight Calcs'!A39,'BCA Values Freight'!$D$11:$AC$43,18,FALSE)*HLOOKUP('Intermediate Freight Calcs'!A39,'BCA Values Freight'!$D$11:$AC$43,33,FALSE))) ->  | C39: ='Project Information'!$D$23*HLOOKUP(A39,'BCA Values Freight'!$D$11:$AC$49,37,FALSE)+'Project Information'!$C$23*HLOOKUP(A39,'BCA Values Freight'!$D$11:$AC$49,38,FALSE) ->  | D39: =IFERROR((('Railcar and Passenger Demand'!C5/'Project Information'!$C$29)*'Project Information'!$C$31*'Project Information'!$C$29*'Project Information'!$C$28),"") ->  | E39: =HLOOKUP('Intermediate Freight Calcs'!A39,'BCA Values Freight'!$D$11:$AC$43,21,FALSE)*HLOOKUP('Intermediate Freight Calcs'!A39,'BCA Values Freight'!$D$11:$AC$43,28,FALSE)+HLOOKUP('Intermediate Freight Calcs'!A39,'BCA Values Freight'!$D$11:$AC$43,22,FALSE)*HLOOKUP('Intermediate Freight Calcs'!A39,'BCA Values Freight'!$D$11:$AC$43,29,FALSE)+HLOOKUP('Intermediate Freight Calcs'!A39,'BCA Values Freight'!$D$11:$AC$43,23,FALSE)*0.97*HLOOKUP('Intermediate Freight Calcs'!A39,'BCA Values Freight'!$D$11:$AC$43,30,FALSE)+HLOOKUP('Intermediate Freight Calcs'!A39,'BCA Values Freight'!$D$11:$AC$43,23,FALSE)*0.03*HLOOKUP('Intermediate Freight Calcs'!A39,'BCA Values Freight'!$D$11:$AC$43,31,FALSE)+HLOOKUP('Intermediate Freight Calcs'!A39,'BCA Values Freight'!$D$11:$AC$43,24,FALSE)*HLOOKUP('Intermediate Freight Calcs'!A39,'BCA Values Freight'!$D$11:$AC$43,32,FALSE)+HLOOKUP('Intermediate Freight Calcs'!A39,'BCA Values Freight'!$D$11:$AC$43,25,FALSE)*HLOOKUP('Intermediate Freight Calcs'!A39,'BCA Values Freight'!$D$11:$AC$43,33,FALSE) ->  | F39: =HLOOKUP(A39,'BCA Values Freight'!$D$11:$AD$49,39,FALSE) -> 
A40: 4 | B40: ='Project Information'!$D$23*((HLOOKUP('Intermediate Freight Calcs'!A40,'BCA Values Freight'!$D$11:$AC$43,3,FALSE)*HLOOKUP('Intermediate Freight Calcs'!A40,'BCA Values Freight'!$D$11:$AC$43,28,FALSE))+(HLOOKUP('Intermediate Freight Calcs'!A40,'BCA Values Freight'!$D$11:$AC$43,5,FALSE)*HLOOKUP('Intermediate Freight Calcs'!A40,'BCA Values Freight'!$D$11:$AC$43,29,FALSE))+(HLOOKUP('Intermediate Freight Calcs'!A40,'BCA Values Freight'!$D$11:$AC$43,6,FALSE)*HLOOKUP('Intermediate Freight Calcs'!A40,'BCA Values Freight'!$D$11:$AC$43,30,FALSE))+(HLOOKUP('Intermediate Freight Calcs'!A40,'BCA Values Freight'!$D$11:$AC$43,7,FALSE)*HLOOKUP('Intermediate Freight Calcs'!A40,'BCA Values Freight'!$D$11:$AC$43,31,FALSE))+(HLOOKUP('Intermediate Freight Calcs'!A40,'BCA Values Freight'!$D$11:$AC$43,8,FALSE)*HLOOKUP('Intermediate Freight Calcs'!A40,'BCA Values Freight'!$D$11:$AC$43,32,FALSE))+(HLOOKUP('Intermediate Freight Calcs'!A40,'BCA Values Freight'!$D$11:$AC$43,9,FALSE)*HLOOKUP('Intermediate Freight Calcs'!A40,'BCA Values Freight'!$D$11:$AC$43,33,FALSE)))+'Project Information'!$C$23*((HLOOKUP('Intermediate Freight Calcs'!A40,'BCA Values Freight'!$D$11:$AC$43,12,FALSE)*HLOOKUP('Intermediate Freight Calcs'!A40,'BCA Values Freight'!$D$11:$AC$43,28,FALSE))+(HLOOKUP('Intermediate Freight Calcs'!A40,'BCA Values Freight'!$D$11:$AC$43,14,FALSE)*HLOOKUP('Intermediate Freight Calcs'!A40,'BCA Values Freight'!$D$11:$AC$43,29,FALSE))+(HLOOKUP('Intermediate Freight Calcs'!A40,'BCA Values Freight'!$D$11:$AC$43,15,FALSE)*HLOOKUP('Intermediate Freight Calcs'!A40,'BCA Values Freight'!$D$11:$AC$43,30,FALSE))+(HLOOKUP('Intermediate Freight Calcs'!A40,'BCA Values Freight'!$D$11:$AC$43,16,FALSE)*HLOOKUP('Intermediate Freight Calcs'!A40,'BCA Values Freight'!$D$11:$AC$43,31,FALSE))+(HLOOKUP('Intermediate Freight Calcs'!A40,'BCA Values Freight'!$D$11:$AC$43,17,FALSE)*HLOOKUP('Intermediate Freight Calcs'!A40,'BCA Values Freight'!$D$11:$AC$43,32,FALSE))+(HLOOKUP('Intermediate Freight Calcs'!A40,'BCA Values Freight'!$D$11:$AC$43,18,FALSE)*HLOOKUP('Intermediate Freight Calcs'!A40,'BCA Values Freight'!$D$11:$AC$43,33,FALSE))) ->  | C40: ='Project Information'!$D$23*HLOOKUP(A40,'BCA Values Freight'!$D$11:$AC$49,37,FALSE)+'Project Information'!$C$23*HLOOKUP(A40,'BCA Values Freight'!$D$11:$AC$49,38,FALSE) ->  | D40: =IFERROR((('Railcar and Passenger Demand'!C6/'Project Information'!$C$29)*'Project Information'!$C$31*'Project Information'!$C$29*'Project Information'!$C$28),"") ->  | E40: =HLOOKUP('Intermediate Freight Calcs'!A40,'BCA Values Freight'!$D$11:$AC$43,21,FALSE)*HLOOKUP('Intermediate Freight Calcs'!A40,'BCA Values Freight'!$D$11:$AC$43,28,FALSE)+HLOOKUP('Intermediate Freight Calcs'!A40,'BCA Values Freight'!$D$11:$AC$43,22,FALSE)*HLOOKUP('Intermediate Freight Calcs'!A40,'BCA Values Freight'!$D$11:$AC$43,29,FALSE)+HLOOKUP('Intermediate Freight Calcs'!A40,'BCA Values Freight'!$D$11:$AC$43,23,FALSE)*0.97*HLOOKUP('Intermediate Freight Calcs'!A40,'BCA Values Freight'!$D$11:$AC$43,30,FALSE)+HLOOKUP('Intermediate Freight Calcs'!A40,'BCA Values Freight'!$D$11:$AC$43,23,FALSE)*0.03*HLOOKUP('Intermediate Freight Calcs'!A40,'BCA Values Freight'!$D$11:$AC$43,31,FALSE)+HLOOKUP('Intermediate Freight Calcs'!A40,'BCA Values Freight'!$D$11:$AC$43,24,FALSE)*HLOOKUP('Intermediate Freight Calcs'!A40,'BCA Values Freight'!$D$11:$AC$43,32,FALSE)+HLOOKUP('Intermediate Freight Calcs'!A40,'BCA Values Freight'!$D$11:$AC$43,25,FALSE)*HLOOKUP('Intermediate Freight Calcs'!A40,'BCA Values Freight'!$D$11:$AC$43,33,FALSE) ->  | F40: =HLOOKUP(A40,'BCA Values Freight'!$D$11:$AD$49,39,FALSE) -> 
A41: 5 | B41: ='Project Information'!$D$23*((HLOOKUP('Intermediate Freight Calcs'!A41,'BCA Values Freight'!$D$11:$AC$43,3,FALSE)*HLOOKUP('Intermediate Freight Calcs'!A41,'BCA Values Freight'!$D$11:$AC$43,28,FALSE))+(HLOOKUP('Intermediate Freight Calcs'!A41,'BCA Values Freight'!$D$11:$AC$43,5,FALSE)*HLOOKUP('Intermediate Freight Calcs'!A41,'BCA Values Freight'!$D$11:$AC$43,29,FALSE))+(HLOOKUP('Intermediate Freight Calcs'!A41,'BCA Values Freight'!$D$11:$AC$43,6,FALSE)*HLOOKUP('Intermediate Freight Calcs'!A41,'BCA Values Freight'!$D$11:$AC$43,30,FALSE))+(HLOOKUP('Intermediate Freight Calcs'!A41,'BCA Values Freight'!$D$11:$AC$43,7,FALSE)*HLOOKUP('Intermediate Freight Calcs'!A41,'BCA Values Freight'!$D$11:$AC$43,31,FALSE))+(HLOOKUP('Intermediate Freight Calcs'!A41,'BCA Values Freight'!$D$11:$AC$43,8,FALSE)*HLOOKUP('Intermediate Freight Calcs'!A41,'BCA Values Freight'!$D$11:$AC$43,32,FALSE))+(HLOOKUP('Intermediate Freight Calcs'!A41,'BCA Values Freight'!$D$11:$AC$43,9,FALSE)*HLOOKUP('Intermediate Freight Calcs'!A41,'BCA Values Freight'!$D$11:$AC$43,33,FALSE)))+'Project Information'!$C$23*((HLOOKUP('Intermediate Freight Calcs'!A41,'BCA Values Freight'!$D$11:$AC$43,12,FALSE)*HLOOKUP('Intermediate Freight Calcs'!A41,'BCA Values Freight'!$D$11:$AC$43,28,FALSE))+(HLOOKUP('Intermediate Freight Calcs'!A41,'BCA Values Freight'!$D$11:$AC$43,14,FALSE)*HLOOKUP('Intermediate Freight Calcs'!A41,'BCA Values Freight'!$D$11:$AC$43,29,FALSE))+(HLOOKUP('Intermediate Freight Calcs'!A41,'BCA Values Freight'!$D$11:$AC$43,15,FALSE)*HLOOKUP('Intermediate Freight Calcs'!A41,'BCA Values Freight'!$D$11:$AC$43,30,FALSE))+(HLOOKUP('Intermediate Freight Calcs'!A41,'BCA Values Freight'!$D$11:$AC$43,16,FALSE)*HLOOKUP('Intermediate Freight Calcs'!A41,'BCA Values Freight'!$D$11:$AC$43,31,FALSE))+(HLOOKUP('Intermediate Freight Calcs'!A41,'BCA Values Freight'!$D$11:$AC$43,17,FALSE)*HLOOKUP('Intermediate Freight Calcs'!A41,'BCA Values Freight'!$D$11:$AC$43,32,FALSE))+(HLOOKUP('Intermediate Freight Calcs'!A41,'BCA Values Freight'!$D$11:$AC$43,18,FALSE)*HLOOKUP('Intermediate Freight Calcs'!A41,'BCA Values Freight'!$D$11:$AC$43,33,FALSE))) ->  | C41: ='Project Information'!$D$23*HLOOKUP(A41,'BCA Values Freight'!$D$11:$AC$49,37,FALSE)+'Project Information'!$C$23*HLOOKUP(A41,'BCA Values Freight'!$D$11:$AC$49,38,FALSE) ->  | D41: =IFERROR((('Railcar and Passenger Demand'!C7/'Project Information'!$C$29)*'Project Information'!$C$31*'Project Information'!$C$29*'Project Information'!$C$28),"") ->  | E41: =HLOOKUP('Intermediate Freight Calcs'!A41,'BCA Values Freight'!$D$11:$AC$43,21,FALSE)*HLOOKUP('Intermediate Freight Calcs'!A41,'BCA Values Freight'!$D$11:$AC$43,28,FALSE)+HLOOKUP('Intermediate Freight Calcs'!A41,'BCA Values Freight'!$D$11:$AC$43,22,FALSE)*HLOOKUP('Intermediate Freight Calcs'!A41,'BCA Values Freight'!$D$11:$AC$43,29,FALSE)+HLOOKUP('Intermediate Freight Calcs'!A41,'BCA Values Freight'!$D$11:$AC$43,23,FALSE)*0.97*HLOOKUP('Intermediate Freight Calcs'!A41,'BCA Values Freight'!$D$11:$AC$43,30,FALSE)+HLOOKUP('Intermediate Freight Calcs'!A41,'BCA Values Freight'!$D$11:$AC$43,23,FALSE)*0.03*HLOOKUP('Intermediate Freight Calcs'!A41,'BCA Values Freight'!$D$11:$AC$43,31,FALSE)+HLOOKUP('Intermediate Freight Calcs'!A41,'BCA Values Freight'!$D$11:$AC$43,24,FALSE)*HLOOKUP('Intermediate Freight Calcs'!A41,'BCA Values Freight'!$D$11:$AC$43,32,FALSE)+HLOOKUP('Intermediate Freight Calcs'!A41,'BCA Values Freight'!$D$11:$AC$43,25,FALSE)*HLOOKUP('Intermediate Freight Calcs'!A41,'BCA Values Freight'!$D$11:$AC$43,33,FALSE) ->  | F41: =HLOOKUP(A41,'BCA Values Freight'!$D$11:$AD$49,39,FALSE) -> 
A42: 6 | B42: ='Project Information'!$D$23*((HLOOKUP('Intermediate Freight Calcs'!A42,'BCA Values Freight'!$D$11:$AC$43,3,FALSE)*HLOOKUP('Intermediate Freight Calcs'!A42,'BCA Values Freight'!$D$11:$AC$43,28,FALSE))+(HLOOKUP('Intermediate Freight Calcs'!A42,'BCA Values Freight'!$D$11:$AC$43,5,FALSE)*HLOOKUP('Intermediate Freight Calcs'!A42,'BCA Values Freight'!$D$11:$AC$43,29,FALSE))+(HLOOKUP('Intermediate Freight Calcs'!A42,'BCA Values Freight'!$D$11:$AC$43,6,FALSE)*HLOOKUP('Intermediate Freight Calcs'!A42,'BCA Values Freight'!$D$11:$AC$43,30,FALSE))+(HLOOKUP('Intermediate Freight Calcs'!A42,'BCA Values Freight'!$D$11:$AC$43,7,FALSE)*HLOOKUP('Intermediate Freight Calcs'!A42,'BCA Values Freight'!$D$11:$AC$43,31,FALSE))+(HLOOKUP('Intermediate Freight Calcs'!A42,'BCA Values Freight'!$D$11:$AC$43,8,FALSE)*HLOOKUP('Intermediate Freight Calcs'!A42,'BCA Values Freight'!$D$11:$AC$43,32,FALSE))+(HLOOKUP('Intermediate Freight Calcs'!A42,'BCA Values Freight'!$D$11:$AC$43,9,FALSE)*HLOOKUP('Intermediate Freight Calcs'!A42,'BCA Values Freight'!$D$11:$AC$43,33,FALSE)))+'Project Information'!$C$23*((HLOOKUP('Intermediate Freight Calcs'!A42,'BCA Values Freight'!$D$11:$AC$43,12,FALSE)*HLOOKUP('Intermediate Freight Calcs'!A42,'BCA Values Freight'!$D$11:$AC$43,28,FALSE))+(HLOOKUP('Intermediate Freight Calcs'!A42,'BCA Values Freight'!$D$11:$AC$43,14,FALSE)*HLOOKUP('Intermediate Freight Calcs'!A42,'BCA Values Freight'!$D$11:$AC$43,29,FALSE))+(HLOOKUP('Intermediate Freight Calcs'!A42,'BCA Values Freight'!$D$11:$AC$43,15,FALSE)*HLOOKUP('Intermediate Freight Calcs'!A42,'BCA Values Freight'!$D$11:$AC$43,30,FALSE))+(HLOOKUP('Intermediate Freight Calcs'!A42,'BCA Values Freight'!$D$11:$AC$43,16,FALSE)*HLOOKUP('Intermediate Freight Calcs'!A42,'BCA Values Freight'!$D$11:$AC$43,31,FALSE))+(HLOOKUP('Intermediate Freight Calcs'!A42,'BCA Values Freight'!$D$11:$AC$43,17,FALSE)*HLOOKUP('Intermediate Freight Calcs'!A42,'BCA Values Freight'!$D$11:$AC$43,32,FALSE))+(HLOOKUP('Intermediate Freight Calcs'!A42,'BCA Values Freight'!$D$11:$AC$43,18,FALSE)*HLOOKUP('Intermediate Freight Calcs'!A42,'BCA Values Freight'!$D$11:$AC$43,33,FALSE))) ->  | C42: ='Project Information'!$D$23*HLOOKUP(A42,'BCA Values Freight'!$D$11:$AC$49,37,FALSE)+'Project Information'!$C$23*HLOOKUP(A42,'BCA Values Freight'!$D$11:$AC$49,38,FALSE) ->  | D42: =IFERROR((('Railcar and Passenger Demand'!C8/'Project Information'!$C$29)*'Project Information'!$C$31*'Project Information'!$C$29*'Project Information'!$C$28),"") ->  | E42: =HLOOKUP('Intermediate Freight Calcs'!A42,'BCA Values Freight'!$D$11:$AC$43,21,FALSE)*HLOOKUP('Intermediate Freight Calcs'!A42,'BCA Values Freight'!$D$11:$AC$43,28,FALSE)+HLOOKUP('Intermediate Freight Calcs'!A42,'BCA Values Freight'!$D$11:$AC$43,22,FALSE)*HLOOKUP('Intermediate Freight Calcs'!A42,'BCA Values Freight'!$D$11:$AC$43,29,FALSE)+HLOOKUP('Intermediate Freight Calcs'!A42,'BCA Values Freight'!$D$11:$AC$43,23,FALSE)*0.97*HLOOKUP('Intermediate Freight Calcs'!A42,'BCA Values Freight'!$D$11:$AC$43,30,FALSE)+HLOOKUP('Intermediate Freight Calcs'!A42,'BCA Values Freight'!$D$11:$AC$43,23,FALSE)*0.03*HLOOKUP('Intermediate Freight Calcs'!A42,'BCA Values Freight'!$D$11:$AC$43,31,FALSE)+HLOOKUP('Intermediate Freight Calcs'!A42,'BCA Values Freight'!$D$11:$AC$43,24,FALSE)*HLOOKUP('Intermediate Freight Calcs'!A42,'BCA Values Freight'!$D$11:$AC$43,32,FALSE)+HLOOKUP('Intermediate Freight Calcs'!A42,'BCA Values Freight'!$D$11:$AC$43,25,FALSE)*HLOOKUP('Intermediate Freight Calcs'!A42,'BCA Values Freight'!$D$11:$AC$43,33,FALSE) ->  | F42: =HLOOKUP(A42,'BCA Values Freight'!$D$11:$AD$49,39,FALSE) -> 
A43: 7 | B43: ='Project Information'!$D$23*((HLOOKUP('Intermediate Freight Calcs'!A43,'BCA Values Freight'!$D$11:$AC$43,3,FALSE)*HLOOKUP('Intermediate Freight Calcs'!A43,'BCA Values Freight'!$D$11:$AC$43,28,FALSE))+(HLOOKUP('Intermediate Freight Calcs'!A43,'BCA Values Freight'!$D$11:$AC$43,5,FALSE)*HLOOKUP('Intermediate Freight Calcs'!A43,'BCA Values Freight'!$D$11:$AC$43,29,FALSE))+(HLOOKUP('Intermediate Freight Calcs'!A43,'BCA Values Freight'!$D$11:$AC$43,6,FALSE)*HLOOKUP('Intermediate Freight Calcs'!A43,'BCA Values Freight'!$D$11:$AC$43,30,FALSE))+(HLOOKUP('Intermediate Freight Calcs'!A43,'BCA Values Freight'!$D$11:$AC$43,7,FALSE)*HLOOKUP('Intermediate Freight Calcs'!A43,'BCA Values Freight'!$D$11:$AC$43,31,FALSE))+(HLOOKUP('Intermediate Freight Calcs'!A43,'BCA Values Freight'!$D$11:$AC$43,8,FALSE)*HLOOKUP('Intermediate Freight Calcs'!A43,'BCA Values Freight'!$D$11:$AC$43,32,FALSE))+(HLOOKUP('Intermediate Freight Calcs'!A43,'BCA Values Freight'!$D$11:$AC$43,9,FALSE)*HLOOKUP('Intermediate Freight Calcs'!A43,'BCA Values Freight'!$D$11:$AC$43,33,FALSE)))+'Project Information'!$C$23*((HLOOKUP('Intermediate Freight Calcs'!A43,'BCA Values Freight'!$D$11:$AC$43,12,FALSE)*HLOOKUP('Intermediate Freight Calcs'!A43,'BCA Values Freight'!$D$11:$AC$43,28,FALSE))+(HLOOKUP('Intermediate Freight Calcs'!A43,'BCA Values Freight'!$D$11:$AC$43,14,FALSE)*HLOOKUP('Intermediate Freight Calcs'!A43,'BCA Values Freight'!$D$11:$AC$43,29,FALSE))+(HLOOKUP('Intermediate Freight Calcs'!A43,'BCA Values Freight'!$D$11:$AC$43,15,FALSE)*HLOOKUP('Intermediate Freight Calcs'!A43,'BCA Values Freight'!$D$11:$AC$43,30,FALSE))+(HLOOKUP('Intermediate Freight Calcs'!A43,'BCA Values Freight'!$D$11:$AC$43,16,FALSE)*HLOOKUP('Intermediate Freight Calcs'!A43,'BCA Values Freight'!$D$11:$AC$43,31,FALSE))+(HLOOKUP('Intermediate Freight Calcs'!A43,'BCA Values Freight'!$D$11:$AC$43,17,FALSE)*HLOOKUP('Intermediate Freight Calcs'!A43,'BCA Values Freight'!$D$11:$AC$43,32,FALSE))+(HLOOKUP('Intermediate Freight Calcs'!A43,'BCA Values Freight'!$D$11:$AC$43,18,FALSE)*HLOOKUP('Intermediate Freight Calcs'!A43,'BCA Values Freight'!$D$11:$AC$43,33,FALSE))) ->  | C43: ='Project Information'!$D$23*HLOOKUP(A43,'BCA Values Freight'!$D$11:$AC$49,37,FALSE)+'Project Information'!$C$23*HLOOKUP(A43,'BCA Values Freight'!$D$11:$AC$49,38,FALSE) ->  | D43: =IFERROR((('Railcar and Passenger Demand'!C9/'Project Information'!$C$29)*'Project Information'!$C$31*'Project Information'!$C$29*'Project Information'!$C$28),"") ->  | E43: =HLOOKUP('Intermediate Freight Calcs'!A43,'BCA Values Freight'!$D$11:$AC$43,21,FALSE)*HLOOKUP('Intermediate Freight Calcs'!A43,'BCA Values Freight'!$D$11:$AC$43,28,FALSE)+HLOOKUP('Intermediate Freight Calcs'!A43,'BCA Values Freight'!$D$11:$AC$43,22,FALSE)*HLOOKUP('Intermediate Freight Calcs'!A43,'BCA Values Freight'!$D$11:$AC$43,29,FALSE)+HLOOKUP('Intermediate Freight Calcs'!A43,'BCA Values Freight'!$D$11:$AC$43,23,FALSE)*0.97*HLOOKUP('Intermediate Freight Calcs'!A43,'BCA Values Freight'!$D$11:$AC$43,30,FALSE)+HLOOKUP('Intermediate Freight Calcs'!A43,'BCA Values Freight'!$D$11:$AC$43,23,FALSE)*0.03*HLOOKUP('Intermediate Freight Calcs'!A43,'BCA Values Freight'!$D$11:$AC$43,31,FALSE)+HLOOKUP('Intermediate Freight Calcs'!A43,'BCA Values Freight'!$D$11:$AC$43,24,FALSE)*HLOOKUP('Intermediate Freight Calcs'!A43,'BCA Values Freight'!$D$11:$AC$43,32,FALSE)+HLOOKUP('Intermediate Freight Calcs'!A43,'BCA Values Freight'!$D$11:$AC$43,25,FALSE)*HLOOKUP('Intermediate Freight Calcs'!A43,'BCA Values Freight'!$D$11:$AC$43,33,FALSE) ->  | F43: =HLOOKUP(A43,'BCA Values Freight'!$D$11:$AD$49,39,FALSE) -> 
A44: 8 | B44: ='Project Information'!$D$23*((HLOOKUP('Intermediate Freight Calcs'!A44,'BCA Values Freight'!$D$11:$AC$43,3,FALSE)*HLOOKUP('Intermediate Freight Calcs'!A44,'BCA Values Freight'!$D$11:$AC$43,28,FALSE))+(HLOOKUP('Intermediate Freight Calcs'!A44,'BCA Values Freight'!$D$11:$AC$43,5,FALSE)*HLOOKUP('Intermediate Freight Calcs'!A44,'BCA Values Freight'!$D$11:$AC$43,29,FALSE))+(HLOOKUP('Intermediate Freight Calcs'!A44,'BCA Values Freight'!$D$11:$AC$43,6,FALSE)*HLOOKUP('Intermediate Freight Calcs'!A44,'BCA Values Freight'!$D$11:$AC$43,30,FALSE))+(HLOOKUP('Intermediate Freight Calcs'!A44,'BCA Values Freight'!$D$11:$AC$43,7,FALSE)*HLOOKUP('Intermediate Freight Calcs'!A44,'BCA Values Freight'!$D$11:$AC$43,31,FALSE))+(HLOOKUP('Intermediate Freight Calcs'!A44,'BCA Values Freight'!$D$11:$AC$43,8,FALSE)*HLOOKUP('Intermediate Freight Calcs'!A44,'BCA Values Freight'!$D$11:$AC$43,32,FALSE))+(HLOOKUP('Intermediate Freight Calcs'!A44,'BCA Values Freight'!$D$11:$AC$43,9,FALSE)*HLOOKUP('Intermediate Freight Calcs'!A44,'BCA Values Freight'!$D$11:$AC$43,33,FALSE)))+'Project Information'!$C$23*((HLOOKUP('Intermediate Freight Calcs'!A44,'BCA Values Freight'!$D$11:$AC$43,12,FALSE)*HLOOKUP('Intermediate Freight Calcs'!A44,'BCA Values Freight'!$D$11:$AC$43,28,FALSE))+(HLOOKUP('Intermediate Freight Calcs'!A44,'BCA Values Freight'!$D$11:$AC$43,14,FALSE)*HLOOKUP('Intermediate Freight Calcs'!A44,'BCA Values Freight'!$D$11:$AC$43,29,FALSE))+(HLOOKUP('Intermediate Freight Calcs'!A44,'BCA Values Freight'!$D$11:$AC$43,15,FALSE)*HLOOKUP('Intermediate Freight Calcs'!A44,'BCA Values Freight'!$D$11:$AC$43,30,FALSE))+(HLOOKUP('Intermediate Freight Calcs'!A44,'BCA Values Freight'!$D$11:$AC$43,16,FALSE)*HLOOKUP('Intermediate Freight Calcs'!A44,'BCA Values Freight'!$D$11:$AC$43,31,FALSE))+(HLOOKUP('Intermediate Freight Calcs'!A44,'BCA Values Freight'!$D$11:$AC$43,17,FALSE)*HLOOKUP('Intermediate Freight Calcs'!A44,'BCA Values Freight'!$D$11:$AC$43,32,FALSE))+(HLOOKUP('Intermediate Freight Calcs'!A44,'BCA Values Freight'!$D$11:$AC$43,18,FALSE)*HLOOKUP('Intermediate Freight Calcs'!A44,'BCA Values Freight'!$D$11:$AC$43,33,FALSE))) ->  | C44: ='Project Information'!$D$23*HLOOKUP(A44,'BCA Values Freight'!$D$11:$AC$49,37,FALSE)+'Project Information'!$C$23*HLOOKUP(A44,'BCA Values Freight'!$D$11:$AC$49,38,FALSE) ->  | D44: =IFERROR((('Railcar and Passenger Demand'!C10/'Project Information'!$C$29)*'Project Information'!$C$31*'Project Information'!$C$29*'Project Information'!$C$28),"") ->  | E44: =HLOOKUP('Intermediate Freight Calcs'!A44,'BCA Values Freight'!$D$11:$AC$43,21,FALSE)*HLOOKUP('Intermediate Freight Calcs'!A44,'BCA Values Freight'!$D$11:$AC$43,28,FALSE)+HLOOKUP('Intermediate Freight Calcs'!A44,'BCA Values Freight'!$D$11:$AC$43,22,FALSE)*HLOOKUP('Intermediate Freight Calcs'!A44,'BCA Values Freight'!$D$11:$AC$43,29,FALSE)+HLOOKUP('Intermediate Freight Calcs'!A44,'BCA Values Freight'!$D$11:$AC$43,23,FALSE)*0.97*HLOOKUP('Intermediate Freight Calcs'!A44,'BCA Values Freight'!$D$11:$AC$43,30,FALSE)+HLOOKUP('Intermediate Freight Calcs'!A44,'BCA Values Freight'!$D$11:$AC$43,23,FALSE)*0.03*HLOOKUP('Intermediate Freight Calcs'!A44,'BCA Values Freight'!$D$11:$AC$43,31,FALSE)+HLOOKUP('Intermediate Freight Calcs'!A44,'BCA Values Freight'!$D$11:$AC$43,24,FALSE)*HLOOKUP('Intermediate Freight Calcs'!A44,'BCA Values Freight'!$D$11:$AC$43,32,FALSE)+HLOOKUP('Intermediate Freight Calcs'!A44,'BCA Values Freight'!$D$11:$AC$43,25,FALSE)*HLOOKUP('Intermediate Freight Calcs'!A44,'BCA Values Freight'!$D$11:$AC$43,33,FALSE) ->  | F44: =HLOOKUP(A44,'BCA Values Freight'!$D$11:$AD$49,39,FALSE) -> 
A45: 9 | B45: ='Project Information'!$D$23*((HLOOKUP('Intermediate Freight Calcs'!A45,'BCA Values Freight'!$D$11:$AC$43,3,FALSE)*HLOOKUP('Intermediate Freight Calcs'!A45,'BCA Values Freight'!$D$11:$AC$43,28,FALSE))+(HLOOKUP('Intermediate Freight Calcs'!A45,'BCA Values Freight'!$D$11:$AC$43,5,FALSE)*HLOOKUP('Intermediate Freight Calcs'!A45,'BCA Values Freight'!$D$11:$AC$43,29,FALSE))+(HLOOKUP('Intermediate Freight Calcs'!A45,'BCA Values Freight'!$D$11:$AC$43,6,FALSE)*HLOOKUP('Intermediate Freight Calcs'!A45,'BCA Values Freight'!$D$11:$AC$43,30,FALSE))+(HLOOKUP('Intermediate Freight Calcs'!A45,'BCA Values Freight'!$D$11:$AC$43,7,FALSE)*HLOOKUP('Intermediate Freight Calcs'!A45,'BCA Values Freight'!$D$11:$AC$43,31,FALSE))+(HLOOKUP('Intermediate Freight Calcs'!A45,'BCA Values Freight'!$D$11:$AC$43,8,FALSE)*HLOOKUP('Intermediate Freight Calcs'!A45,'BCA Values Freight'!$D$11:$AC$43,32,FALSE))+(HLOOKUP('Intermediate Freight Calcs'!A45,'BCA Values Freight'!$D$11:$AC$43,9,FALSE)*HLOOKUP('Intermediate Freight Calcs'!A45,'BCA Values Freight'!$D$11:$AC$43,33,FALSE)))+'Project Information'!$C$23*((HLOOKUP('Intermediate Freight Calcs'!A45,'BCA Values Freight'!$D$11:$AC$43,12,FALSE)*HLOOKUP('Intermediate Freight Calcs'!A45,'BCA Values Freight'!$D$11:$AC$43,28,FALSE))+(HLOOKUP('Intermediate Freight Calcs'!A45,'BCA Values Freight'!$D$11:$AC$43,14,FALSE)*HLOOKUP('Intermediate Freight Calcs'!A45,'BCA Values Freight'!$D$11:$AC$43,29,FALSE))+(HLOOKUP('Intermediate Freight Calcs'!A45,'BCA Values Freight'!$D$11:$AC$43,15,FALSE)*HLOOKUP('Intermediate Freight Calcs'!A45,'BCA Values Freight'!$D$11:$AC$43,30,FALSE))+(HLOOKUP('Intermediate Freight Calcs'!A45,'BCA Values Freight'!$D$11:$AC$43,16,FALSE)*HLOOKUP('Intermediate Freight Calcs'!A45,'BCA Values Freight'!$D$11:$AC$43,31,FALSE))+(HLOOKUP('Intermediate Freight Calcs'!A45,'BCA Values Freight'!$D$11:$AC$43,17,FALSE)*HLOOKUP('Intermediate Freight Calcs'!A45,'BCA Values Freight'!$D$11:$AC$43,32,FALSE))+(HLOOKUP('Intermediate Freight Calcs'!A45,'BCA Values Freight'!$D$11:$AC$43,18,FALSE)*HLOOKUP('Intermediate Freight Calcs'!A45,'BCA Values Freight'!$D$11:$AC$43,33,FALSE))) ->  | C45: ='Project Information'!$D$23*HLOOKUP(A45,'BCA Values Freight'!$D$11:$AC$49,37,FALSE)+'Project Information'!$C$23*HLOOKUP(A45,'BCA Values Freight'!$D$11:$AC$49,38,FALSE) ->  | D45: =IFERROR((('Railcar and Passenger Demand'!C11/'Project Information'!$C$29)*'Project Information'!$C$31*'Project Information'!$C$29*'Project Information'!$C$28),"") ->  | E45: =HLOOKUP('Intermediate Freight Calcs'!A45,'BCA Values Freight'!$D$11:$AC$43,21,FALSE)*HLOOKUP('Intermediate Freight Calcs'!A45,'BCA Values Freight'!$D$11:$AC$43,28,FALSE)+HLOOKUP('Intermediate Freight Calcs'!A45,'BCA Values Freight'!$D$11:$AC$43,22,FALSE)*HLOOKUP('Intermediate Freight Calcs'!A45,'BCA Values Freight'!$D$11:$AC$43,29,FALSE)+HLOOKUP('Intermediate Freight Calcs'!A45,'BCA Values Freight'!$D$11:$AC$43,23,FALSE)*0.97*HLOOKUP('Intermediate Freight Calcs'!A45,'BCA Values Freight'!$D$11:$AC$43,30,FALSE)+HLOOKUP('Intermediate Freight Calcs'!A45,'BCA Values Freight'!$D$11:$AC$43,23,FALSE)*0.03*HLOOKUP('Intermediate Freight Calcs'!A45,'BCA Values Freight'!$D$11:$AC$43,31,FALSE)+HLOOKUP('Intermediate Freight Calcs'!A45,'BCA Values Freight'!$D$11:$AC$43,24,FALSE)*HLOOKUP('Intermediate Freight Calcs'!A45,'BCA Values Freight'!$D$11:$AC$43,32,FALSE)+HLOOKUP('Intermediate Freight Calcs'!A45,'BCA Values Freight'!$D$11:$AC$43,25,FALSE)*HLOOKUP('Intermediate Freight Calcs'!A45,'BCA Values Freight'!$D$11:$AC$43,33,FALSE) ->  | F45: =HLOOKUP(A45,'BCA Values Freight'!$D$11:$AD$49,39,FALSE) -> 
A46: 10 | B46: ='Project Information'!$D$23*((HLOOKUP('Intermediate Freight Calcs'!A46,'BCA Values Freight'!$D$11:$AC$43,3,FALSE)*HLOOKUP('Intermediate Freight Calcs'!A46,'BCA Values Freight'!$D$11:$AC$43,28,FALSE))+(HLOOKUP('Intermediate Freight Calcs'!A46,'BCA Values Freight'!$D$11:$AC$43,5,FALSE)*HLOOKUP('Intermediate Freight Calcs'!A46,'BCA Values Freight'!$D$11:$AC$43,29,FALSE))+(HLOOKUP('Intermediate Freight Calcs'!A46,'BCA Values Freight'!$D$11:$AC$43,6,FALSE)*HLOOKUP('Intermediate Freight Calcs'!A46,'BCA Values Freight'!$D$11:$AC$43,30,FALSE))+(HLOOKUP('Intermediate Freight Calcs'!A46,'BCA Values Freight'!$D$11:$AC$43,7,FALSE)*HLOOKUP('Intermediate Freight Calcs'!A46,'BCA Values Freight'!$D$11:$AC$43,31,FALSE))+(HLOOKUP('Intermediate Freight Calcs'!A46,'BCA Values Freight'!$D$11:$AC$43,8,FALSE)*HLOOKUP('Intermediate Freight Calcs'!A46,'BCA Values Freight'!$D$11:$AC$43,32,FALSE))+(HLOOKUP('Intermediate Freight Calcs'!A46,'BCA Values Freight'!$D$11:$AC$43,9,FALSE)*HLOOKUP('Intermediate Freight Calcs'!A46,'BCA Values Freight'!$D$11:$AC$43,33,FALSE)))+'Project Information'!$C$23*((HLOOKUP('Intermediate Freight Calcs'!A46,'BCA Values Freight'!$D$11:$AC$43,12,FALSE)*HLOOKUP('Intermediate Freight Calcs'!A46,'BCA Values Freight'!$D$11:$AC$43,28,FALSE))+(HLOOKUP('Intermediate Freight Calcs'!A46,'BCA Values Freight'!$D$11:$AC$43,14,FALSE)*HLOOKUP('Intermediate Freight Calcs'!A46,'BCA Values Freight'!$D$11:$AC$43,29,FALSE))+(HLOOKUP('Intermediate Freight Calcs'!A46,'BCA Values Freight'!$D$11:$AC$43,15,FALSE)*HLOOKUP('Intermediate Freight Calcs'!A46,'BCA Values Freight'!$D$11:$AC$43,30,FALSE))+(HLOOKUP('Intermediate Freight Calcs'!A46,'BCA Values Freight'!$D$11:$AC$43,16,FALSE)*HLOOKUP('Intermediate Freight Calcs'!A46,'BCA Values Freight'!$D$11:$AC$43,31,FALSE))+(HLOOKUP('Intermediate Freight Calcs'!A46,'BCA Values Freight'!$D$11:$AC$43,17,FALSE)*HLOOKUP('Intermediate Freight Calcs'!A46,'BCA Values Freight'!$D$11:$AC$43,32,FALSE))+(HLOOKUP('Intermediate Freight Calcs'!A46,'BCA Values Freight'!$D$11:$AC$43,18,FALSE)*HLOOKUP('Intermediate Freight Calcs'!A46,'BCA Values Freight'!$D$11:$AC$43,33,FALSE))) ->  | C46: ='Project Information'!$D$23*HLOOKUP(A46,'BCA Values Freight'!$D$11:$AC$49,37,FALSE)+'Project Information'!$C$23*HLOOKUP(A46,'BCA Values Freight'!$D$11:$AC$49,38,FALSE) ->  | D46: =IFERROR((('Railcar and Passenger Demand'!C12/'Project Information'!$C$29)*'Project Information'!$C$31*'Project Information'!$C$29*'Project Information'!$C$28),"") ->  | E46: =HLOOKUP('Intermediate Freight Calcs'!A46,'BCA Values Freight'!$D$11:$AC$43,21,FALSE)*HLOOKUP('Intermediate Freight Calcs'!A46,'BCA Values Freight'!$D$11:$AC$43,28,FALSE)+HLOOKUP('Intermediate Freight Calcs'!A46,'BCA Values Freight'!$D$11:$AC$43,22,FALSE)*HLOOKUP('Intermediate Freight Calcs'!A46,'BCA Values Freight'!$D$11:$AC$43,29,FALSE)+HLOOKUP('Intermediate Freight Calcs'!A46,'BCA Values Freight'!$D$11:$AC$43,23,FALSE)*0.97*HLOOKUP('Intermediate Freight Calcs'!A46,'BCA Values Freight'!$D$11:$AC$43,30,FALSE)+HLOOKUP('Intermediate Freight Calcs'!A46,'BCA Values Freight'!$D$11:$AC$43,23,FALSE)*0.03*HLOOKUP('Intermediate Freight Calcs'!A46,'BCA Values Freight'!$D$11:$AC$43,31,FALSE)+HLOOKUP('Intermediate Freight Calcs'!A46,'BCA Values Freight'!$D$11:$AC$43,24,FALSE)*HLOOKUP('Intermediate Freight Calcs'!A46,'BCA Values Freight'!$D$11:$AC$43,32,FALSE)+HLOOKUP('Intermediate Freight Calcs'!A46,'BCA Values Freight'!$D$11:$AC$43,25,FALSE)*HLOOKUP('Intermediate Freight Calcs'!A46,'BCA Values Freight'!$D$11:$AC$43,33,FALSE) ->  | F46: =HLOOKUP(A46,'BCA Values Freight'!$D$11:$AD$49,39,FALSE) -> 
A47: 11 | B47: ='Project Information'!$D$23*((HLOOKUP('Intermediate Freight Calcs'!A47,'BCA Values Freight'!$D$11:$AC$43,3,FALSE)*HLOOKUP('Intermediate Freight Calcs'!A47,'BCA Values Freight'!$D$11:$AC$43,28,FALSE))+(HLOOKUP('Intermediate Freight Calcs'!A47,'BCA Values Freight'!$D$11:$AC$43,5,FALSE)*HLOOKUP('Intermediate Freight Calcs'!A47,'BCA Values Freight'!$D$11:$AC$43,29,FALSE))+(HLOOKUP('Intermediate Freight Calcs'!A47,'BCA Values Freight'!$D$11:$AC$43,6,FALSE)*HLOOKUP('Intermediate Freight Calcs'!A47,'BCA Values Freight'!$D$11:$AC$43,30,FALSE))+(HLOOKUP('Intermediate Freight Calcs'!A47,'BCA Values Freight'!$D$11:$AC$43,7,FALSE)*HLOOKUP('Intermediate Freight Calcs'!A47,'BCA Values Freight'!$D$11:$AC$43,31,FALSE))+(HLOOKUP('Intermediate Freight Calcs'!A47,'BCA Values Freight'!$D$11:$AC$43,8,FALSE)*HLOOKUP('Intermediate Freight Calcs'!A47,'BCA Values Freight'!$D$11:$AC$43,32,FALSE))+(HLOOKUP('Intermediate Freight Calcs'!A47,'BCA Values Freight'!$D$11:$AC$43,9,FALSE)*HLOOKUP('Intermediate Freight Calcs'!A47,'BCA Values Freight'!$D$11:$AC$43,33,FALSE)))+'Project Information'!$C$23*((HLOOKUP('Intermediate Freight Calcs'!A47,'BCA Values Freight'!$D$11:$AC$43,12,FALSE)*HLOOKUP('Intermediate Freight Calcs'!A47,'BCA Values Freight'!$D$11:$AC$43,28,FALSE))+(HLOOKUP('Intermediate Freight Calcs'!A47,'BCA Values Freight'!$D$11:$AC$43,14,FALSE)*HLOOKUP('Intermediate Freight Calcs'!A47,'BCA Values Freight'!$D$11:$AC$43,29,FALSE))+(HLOOKUP('Intermediate Freight Calcs'!A47,'BCA Values Freight'!$D$11:$AC$43,15,FALSE)*HLOOKUP('Intermediate Freight Calcs'!A47,'BCA Values Freight'!$D$11:$AC$43,30,FALSE))+(HLOOKUP('Intermediate Freight Calcs'!A47,'BCA Values Freight'!$D$11:$AC$43,16,FALSE)*HLOOKUP('Intermediate Freight Calcs'!A47,'BCA Values Freight'!$D$11:$AC$43,31,FALSE))+(HLOOKUP('Intermediate Freight Calcs'!A47,'BCA Values Freight'!$D$11:$AC$43,17,FALSE)*HLOOKUP('Intermediate Freight Calcs'!A47,'BCA Values Freight'!$D$11:$AC$43,32,FALSE))+(HLOOKUP('Intermediate Freight Calcs'!A47,'BCA Values Freight'!$D$11:$AC$43,18,FALSE)*HLOOKUP('Intermediate Freight Calcs'!A47,'BCA Values Freight'!$D$11:$AC$43,33,FALSE))) ->  | C47: ='Project Information'!$D$23*HLOOKUP(A47,'BCA Values Freight'!$D$11:$AC$49,37,FALSE)+'Project Information'!$C$23*HLOOKUP(A47,'BCA Values Freight'!$D$11:$AC$49,38,FALSE) ->  | D47: =IFERROR((('Railcar and Passenger Demand'!C13/'Project Information'!$C$29)*'Project Information'!$C$31*'Project Information'!$C$29*'Project Information'!$C$28),"") ->  | E47: =HLOOKUP('Intermediate Freight Calcs'!A47,'BCA Values Freight'!$D$11:$AC$43,21,FALSE)*HLOOKUP('Intermediate Freight Calcs'!A47,'BCA Values Freight'!$D$11:$AC$43,28,FALSE)+HLOOKUP('Intermediate Freight Calcs'!A47,'BCA Values Freight'!$D$11:$AC$43,22,FALSE)*HLOOKUP('Intermediate Freight Calcs'!A47,'BCA Values Freight'!$D$11:$AC$43,29,FALSE)+HLOOKUP('Intermediate Freight Calcs'!A47,'BCA Values Freight'!$D$11:$AC$43,23,FALSE)*0.97*HLOOKUP('Intermediate Freight Calcs'!A47,'BCA Values Freight'!$D$11:$AC$43,30,FALSE)+HLOOKUP('Intermediate Freight Calcs'!A47,'BCA Values Freight'!$D$11:$AC$43,23,FALSE)*0.03*HLOOKUP('Intermediate Freight Calcs'!A47,'BCA Values Freight'!$D$11:$AC$43,31,FALSE)+HLOOKUP('Intermediate Freight Calcs'!A47,'BCA Values Freight'!$D$11:$AC$43,24,FALSE)*HLOOKUP('Intermediate Freight Calcs'!A47,'BCA Values Freight'!$D$11:$AC$43,32,FALSE)+HLOOKUP('Intermediate Freight Calcs'!A47,'BCA Values Freight'!$D$11:$AC$43,25,FALSE)*HLOOKUP('Intermediate Freight Calcs'!A47,'BCA Values Freight'!$D$11:$AC$43,33,FALSE) ->  | F47: =HLOOKUP(A47,'BCA Values Freight'!$D$11:$AD$49,39,FALSE) -> 
A48: 12 | B48: ='Project Information'!$D$23*((HLOOKUP('Intermediate Freight Calcs'!A48,'BCA Values Freight'!$D$11:$AC$43,3,FALSE)*HLOOKUP('Intermediate Freight Calcs'!A48,'BCA Values Freight'!$D$11:$AC$43,28,FALSE))+(HLOOKUP('Intermediate Freight Calcs'!A48,'BCA Values Freight'!$D$11:$AC$43,5,FALSE)*HLOOKUP('Intermediate Freight Calcs'!A48,'BCA Values Freight'!$D$11:$AC$43,29,FALSE))+(HLOOKUP('Intermediate Freight Calcs'!A48,'BCA Values Freight'!$D$11:$AC$43,6,FALSE)*HLOOKUP('Intermediate Freight Calcs'!A48,'BCA Values Freight'!$D$11:$AC$43,30,FALSE))+(HLOOKUP('Intermediate Freight Calcs'!A48,'BCA Values Freight'!$D$11:$AC$43,7,FALSE)*HLOOKUP('Intermediate Freight Calcs'!A48,'BCA Values Freight'!$D$11:$AC$43,31,FALSE))+(HLOOKUP('Intermediate Freight Calcs'!A48,'BCA Values Freight'!$D$11:$AC$43,8,FALSE)*HLOOKUP('Intermediate Freight Calcs'!A48,'BCA Values Freight'!$D$11:$AC$43,32,FALSE))+(HLOOKUP('Intermediate Freight Calcs'!A48,'BCA Values Freight'!$D$11:$AC$43,9,FALSE)*HLOOKUP('Intermediate Freight Calcs'!A48,'BCA Values Freight'!$D$11:$AC$43,33,FALSE)))+'Project Information'!$C$23*((HLOOKUP('Intermediate Freight Calcs'!A48,'BCA Values Freight'!$D$11:$AC$43,12,FALSE)*HLOOKUP('Intermediate Freight Calcs'!A48,'BCA Values Freight'!$D$11:$AC$43,28,FALSE))+(HLOOKUP('Intermediate Freight Calcs'!A48,'BCA Values Freight'!$D$11:$AC$43,14,FALSE)*HLOOKUP('Intermediate Freight Calcs'!A48,'BCA Values Freight'!$D$11:$AC$43,29,FALSE))+(HLOOKUP('Intermediate Freight Calcs'!A48,'BCA Values Freight'!$D$11:$AC$43,15,FALSE)*HLOOKUP('Intermediate Freight Calcs'!A48,'BCA Values Freight'!$D$11:$AC$43,30,FALSE))+(HLOOKUP('Intermediate Freight Calcs'!A48,'BCA Values Freight'!$D$11:$AC$43,16,FALSE)*HLOOKUP('Intermediate Freight Calcs'!A48,'BCA Values Freight'!$D$11:$AC$43,31,FALSE))+(HLOOKUP('Intermediate Freight Calcs'!A48,'BCA Values Freight'!$D$11:$AC$43,17,FALSE)*HLOOKUP('Intermediate Freight Calcs'!A48,'BCA Values Freight'!$D$11:$AC$43,32,FALSE))+(HLOOKUP('Intermediate Freight Calcs'!A48,'BCA Values Freight'!$D$11:$AC$43,18,FALSE)*HLOOKUP('Intermediate Freight Calcs'!A48,'BCA Values Freight'!$D$11:$AC$43,33,FALSE))) ->  | C48: ='Project Information'!$D$23*HLOOKUP(A48,'BCA Values Freight'!$D$11:$AC$49,37,FALSE)+'Project Information'!$C$23*HLOOKUP(A48,'BCA Values Freight'!$D$11:$AC$49,38,FALSE) ->  | D48: =IFERROR((('Railcar and Passenger Demand'!C14/'Project Information'!$C$29)*'Project Information'!$C$31*'Project Information'!$C$29*'Project Information'!$C$28),"") ->  | E48: =HLOOKUP('Intermediate Freight Calcs'!A48,'BCA Values Freight'!$D$11:$AC$43,21,FALSE)*HLOOKUP('Intermediate Freight Calcs'!A48,'BCA Values Freight'!$D$11:$AC$43,28,FALSE)+HLOOKUP('Intermediate Freight Calcs'!A48,'BCA Values Freight'!$D$11:$AC$43,22,FALSE)*HLOOKUP('Intermediate Freight Calcs'!A48,'BCA Values Freight'!$D$11:$AC$43,29,FALSE)+HLOOKUP('Intermediate Freight Calcs'!A48,'BCA Values Freight'!$D$11:$AC$43,23,FALSE)*0.97*HLOOKUP('Intermediate Freight Calcs'!A48,'BCA Values Freight'!$D$11:$AC$43,30,FALSE)+HLOOKUP('Intermediate Freight Calcs'!A48,'BCA Values Freight'!$D$11:$AC$43,23,FALSE)*0.03*HLOOKUP('Intermediate Freight Calcs'!A48,'BCA Values Freight'!$D$11:$AC$43,31,FALSE)+HLOOKUP('Intermediate Freight Calcs'!A48,'BCA Values Freight'!$D$11:$AC$43,24,FALSE)*HLOOKUP('Intermediate Freight Calcs'!A48,'BCA Values Freight'!$D$11:$AC$43,32,FALSE)+HLOOKUP('Intermediate Freight Calcs'!A48,'BCA Values Freight'!$D$11:$AC$43,25,FALSE)*HLOOKUP('Intermediate Freight Calcs'!A48,'BCA Values Freight'!$D$11:$AC$43,33,FALSE) ->  | F48: =HLOOKUP(A48,'BCA Values Freight'!$D$11:$AD$49,39,FALSE) -> 
A49: 13 | B49: ='Project Information'!$D$23*((HLOOKUP('Intermediate Freight Calcs'!A49,'BCA Values Freight'!$D$11:$AC$43,3,FALSE)*HLOOKUP('Intermediate Freight Calcs'!A49,'BCA Values Freight'!$D$11:$AC$43,28,FALSE))+(HLOOKUP('Intermediate Freight Calcs'!A49,'BCA Values Freight'!$D$11:$AC$43,5,FALSE)*HLOOKUP('Intermediate Freight Calcs'!A49,'BCA Values Freight'!$D$11:$AC$43,29,FALSE))+(HLOOKUP('Intermediate Freight Calcs'!A49,'BCA Values Freight'!$D$11:$AC$43,6,FALSE)*HLOOKUP('Intermediate Freight Calcs'!A49,'BCA Values Freight'!$D$11:$AC$43,30,FALSE))+(HLOOKUP('Intermediate Freight Calcs'!A49,'BCA Values Freight'!$D$11:$AC$43,7,FALSE)*HLOOKUP('Intermediate Freight Calcs'!A49,'BCA Values Freight'!$D$11:$AC$43,31,FALSE))+(HLOOKUP('Intermediate Freight Calcs'!A49,'BCA Values Freight'!$D$11:$AC$43,8,FALSE)*HLOOKUP('Intermediate Freight Calcs'!A49,'BCA Values Freight'!$D$11:$AC$43,32,FALSE))+(HLOOKUP('Intermediate Freight Calcs'!A49,'BCA Values Freight'!$D$11:$AC$43,9,FALSE)*HLOOKUP('Intermediate Freight Calcs'!A49,'BCA Values Freight'!$D$11:$AC$43,33,FALSE)))+'Project Information'!$C$23*((HLOOKUP('Intermediate Freight Calcs'!A49,'BCA Values Freight'!$D$11:$AC$43,12,FALSE)*HLOOKUP('Intermediate Freight Calcs'!A49,'BCA Values Freight'!$D$11:$AC$43,28,FALSE))+(HLOOKUP('Intermediate Freight Calcs'!A49,'BCA Values Freight'!$D$11:$AC$43,14,FALSE)*HLOOKUP('Intermediate Freight Calcs'!A49,'BCA Values Freight'!$D$11:$AC$43,29,FALSE))+(HLOOKUP('Intermediate Freight Calcs'!A49,'BCA Values Freight'!$D$11:$AC$43,15,FALSE)*HLOOKUP('Intermediate Freight Calcs'!A49,'BCA Values Freight'!$D$11:$AC$43,30,FALSE))+(HLOOKUP('Intermediate Freight Calcs'!A49,'BCA Values Freight'!$D$11:$AC$43,16,FALSE)*HLOOKUP('Intermediate Freight Calcs'!A49,'BCA Values Freight'!$D$11:$AC$43,31,FALSE))+(HLOOKUP('Intermediate Freight Calcs'!A49,'BCA Values Freight'!$D$11:$AC$43,17,FALSE)*HLOOKUP('Intermediate Freight Calcs'!A49,'BCA Values Freight'!$D$11:$AC$43,32,FALSE))+(HLOOKUP('Intermediate Freight Calcs'!A49,'BCA Values Freight'!$D$11:$AC$43,18,FALSE)*HLOOKUP('Intermediate Freight Calcs'!A49,'BCA Values Freight'!$D$11:$AC$43,33,FALSE))) ->  | C49: ='Project Information'!$D$23*HLOOKUP(A49,'BCA Values Freight'!$D$11:$AC$49,37,FALSE)+'Project Information'!$C$23*HLOOKUP(A49,'BCA Values Freight'!$D$11:$AC$49,38,FALSE) ->  | D49: =IFERROR((('Railcar and Passenger Demand'!C15/'Project Information'!$C$29)*'Project Information'!$C$31*'Project Information'!$C$29*'Project Information'!$C$28),"") ->  | E49: =HLOOKUP('Intermediate Freight Calcs'!A49,'BCA Values Freight'!$D$11:$AC$43,21,FALSE)*HLOOKUP('Intermediate Freight Calcs'!A49,'BCA Values Freight'!$D$11:$AC$43,28,FALSE)+HLOOKUP('Intermediate Freight Calcs'!A49,'BCA Values Freight'!$D$11:$AC$43,22,FALSE)*HLOOKUP('Intermediate Freight Calcs'!A49,'BCA Values Freight'!$D$11:$AC$43,29,FALSE)+HLOOKUP('Intermediate Freight Calcs'!A49,'BCA Values Freight'!$D$11:$AC$43,23,FALSE)*0.97*HLOOKUP('Intermediate Freight Calcs'!A49,'BCA Values Freight'!$D$11:$AC$43,30,FALSE)+HLOOKUP('Intermediate Freight Calcs'!A49,'BCA Values Freight'!$D$11:$AC$43,23,FALSE)*0.03*HLOOKUP('Intermediate Freight Calcs'!A49,'BCA Values Freight'!$D$11:$AC$43,31,FALSE)+HLOOKUP('Intermediate Freight Calcs'!A49,'BCA Values Freight'!$D$11:$AC$43,24,FALSE)*HLOOKUP('Intermediate Freight Calcs'!A49,'BCA Values Freight'!$D$11:$AC$43,32,FALSE)+HLOOKUP('Intermediate Freight Calcs'!A49,'BCA Values Freight'!$D$11:$AC$43,25,FALSE)*HLOOKUP('Intermediate Freight Calcs'!A49,'BCA Values Freight'!$D$11:$AC$43,33,FALSE) ->  | F49: =HLOOKUP(A49,'BCA Values Freight'!$D$11:$AD$49,39,FALSE) -> 
A50: 14 | B50: ='Project Information'!$D$23*((HLOOKUP('Intermediate Freight Calcs'!A50,'BCA Values Freight'!$D$11:$AC$43,3,FALSE)*HLOOKUP('Intermediate Freight Calcs'!A50,'BCA Values Freight'!$D$11:$AC$43,28,FALSE))+(HLOOKUP('Intermediate Freight Calcs'!A50,'BCA Values Freight'!$D$11:$AC$43,5,FALSE)*HLOOKUP('Intermediate Freight Calcs'!A50,'BCA Values Freight'!$D$11:$AC$43,29,FALSE))+(HLOOKUP('Intermediate Freight Calcs'!A50,'BCA Values Freight'!$D$11:$AC$43,6,FALSE)*HLOOKUP('Intermediate Freight Calcs'!A50,'BCA Values Freight'!$D$11:$AC$43,30,FALSE))+(HLOOKUP('Intermediate Freight Calcs'!A50,'BCA Values Freight'!$D$11:$AC$43,7,FALSE)*HLOOKUP('Intermediate Freight Calcs'!A50,'BCA Values Freight'!$D$11:$AC$43,31,FALSE))+(HLOOKUP('Intermediate Freight Calcs'!A50,'BCA Values Freight'!$D$11:$AC$43,8,FALSE)*HLOOKUP('Intermediate Freight Calcs'!A50,'BCA Values Freight'!$D$11:$AC$43,32,FALSE))+(HLOOKUP('Intermediate Freight Calcs'!A50,'BCA Values Freight'!$D$11:$AC$43,9,FALSE)*HLOOKUP('Intermediate Freight Calcs'!A50,'BCA Values Freight'!$D$11:$AC$43,33,FALSE)))+'Project Information'!$C$23*((HLOOKUP('Intermediate Freight Calcs'!A50,'BCA Values Freight'!$D$11:$AC$43,12,FALSE)*HLOOKUP('Intermediate Freight Calcs'!A50,'BCA Values Freight'!$D$11:$AC$43,28,FALSE))+(HLOOKUP('Intermediate Freight Calcs'!A50,'BCA Values Freight'!$D$11:$AC$43,14,FALSE)*HLOOKUP('Intermediate Freight Calcs'!A50,'BCA Values Freight'!$D$11:$AC$43,29,FALSE))+(HLOOKUP('Intermediate Freight Calcs'!A50,'BCA Values Freight'!$D$11:$AC$43,15,FALSE)*HLOOKUP('Intermediate Freight Calcs'!A50,'BCA Values Freight'!$D$11:$AC$43,30,FALSE))+(HLOOKUP('Intermediate Freight Calcs'!A50,'BCA Values Freight'!$D$11:$AC$43,16,FALSE)*HLOOKUP('Intermediate Freight Calcs'!A50,'BCA Values Freight'!$D$11:$AC$43,31,FALSE))+(HLOOKUP('Intermediate Freight Calcs'!A50,'BCA Values Freight'!$D$11:$AC$43,17,FALSE)*HLOOKUP('Intermediate Freight Calcs'!A50,'BCA Values Freight'!$D$11:$AC$43,32,FALSE))+(HLOOKUP('Intermediate Freight Calcs'!A50,'BCA Values Freight'!$D$11:$AC$43,18,FALSE)*HLOOKUP('Intermediate Freight Calcs'!A50,'BCA Values Freight'!$D$11:$AC$43,33,FALSE))) ->  | C50: ='Project Information'!$D$23*HLOOKUP(A50,'BCA Values Freight'!$D$11:$AC$49,37,FALSE)+'Project Information'!$C$23*HLOOKUP(A50,'BCA Values Freight'!$D$11:$AC$49,38,FALSE) ->  | D50: =IFERROR((('Railcar and Passenger Demand'!C16/'Project Information'!$C$29)*'Project Information'!$C$31*'Project Information'!$C$29*'Project Information'!$C$28),"") ->  | E50: =HLOOKUP('Intermediate Freight Calcs'!A50,'BCA Values Freight'!$D$11:$AC$43,21,FALSE)*HLOOKUP('Intermediate Freight Calcs'!A50,'BCA Values Freight'!$D$11:$AC$43,28,FALSE)+HLOOKUP('Intermediate Freight Calcs'!A50,'BCA Values Freight'!$D$11:$AC$43,22,FALSE)*HLOOKUP('Intermediate Freight Calcs'!A50,'BCA Values Freight'!$D$11:$AC$43,29,FALSE)+HLOOKUP('Intermediate Freight Calcs'!A50,'BCA Values Freight'!$D$11:$AC$43,23,FALSE)*0.97*HLOOKUP('Intermediate Freight Calcs'!A50,'BCA Values Freight'!$D$11:$AC$43,30,FALSE)+HLOOKUP('Intermediate Freight Calcs'!A50,'BCA Values Freight'!$D$11:$AC$43,23,FALSE)*0.03*HLOOKUP('Intermediate Freight Calcs'!A50,'BCA Values Freight'!$D$11:$AC$43,31,FALSE)+HLOOKUP('Intermediate Freight Calcs'!A50,'BCA Values Freight'!$D$11:$AC$43,24,FALSE)*HLOOKUP('Intermediate Freight Calcs'!A50,'BCA Values Freight'!$D$11:$AC$43,32,FALSE)+HLOOKUP('Intermediate Freight Calcs'!A50,'BCA Values Freight'!$D$11:$AC$43,25,FALSE)*HLOOKUP('Intermediate Freight Calcs'!A50,'BCA Values Freight'!$D$11:$AC$43,33,FALSE) ->  | F50: =HLOOKUP(A50,'BCA Values Freight'!$D$11:$AD$49,39,FALSE) -> 
A51: 15 | B51: ='Project Information'!$D$23*((HLOOKUP('Intermediate Freight Calcs'!A51,'BCA Values Freight'!$D$11:$AC$43,3,FALSE)*HLOOKUP('Intermediate Freight Calcs'!A51,'BCA Values Freight'!$D$11:$AC$43,28,FALSE))+(HLOOKUP('Intermediate Freight Calcs'!A51,'BCA Values Freight'!$D$11:$AC$43,5,FALSE)*HLOOKUP('Intermediate Freight Calcs'!A51,'BCA Values Freight'!$D$11:$AC$43,29,FALSE))+(HLOOKUP('Intermediate Freight Calcs'!A51,'BCA Values Freight'!$D$11:$AC$43,6,FALSE)*HLOOKUP('Intermediate Freight Calcs'!A51,'BCA Values Freight'!$D$11:$AC$43,30,FALSE))+(HLOOKUP('Intermediate Freight Calcs'!A51,'BCA Values Freight'!$D$11:$AC$43,7,FALSE)*HLOOKUP('Intermediate Freight Calcs'!A51,'BCA Values Freight'!$D$11:$AC$43,31,FALSE))+(HLOOKUP('Intermediate Freight Calcs'!A51,'BCA Values Freight'!$D$11:$AC$43,8,FALSE)*HLOOKUP('Intermediate Freight Calcs'!A51,'BCA Values Freight'!$D$11:$AC$43,32,FALSE))+(HLOOKUP('Intermediate Freight Calcs'!A51,'BCA Values Freight'!$D$11:$AC$43,9,FALSE)*HLOOKUP('Intermediate Freight Calcs'!A51,'BCA Values Freight'!$D$11:$AC$43,33,FALSE)))+'Project Information'!$C$23*((HLOOKUP('Intermediate Freight Calcs'!A51,'BCA Values Freight'!$D$11:$AC$43,12,FALSE)*HLOOKUP('Intermediate Freight Calcs'!A51,'BCA Values Freight'!$D$11:$AC$43,28,FALSE))+(HLOOKUP('Intermediate Freight Calcs'!A51,'BCA Values Freight'!$D$11:$AC$43,14,FALSE)*HLOOKUP('Intermediate Freight Calcs'!A51,'BCA Values Freight'!$D$11:$AC$43,29,FALSE))+(HLOOKUP('Intermediate Freight Calcs'!A51,'BCA Values Freight'!$D$11:$AC$43,15,FALSE)*HLOOKUP('Intermediate Freight Calcs'!A51,'BCA Values Freight'!$D$11:$AC$43,30,FALSE))+(HLOOKUP('Intermediate Freight Calcs'!A51,'BCA Values Freight'!$D$11:$AC$43,16,FALSE)*HLOOKUP('Intermediate Freight Calcs'!A51,'BCA Values Freight'!$D$11:$AC$43,31,FALSE))+(HLOOKUP('Intermediate Freight Calcs'!A51,'BCA Values Freight'!$D$11:$AC$43,17,FALSE)*HLOOKUP('Intermediate Freight Calcs'!A51,'BCA Values Freight'!$D$11:$AC$43,32,FALSE))+(HLOOKUP('Intermediate Freight Calcs'!A51,'BCA Values Freight'!$D$11:$AC$43,18,FALSE)*HLOOKUP('Intermediate Freight Calcs'!A51,'BCA Values Freight'!$D$11:$AC$43,33,FALSE))) ->  | C51: ='Project Information'!$D$23*HLOOKUP(A51,'BCA Values Freight'!$D$11:$AC$49,37,FALSE)+'Project Information'!$C$23*HLOOKUP(A51,'BCA Values Freight'!$D$11:$AC$49,38,FALSE) ->  | D51: =IFERROR((('Railcar and Passenger Demand'!C17/'Project Information'!$C$29)*'Project Information'!$C$31*'Project Information'!$C$29*'Project Information'!$C$28),"") ->  | E51: =HLOOKUP('Intermediate Freight Calcs'!A51,'BCA Values Freight'!$D$11:$AC$43,21,FALSE)*HLOOKUP('Intermediate Freight Calcs'!A51,'BCA Values Freight'!$D$11:$AC$43,28,FALSE)+HLOOKUP('Intermediate Freight Calcs'!A51,'BCA Values Freight'!$D$11:$AC$43,22,FALSE)*HLOOKUP('Intermediate Freight Calcs'!A51,'BCA Values Freight'!$D$11:$AC$43,29,FALSE)+HLOOKUP('Intermediate Freight Calcs'!A51,'BCA Values Freight'!$D$11:$AC$43,23,FALSE)*0.97*HLOOKUP('Intermediate Freight Calcs'!A51,'BCA Values Freight'!$D$11:$AC$43,30,FALSE)+HLOOKUP('Intermediate Freight Calcs'!A51,'BCA Values Freight'!$D$11:$AC$43,23,FALSE)*0.03*HLOOKUP('Intermediate Freight Calcs'!A51,'BCA Values Freight'!$D$11:$AC$43,31,FALSE)+HLOOKUP('Intermediate Freight Calcs'!A51,'BCA Values Freight'!$D$11:$AC$43,24,FALSE)*HLOOKUP('Intermediate Freight Calcs'!A51,'BCA Values Freight'!$D$11:$AC$43,32,FALSE)+HLOOKUP('Intermediate Freight Calcs'!A51,'BCA Values Freight'!$D$11:$AC$43,25,FALSE)*HLOOKUP('Intermediate Freight Calcs'!A51,'BCA Values Freight'!$D$11:$AC$43,33,FALSE) ->  | F51: =HLOOKUP(A51,'BCA Values Freight'!$D$11:$AD$49,39,FALSE) -> 
A52: 16 | B52: ='Project Information'!$D$23*((HLOOKUP('Intermediate Freight Calcs'!A52,'BCA Values Freight'!$D$11:$AC$43,3,FALSE)*HLOOKUP('Intermediate Freight Calcs'!A52,'BCA Values Freight'!$D$11:$AC$43,28,FALSE))+(HLOOKUP('Intermediate Freight Calcs'!A52,'BCA Values Freight'!$D$11:$AC$43,5,FALSE)*HLOOKUP('Intermediate Freight Calcs'!A52,'BCA Values Freight'!$D$11:$AC$43,29,FALSE))+(HLOOKUP('Intermediate Freight Calcs'!A52,'BCA Values Freight'!$D$11:$AC$43,6,FALSE)*HLOOKUP('Intermediate Freight Calcs'!A52,'BCA Values Freight'!$D$11:$AC$43,30,FALSE))+(HLOOKUP('Intermediate Freight Calcs'!A52,'BCA Values Freight'!$D$11:$AC$43,7,FALSE)*HLOOKUP('Intermediate Freight Calcs'!A52,'BCA Values Freight'!$D$11:$AC$43,31,FALSE))+(HLOOKUP('Intermediate Freight Calcs'!A52,'BCA Values Freight'!$D$11:$AC$43,8,FALSE)*HLOOKUP('Intermediate Freight Calcs'!A52,'BCA Values Freight'!$D$11:$AC$43,32,FALSE))+(HLOOKUP('Intermediate Freight Calcs'!A52,'BCA Values Freight'!$D$11:$AC$43,9,FALSE)*HLOOKUP('Intermediate Freight Calcs'!A52,'BCA Values Freight'!$D$11:$AC$43,33,FALSE)))+'Project Information'!$C$23*((HLOOKUP('Intermediate Freight Calcs'!A52,'BCA Values Freight'!$D$11:$AC$43,12,FALSE)*HLOOKUP('Intermediate Freight Calcs'!A52,'BCA Values Freight'!$D$11:$AC$43,28,FALSE))+(HLOOKUP('Intermediate Freight Calcs'!A52,'BCA Values Freight'!$D$11:$AC$43,14,FALSE)*HLOOKUP('Intermediate Freight Calcs'!A52,'BCA Values Freight'!$D$11:$AC$43,29,FALSE))+(HLOOKUP('Intermediate Freight Calcs'!A52,'BCA Values Freight'!$D$11:$AC$43,15,FALSE)*HLOOKUP('Intermediate Freight Calcs'!A52,'BCA Values Freight'!$D$11:$AC$43,30,FALSE))+(HLOOKUP('Intermediate Freight Calcs'!A52,'BCA Values Freight'!$D$11:$AC$43,16,FALSE)*HLOOKUP('Intermediate Freight Calcs'!A52,'BCA Values Freight'!$D$11:$AC$43,31,FALSE))+(HLOOKUP('Intermediate Freight Calcs'!A52,'BCA Values Freight'!$D$11:$AC$43,17,FALSE)*HLOOKUP('Intermediate Freight Calcs'!A52,'BCA Values Freight'!$D$11:$AC$43,32,FALSE))+(HLOOKUP('Intermediate Freight Calcs'!A52,'BCA Values Freight'!$D$11:$AC$43,18,FALSE)*HLOOKUP('Intermediate Freight Calcs'!A52,'BCA Values Freight'!$D$11:$AC$43,33,FALSE))) ->  | C52: ='Project Information'!$D$23*HLOOKUP(A52,'BCA Values Freight'!$D$11:$AC$49,37,FALSE)+'Project Information'!$C$23*HLOOKUP(A52,'BCA Values Freight'!$D$11:$AC$49,38,FALSE) ->  | D52: =IFERROR((('Railcar and Passenger Demand'!C18/'Project Information'!$C$29)*'Project Information'!$C$31*'Project Information'!$C$29*'Project Information'!$C$28),"") ->  | E52: =HLOOKUP('Intermediate Freight Calcs'!A52,'BCA Values Freight'!$D$11:$AC$43,21,FALSE)*HLOOKUP('Intermediate Freight Calcs'!A52,'BCA Values Freight'!$D$11:$AC$43,28,FALSE)+HLOOKUP('Intermediate Freight Calcs'!A52,'BCA Values Freight'!$D$11:$AC$43,22,FALSE)*HLOOKUP('Intermediate Freight Calcs'!A52,'BCA Values Freight'!$D$11:$AC$43,29,FALSE)+HLOOKUP('Intermediate Freight Calcs'!A52,'BCA Values Freight'!$D$11:$AC$43,23,FALSE)*0.97*HLOOKUP('Intermediate Freight Calcs'!A52,'BCA Values Freight'!$D$11:$AC$43,30,FALSE)+HLOOKUP('Intermediate Freight Calcs'!A52,'BCA Values Freight'!$D$11:$AC$43,23,FALSE)*0.03*HLOOKUP('Intermediate Freight Calcs'!A52,'BCA Values Freight'!$D$11:$AC$43,31,FALSE)+HLOOKUP('Intermediate Freight Calcs'!A52,'BCA Values Freight'!$D$11:$AC$43,24,FALSE)*HLOOKUP('Intermediate Freight Calcs'!A52,'BCA Values Freight'!$D$11:$AC$43,32,FALSE)+HLOOKUP('Intermediate Freight Calcs'!A52,'BCA Values Freight'!$D$11:$AC$43,25,FALSE)*HLOOKUP('Intermediate Freight Calcs'!A52,'BCA Values Freight'!$D$11:$AC$43,33,FALSE) ->  | F52: =HLOOKUP(A52,'BCA Values Freight'!$D$11:$AD$49,39,FALSE) -> 
A53: 17 | B53: ='Project Information'!$D$23*((HLOOKUP('Intermediate Freight Calcs'!A53,'BCA Values Freight'!$D$11:$AC$43,3,FALSE)*HLOOKUP('Intermediate Freight Calcs'!A53,'BCA Values Freight'!$D$11:$AC$43,28,FALSE))+(HLOOKUP('Intermediate Freight Calcs'!A53,'BCA Values Freight'!$D$11:$AC$43,5,FALSE)*HLOOKUP('Intermediate Freight Calcs'!A53,'BCA Values Freight'!$D$11:$AC$43,29,FALSE))+(HLOOKUP('Intermediate Freight Calcs'!A53,'BCA Values Freight'!$D$11:$AC$43,6,FALSE)*HLOOKUP('Intermediate Freight Calcs'!A53,'BCA Values Freight'!$D$11:$AC$43,30,FALSE))+(HLOOKUP('Intermediate Freight Calcs'!A53,'BCA Values Freight'!$D$11:$AC$43,7,FALSE)*HLOOKUP('Intermediate Freight Calcs'!A53,'BCA Values Freight'!$D$11:$AC$43,31,FALSE))+(HLOOKUP('Intermediate Freight Calcs'!A53,'BCA Values Freight'!$D$11:$AC$43,8,FALSE)*HLOOKUP('Intermediate Freight Calcs'!A53,'BCA Values Freight'!$D$11:$AC$43,32,FALSE))+(HLOOKUP('Intermediate Freight Calcs'!A53,'BCA Values Freight'!$D$11:$AC$43,9,FALSE)*HLOOKUP('Intermediate Freight Calcs'!A53,'BCA Values Freight'!$D$11:$AC$43,33,FALSE)))+'Project Information'!$C$23*((HLOOKUP('Intermediate Freight Calcs'!A53,'BCA Values Freight'!$D$11:$AC$43,12,FALSE)*HLOOKUP('Intermediate Freight Calcs'!A53,'BCA Values Freight'!$D$11:$AC$43,28,FALSE))+(HLOOKUP('Intermediate Freight Calcs'!A53,'BCA Values Freight'!$D$11:$AC$43,14,FALSE)*HLOOKUP('Intermediate Freight Calcs'!A53,'BCA Values Freight'!$D$11:$AC$43,29,FALSE))+(HLOOKUP('Intermediate Freight Calcs'!A53,'BCA Values Freight'!$D$11:$AC$43,15,FALSE)*HLOOKUP('Intermediate Freight Calcs'!A53,'BCA Values Freight'!$D$11:$AC$43,30,FALSE))+(HLOOKUP('Intermediate Freight Calcs'!A53,'BCA Values Freight'!$D$11:$AC$43,16,FALSE)*HLOOKUP('Intermediate Freight Calcs'!A53,'BCA Values Freight'!$D$11:$AC$43,31,FALSE))+(HLOOKUP('Intermediate Freight Calcs'!A53,'BCA Values Freight'!$D$11:$AC$43,17,FALSE)*HLOOKUP('Intermediate Freight Calcs'!A53,'BCA Values Freight'!$D$11:$AC$43,32,FALSE))+(HLOOKUP('Intermediate Freight Calcs'!A53,'BCA Values Freight'!$D$11:$AC$43,18,FALSE)*HLOOKUP('Intermediate Freight Calcs'!A53,'BCA Values Freight'!$D$11:$AC$43,33,FALSE))) ->  | C53: ='Project Information'!$D$23*HLOOKUP(A53,'BCA Values Freight'!$D$11:$AC$49,37,FALSE)+'Project Information'!$C$23*HLOOKUP(A53,'BCA Values Freight'!$D$11:$AC$49,38,FALSE) ->  | D53: =IFERROR((('Railcar and Passenger Demand'!C19/'Project Information'!$C$29)*'Project Information'!$C$31*'Project Information'!$C$29*'Project Information'!$C$28),"") ->  | E53: =HLOOKUP('Intermediate Freight Calcs'!A53,'BCA Values Freight'!$D$11:$AC$43,21,FALSE)*HLOOKUP('Intermediate Freight Calcs'!A53,'BCA Values Freight'!$D$11:$AC$43,28,FALSE)+HLOOKUP('Intermediate Freight Calcs'!A53,'BCA Values Freight'!$D$11:$AC$43,22,FALSE)*HLOOKUP('Intermediate Freight Calcs'!A53,'BCA Values Freight'!$D$11:$AC$43,29,FALSE)+HLOOKUP('Intermediate Freight Calcs'!A53,'BCA Values Freight'!$D$11:$AC$43,23,FALSE)*0.97*HLOOKUP('Intermediate Freight Calcs'!A53,'BCA Values Freight'!$D$11:$AC$43,30,FALSE)+HLOOKUP('Intermediate Freight Calcs'!A53,'BCA Values Freight'!$D$11:$AC$43,23,FALSE)*0.03*HLOOKUP('Intermediate Freight Calcs'!A53,'BCA Values Freight'!$D$11:$AC$43,31,FALSE)+HLOOKUP('Intermediate Freight Calcs'!A53,'BCA Values Freight'!$D$11:$AC$43,24,FALSE)*HLOOKUP('Intermediate Freight Calcs'!A53,'BCA Values Freight'!$D$11:$AC$43,32,FALSE)+HLOOKUP('Intermediate Freight Calcs'!A53,'BCA Values Freight'!$D$11:$AC$43,25,FALSE)*HLOOKUP('Intermediate Freight Calcs'!A53,'BCA Values Freight'!$D$11:$AC$43,33,FALSE) ->  | F53: =HLOOKUP(A53,'BCA Values Freight'!$D$11:$AD$49,39,FALSE) -> 
A54: 18 | B54: ='Project Information'!$D$23*((HLOOKUP('Intermediate Freight Calcs'!A54,'BCA Values Freight'!$D$11:$AC$43,3,FALSE)*HLOOKUP('Intermediate Freight Calcs'!A54,'BCA Values Freight'!$D$11:$AC$43,28,FALSE))+(HLOOKUP('Intermediate Freight Calcs'!A54,'BCA Values Freight'!$D$11:$AC$43,5,FALSE)*HLOOKUP('Intermediate Freight Calcs'!A54,'BCA Values Freight'!$D$11:$AC$43,29,FALSE))+(HLOOKUP('Intermediate Freight Calcs'!A54,'BCA Values Freight'!$D$11:$AC$43,6,FALSE)*HLOOKUP('Intermediate Freight Calcs'!A54,'BCA Values Freight'!$D$11:$AC$43,30,FALSE))+(HLOOKUP('Intermediate Freight Calcs'!A54,'BCA Values Freight'!$D$11:$AC$43,7,FALSE)*HLOOKUP('Intermediate Freight Calcs'!A54,'BCA Values Freight'!$D$11:$AC$43,31,FALSE))+(HLOOKUP('Intermediate Freight Calcs'!A54,'BCA Values Freight'!$D$11:$AC$43,8,FALSE)*HLOOKUP('Intermediate Freight Calcs'!A54,'BCA Values Freight'!$D$11:$AC$43,32,FALSE))+(HLOOKUP('Intermediate Freight Calcs'!A54,'BCA Values Freight'!$D$11:$AC$43,9,FALSE)*HLOOKUP('Intermediate Freight Calcs'!A54,'BCA Values Freight'!$D$11:$AC$43,33,FALSE)))+'Project Information'!$C$23*((HLOOKUP('Intermediate Freight Calcs'!A54,'BCA Values Freight'!$D$11:$AC$43,12,FALSE)*HLOOKUP('Intermediate Freight Calcs'!A54,'BCA Values Freight'!$D$11:$AC$43,28,FALSE))+(HLOOKUP('Intermediate Freight Calcs'!A54,'BCA Values Freight'!$D$11:$AC$43,14,FALSE)*HLOOKUP('Intermediate Freight Calcs'!A54,'BCA Values Freight'!$D$11:$AC$43,29,FALSE))+(HLOOKUP('Intermediate Freight Calcs'!A54,'BCA Values Freight'!$D$11:$AC$43,15,FALSE)*HLOOKUP('Intermediate Freight Calcs'!A54,'BCA Values Freight'!$D$11:$AC$43,30,FALSE))+(HLOOKUP('Intermediate Freight Calcs'!A54,'BCA Values Freight'!$D$11:$AC$43,16,FALSE)*HLOOKUP('Intermediate Freight Calcs'!A54,'BCA Values Freight'!$D$11:$AC$43,31,FALSE))+(HLOOKUP('Intermediate Freight Calcs'!A54,'BCA Values Freight'!$D$11:$AC$43,17,FALSE)*HLOOKUP('Intermediate Freight Calcs'!A54,'BCA Values Freight'!$D$11:$AC$43,32,FALSE))+(HLOOKUP('Intermediate Freight Calcs'!A54,'BCA Values Freight'!$D$11:$AC$43,18,FALSE)*HLOOKUP('Intermediate Freight Calcs'!A54,'BCA Values Freight'!$D$11:$AC$43,33,FALSE))) ->  | C54: ='Project Information'!$D$23*HLOOKUP(A54,'BCA Values Freight'!$D$11:$AC$49,37,FALSE)+'Project Information'!$C$23*HLOOKUP(A54,'BCA Values Freight'!$D$11:$AC$49,38,FALSE) ->  | D54: =IFERROR((('Railcar and Passenger Demand'!C20/'Project Information'!$C$29)*'Project Information'!$C$31*'Project Information'!$C$29*'Project Information'!$C$28),"") ->  | E54: =HLOOKUP('Intermediate Freight Calcs'!A54,'BCA Values Freight'!$D$11:$AC$43,21,FALSE)*HLOOKUP('Intermediate Freight Calcs'!A54,'BCA Values Freight'!$D$11:$AC$43,28,FALSE)+HLOOKUP('Intermediate Freight Calcs'!A54,'BCA Values Freight'!$D$11:$AC$43,22,FALSE)*HLOOKUP('Intermediate Freight Calcs'!A54,'BCA Values Freight'!$D$11:$AC$43,29,FALSE)+HLOOKUP('Intermediate Freight Calcs'!A54,'BCA Values Freight'!$D$11:$AC$43,23,FALSE)*0.97*HLOOKUP('Intermediate Freight Calcs'!A54,'BCA Values Freight'!$D$11:$AC$43,30,FALSE)+HLOOKUP('Intermediate Freight Calcs'!A54,'BCA Values Freight'!$D$11:$AC$43,23,FALSE)*0.03*HLOOKUP('Intermediate Freight Calcs'!A54,'BCA Values Freight'!$D$11:$AC$43,31,FALSE)+HLOOKUP('Intermediate Freight Calcs'!A54,'BCA Values Freight'!$D$11:$AC$43,24,FALSE)*HLOOKUP('Intermediate Freight Calcs'!A54,'BCA Values Freight'!$D$11:$AC$43,32,FALSE)+HLOOKUP('Intermediate Freight Calcs'!A54,'BCA Values Freight'!$D$11:$AC$43,25,FALSE)*HLOOKUP('Intermediate Freight Calcs'!A54,'BCA Values Freight'!$D$11:$AC$43,33,FALSE) ->  | F54: =HLOOKUP(A54,'BCA Values Freight'!$D$11:$AD$49,39,FALSE) -> 
A55: 19 | B55: ='Project Information'!$D$23*((HLOOKUP('Intermediate Freight Calcs'!A55,'BCA Values Freight'!$D$11:$AC$43,3,FALSE)*HLOOKUP('Intermediate Freight Calcs'!A55,'BCA Values Freight'!$D$11:$AC$43,28,FALSE))+(HLOOKUP('Intermediate Freight Calcs'!A55,'BCA Values Freight'!$D$11:$AC$43,5,FALSE)*HLOOKUP('Intermediate Freight Calcs'!A55,'BCA Values Freight'!$D$11:$AC$43,29,FALSE))+(HLOOKUP('Intermediate Freight Calcs'!A55,'BCA Values Freight'!$D$11:$AC$43,6,FALSE)*HLOOKUP('Intermediate Freight Calcs'!A55,'BCA Values Freight'!$D$11:$AC$43,30,FALSE))+(HLOOKUP('Intermediate Freight Calcs'!A55,'BCA Values Freight'!$D$11:$AC$43,7,FALSE)*HLOOKUP('Intermediate Freight Calcs'!A55,'BCA Values Freight'!$D$11:$AC$43,31,FALSE))+(HLOOKUP('Intermediate Freight Calcs'!A55,'BCA Values Freight'!$D$11:$AC$43,8,FALSE)*HLOOKUP('Intermediate Freight Calcs'!A55,'BCA Values Freight'!$D$11:$AC$43,32,FALSE))+(HLOOKUP('Intermediate Freight Calcs'!A55,'BCA Values Freight'!$D$11:$AC$43,9,FALSE)*HLOOKUP('Intermediate Freight Calcs'!A55,'BCA Values Freight'!$D$11:$AC$43,33,FALSE)))+'Project Information'!$C$23*((HLOOKUP('Intermediate Freight Calcs'!A55,'BCA Values Freight'!$D$11:$AC$43,12,FALSE)*HLOOKUP('Intermediate Freight Calcs'!A55,'BCA Values Freight'!$D$11:$AC$43,28,FALSE))+(HLOOKUP('Intermediate Freight Calcs'!A55,'BCA Values Freight'!$D$11:$AC$43,14,FALSE)*HLOOKUP('Intermediate Freight Calcs'!A55,'BCA Values Freight'!$D$11:$AC$43,29,FALSE))+(HLOOKUP('Intermediate Freight Calcs'!A55,'BCA Values Freight'!$D$11:$AC$43,15,FALSE)*HLOOKUP('Intermediate Freight Calcs'!A55,'BCA Values Freight'!$D$11:$AC$43,30,FALSE))+(HLOOKUP('Intermediate Freight Calcs'!A55,'BCA Values Freight'!$D$11:$AC$43,16,FALSE)*HLOOKUP('Intermediate Freight Calcs'!A55,'BCA Values Freight'!$D$11:$AC$43,31,FALSE))+(HLOOKUP('Intermediate Freight Calcs'!A55,'BCA Values Freight'!$D$11:$AC$43,17,FALSE)*HLOOKUP('Intermediate Freight Calcs'!A55,'BCA Values Freight'!$D$11:$AC$43,32,FALSE))+(HLOOKUP('Intermediate Freight Calcs'!A55,'BCA Values Freight'!$D$11:$AC$43,18,FALSE)*HLOOKUP('Intermediate Freight Calcs'!A55,'BCA Values Freight'!$D$11:$AC$43,33,FALSE))) ->  | C55: ='Project Information'!$D$23*HLOOKUP(A55,'BCA Values Freight'!$D$11:$AC$49,37,FALSE)+'Project Information'!$C$23*HLOOKUP(A55,'BCA Values Freight'!$D$11:$AC$49,38,FALSE) ->  | D55: =IFERROR((('Railcar and Passenger Demand'!C21/'Project Information'!$C$29)*'Project Information'!$C$31*'Project Information'!$C$29*'Project Information'!$C$28),"") ->  | E55: =HLOOKUP('Intermediate Freight Calcs'!A55,'BCA Values Freight'!$D$11:$AC$43,21,FALSE)*HLOOKUP('Intermediate Freight Calcs'!A55,'BCA Values Freight'!$D$11:$AC$43,28,FALSE)+HLOOKUP('Intermediate Freight Calcs'!A55,'BCA Values Freight'!$D$11:$AC$43,22,FALSE)*HLOOKUP('Intermediate Freight Calcs'!A55,'BCA Values Freight'!$D$11:$AC$43,29,FALSE)+HLOOKUP('Intermediate Freight Calcs'!A55,'BCA Values Freight'!$D$11:$AC$43,23,FALSE)*0.97*HLOOKUP('Intermediate Freight Calcs'!A55,'BCA Values Freight'!$D$11:$AC$43,30,FALSE)+HLOOKUP('Intermediate Freight Calcs'!A55,'BCA Values Freight'!$D$11:$AC$43,23,FALSE)*0.03*HLOOKUP('Intermediate Freight Calcs'!A55,'BCA Values Freight'!$D$11:$AC$43,31,FALSE)+HLOOKUP('Intermediate Freight Calcs'!A55,'BCA Values Freight'!$D$11:$AC$43,24,FALSE)*HLOOKUP('Intermediate Freight Calcs'!A55,'BCA Values Freight'!$D$11:$AC$43,32,FALSE)+HLOOKUP('Intermediate Freight Calcs'!A55,'BCA Values Freight'!$D$11:$AC$43,25,FALSE)*HLOOKUP('Intermediate Freight Calcs'!A55,'BCA Values Freight'!$D$11:$AC$43,33,FALSE) ->  | F55: =HLOOKUP(A55,'BCA Values Freight'!$D$11:$AD$49,39,FALSE) -> 
A56: 20 | B56: ='Project Information'!$D$23*((HLOOKUP('Intermediate Freight Calcs'!A56,'BCA Values Freight'!$D$11:$AC$43,3,FALSE)*HLOOKUP('Intermediate Freight Calcs'!A56,'BCA Values Freight'!$D$11:$AC$43,28,FALSE))+(HLOOKUP('Intermediate Freight Calcs'!A56,'BCA Values Freight'!$D$11:$AC$43,5,FALSE)*HLOOKUP('Intermediate Freight Calcs'!A56,'BCA Values Freight'!$D$11:$AC$43,29,FALSE))+(HLOOKUP('Intermediate Freight Calcs'!A56,'BCA Values Freight'!$D$11:$AC$43,6,FALSE)*HLOOKUP('Intermediate Freight Calcs'!A56,'BCA Values Freight'!$D$11:$AC$43,30,FALSE))+(HLOOKUP('Intermediate Freight Calcs'!A56,'BCA Values Freight'!$D$11:$AC$43,7,FALSE)*HLOOKUP('Intermediate Freight Calcs'!A56,'BCA Values Freight'!$D$11:$AC$43,31,FALSE))+(HLOOKUP('Intermediate Freight Calcs'!A56,'BCA Values Freight'!$D$11:$AC$43,8,FALSE)*HLOOKUP('Intermediate Freight Calcs'!A56,'BCA Values Freight'!$D$11:$AC$43,32,FALSE))+(HLOOKUP('Intermediate Freight Calcs'!A56,'BCA Values Freight'!$D$11:$AC$43,9,FALSE)*HLOOKUP('Intermediate Freight Calcs'!A56,'BCA Values Freight'!$D$11:$AC$43,33,FALSE)))+'Project Information'!$C$23*((HLOOKUP('Intermediate Freight Calcs'!A56,'BCA Values Freight'!$D$11:$AC$43,12,FALSE)*HLOOKUP('Intermediate Freight Calcs'!A56,'BCA Values Freight'!$D$11:$AC$43,28,FALSE))+(HLOOKUP('Intermediate Freight Calcs'!A56,'BCA Values Freight'!$D$11:$AC$43,14,FALSE)*HLOOKUP('Intermediate Freight Calcs'!A56,'BCA Values Freight'!$D$11:$AC$43,29,FALSE))+(HLOOKUP('Intermediate Freight Calcs'!A56,'BCA Values Freight'!$D$11:$AC$43,15,FALSE)*HLOOKUP('Intermediate Freight Calcs'!A56,'BCA Values Freight'!$D$11:$AC$43,30,FALSE))+(HLOOKUP('Intermediate Freight Calcs'!A56,'BCA Values Freight'!$D$11:$AC$43,16,FALSE)*HLOOKUP('Intermediate Freight Calcs'!A56,'BCA Values Freight'!$D$11:$AC$43,31,FALSE))+(HLOOKUP('Intermediate Freight Calcs'!A56,'BCA Values Freight'!$D$11:$AC$43,17,FALSE)*HLOOKUP('Intermediate Freight Calcs'!A56,'BCA Values Freight'!$D$11:$AC$43,32,FALSE))+(HLOOKUP('Intermediate Freight Calcs'!A56,'BCA Values Freight'!$D$11:$AC$43,18,FALSE)*HLOOKUP('Intermediate Freight Calcs'!A56,'BCA Values Freight'!$D$11:$AC$43,33,FALSE))) ->  | C56: ='Project Information'!$D$23*HLOOKUP(A56,'BCA Values Freight'!$D$11:$AC$49,37,FALSE)+'Project Information'!$C$23*HLOOKUP(A56,'BCA Values Freight'!$D$11:$AC$49,38,FALSE) ->  | D56: =IFERROR((('Railcar and Passenger Demand'!C22/'Project Information'!$C$29)*'Project Information'!$C$31*'Project Information'!$C$29*'Project Information'!$C$28),"") ->  | E56: =HLOOKUP('Intermediate Freight Calcs'!A56,'BCA Values Freight'!$D$11:$AC$43,21,FALSE)*HLOOKUP('Intermediate Freight Calcs'!A56,'BCA Values Freight'!$D$11:$AC$43,28,FALSE)+HLOOKUP('Intermediate Freight Calcs'!A56,'BCA Values Freight'!$D$11:$AC$43,22,FALSE)*HLOOKUP('Intermediate Freight Calcs'!A56,'BCA Values Freight'!$D$11:$AC$43,29,FALSE)+HLOOKUP('Intermediate Freight Calcs'!A56,'BCA Values Freight'!$D$11:$AC$43,23,FALSE)*0.97*HLOOKUP('Intermediate Freight Calcs'!A56,'BCA Values Freight'!$D$11:$AC$43,30,FALSE)+HLOOKUP('Intermediate Freight Calcs'!A56,'BCA Values Freight'!$D$11:$AC$43,23,FALSE)*0.03*HLOOKUP('Intermediate Freight Calcs'!A56,'BCA Values Freight'!$D$11:$AC$43,31,FALSE)+HLOOKUP('Intermediate Freight Calcs'!A56,'BCA Values Freight'!$D$11:$AC$43,24,FALSE)*HLOOKUP('Intermediate Freight Calcs'!A56,'BCA Values Freight'!$D$11:$AC$43,32,FALSE)+HLOOKUP('Intermediate Freight Calcs'!A56,'BCA Values Freight'!$D$11:$AC$43,25,FALSE)*HLOOKUP('Intermediate Freight Calcs'!A56,'BCA Values Freight'!$D$11:$AC$43,33,FALSE) ->  | F56: =HLOOKUP(A56,'BCA Values Freight'!$D$11:$AD$49,39,FALSE) -> 
A57: 21 | B57: ='Project Information'!$D$23*((HLOOKUP('Intermediate Freight Calcs'!A57,'BCA Values Freight'!$D$11:$AC$43,3,FALSE)*HLOOKUP('Intermediate Freight Calcs'!A57,'BCA Values Freight'!$D$11:$AC$43,28,FALSE))+(HLOOKUP('Intermediate Freight Calcs'!A57,'BCA Values Freight'!$D$11:$AC$43,5,FALSE)*HLOOKUP('Intermediate Freight Calcs'!A57,'BCA Values Freight'!$D$11:$AC$43,29,FALSE))+(HLOOKUP('Intermediate Freight Calcs'!A57,'BCA Values Freight'!$D$11:$AC$43,6,FALSE)*HLOOKUP('Intermediate Freight Calcs'!A57,'BCA Values Freight'!$D$11:$AC$43,30,FALSE))+(HLOOKUP('Intermediate Freight Calcs'!A57,'BCA Values Freight'!$D$11:$AC$43,7,FALSE)*HLOOKUP('Intermediate Freight Calcs'!A57,'BCA Values Freight'!$D$11:$AC$43,31,FALSE))+(HLOOKUP('Intermediate Freight Calcs'!A57,'BCA Values Freight'!$D$11:$AC$43,8,FALSE)*HLOOKUP('Intermediate Freight Calcs'!A57,'BCA Values Freight'!$D$11:$AC$43,32,FALSE))+(HLOOKUP('Intermediate Freight Calcs'!A57,'BCA Values Freight'!$D$11:$AC$43,9,FALSE)*HLOOKUP('Intermediate Freight Calcs'!A57,'BCA Values Freight'!$D$11:$AC$43,33,FALSE)))+'Project Information'!$C$23*((HLOOKUP('Intermediate Freight Calcs'!A57,'BCA Values Freight'!$D$11:$AC$43,12,FALSE)*HLOOKUP('Intermediate Freight Calcs'!A57,'BCA Values Freight'!$D$11:$AC$43,28,FALSE))+(HLOOKUP('Intermediate Freight Calcs'!A57,'BCA Values Freight'!$D$11:$AC$43,14,FALSE)*HLOOKUP('Intermediate Freight Calcs'!A57,'BCA Values Freight'!$D$11:$AC$43,29,FALSE))+(HLOOKUP('Intermediate Freight Calcs'!A57,'BCA Values Freight'!$D$11:$AC$43,15,FALSE)*HLOOKUP('Intermediate Freight Calcs'!A57,'BCA Values Freight'!$D$11:$AC$43,30,FALSE))+(HLOOKUP('Intermediate Freight Calcs'!A57,'BCA Values Freight'!$D$11:$AC$43,16,FALSE)*HLOOKUP('Intermediate Freight Calcs'!A57,'BCA Values Freight'!$D$11:$AC$43,31,FALSE))+(HLOOKUP('Intermediate Freight Calcs'!A57,'BCA Values Freight'!$D$11:$AC$43,17,FALSE)*HLOOKUP('Intermediate Freight Calcs'!A57,'BCA Values Freight'!$D$11:$AC$43,32,FALSE))+(HLOOKUP('Intermediate Freight Calcs'!A57,'BCA Values Freight'!$D$11:$AC$43,18,FALSE)*HLOOKUP('Intermediate Freight Calcs'!A57,'BCA Values Freight'!$D$11:$AC$43,33,FALSE))) ->  | C57: ='Project Information'!$D$23*HLOOKUP(A57,'BCA Values Freight'!$D$11:$AC$49,37,FALSE)+'Project Information'!$C$23*HLOOKUP(A57,'BCA Values Freight'!$D$11:$AC$49,38,FALSE) ->  | D57: =IFERROR((('Railcar and Passenger Demand'!C23/'Project Information'!$C$29)*'Project Information'!$C$31*'Project Information'!$C$29*'Project Information'!$C$28),"") ->  | E57: =HLOOKUP('Intermediate Freight Calcs'!A57,'BCA Values Freight'!$D$11:$AC$43,21,FALSE)*HLOOKUP('Intermediate Freight Calcs'!A57,'BCA Values Freight'!$D$11:$AC$43,28,FALSE)+HLOOKUP('Intermediate Freight Calcs'!A57,'BCA Values Freight'!$D$11:$AC$43,22,FALSE)*HLOOKUP('Intermediate Freight Calcs'!A57,'BCA Values Freight'!$D$11:$AC$43,29,FALSE)+HLOOKUP('Intermediate Freight Calcs'!A57,'BCA Values Freight'!$D$11:$AC$43,23,FALSE)*0.97*HLOOKUP('Intermediate Freight Calcs'!A57,'BCA Values Freight'!$D$11:$AC$43,30,FALSE)+HLOOKUP('Intermediate Freight Calcs'!A57,'BCA Values Freight'!$D$11:$AC$43,23,FALSE)*0.03*HLOOKUP('Intermediate Freight Calcs'!A57,'BCA Values Freight'!$D$11:$AC$43,31,FALSE)+HLOOKUP('Intermediate Freight Calcs'!A57,'BCA Values Freight'!$D$11:$AC$43,24,FALSE)*HLOOKUP('Intermediate Freight Calcs'!A57,'BCA Values Freight'!$D$11:$AC$43,32,FALSE)+HLOOKUP('Intermediate Freight Calcs'!A57,'BCA Values Freight'!$D$11:$AC$43,25,FALSE)*HLOOKUP('Intermediate Freight Calcs'!A57,'BCA Values Freight'!$D$11:$AC$43,33,FALSE) ->  | F57: =HLOOKUP(A57,'BCA Values Freight'!$D$11:$AD$49,39,FALSE) -> 
A58: 22 | B58: ='Project Information'!$D$23*((HLOOKUP('Intermediate Freight Calcs'!A58,'BCA Values Freight'!$D$11:$AC$43,3,FALSE)*HLOOKUP('Intermediate Freight Calcs'!A58,'BCA Values Freight'!$D$11:$AC$43,28,FALSE))+(HLOOKUP('Intermediate Freight Calcs'!A58,'BCA Values Freight'!$D$11:$AC$43,5,FALSE)*HLOOKUP('Intermediate Freight Calcs'!A58,'BCA Values Freight'!$D$11:$AC$43,29,FALSE))+(HLOOKUP('Intermediate Freight Calcs'!A58,'BCA Values Freight'!$D$11:$AC$43,6,FALSE)*HLOOKUP('Intermediate Freight Calcs'!A58,'BCA Values Freight'!$D$11:$AC$43,30,FALSE))+(HLOOKUP('Intermediate Freight Calcs'!A58,'BCA Values Freight'!$D$11:$AC$43,7,FALSE)*HLOOKUP('Intermediate Freight Calcs'!A58,'BCA Values Freight'!$D$11:$AC$43,31,FALSE))+(HLOOKUP('Intermediate Freight Calcs'!A58,'BCA Values Freight'!$D$11:$AC$43,8,FALSE)*HLOOKUP('Intermediate Freight Calcs'!A58,'BCA Values Freight'!$D$11:$AC$43,32,FALSE))+(HLOOKUP('Intermediate Freight Calcs'!A58,'BCA Values Freight'!$D$11:$AC$43,9,FALSE)*HLOOKUP('Intermediate Freight Calcs'!A58,'BCA Values Freight'!$D$11:$AC$43,33,FALSE)))+'Project Information'!$C$23*((HLOOKUP('Intermediate Freight Calcs'!A58,'BCA Values Freight'!$D$11:$AC$43,12,FALSE)*HLOOKUP('Intermediate Freight Calcs'!A58,'BCA Values Freight'!$D$11:$AC$43,28,FALSE))+(HLOOKUP('Intermediate Freight Calcs'!A58,'BCA Values Freight'!$D$11:$AC$43,14,FALSE)*HLOOKUP('Intermediate Freight Calcs'!A58,'BCA Values Freight'!$D$11:$AC$43,29,FALSE))+(HLOOKUP('Intermediate Freight Calcs'!A58,'BCA Values Freight'!$D$11:$AC$43,15,FALSE)*HLOOKUP('Intermediate Freight Calcs'!A58,'BCA Values Freight'!$D$11:$AC$43,30,FALSE))+(HLOOKUP('Intermediate Freight Calcs'!A58,'BCA Values Freight'!$D$11:$AC$43,16,FALSE)*HLOOKUP('Intermediate Freight Calcs'!A58,'BCA Values Freight'!$D$11:$AC$43,31,FALSE))+(HLOOKUP('Intermediate Freight Calcs'!A58,'BCA Values Freight'!$D$11:$AC$43,17,FALSE)*HLOOKUP('Intermediate Freight Calcs'!A58,'BCA Values Freight'!$D$11:$AC$43,32,FALSE))+(HLOOKUP('Intermediate Freight Calcs'!A58,'BCA Values Freight'!$D$11:$AC$43,18,FALSE)*HLOOKUP('Intermediate Freight Calcs'!A58,'BCA Values Freight'!$D$11:$AC$43,33,FALSE))) ->  | C58: ='Project Information'!$D$23*HLOOKUP(A58,'BCA Values Freight'!$D$11:$AC$49,37,FALSE)+'Project Information'!$C$23*HLOOKUP(A58,'BCA Values Freight'!$D$11:$AC$49,38,FALSE) ->  | D58: =IFERROR((('Railcar and Passenger Demand'!C24/'Project Information'!$C$29)*'Project Information'!$C$31*'Project Information'!$C$29*'Project Information'!$C$28),"") ->  | E58: =HLOOKUP('Intermediate Freight Calcs'!A58,'BCA Values Freight'!$D$11:$AC$43,21,FALSE)*HLOOKUP('Intermediate Freight Calcs'!A58,'BCA Values Freight'!$D$11:$AC$43,28,FALSE)+HLOOKUP('Intermediate Freight Calcs'!A58,'BCA Values Freight'!$D$11:$AC$43,22,FALSE)*HLOOKUP('Intermediate Freight Calcs'!A58,'BCA Values Freight'!$D$11:$AC$43,29,FALSE)+HLOOKUP('Intermediate Freight Calcs'!A58,'BCA Values Freight'!$D$11:$AC$43,23,FALSE)*0.97*HLOOKUP('Intermediate Freight Calcs'!A58,'BCA Values Freight'!$D$11:$AC$43,30,FALSE)+HLOOKUP('Intermediate Freight Calcs'!A58,'BCA Values Freight'!$D$11:$AC$43,23,FALSE)*0.03*HLOOKUP('Intermediate Freight Calcs'!A58,'BCA Values Freight'!$D$11:$AC$43,31,FALSE)+HLOOKUP('Intermediate Freight Calcs'!A58,'BCA Values Freight'!$D$11:$AC$43,24,FALSE)*HLOOKUP('Intermediate Freight Calcs'!A58,'BCA Values Freight'!$D$11:$AC$43,32,FALSE)+HLOOKUP('Intermediate Freight Calcs'!A58,'BCA Values Freight'!$D$11:$AC$43,25,FALSE)*HLOOKUP('Intermediate Freight Calcs'!A58,'BCA Values Freight'!$D$11:$AC$43,33,FALSE) ->  | F58: =HLOOKUP(A58,'BCA Values Freight'!$D$11:$AD$49,39,FALSE) -> 
A59: 23 | B59: ='Project Information'!$D$23*((HLOOKUP('Intermediate Freight Calcs'!A59,'BCA Values Freight'!$D$11:$AC$43,3,FALSE)*HLOOKUP('Intermediate Freight Calcs'!A59,'BCA Values Freight'!$D$11:$AC$43,28,FALSE))+(HLOOKUP('Intermediate Freight Calcs'!A59,'BCA Values Freight'!$D$11:$AC$43,5,FALSE)*HLOOKUP('Intermediate Freight Calcs'!A59,'BCA Values Freight'!$D$11:$AC$43,29,FALSE))+(HLOOKUP('Intermediate Freight Calcs'!A59,'BCA Values Freight'!$D$11:$AC$43,6,FALSE)*HLOOKUP('Intermediate Freight Calcs'!A59,'BCA Values Freight'!$D$11:$AC$43,30,FALSE))+(HLOOKUP('Intermediate Freight Calcs'!A59,'BCA Values Freight'!$D$11:$AC$43,7,FALSE)*HLOOKUP('Intermediate Freight Calcs'!A59,'BCA Values Freight'!$D$11:$AC$43,31,FALSE))+(HLOOKUP('Intermediate Freight Calcs'!A59,'BCA Values Freight'!$D$11:$AC$43,8,FALSE)*HLOOKUP('Intermediate Freight Calcs'!A59,'BCA Values Freight'!$D$11:$AC$43,32,FALSE))+(HLOOKUP('Intermediate Freight Calcs'!A59,'BCA Values Freight'!$D$11:$AC$43,9,FALSE)*HLOOKUP('Intermediate Freight Calcs'!A59,'BCA Values Freight'!$D$11:$AC$43,33,FALSE)))+'Project Information'!$C$23*((HLOOKUP('Intermediate Freight Calcs'!A59,'BCA Values Freight'!$D$11:$AC$43,12,FALSE)*HLOOKUP('Intermediate Freight Calcs'!A59,'BCA Values Freight'!$D$11:$AC$43,28,FALSE))+(HLOOKUP('Intermediate Freight Calcs'!A59,'BCA Values Freight'!$D$11:$AC$43,14,FALSE)*HLOOKUP('Intermediate Freight Calcs'!A59,'BCA Values Freight'!$D$11:$AC$43,29,FALSE))+(HLOOKUP('Intermediate Freight Calcs'!A59,'BCA Values Freight'!$D$11:$AC$43,15,FALSE)*HLOOKUP('Intermediate Freight Calcs'!A59,'BCA Values Freight'!$D$11:$AC$43,30,FALSE))+(HLOOKUP('Intermediate Freight Calcs'!A59,'BCA Values Freight'!$D$11:$AC$43,16,FALSE)*HLOOKUP('Intermediate Freight Calcs'!A59,'BCA Values Freight'!$D$11:$AC$43,31,FALSE))+(HLOOKUP('Intermediate Freight Calcs'!A59,'BCA Values Freight'!$D$11:$AC$43,17,FALSE)*HLOOKUP('Intermediate Freight Calcs'!A59,'BCA Values Freight'!$D$11:$AC$43,32,FALSE))+(HLOOKUP('Intermediate Freight Calcs'!A59,'BCA Values Freight'!$D$11:$AC$43,18,FALSE)*HLOOKUP('Intermediate Freight Calcs'!A59,'BCA Values Freight'!$D$11:$AC$43,33,FALSE))) ->  | C59: ='Project Information'!$D$23*HLOOKUP(A59,'BCA Values Freight'!$D$11:$AC$49,37,FALSE)+'Project Information'!$C$23*HLOOKUP(A59,'BCA Values Freight'!$D$11:$AC$49,38,FALSE) ->  | D59: =IFERROR((('Railcar and Passenger Demand'!C25/'Project Information'!$C$29)*'Project Information'!$C$31*'Project Information'!$C$29*'Project Information'!$C$28),"") ->  | E59: =HLOOKUP('Intermediate Freight Calcs'!A59,'BCA Values Freight'!$D$11:$AC$43,21,FALSE)*HLOOKUP('Intermediate Freight Calcs'!A59,'BCA Values Freight'!$D$11:$AC$43,28,FALSE)+HLOOKUP('Intermediate Freight Calcs'!A59,'BCA Values Freight'!$D$11:$AC$43,22,FALSE)*HLOOKUP('Intermediate Freight Calcs'!A59,'BCA Values Freight'!$D$11:$AC$43,29,FALSE)+HLOOKUP('Intermediate Freight Calcs'!A59,'BCA Values Freight'!$D$11:$AC$43,23,FALSE)*0.97*HLOOKUP('Intermediate Freight Calcs'!A59,'BCA Values Freight'!$D$11:$AC$43,30,FALSE)+HLOOKUP('Intermediate Freight Calcs'!A59,'BCA Values Freight'!$D$11:$AC$43,23,FALSE)*0.03*HLOOKUP('Intermediate Freight Calcs'!A59,'BCA Values Freight'!$D$11:$AC$43,31,FALSE)+HLOOKUP('Intermediate Freight Calcs'!A59,'BCA Values Freight'!$D$11:$AC$43,24,FALSE)*HLOOKUP('Intermediate Freight Calcs'!A59,'BCA Values Freight'!$D$11:$AC$43,32,FALSE)+HLOOKUP('Intermediate Freight Calcs'!A59,'BCA Values Freight'!$D$11:$AC$43,25,FALSE)*HLOOKUP('Intermediate Freight Calcs'!A59,'BCA Values Freight'!$D$11:$AC$43,33,FALSE) ->  | F59: =HLOOKUP(A59,'BCA Values Freight'!$D$11:$AD$49,39,FALSE) -> 
A60: 24 | B60: ='Project Information'!$D$23*((HLOOKUP('Intermediate Freight Calcs'!A60,'BCA Values Freight'!$D$11:$AC$43,3,FALSE)*HLOOKUP('Intermediate Freight Calcs'!A60,'BCA Values Freight'!$D$11:$AC$43,28,FALSE))+(HLOOKUP('Intermediate Freight Calcs'!A60,'BCA Values Freight'!$D$11:$AC$43,5,FALSE)*HLOOKUP('Intermediate Freight Calcs'!A60,'BCA Values Freight'!$D$11:$AC$43,29,FALSE))+(HLOOKUP('Intermediate Freight Calcs'!A60,'BCA Values Freight'!$D$11:$AC$43,6,FALSE)*HLOOKUP('Intermediate Freight Calcs'!A60,'BCA Values Freight'!$D$11:$AC$43,30,FALSE))+(HLOOKUP('Intermediate Freight Calcs'!A60,'BCA Values Freight'!$D$11:$AC$43,7,FALSE)*HLOOKUP('Intermediate Freight Calcs'!A60,'BCA Values Freight'!$D$11:$AC$43,31,FALSE))+(HLOOKUP('Intermediate Freight Calcs'!A60,'BCA Values Freight'!$D$11:$AC$43,8,FALSE)*HLOOKUP('Intermediate Freight Calcs'!A60,'BCA Values Freight'!$D$11:$AC$43,32,FALSE))+(HLOOKUP('Intermediate Freight Calcs'!A60,'BCA Values Freight'!$D$11:$AC$43,9,FALSE)*HLOOKUP('Intermediate Freight Calcs'!A60,'BCA Values Freight'!$D$11:$AC$43,33,FALSE)))+'Project Information'!$C$23*((HLOOKUP('Intermediate Freight Calcs'!A60,'BCA Values Freight'!$D$11:$AC$43,12,FALSE)*HLOOKUP('Intermediate Freight Calcs'!A60,'BCA Values Freight'!$D$11:$AC$43,28,FALSE))+(HLOOKUP('Intermediate Freight Calcs'!A60,'BCA Values Freight'!$D$11:$AC$43,14,FALSE)*HLOOKUP('Intermediate Freight Calcs'!A60,'BCA Values Freight'!$D$11:$AC$43,29,FALSE))+(HLOOKUP('Intermediate Freight Calcs'!A60,'BCA Values Freight'!$D$11:$AC$43,15,FALSE)*HLOOKUP('Intermediate Freight Calcs'!A60,'BCA Values Freight'!$D$11:$AC$43,30,FALSE))+(HLOOKUP('Intermediate Freight Calcs'!A60,'BCA Values Freight'!$D$11:$AC$43,16,FALSE)*HLOOKUP('Intermediate Freight Calcs'!A60,'BCA Values Freight'!$D$11:$AC$43,31,FALSE))+(HLOOKUP('Intermediate Freight Calcs'!A60,'BCA Values Freight'!$D$11:$AC$43,17,FALSE)*HLOOKUP('Intermediate Freight Calcs'!A60,'BCA Values Freight'!$D$11:$AC$43,32,FALSE))+(HLOOKUP('Intermediate Freight Calcs'!A60,'BCA Values Freight'!$D$11:$AC$43,18,FALSE)*HLOOKUP('Intermediate Freight Calcs'!A60,'BCA Values Freight'!$D$11:$AC$43,33,FALSE))) ->  | C60: ='Project Information'!$D$23*HLOOKUP(A60,'BCA Values Freight'!$D$11:$AC$49,37,FALSE)+'Project Information'!$C$23*HLOOKUP(A60,'BCA Values Freight'!$D$11:$AC$49,38,FALSE) ->  | D60: =IFERROR((('Railcar and Passenger Demand'!C26/'Project Information'!$C$29)*'Project Information'!$C$31*'Project Information'!$C$29*'Project Information'!$C$28),"") ->  | E60: =HLOOKUP('Intermediate Freight Calcs'!A60,'BCA Values Freight'!$D$11:$AC$43,21,FALSE)*HLOOKUP('Intermediate Freight Calcs'!A60,'BCA Values Freight'!$D$11:$AC$43,28,FALSE)+HLOOKUP('Intermediate Freight Calcs'!A60,'BCA Values Freight'!$D$11:$AC$43,22,FALSE)*HLOOKUP('Intermediate Freight Calcs'!A60,'BCA Values Freight'!$D$11:$AC$43,29,FALSE)+HLOOKUP('Intermediate Freight Calcs'!A60,'BCA Values Freight'!$D$11:$AC$43,23,FALSE)*0.97*HLOOKUP('Intermediate Freight Calcs'!A60,'BCA Values Freight'!$D$11:$AC$43,30,FALSE)+HLOOKUP('Intermediate Freight Calcs'!A60,'BCA Values Freight'!$D$11:$AC$43,23,FALSE)*0.03*HLOOKUP('Intermediate Freight Calcs'!A60,'BCA Values Freight'!$D$11:$AC$43,31,FALSE)+HLOOKUP('Intermediate Freight Calcs'!A60,'BCA Values Freight'!$D$11:$AC$43,24,FALSE)*HLOOKUP('Intermediate Freight Calcs'!A60,'BCA Values Freight'!$D$11:$AC$43,32,FALSE)+HLOOKUP('Intermediate Freight Calcs'!A60,'BCA Values Freight'!$D$11:$AC$43,25,FALSE)*HLOOKUP('Intermediate Freight Calcs'!A60,'BCA Values Freight'!$D$11:$AC$43,33,FALSE) ->  | F60: =HLOOKUP(A60,'BCA Values Freight'!$D$11:$AD$49,39,FALSE) -> 
B63: Shipping Cost | E63: Pavement Maintenance
B64: Truck Shipping | C64: Train Shipping | E64: Pavement Maintenance
B65: Truck Shipping Rate per VMT | C65: Shipping Cost per train-ton mile | E65: Pavement Maintenance Cost per truck mile
B66: Rate to ship one freight truck one mile. | C66: Rate to ship one ton one mile by freight train. | E66: Cost realized per mile driven by a truck for pavement maintenance.
A67: Year | B67: Value Lookup (by year) | C67: Value Lookup (by year) | E67: Value Lookup (by year)
A68: =A36 -> 0 | B68: =IF(A68="No Values Available","No Values",HLOOKUP(A68,'BCA Values Freight'!$D$54:$AC$59,5,FALSE)) ->  | C68: =IF(A68="No Values Available","No Values",HLOOKUP(A68,'BCA Values Freight'!$D$54:$AC$59,6,FALSE)) ->  | E68: =IF(A68="No Values Available","No Values",'Project Information'!$D$23*HLOOKUP(A68,'BCA Values Freight'!$D$64:$AC$68,4,FALSE)+'Project Information'!$C$23*HLOOKUP(A68,'BCA Values Freight'!$D$64:$AC$68,5,FALSE)) -> 
A69: 1 | B69: =IF(A69="No Values Available","No Values",HLOOKUP(A69,'BCA Values Freight'!$D$54:$AC$59,5,FALSE)) ->  | C69: =IF(A69="No Values Available","No Values",HLOOKUP(A69,'BCA Values Freight'!$D$54:$AC$59,6,FALSE)) ->  | E69: =IF(A69="No Values Available","No Values",'Project Information'!$D$23*HLOOKUP(A69,'BCA Values Freight'!$D$64:$AC$68,4,FALSE)+'Project Information'!$C$23*HLOOKUP(A69,'BCA Values Freight'!$D$64:$AC$68,5,FALSE)) -> 
A70: 2 | B70: =IF(A70="No Values Available","No Values",HLOOKUP(A70,'BCA Values Freight'!$D$54:$AC$59,5,FALSE)) ->  | C70: =IF(A70="No Values Available","No Values",HLOOKUP(A70,'BCA Values Freight'!$D$54:$AC$59,6,FALSE)) ->  | E70: =IF(A70="No Values Available","No Values",'Project Information'!$D$23*HLOOKUP(A70,'BCA Values Freight'!$D$64:$AC$68,4,FALSE)+'Project Information'!$C$23*HLOOKUP(A70,'BCA Values Freight'!$D$64:$AC$68,5,FALSE)) -> 
A71: 3 | B71: =IF(A71="No Values Available","No Values",HLOOKUP(A71,'BCA Values Freight'!$D$54:$AC$59,5,FALSE)) ->  | C71: =IF(A71="No Values Available","No Values",HLOOKUP(A71,'BCA Values Freight'!$D$54:$AC$59,6,FALSE)) ->  | E71: =IF(A71="No Values Available","No Values",'Project Information'!$D$23*HLOOKUP(A71,'BCA Values Freight'!$D$64:$AC$68,4,FALSE)+'Project Information'!$C$23*HLOOKUP(A71,'BCA Values Freight'!$D$64:$AC$68,5,FALSE)) -> 
A72: 4 | B72: =IF(A72="No Values Available","No Values",HLOOKUP(A72,'BCA Values Freight'!$D$54:$AC$59,5,FALSE)) ->  | C72: =IF(A72="No Values Available","No Values",HLOOKUP(A72,'BCA Values Freight'!$D$54:$AC$59,6,FALSE)) ->  | E72: =IF(A72="No Values Available","No Values",'Project Information'!$D$23*HLOOKUP(A72,'BCA Values Freight'!$D$64:$AC$68,4,FALSE)+'Project Information'!$C$23*HLOOKUP(A72,'BCA Values Freight'!$D$64:$AC$68,5,FALSE)) -> 
A73: 5 | B73: =IF(A73="No Values Available","No Values",HLOOKUP(A73,'BCA Values Freight'!$D$54:$AC$59,5,FALSE)) ->  | C73: =IF(A73="No Values Available","No Values",HLOOKUP(A73,'BCA Values Freight'!$D$54:$AC$59,6,FALSE)) ->  | E73: =IF(A73="No Values Available","No Values",'Project Information'!$D$23*HLOOKUP(A73,'BCA Values Freight'!$D$64:$AC$68,4,FALSE)+'Project Information'!$C$23*HLOOKUP(A73,'BCA Values Freight'!$D$64:$AC$68,5,FALSE)) -> 
A74: 6 | B74: =IF(A74="No Values Available","No Values",HLOOKUP(A74,'BCA Values Freight'!$D$54:$AC$59,5,FALSE)) ->  | C74: =IF(A74="No Values Available","No Values",HLOOKUP(A74,'BCA Values Freight'!$D$54:$AC$59,6,FALSE)) ->  | E74: =IF(A74="No Values Available","No Values",'Project Information'!$D$23*HLOOKUP(A74,'BCA Values Freight'!$D$64:$AC$68,4,FALSE)+'Project Information'!$C$23*HLOOKUP(A74,'BCA Values Freight'!$D$64:$AC$68,5,FALSE)) -> 
A75: 7 | B75: =IF(A75="No Values Available","No Values",HLOOKUP(A75,'BCA Values Freight'!$D$54:$AC$59,5,FALSE)) ->  | C75: =IF(A75="No Values Available","No Values",HLOOKUP(A75,'BCA Values Freight'!$D$54:$AC$59,6,FALSE)) ->  | E75: =IF(A75="No Values Available","No Values",'Project Information'!$D$23*HLOOKUP(A75,'BCA Values Freight'!$D$64:$AC$68,4,FALSE)+'Project Information'!$C$23*HLOOKUP(A75,'BCA Values Freight'!$D$64:$AC$68,5,FALSE)) -> 
A76: 8 | B76: =IF(A76="No Values Available","No Values",HLOOKUP(A76,'BCA Values Freight'!$D$54:$AC$59,5,FALSE)) ->  | C76: =IF(A76="No Values Available","No Values",HLOOKUP(A76,'BCA Values Freight'!$D$54:$AC$59,6,FALSE)) ->  | E76: =IF(A76="No Values Available","No Values",'Project Information'!$D$23*HLOOKUP(A76,'BCA Values Freight'!$D$64:$AC$68,4,FALSE)+'Project Information'!$C$23*HLOOKUP(A76,'BCA Values Freight'!$D$64:$AC$68,5,FALSE)) -> 
A77: 9 | B77: =IF(A77="No Values Available","No Values",HLOOKUP(A77,'BCA Values Freight'!$D$54:$AC$59,5,FALSE)) ->  | C77: =IF(A77="No Values Available","No Values",HLOOKUP(A77,'BCA Values Freight'!$D$54:$AC$59,6,FALSE)) ->  | E77: =IF(A77="No Values Available","No Values",'Project Information'!$D$23*HLOOKUP(A77,'BCA Values Freight'!$D$64:$AC$68,4,FALSE)+'Project Information'!$C$23*HLOOKUP(A77,'BCA Values Freight'!$D$64:$AC$68,5,FALSE)) -> 
A78: 10 | B78: =IF(A78="No Values Available","No Values",HLOOKUP(A78,'BCA Values Freight'!$D$54:$AC$59,5,FALSE)) ->  | C78: =IF(A78="No Values Available","No Values",HLOOKUP(A78,'BCA Values Freight'!$D$54:$AC$59,6,FALSE)) ->  | E78: =IF(A78="No Values Available","No Values",'Project Information'!$D$23*HLOOKUP(A78,'BCA Values Freight'!$D$64:$AC$68,4,FALSE)+'Project Information'!$C$23*HLOOKUP(A78,'BCA Values Freight'!$D$64:$AC$68,5,FALSE)) -> 
A79: 11 | B79: =IF(A79="No Values Available","No Values",HLOOKUP(A79,'BCA Values Freight'!$D$54:$AC$59,5,FALSE)) ->  | C79: =IF(A79="No Values Available","No Values",HLOOKUP(A79,'BCA Values Freight'!$D$54:$AC$59,6,FALSE)) ->  | E79: =IF(A79="No Values Available","No Values",'Project Information'!$D$23*HLOOKUP(A79,'BCA Values Freight'!$D$64:$AC$68,4,FALSE)+'Project Information'!$C$23*HLOOKUP(A79,'BCA Values Freight'!$D$64:$AC$68,5,FALSE)) -> 
A80: 12 | B80: =IF(A80="No Values Available","No Values",HLOOKUP(A80,'BCA Values Freight'!$D$54:$AC$59,5,FALSE)) ->  | C80: =IF(A80="No Values Available","No Values",HLOOKUP(A80,'BCA Values Freight'!$D$54:$AC$59,6,FALSE)) ->  | E80: =IF(A80="No Values Available","No Values",'Project Information'!$D$23*HLOOKUP(A80,'BCA Values Freight'!$D$64:$AC$68,4,FALSE)+'Project Information'!$C$23*HLOOKUP(A80,'BCA Values Freight'!$D$64:$AC$68,5,FALSE)) -> 
A81: 13 | B81: =IF(A81="No Values Available","No Values",HLOOKUP(A81,'BCA Values Freight'!$D$54:$AC$59,5,FALSE)) ->  | C81: =IF(A81="No Values Available","No Values",HLOOKUP(A81,'BCA Values Freight'!$D$54:$AC$59,6,FALSE)) ->  | E81: =IF(A81="No Values Available","No Values",'Project Information'!$D$23*HLOOKUP(A81,'BCA Values Freight'!$D$64:$AC$68,4,FALSE)+'Project Information'!$C$23*HLOOKUP(A81,'BCA Values Freight'!$D$64:$AC$68,5,FALSE)) -> 
A82: 14 | B82: =IF(A82="No Values Available","No Values",HLOOKUP(A82,'BCA Values Freight'!$D$54:$AC$59,5,FALSE)) ->  | C82: =IF(A82="No Values Available","No Values",HLOOKUP(A82,'BCA Values Freight'!$D$54:$AC$59,6,FALSE)) ->  | E82: =IF(A82="No Values Available","No Values",'Project Information'!$D$23*HLOOKUP(A82,'BCA Values Freight'!$D$64:$AC$68,4,FALSE)+'Project Information'!$C$23*HLOOKUP(A82,'BCA Values Freight'!$D$64:$AC$68,5,FALSE)) -> 
A83: 15 | B83: =IF(A83="No Values Available","No Values",HLOOKUP(A83,'BCA Values Freight'!$D$54:$AC$59,5,FALSE)) ->  | C83: =IF(A83="No Values Available","No Values",HLOOKUP(A83,'BCA Values Freight'!$D$54:$AC$59,6,FALSE)) ->  | E83: =IF(A83="No Values Available","No Values",'Project Information'!$D$23*HLOOKUP(A83,'BCA Values Freight'!$D$64:$AC$68,4,FALSE)+'Project Information'!$C$23*HLOOKUP(A83,'BCA Values Freight'!$D$64:$AC$68,5,FALSE)) -> 
A84: 16 | B84: =IF(A84="No Values Available","No Values",HLOOKUP(A84,'BCA Values Freight'!$D$54:$AC$59,5,FALSE)) ->  | C84: =IF(A84="No Values Available","No Values",HLOOKUP(A84,'BCA Values Freight'!$D$54:$AC$59,6,FALSE)) ->  | E84: =IF(A84="No Values Available","No Values",'Project Information'!$D$23*HLOOKUP(A84,'BCA Values Freight'!$D$64:$AC$68,4,FALSE)+'Project Information'!$C$23*HLOOKUP(A84,'BCA Values Freight'!$D$64:$AC$68,5,FALSE)) -> 
A85: 17 | B85: =IF(A85="No Values Available","No Values",HLOOKUP(A85,'BCA Values Freight'!$D$54:$AC$59,5,FALSE)) ->  | C85: =IF(A85="No Values Available","No Values",HLOOKUP(A85,'BCA Values Freight'!$D$54:$AC$59,6,FALSE)) ->  | E85: =IF(A85="No Values Available","No Values",'Project Information'!$D$23*HLOOKUP(A85,'BCA Values Freight'!$D$64:$AC$68,4,FALSE)+'Project Information'!$C$23*HLOOKUP(A85,'BCA Values Freight'!$D$64:$AC$68,5,FALSE)) -> 
A86: 18 | B86: =IF(A86="No Values Available","No Values",HLOOKUP(A86,'BCA Values Freight'!$D$54:$AC$59,5,FALSE)) ->  | C86: =IF(A86="No Values Available","No Values",HLOOKUP(A86,'BCA Values Freight'!$D$54:$AC$59,6,FALSE)) ->  | E86: =IF(A86="No Values Available","No Values",'Project Information'!$D$23*HLOOKUP(A86,'BCA Values Freight'!$D$64:$AC$68,4,FALSE)+'Project Information'!$C$23*HLOOKUP(A86,'BCA Values Freight'!$D$64:$AC$68,5,FALSE)) -> 
A87: 19 | B87: =IF(A87="No Values Available","No Values",HLOOKUP(A87,'BCA Values Freight'!$D$54:$AC$59,5,FALSE)) ->  | C87: =IF(A87="No Values Available","No Values",HLOOKUP(A87,'BCA Values Freight'!$D$54:$AC$59,6,FALSE)) ->  | E87: =IF(A87="No Values Available","No Values",'Project Information'!$D$23*HLOOKUP(A87,'BCA Values Freight'!$D$64:$AC$68,4,FALSE)+'Project Information'!$C$23*HLOOKUP(A87,'BCA Values Freight'!$D$64:$AC$68,5,FALSE)) -> 
A88: 20 | B88: =IF(A88="No Values Available","No Values",HLOOKUP(A88,'BCA Values Freight'!$D$54:$AC$59,5,FALSE)) ->  | C88: =IF(A88="No Values Available","No Values",HLOOKUP(A88,'BCA Values Freight'!$D$54:$AC$59,6,FALSE)) ->  | E88: =IF(A88="No Values Available","No Values",'Project Information'!$D$23*HLOOKUP(A88,'BCA Values Freight'!$D$64:$AC$68,4,FALSE)+'Project Information'!$C$23*HLOOKUP(A88,'BCA Values Freight'!$D$64:$AC$68,5,FALSE)) -> 
A89: 21 | B89: =IF(A89="No Values Available","No Values",HLOOKUP(A89,'BCA Values Freight'!$D$54:$AC$59,5,FALSE)) ->  | C89: =IF(A89="No Values Available","No Values",HLOOKUP(A89,'BCA Values Freight'!$D$54:$AC$59,6,FALSE)) ->  | E89: =IF(A89="No Values Available","No Values",'Project Information'!$D$23*HLOOKUP(A89,'BCA Values Freight'!$D$64:$AC$68,4,FALSE)+'Project Information'!$C$23*HLOOKUP(A89,'BCA Values Freight'!$D$64:$AC$68,5,FALSE)) -> 
A90: 22 | B90: =IF(A90="No Values Available","No Values",HLOOKUP(A90,'BCA Values Freight'!$D$54:$AC$59,5,FALSE)) ->  | C90: =IF(A90="No Values Available","No Values",HLOOKUP(A90,'BCA Values Freight'!$D$54:$AC$59,6,FALSE)) ->  | E90: =IF(A90="No Values Available","No Values",'Project Information'!$D$23*HLOOKUP(A90,'BCA Values Freight'!$D$64:$AC$68,4,FALSE)+'Project Information'!$C$23*HLOOKUP(A90,'BCA Values Freight'!$D$64:$AC$68,5,FALSE)) -> 
A91: 23 | B91: =IF(A91="No Values Available","No Values",HLOOKUP(A91,'BCA Values Freight'!$D$54:$AC$59,5,FALSE)) ->  | C91: =IF(A91="No Values Available","No Values",HLOOKUP(A91,'BCA Values Freight'!$D$54:$AC$59,6,FALSE)) ->  | E91: =IF(A91="No Values Available","No Values",'Project Information'!$D$23*HLOOKUP(A91,'BCA Values Freight'!$D$64:$AC$68,4,FALSE)+'Project Information'!$C$23*HLOOKUP(A91,'BCA Values Freight'!$D$64:$AC$68,5,FALSE)) -> 
A92: 24 | B92: =IF(A92="No Values Available","No Values",HLOOKUP(A92,'BCA Values Freight'!$D$54:$AC$59,5,FALSE)) ->  | C92: =IF(A92="No Values Available","No Values",HLOOKUP(A92,'BCA Values Freight'!$D$54:$AC$59,6,FALSE)) ->  | E92: =IF(A92="No Values Available","No Values",'Project Information'!$D$23*HLOOKUP(A92,'BCA Values Freight'!$D$64:$AC$68,4,FALSE)+'Project Information'!$C$23*HLOOKUP(A92,'BCA Values Freight'!$D$64:$AC$68,5,FALSE)) -> 
B94: Reduced Accident Costs
B95: Truck Accident Cost | D95: Train Accident Cost | F95: Crossing Savings
B96: Truck Ton-Miles | C96: Accident Cost per Truck Ton-Mile | D96: Train Ton Miles | E96: Accident Cost per Train Ton-Mile | F96: Accident cost per rail crossing
B97: The number of truck ton-miles | C97: The cost per truck mile traveled of having an accident. | D97: The number of additional ton-miles of freight service added due to the construction of the project. | E97: The cost per train mile traveled of having an accident. | F97: The cost per rail crossing of having an accident. This value can be realized for each rail crossing removed by completion of project.
A98: Year | B98: Truck VMT * Tons per truck, by year | C98: Lookup Value, by year | D98: (Additional annual intermodal unit demand) / (Railcars per train) * (Freight mileage in Virginia after project) * (Railcars per train) * (Rail tons per railcar) | E98: Lookup Value, by year | F98: Lookup Value, by year
A99: =A68 -> 0 | B99: =IFERROR((IF(A99="No Values Available","No Values",B5*'Project Information'!$C$37)),0) -> 0 | C99: =IF(A99="No Values Available", "No Values",HLOOKUP(A99,'BCA Values Freight'!$D$72:$AC$77,5,FALSE)) ->  | D99: =IFERROR((IF(A99="No Values Available", "No Values",'Railcar and Passenger Demand'!C2*'Project Information'!$C$31*'Project Information'!$C$28)),"") -> 0 | E99: =IF(A99="No Values Available","No Values",HLOOKUP(A99,'BCA Values Freight'!$D$72:$AC$77,6,FALSE)) ->  | F99: =IF(A99="No Values Available","No Values",HLOOKUP(A99,'BCA Values Freight'!$D$72:$AC$77,4,FALSE)) -> 
A100: 1 | B100: =IFERROR((IF(A100="No Values Available","No Values",B6*'Project Information'!$C$37)),0) -> 0 | C100: =IF(A100="No Values Available", "No Values",HLOOKUP(A100,'BCA Values Freight'!$D$72:$AC$77,5,FALSE)) ->  | D100: =IFERROR((IF(A100="No Values Available", "No Values",'Railcar and Passenger Demand'!C3*'Project Information'!$C$31*'Project Information'!$C$28)),"") ->  | E100: =IF(A100="No Values Available","No Values",HLOOKUP(A100,'BCA Values Freight'!$D$72:$AC$77,6,FALSE)) ->  | F100: =IF(A100="No Values Available","No Values",HLOOKUP(A100,'BCA Values Freight'!$D$72:$AC$77,4,FALSE)) -> 
A101: 2 | B101: =IFERROR((IF(A101="No Values Available","No Values",B7*'Project Information'!$C$37)),0) -> 0 | C101: =IF(A101="No Values Available", "No Values",HLOOKUP(A101,'BCA Values Freight'!$D$72:$AC$77,5,FALSE)) ->  | D101: =IFERROR((IF(A101="No Values Available", "No Values",'Railcar and Passenger Demand'!C4*'Project Information'!$C$31*'Project Information'!$C$28)),"") ->  | E101: =IF(A101="No Values Available","No Values",HLOOKUP(A101,'BCA Values Freight'!$D$72:$AC$77,6,FALSE)) ->  | F101: =IF(A101="No Values Available","No Values",HLOOKUP(A101,'BCA Values Freight'!$D$72:$AC$77,4,FALSE)) -> 
A102: 3 | B102: =IFERROR((IF(A102="No Values Available","No Values",B8*'Project Information'!$C$37)),0) -> 0 | C102: =IF(A102="No Values Available", "No Values",HLOOKUP(A102,'BCA Values Freight'!$D$72:$AC$77,5,FALSE)) ->  | D102: =IFERROR((IF(A102="No Values Available", "No Values",'Railcar and Passenger Demand'!C5*'Project Information'!$C$31*'Project Information'!$C$28)),"") ->  | E102: =IF(A102="No Values Available","No Values",HLOOKUP(A102,'BCA Values Freight'!$D$72:$AC$77,6,FALSE)) ->  | F102: =IF(A102="No Values Available","No Values",HLOOKUP(A102,'BCA Values Freight'!$D$72:$AC$77,4,FALSE)) -> 
A103: 4 | B103: =IFERROR((IF(A103="No Values Available","No Values",B9*'Project Information'!$C$37)),0) -> 0 | C103: =IF(A103="No Values Available", "No Values",HLOOKUP(A103,'BCA Values Freight'!$D$72:$AC$77,5,FALSE)) ->  | D103: =IFERROR((IF(A103="No Values Available", "No Values",'Railcar and Passenger Demand'!C6*'Project Information'!$C$31*'Project Information'!$C$28)),"") ->  | E103: =IF(A103="No Values Available","No Values",HLOOKUP(A103,'BCA Values Freight'!$D$72:$AC$77,6,FALSE)) ->  | F103: =IF(A103="No Values Available","No Values",HLOOKUP(A103,'BCA Values Freight'!$D$72:$AC$77,4,FALSE)) -> 
A104: 5 | B104: =IFERROR((IF(A104="No Values Available","No Values",B10*'Project Information'!$C$37)),0) -> 0 | C104: =IF(A104="No Values Available", "No Values",HLOOKUP(A104,'BCA Values Freight'!$D$72:$AC$77,5,FALSE)) ->  | D104: =IFERROR((IF(A104="No Values Available", "No Values",'Railcar and Passenger Demand'!C7*'Project Information'!$C$31*'Project Information'!$C$28)),"") ->  | E104: =IF(A104="No Values Available","No Values",HLOOKUP(A104,'BCA Values Freight'!$D$72:$AC$77,6,FALSE)) ->  | F104: =IF(A104="No Values Available","No Values",HLOOKUP(A104,'BCA Values Freight'!$D$72:$AC$77,4,FALSE)) -> 
A105: 6 | B105: =IFERROR((IF(A105="No Values Available","No Values",B11*'Project Information'!$C$37)),0) -> 0 | C105: =IF(A105="No Values Available", "No Values",HLOOKUP(A105,'BCA Values Freight'!$D$72:$AC$77,5,FALSE)) ->  | D105: =IFERROR((IF(A105="No Values Available", "No Values",'Railcar and Passenger Demand'!C8*'Project Information'!$C$31*'Project Information'!$C$28)),"") ->  | E105: =IF(A105="No Values Available","No Values",HLOOKUP(A105,'BCA Values Freight'!$D$72:$AC$77,6,FALSE)) ->  | F105: =IF(A105="No Values Available","No Values",HLOOKUP(A105,'BCA Values Freight'!$D$72:$AC$77,4,FALSE)) -> 
A106: 7 | B106: =IFERROR((IF(A106="No Values Available","No Values",B12*'Project Information'!$C$37)),0) -> 0 | C106: =IF(A106="No Values Available", "No Values",HLOOKUP(A106,'BCA Values Freight'!$D$72:$AC$77,5,FALSE)) ->  | D106: =IFERROR((IF(A106="No Values Available", "No Values",'Railcar and Passenger Demand'!C9*'Project Information'!$C$31*'Project Information'!$C$28)),"") ->  | E106: =IF(A106="No Values Available","No Values",HLOOKUP(A106,'BCA Values Freight'!$D$72:$AC$77,6,FALSE)) ->  | F106: =IF(A106="No Values Available","No Values",HLOOKUP(A106,'BCA Values Freight'!$D$72:$AC$77,4,FALSE)) -> 
A107: 8 | B107: =IFERROR((IF(A107="No Values Available","No Values",B13*'Project Information'!$C$37)),0) -> 0 | C107: =IF(A107="No Values Available", "No Values",HLOOKUP(A107,'BCA Values Freight'!$D$72:$AC$77,5,FALSE)) ->  | D107: =IFERROR((IF(A107="No Values Available", "No Values",'Railcar and Passenger Demand'!C10*'Project Information'!$C$31*'Project Information'!$C$28)),"") ->  | E107: =IF(A107="No Values Available","No Values",HLOOKUP(A107,'BCA Values Freight'!$D$72:$AC$77,6,FALSE)) ->  | F107: =IF(A107="No Values Available","No Values",HLOOKUP(A107,'BCA Values Freight'!$D$72:$AC$77,4,FALSE)) -> 
A108: 9 | B108: =IFERROR((IF(A108="No Values Available","No Values",B14*'Project Information'!$C$37)),0) -> 0 | C108: =IF(A108="No Values Available", "No Values",HLOOKUP(A108,'BCA Values Freight'!$D$72:$AC$77,5,FALSE)) ->  | D108: =IFERROR((IF(A108="No Values Available", "No Values",'Railcar and Passenger Demand'!C11*'Project Information'!$C$31*'Project Information'!$C$28)),"") ->  | E108: =IF(A108="No Values Available","No Values",HLOOKUP(A108,'BCA Values Freight'!$D$72:$AC$77,6,FALSE)) ->  | F108: =IF(A108="No Values Available","No Values",HLOOKUP(A108,'BCA Values Freight'!$D$72:$AC$77,4,FALSE)) -> 
A109: 10 | B109: =IFERROR((IF(A109="No Values Available","No Values",B15*'Project Information'!$C$37)),0) -> 0 | C109: =IF(A109="No Values Available", "No Values",HLOOKUP(A109,'BCA Values Freight'!$D$72:$AC$77,5,FALSE)) ->  | D109: =IFERROR((IF(A109="No Values Available", "No Values",'Railcar and Passenger Demand'!C12*'Project Information'!$C$31*'Project Information'!$C$28)),"") ->  | E109: =IF(A109="No Values Available","No Values",HLOOKUP(A109,'BCA Values Freight'!$D$72:$AC$77,6,FALSE)) ->  | F109: =IF(A109="No Values Available","No Values",HLOOKUP(A109,'BCA Values Freight'!$D$72:$AC$77,4,FALSE)) -> 
A110: 11 | B110: =IFERROR((IF(A110="No Values Available","No Values",B16*'Project Information'!$C$37)),0) -> 0 | C110: =IF(A110="No Values Available", "No Values",HLOOKUP(A110,'BCA Values Freight'!$D$72:$AC$77,5,FALSE)) ->  | D110: =IFERROR((IF(A110="No Values Available", "No Values",'Railcar and Passenger Demand'!C13*'Project Information'!$C$31*'Project Information'!$C$28)),"") ->  | E110: =IF(A110="No Values Available","No Values",HLOOKUP(A110,'BCA Values Freight'!$D$72:$AC$77,6,FALSE)) ->  | F110: =IF(A110="No Values Available","No Values",HLOOKUP(A110,'BCA Values Freight'!$D$72:$AC$77,4,FALSE)) -> 
A111: 12 | B111: =IFERROR((IF(A111="No Values Available","No Values",B17*'Project Information'!$C$37)),0) -> 0 | C111: =IF(A111="No Values Available", "No Values",HLOOKUP(A111,'BCA Values Freight'!$D$72:$AC$77,5,FALSE)) ->  | D111: =IFERROR((IF(A111="No Values Available", "No Values",'Railcar and Passenger Demand'!C14*'Project Information'!$C$31*'Project Information'!$C$28)),"") ->  | E111: =IF(A111="No Values Available","No Values",HLOOKUP(A111,'BCA Values Freight'!$D$72:$AC$77,6,FALSE)) ->  | F111: =IF(A111="No Values Available","No Values",HLOOKUP(A111,'BCA Values Freight'!$D$72:$AC$77,4,FALSE)) -> 
A112: 13 | B112: =IFERROR((IF(A112="No Values Available","No Values",B18*'Project Information'!$C$37)),0) -> 0 | C112: =IF(A112="No Values Available", "No Values",HLOOKUP(A112,'BCA Values Freight'!$D$72:$AC$77,5,FALSE)) ->  | D112: =IFERROR((IF(A112="No Values Available", "No Values",'Railcar and Passenger Demand'!C15*'Project Information'!$C$31*'Project Information'!$C$28)),"") ->  | E112: =IF(A112="No Values Available","No Values",HLOOKUP(A112,'BCA Values Freight'!$D$72:$AC$77,6,FALSE)) ->  | F112: =IF(A112="No Values Available","No Values",HLOOKUP(A112,'BCA Values Freight'!$D$72:$AC$77,4,FALSE)) -> 
A113: 14 | B113: =IFERROR((IF(A113="No Values Available","No Values",B19*'Project Information'!$C$37)),0) -> 0 | C113: =IF(A113="No Values Available", "No Values",HLOOKUP(A113,'BCA Values Freight'!$D$72:$AC$77,5,FALSE)) ->  | D113: =IFERROR((IF(A113="No Values Available", "No Values",'Railcar and Passenger Demand'!C16*'Project Information'!$C$31*'Project Information'!$C$28)),"") ->  | E113: =IF(A113="No Values Available","No Values",HLOOKUP(A113,'BCA Values Freight'!$D$72:$AC$77,6,FALSE)) ->  | F113: =IF(A113="No Values Available","No Values",HLOOKUP(A113,'BCA Values Freight'!$D$72:$AC$77,4,FALSE)) -> 
A114: 15 | B114: =IFERROR((IF(A114="No Values Available","No Values",B20*'Project Information'!$C$37)),0) -> 0 | C114: =IF(A114="No Values Available", "No Values",HLOOKUP(A114,'BCA Values Freight'!$D$72:$AC$77,5,FALSE)) ->  | D114: =IFERROR((IF(A114="No Values Available", "No Values",'Railcar and Passenger Demand'!C17*'Project Information'!$C$31*'Project Information'!$C$28)),"") ->  | E114: =IF(A114="No Values Available","No Values",HLOOKUP(A114,'BCA Values Freight'!$D$72:$AC$77,6,FALSE)) ->  | F114: =IF(A114="No Values Available","No Values",HLOOKUP(A114,'BCA Values Freight'!$D$72:$AC$77,4,FALSE)) -> 
A115: 16 | B115: =IFERROR((IF(A115="No Values Available","No Values",B21*'Project Information'!$C$37)),0) -> 0 | C115: =IF(A115="No Values Available", "No Values",HLOOKUP(A115,'BCA Values Freight'!$D$72:$AC$77,5,FALSE)) ->  | D115: =IFERROR((IF(A115="No Values Available", "No Values",'Railcar and Passenger Demand'!C18*'Project Information'!$C$31*'Project Information'!$C$28)),"") ->  | E115: =IF(A115="No Values Available","No Values",HLOOKUP(A115,'BCA Values Freight'!$D$72:$AC$77,6,FALSE)) ->  | F115: =IF(A115="No Values Available","No Values",HLOOKUP(A115,'BCA Values Freight'!$D$72:$AC$77,4,FALSE)) -> 
A116: 17 | B116: =IFERROR((IF(A116="No Values Available","No Values",B22*'Project Information'!$C$37)),0) -> 0 | C116: =IF(A116="No Values Available", "No Values",HLOOKUP(A116,'BCA Values Freight'!$D$72:$AC$77,5,FALSE)) ->  | D116: =IFERROR((IF(A116="No Values Available", "No Values",'Railcar and Passenger Demand'!C19*'Project Information'!$C$31*'Project Information'!$C$28)),"") ->  | E116: =IF(A116="No Values Available","No Values",HLOOKUP(A116,'BCA Values Freight'!$D$72:$AC$77,6,FALSE)) ->  | F116: =IF(A116="No Values Available","No Values",HLOOKUP(A116,'BCA Values Freight'!$D$72:$AC$77,4,FALSE)) -> 
A117: 18 | B117: =IFERROR((IF(A117="No Values Available","No Values",B23*'Project Information'!$C$37)),0) -> 0 | C117: =IF(A117="No Values Available", "No Values",HLOOKUP(A117,'BCA Values Freight'!$D$72:$AC$77,5,FALSE)) ->  | D117: =IFERROR((IF(A117="No Values Available", "No Values",'Railcar and Passenger Demand'!C20*'Project Information'!$C$31*'Project Information'!$C$28)),"") ->  | E117: =IF(A117="No Values Available","No Values",HLOOKUP(A117,'BCA Values Freight'!$D$72:$AC$77,6,FALSE)) ->  | F117: =IF(A117="No Values Available","No Values",HLOOKUP(A117,'BCA Values Freight'!$D$72:$AC$77,4,FALSE)) -> 
A118: 19 | B118: =IFERROR((IF(A118="No Values Available","No Values",B24*'Project Information'!$C$37)),0) -> 0 | C118: =IF(A118="No Values Available", "No Values",HLOOKUP(A118,'BCA Values Freight'!$D$72:$AC$77,5,FALSE)) ->  | D118: =IFERROR((IF(A118="No Values Available", "No Values",'Railcar and Passenger Demand'!C21*'Project Information'!$C$31*'Project Information'!$C$28)),"") ->  | E118: =IF(A118="No Values Available","No Values",HLOOKUP(A118,'BCA Values Freight'!$D$72:$AC$77,6,FALSE)) ->  | F118: =IF(A118="No Values Available","No Values",HLOOKUP(A118,'BCA Values Freight'!$D$72:$AC$77,4,FALSE)) -> 
A119: 20 | B119: =IFERROR((IF(A119="No Values Available","No Values",B25*'Project Information'!$C$37)),0) -> 0 | C119: =IF(A119="No Values Available", "No Values",HLOOKUP(A119,'BCA Values Freight'!$D$72:$AC$77,5,FALSE)) ->  | D119: =IFERROR((IF(A119="No Values Available", "No Values",'Railcar and Passenger Demand'!C22*'Project Information'!$C$31*'Project Information'!$C$28)),"") ->  | E119: =IF(A119="No Values Available","No Values",HLOOKUP(A119,'BCA Values Freight'!$D$72:$AC$77,6,FALSE)) ->  | F119: =IF(A119="No Values Available","No Values",HLOOKUP(A119,'BCA Values Freight'!$D$72:$AC$77,4,FALSE)) -> 
A120: 21 | B120: =IFERROR((IF(A120="No Values Available","No Values",B26*'Project Information'!$C$37)),0) -> 0 | C120: =IF(A120="No Values Available", "No Values",HLOOKUP(A120,'BCA Values Freight'!$D$72:$AC$77,5,FALSE)) ->  | D120: =IFERROR((IF(A120="No Values Available", "No Values",'Railcar and Passenger Demand'!C23*'Project Information'!$C$31*'Project Information'!$C$28)),"") ->  | E120: =IF(A120="No Values Available","No Values",HLOOKUP(A120,'BCA Values Freight'!$D$72:$AC$77,6,FALSE)) ->  | F120: =IF(A120="No Values Available","No Values",HLOOKUP(A120,'BCA Values Freight'!$D$72:$AC$77,4,FALSE)) -> 
A121: 22 | B121: =IFERROR((IF(A121="No Values Available","No Values",B27*'Project Information'!$C$37)),0) -> 0 | C121: =IF(A121="No Values Available", "No Values",HLOOKUP(A121,'BCA Values Freight'!$D$72:$AC$77,5,FALSE)) ->  | D121: =IFERROR((IF(A121="No Values Available", "No Values",'Railcar and Passenger Demand'!C24*'Project Information'!$C$31*'Project Information'!$C$28)),"") ->  | E121: =IF(A121="No Values Available","No Values",HLOOKUP(A121,'BCA Values Freight'!$D$72:$AC$77,6,FALSE)) ->  | F121: =IF(A121="No Values Available","No Values",HLOOKUP(A121,'BCA Values Freight'!$D$72:$AC$77,4,FALSE)) -> 
A122: 23 | B122: =IFERROR((IF(A122="No Values Available","No Values",B28*'Project Information'!$C$37)),0) -> 0 | C122: =IF(A122="No Values Available", "No Values",HLOOKUP(A122,'BCA Values Freight'!$D$72:$AC$77,5,FALSE)) ->  | D122: =IFERROR((IF(A122="No Values Available", "No Values",'Railcar and Passenger Demand'!C25*'Project Information'!$C$31*'Project Information'!$C$28)),"") ->  | E122: =IF(A122="No Values Available","No Values",HLOOKUP(A122,'BCA Values Freight'!$D$72:$AC$77,6,FALSE)) ->  | F122: =IF(A122="No Values Available","No Values",HLOOKUP(A122,'BCA Values Freight'!$D$72:$AC$77,4,FALSE)) -> 
A123: 24 | B123: =IFERROR((IF(A123="No Values Available","No Values",B29*'Project Information'!$C$37)),0) -> 0 | C123: =IF(A123="No Values Available", "No Values",HLOOKUP(A123,'BCA Values Freight'!$D$72:$AC$77,5,FALSE)) ->  | D123: =IFERROR((IF(A123="No Values Available", "No Values",'Railcar and Passenger Demand'!C26*'Project Information'!$C$31*'Project Information'!$C$28)),"") ->  | E123: =IF(A123="No Values Available","No Values",HLOOKUP(A123,'BCA Values Freight'!$D$72:$AC$77,6,FALSE)) ->  | F123: =IF(A123="No Values Available","No Values",HLOOKUP(A123,'BCA Values Freight'!$D$72:$AC$77,4,FALSE)) -> 

Sheet Freight Calcs
C1: Congestion Cost | E1: Environmental Improvement - (Shift from trucks to trains) | G1: Environmental Improvement - (Distance Reduction) | I1: Shipping Cost Reduction - (Distance Reduction)
C2: Improvement in the levels of highway congestion realized by shifting freight from truck to rail, reducing the number of trucks on major highways (I-64, I-66, I-81, I-95, US29, US58 or US460) | E2: Benefit associated with the reduction in the level of Carbon Dioxide, Volatile Organic Compounds, Nitrogen Oxides and Particulate Matter due do truck traffic moving to rail. The amount of pollution by the same critical pollutants caused by the increase in rail traffic is deducted from the benefit. | G2: Benefit associated with the reduction in the level of Carbon Dioxide, Volatile Organic Compounds, Nitrogen Oxides and Particulate Matter due the rail to freight network being reduced in length. | I2: When an existing route is reduced in length, the cost to ship freight will be reduced resulting in a shipping cost reduction.
A3: Year | C3: Total reduction in truck VMT * Congestion cost per truck mile | E3: Truck VMT * (Air pollution cost per truck VMT + Noise pollution cost per truck VMT) - Train ton miles * (Air pollution cost per freight train ton mile + Noise pollution cost per train ton mile) | G3: Annual tons of rail shipments (existing) * Reduced freight mileage (after project) * (Air pollution cost per freight train ton mile + Noise pollution cost per train ton mile) | I3: Reduced freight mileage (after project) * Annual tons of rail shipments (existing) * Shipping rate per train ton mile
A4: ='Intermediate Freight Calcs'!A5 -> 0 | C4: =IF(OR((ISBLANK('Project Information'!$C$21)),(ISBLANK('Project Information'!$C$35)),(ISBLANK('Project Information'!$C$36))),0,IF(AND((A4>='Project Information'!$C$10),(A4<('Project Information'!$C$8+'Project Cost'!$H$61))),('Intermediate Freight Calcs'!H5*'Intermediate Freight Calcs'!B5),0)) -> 0 | E4: =IF(OR((ISBLANK('Project Information'!$C$23)),(ISBLANK('Project Information'!$D$23)),(ISBLANK('Project Information'!$C$28)),(ISBLANK('Project Information'!$C$29)),(ISBLANK('Project Information'!$C$31)),(ISBLANK('Project Information'!$C$35)),(ISBLANK('Project Information'!$C$36))),0,IF(AND((A4>='Project Information'!$C$10),(A4<('Project Information'!$C$8+'Project Cost'!$H$61))),('Intermediate Freight Calcs'!B5*('Intermediate Freight Calcs'!B36+'Intermediate Freight Calcs'!C36))-('Intermediate Freight Calcs'!D36*('Intermediate Freight Calcs'!E36+'Intermediate Freight Calcs'!F36)),0)) -> 0 | G4: =IF(OR((ISBLANK('Project Information'!$C$28)),(ISBLANK('Project Information'!$C$32))),0,IF(AND((A4>='Project Information'!$C$10),(A4<('Project Information'!$C$8+'Project Cost'!$H$61))),'Railcar and Passenger Demand'!B2*'Project Information'!$C$28*'Project Information'!$C$32*('Intermediate Freight Calcs'!E36+'Intermediate Freight Calcs'!F36),0)) ->  | I4: =IF(OR((ISBLANK('Project Information'!$C$28)),(ISBLANK('Project Information'!$C$32))),0,IF(AND((A4>='Project Information'!$C$10),(A4<('Project Information'!$C$8+'Project Cost'!$H$61))),'Project Information'!$C$32*'Railcar and Passenger Demand'!B2*'Project Information'!$C$28*'Intermediate Freight Calcs'!C68,0)) -> 
A5: ='Intermediate Freight Calcs'!A6 -> 1 | C5: =IF(OR((ISBLANK('Project Information'!$C$21)),(ISBLANK('Project Information'!$C$35)),(ISBLANK('Project Information'!$C$36))),0,IF(AND((A5>='Project Information'!$C$10),(A5<('Project Information'!$C$8+'Project Cost'!$H$61))),('Intermediate Freight Calcs'!H6*'Intermediate Freight Calcs'!B6),0)) -> 0 | E5: =IF(OR((ISBLANK('Project Information'!$C$23)),(ISBLANK('Project Information'!$D$23)),(ISBLANK('Project Information'!$C$28)),(ISBLANK('Project Information'!$C$29)),(ISBLANK('Project Information'!$C$31)),(ISBLANK('Project Information'!$C$35)),(ISBLANK('Project Information'!$C$36))),0,IF(AND((A5>='Project Information'!$C$10),(A5<('Project Information'!$C$8+'Project Cost'!$H$61))),('Intermediate Freight Calcs'!B6*('Intermediate Freight Calcs'!B37+'Intermediate Freight Calcs'!C37))-('Intermediate Freight Calcs'!D37*('Intermediate Freight Calcs'!E37+'Intermediate Freight Calcs'!F37)),0)) -> 0 | G5: =IF(OR((ISBLANK('Project Information'!$C$28)),(ISBLANK('Project Information'!$C$32))),0,IF(AND((A5>='Project Information'!$C$10),(A5<('Project Information'!$C$8+'Project Cost'!$H$61))),'Railcar and Passenger Demand'!B3*'Project Information'!$C$28*'Project Information'!$C$32*('Intermediate Freight Calcs'!E37+'Intermediate Freight Calcs'!F37),0)) ->  | I5: =IF(OR((ISBLANK('Project Information'!$C$28)),(ISBLANK('Project Information'!$C$32))),0,IF(AND((A5>='Project Information'!$C$10),(A5<('Project Information'!$C$8+'Project Cost'!$H$61))),'Project Information'!$C$32*'Railcar and Passenger Demand'!B3*'Project Information'!$C$28*'Intermediate Freight Calcs'!C69,0)) -> 
A6: ='Intermediate Freight Calcs'!A7 -> 2 | C6: =IF(OR((ISBLANK('Project Information'!$C$21)),(ISBLANK('Project Information'!$C$35)),(ISBLANK('Project Information'!$C$36))),0,IF(AND((A6>='Project Information'!$C$10),(A6<('Project Information'!$C$8+'Project Cost'!$H$61))),('Intermediate Freight Calcs'!H7*'Intermediate Freight Calcs'!B7),0)) -> 0 | E6: =IF(OR((ISBLANK('Project Information'!$C$23)),(ISBLANK('Project Information'!$D$23)),(ISBLANK('Project Information'!$C$28)),(ISBLANK('Project Information'!$C$29)),(ISBLANK('Project Information'!$C$31)),(ISBLANK('Project Information'!$C$35)),(ISBLANK('Project Information'!$C$36))),0,IF(AND((A6>='Project Information'!$C$10),(A6<('Project Information'!$C$8+'Project Cost'!$H$61))),('Intermediate Freight Calcs'!B7*('Intermediate Freight Calcs'!B38+'Intermediate Freight Calcs'!C38))-('Intermediate Freight Calcs'!D38*('Intermediate Freight Calcs'!E38+'Intermediate Freight Calcs'!F38)),0)) -> 0 | G6: =IF(OR((ISBLANK('Project Information'!$C$28)),(ISBLANK('Project Information'!$C$32))),0,IF(AND((A6>='Project Information'!$C$10),(A6<('Project Information'!$C$8+'Project Cost'!$H$61))),'Railcar and Passenger Demand'!B4*'Project Information'!$C$28*'Project Information'!$C$32*('Intermediate Freight Calcs'!E38+'Intermediate Freight Calcs'!F38),0)) ->  | I6: =IF(OR((ISBLANK('Project Information'!$C$28)),(ISBLANK('Project Information'!$C$32))),0,IF(AND((A6>='Project Information'!$C$10),(A6<('Project Information'!$C$8+'Project Cost'!$H$61))),'Project Information'!$C$32*'Railcar and Passenger Demand'!B4*'Project Information'!$C$28*'Intermediate Freight Calcs'!C70,0)) -> 
A7: ='Intermediate Freight Calcs'!A8 -> 3 | C7: =IF(OR((ISBLANK('Project Information'!$C$21)),(ISBLANK('Project Information'!$C$35)),(ISBLANK('Project Information'!$C$36))),0,IF(AND((A7>='Project Information'!$C$10),(A7<('Project Information'!$C$8+'Project Cost'!$H$61))),('Intermediate Freight Calcs'!H8*'Intermediate Freight Calcs'!B8),0)) -> 0 | E7: =IF(OR((ISBLANK('Project Information'!$C$23)),(ISBLANK('Project Information'!$D$23)),(ISBLANK('Project Information'!$C$28)),(ISBLANK('Project Information'!$C$29)),(ISBLANK('Project Information'!$C$31)),(ISBLANK('Project Information'!$C$35)),(ISBLANK('Project Information'!$C$36))),0,IF(AND((A7>='Project Information'!$C$10),(A7<('Project Information'!$C$8+'Project Cost'!$H$61))),('Intermediate Freight Calcs'!B8*('Intermediate Freight Calcs'!B39+'Intermediate Freight Calcs'!C39))-('Intermediate Freight Calcs'!D39*('Intermediate Freight Calcs'!E39+'Intermediate Freight Calcs'!F39)),0)) -> 0 | G7: =IF(OR((ISBLANK('Project Information'!$C$28)),(ISBLANK('Project Information'!$C$32))),0,IF(AND((A7>='Project Information'!$C$10),(A7<('Project Information'!$C$8+'Project Cost'!$H$61))),'Railcar and Passenger Demand'!B5*'Project Information'!$C$28*'Project Information'!$C$32*('Intermediate Freight Calcs'!E39+'Intermediate Freight Calcs'!F39),0)) ->  | I7: =IF(OR((ISBLANK('Project Information'!$C$28)),(ISBLANK('Project Information'!$C$32))),0,IF(AND((A7>='Project Information'!$C$10),(A7<('Project Information'!$C$8+'Project Cost'!$H$61))),'Project Information'!$C$32*'Railcar and Passenger Demand'!B5*'Project Information'!$C$28*'Intermediate Freight Calcs'!C71,0)) -> 
A8: ='Intermediate Freight Calcs'!A9 -> 4 | C8: =IF(OR((ISBLANK('Project Information'!$C$21)),(ISBLANK('Project Information'!$C$35)),(ISBLANK('Project Information'!$C$36))),0,IF(AND((A8>='Project Information'!$C$10),(A8<('Project Information'!$C$8+'Project Cost'!$H$61))),('Intermediate Freight Calcs'!H9*'Intermediate Freight Calcs'!B9),0)) -> 0 | E8: =IF(OR((ISBLANK('Project Information'!$C$23)),(ISBLANK('Project Information'!$D$23)),(ISBLANK('Project Information'!$C$28)),(ISBLANK('Project Information'!$C$29)),(ISBLANK('Project Information'!$C$31)),(ISBLANK('Project Information'!$C$35)),(ISBLANK('Project Information'!$C$36))),0,IF(AND((A8>='Project Information'!$C$10),(A8<('Project Information'!$C$8+'Project Cost'!$H$61))),('Intermediate Freight Calcs'!B9*('Intermediate Freight Calcs'!B40+'Intermediate Freight Calcs'!C40))-('Intermediate Freight Calcs'!D40*('Intermediate Freight Calcs'!E40+'Intermediate Freight Calcs'!F40)),0)) -> 0 | G8: =IF(OR((ISBLANK('Project Information'!$C$28)),(ISBLANK('Project Information'!$C$32))),0,IF(AND((A8>='Project Information'!$C$10),(A8<('Project Information'!$C$8+'Project Cost'!$H$61))),'Railcar and Passenger Demand'!B6*'Project Information'!$C$28*'Project Information'!$C$32*('Intermediate Freight Calcs'!E40+'Intermediate Freight Calcs'!F40),0)) ->  | I8: =IF(OR((ISBLANK('Project Information'!$C$28)),(ISBLANK('Project Information'!$C$32))),0,IF(AND((A8>='Project Information'!$C$10),(A8<('Project Information'!$C$8+'Project Cost'!$H$61))),'Project Information'!$C$32*'Railcar and Passenger Demand'!B6*'Project Information'!$C$28*'Intermediate Freight Calcs'!C72,0)) -> 
A9: ='Intermediate Freight Calcs'!A10 -> 5 | C9: =IF(OR((ISBLANK('Project Information'!$C$21)),(ISBLANK('Project Information'!$C$35)),(ISBLANK('Project Information'!$C$36))),0,IF(AND((A9>='Project Information'!$C$10),(A9<('Project Information'!$C$8+'Project Cost'!$H$61))),('Intermediate Freight Calcs'!H10*'Intermediate Freight Calcs'!B10),0)) -> 0 | E9: =IF(OR((ISBLANK('Project Information'!$C$23)),(ISBLANK('Project Information'!$D$23)),(ISBLANK('Project Information'!$C$28)),(ISBLANK('Project Information'!$C$29)),(ISBLANK('Project Information'!$C$31)),(ISBLANK('Project Information'!$C$35)),(ISBLANK('Project Information'!$C$36))),0,IF(AND((A9>='Project Information'!$C$10),(A9<('Project Information'!$C$8+'Project Cost'!$H$61))),('Intermediate Freight Calcs'!B10*('Intermediate Freight Calcs'!B41+'Intermediate Freight Calcs'!C41))-('Intermediate Freight Calcs'!D41*('Intermediate Freight Calcs'!E41+'Intermediate Freight Calcs'!F41)),0)) -> 0 | G9: =IF(OR((ISBLANK('Project Information'!$C$28)),(ISBLANK('Project Information'!$C$32))),0,IF(AND((A9>='Project Information'!$C$10),(A9<('Project Information'!$C$8+'Project Cost'!$H$61))),'Railcar and Passenger Demand'!B7*'Project Information'!$C$28*'Project Information'!$C$32*('Intermediate Freight Calcs'!E41+'Intermediate Freight Calcs'!F41),0)) ->  | I9: =IF(OR((ISBLANK('Project Information'!$C$28)),(ISBLANK('Project Information'!$C$32))),0,IF(AND((A9>='Project Information'!$C$10),(A9<('Project Information'!$C$8+'Project Cost'!$H$61))),'Project Information'!$C$32*'Railcar and Passenger Demand'!B7*'Project Information'!$C$28*'Intermediate Freight Calcs'!C73,0)) -> 
A10: ='Intermediate Freight Calcs'!A11 -> 6 | C10: =IF(OR((ISBLANK('Project Information'!$C$21)),(ISBLANK('Project Information'!$C$35)),(ISBLANK('Project Information'!$C$36))),0,IF(AND((A10>='Project Information'!$C$10),(A10<('Project Information'!$C$8+'Project Cost'!$H$61))),('Intermediate Freight Calcs'!H11*'Intermediate Freight Calcs'!B11),0)) -> 0 | E10: =IF(OR((ISBLANK('Project Information'!$C$23)),(ISBLANK('Project Information'!$D$23)),(ISBLANK('Project Information'!$C$28)),(ISBLANK('Project Information'!$C$29)),(ISBLANK('Project Information'!$C$31)),(ISBLANK('Project Information'!$C$35)),(ISBLANK('Project Information'!$C$36))),0,IF(AND((A10>='Project Information'!$C$10),(A10<('Project Information'!$C$8+'Project Cost'!$H$61))),('Intermediate Freight Calcs'!B11*('Intermediate Freight Calcs'!B42+'Intermediate Freight Calcs'!C42))-('Intermediate Freight Calcs'!D42*('Intermediate Freight Calcs'!E42+'Intermediate Freight Calcs'!F42)),0)) -> 0 | G10: =IF(OR((ISBLANK('Project Information'!$C$28)),(ISBLANK('Project Information'!$C$32))),0,IF(AND((A10>='Project Information'!$C$10),(A10<('Project Information'!$C$8+'Project Cost'!$H$61))),'Railcar and Passenger Demand'!B8*'Project Information'!$C$28*'Project Information'!$C$32*('Intermediate Freight Calcs'!E42+'Intermediate Freight Calcs'!F42),0)) ->  | I10: =IF(OR((ISBLANK('Project Information'!$C$28)),(ISBLANK('Project Information'!$C$32))),0,IF(AND((A10>='Project Information'!$C$10),(A10<('Project Information'!$C$8+'Project Cost'!$H$61))),'Project Information'!$C$32*'Railcar and Passenger Demand'!B8*'Project Information'!$C$28*'Intermediate Freight Calcs'!C74,0)) -> 
A11: ='Intermediate Freight Calcs'!A12 -> 7 | C11: =IF(OR((ISBLANK('Project Information'!$C$21)),(ISBLANK('Project Information'!$C$35)),(ISBLANK('Project Information'!$C$36))),0,IF(AND((A11>='Project Information'!$C$10),(A11<('Project Information'!$C$8+'Project Cost'!$H$61))),('Intermediate Freight Calcs'!H12*'Intermediate Freight Calcs'!B12),0)) -> 0 | E11: =IF(OR((ISBLANK('Project Information'!$C$23)),(ISBLANK('Project Information'!$D$23)),(ISBLANK('Project Information'!$C$28)),(ISBLANK('Project Information'!$C$29)),(ISBLANK('Project Information'!$C$31)),(ISBLANK('Project Information'!$C$35)),(ISBLANK('Project Information'!$C$36))),0,IF(AND((A11>='Project Information'!$C$10),(A11<('Project Information'!$C$8+'Project Cost'!$H$61))),('Intermediate Freight Calcs'!B12*('Intermediate Freight Calcs'!B43+'Intermediate Freight Calcs'!C43))-('Intermediate Freight Calcs'!D43*('Intermediate Freight Calcs'!E43+'Intermediate Freight Calcs'!F43)),0)) -> 0 | G11: =IF(OR((ISBLANK('Project Information'!$C$28)),(ISBLANK('Project Information'!$C$32))),0,IF(AND((A11>='Project Information'!$C$10),(A11<('Project Information'!$C$8+'Project Cost'!$H$61))),'Railcar and Passenger Demand'!B9*'Project Information'!$C$28*'Project Information'!$C$32*('Intermediate Freight Calcs'!E43+'Intermediate Freight Calcs'!F43),0)) ->  | I11: =IF(OR((ISBLANK('Project Information'!$C$28)),(ISBLANK('Project Information'!$C$32))),0,IF(AND((A11>='Project Information'!$C$10),(A11<('Project Information'!$C$8+'Project Cost'!$H$61))),'Project Information'!$C$32*'Railcar and Passenger Demand'!B9*'Project Information'!$C$28*'Intermediate Freight Calcs'!C75,0)) -> 
A12: ='Intermediate Freight Calcs'!A13 -> 8 | C12: =IF(OR((ISBLANK('Project Information'!$C$21)),(ISBLANK('Project Information'!$C$35)),(ISBLANK('Project Information'!$C$36))),0,IF(AND((A12>='Project Information'!$C$10),(A12<('Project Information'!$C$8+'Project Cost'!$H$61))),('Intermediate Freight Calcs'!H13*'Intermediate Freight Calcs'!B13),0)) -> 0 | E12: =IF(OR((ISBLANK('Project Information'!$C$23)),(ISBLANK('Project Information'!$D$23)),(ISBLANK('Project Information'!$C$28)),(ISBLANK('Project Information'!$C$29)),(ISBLANK('Project Information'!$C$31)),(ISBLANK('Project Information'!$C$35)),(ISBLANK('Project Information'!$C$36))),0,IF(AND((A12>='Project Information'!$C$10),(A12<('Project Information'!$C$8+'Project Cost'!$H$61))),('Intermediate Freight Calcs'!B13*('Intermediate Freight Calcs'!B44+'Intermediate Freight Calcs'!C44))-('Intermediate Freight Calcs'!D44*('Intermediate Freight Calcs'!E44+'Intermediate Freight Calcs'!F44)),0)) -> 0 | G12: =IF(OR((ISBLANK('Project Information'!$C$28)),(ISBLANK('Project Information'!$C$32))),0,IF(AND((A12>='Project Information'!$C$10),(A12<('Project Information'!$C$8+'Project Cost'!$H$61))),'Railcar and Passenger Demand'!B10*'Project Information'!$C$28*'Project Information'!$C$32*('Intermediate Freight Calcs'!E44+'Intermediate Freight Calcs'!F44),0)) ->  | I12: =IF(OR((ISBLANK('Project Information'!$C$28)),(ISBLANK('Project Information'!$C$32))),0,IF(AND((A12>='Project Information'!$C$10),(A12<('Project Information'!$C$8+'Project Cost'!$H$61))),'Project Information'!$C$32*'Railcar and Passenger Demand'!B10*'Project Information'!$C$28*'Intermediate Freight Calcs'!C76,0)) -> 
A13: ='Intermediate Freight Calcs'!A14 -> 9 | C13: =IF(OR((ISBLANK('Project Information'!$C$21)),(ISBLANK('Project Information'!$C$35)),(ISBLANK('Project Information'!$C$36))),0,IF(AND((A13>='Project Information'!$C$10),(A13<('Project Information'!$C$8+'Project Cost'!$H$61))),('Intermediate Freight Calcs'!H14*'Intermediate Freight Calcs'!B14),0)) -> 0 | E13: =IF(OR((ISBLANK('Project Information'!$C$23)),(ISBLANK('Project Information'!$D$23)),(ISBLANK('Project Information'!$C$28)),(ISBLANK('Project Information'!$C$29)),(ISBLANK('Project Information'!$C$31)),(ISBLANK('Project Information'!$C$35)),(ISBLANK('Project Information'!$C$36))),0,IF(AND((A13>='Project Information'!$C$10),(A13<('Project Information'!$C$8+'Project Cost'!$H$61))),('Intermediate Freight Calcs'!B14*('Intermediate Freight Calcs'!B45+'Intermediate Freight Calcs'!C45))-('Intermediate Freight Calcs'!D45*('Intermediate Freight Calcs'!E45+'Intermediate Freight Calcs'!F45)),0)) -> 0 | G13: =IF(OR((ISBLANK('Project Information'!$C$28)),(ISBLANK('Project Information'!$C$32))),0,IF(AND((A13>='Project Information'!$C$10),(A13<('Project Information'!$C$8+'Project Cost'!$H$61))),'Railcar and Passenger Demand'!B11*'Project Information'!$C$28*'Project Information'!$C$32*('Intermediate Freight Calcs'!E45+'Intermediate Freight Calcs'!F45),0)) ->  | I13: =IF(OR((ISBLANK('Project Information'!$C$28)),(ISBLANK('Project Information'!$C$32))),0,IF(AND((A13>='Project Information'!$C$10),(A13<('Project Information'!$C$8+'Project Cost'!$H$61))),'Project Information'!$C$32*'Railcar and Passenger Demand'!B11*'Project Information'!$C$28*'Intermediate Freight Calcs'!C77,0)) -> 
A14: ='Intermediate Freight Calcs'!A15 -> 10 | C14: =IF(OR((ISBLANK('Project Information'!$C$21)),(ISBLANK('Project Information'!$C$35)),(ISBLANK('Project Information'!$C$36))),0,IF(AND((A14>='Project Information'!$C$10),(A14<('Project Information'!$C$8+'Project Cost'!$H$61))),('Intermediate Freight Calcs'!H15*'Intermediate Freight Calcs'!B15),0)) -> 0 | E14: =IF(OR((ISBLANK('Project Information'!$C$23)),(ISBLANK('Project Information'!$D$23)),(ISBLANK('Project Information'!$C$28)),(ISBLANK('Project Information'!$C$29)),(ISBLANK('Project Information'!$C$31)),(ISBLANK('Project Information'!$C$35)),(ISBLANK('Project Information'!$C$36))),0,IF(AND((A14>='Project Information'!$C$10),(A14<('Project Information'!$C$8+'Project Cost'!$H$61))),('Intermediate Freight Calcs'!B15*('Intermediate Freight Calcs'!B46+'Intermediate Freight Calcs'!C46))-('Intermediate Freight Calcs'!D46*('Intermediate Freight Calcs'!E46+'Intermediate Freight Calcs'!F46)),0)) -> 0 | G14: =IF(OR((ISBLANK('Project Information'!$C$28)),(ISBLANK('Project Information'!$C$32))),0,IF(AND((A14>='Project Information'!$C$10),(A14<('Project Information'!$C$8+'Project Cost'!$H$61))),'Railcar and Passenger Demand'!B12*'Project Information'!$C$28*'Project Information'!$C$32*('Intermediate Freight Calcs'!E46+'Intermediate Freight Calcs'!F46),0)) ->  | I14: =IF(OR((ISBLANK('Project Information'!$C$28)),(ISBLANK('Project Information'!$C$32))),0,IF(AND((A14>='Project Information'!$C$10),(A14<('Project Information'!$C$8+'Project Cost'!$H$61))),'Project Information'!$C$32*'Railcar and Passenger Demand'!B12*'Project Information'!$C$28*'Intermediate Freight Calcs'!C78,0)) -> 
A15: ='Intermediate Freight Calcs'!A16 -> 11 | C15: =IF(OR((ISBLANK('Project Information'!$C$21)),(ISBLANK('Project Information'!$C$35)),(ISBLANK('Project Information'!$C$36))),0,IF(AND((A15>='Project Information'!$C$10),(A15<('Project Information'!$C$8+'Project Cost'!$H$61))),('Intermediate Freight Calcs'!H16*'Intermediate Freight Calcs'!B16),0)) -> 0 | E15: =IF(OR((ISBLANK('Project Information'!$C$23)),(ISBLANK('Project Information'!$D$23)),(ISBLANK('Project Information'!$C$28)),(ISBLANK('Project Information'!$C$29)),(ISBLANK('Project Information'!$C$31)),(ISBLANK('Project Information'!$C$35)),(ISBLANK('Project Information'!$C$36))),0,IF(AND((A15>='Project Information'!$C$10),(A15<('Project Information'!$C$8+'Project Cost'!$H$61))),('Intermediate Freight Calcs'!B16*('Intermediate Freight Calcs'!B47+'Intermediate Freight Calcs'!C47))-('Intermediate Freight Calcs'!D47*('Intermediate Freight Calcs'!E47+'Intermediate Freight Calcs'!F47)),0)) -> 0 | G15: =IF(OR((ISBLANK('Project Information'!$C$28)),(ISBLANK('Project Information'!$C$32))),0,IF(AND((A15>='Project Information'!$C$10),(A15<('Project Information'!$C$8+'Project Cost'!$H$61))),'Railcar and Passenger Demand'!B13*'Project Information'!$C$28*'Project Information'!$C$32*('Intermediate Freight Calcs'!E47+'Intermediate Freight Calcs'!F47),0)) ->  | I15: =IF(OR((ISBLANK('Project Information'!$C$28)),(ISBLANK('Project Information'!$C$32))),0,IF(AND((A15>='Project Information'!$C$10),(A15<('Project Information'!$C$8+'Project Cost'!$H$61))),'Project Information'!$C$32*'Railcar and Passenger Demand'!B13*'Project Information'!$C$28*'Intermediate Freight Calcs'!C79,0)) -> 
A16: ='Intermediate Freight Calcs'!A17 -> 12 | C16: =IF(OR((ISBLANK('Project Information'!$C$21)),(ISBLANK('Project Information'!$C$35)),(ISBLANK('Project Information'!$C$36))),0,IF(AND((A16>='Project Information'!$C$10),(A16<('Project Information'!$C$8+'Project Cost'!$H$61))),('Intermediate Freight Calcs'!H17*'Intermediate Freight Calcs'!B17),0)) -> 0 | E16: =IF(OR((ISBLANK('Project Information'!$C$23)),(ISBLANK('Project Information'!$D$23)),(ISBLANK('Project Information'!$C$28)),(ISBLANK('Project Information'!$C$29)),(ISBLANK('Project Information'!$C$31)),(ISBLANK('Project Information'!$C$35)),(ISBLANK('Project Information'!$C$36))),0,IF(AND((A16>='Project Information'!$C$10),(A16<('Project Information'!$C$8+'Project Cost'!$H$61))),('Intermediate Freight Calcs'!B17*('Intermediate Freight Calcs'!B48+'Intermediate Freight Calcs'!C48))-('Intermediate Freight Calcs'!D48*('Intermediate Freight Calcs'!E48+'Intermediate Freight Calcs'!F48)),0)) -> 0 | G16: =IF(OR((ISBLANK('Project Information'!$C$28)),(ISBLANK('Project Information'!$C$32))),0,IF(AND((A16>='Project Information'!$C$10),(A16<('Project Information'!$C$8+'Project Cost'!$H$61))),'Railcar and Passenger Demand'!B14*'Project Information'!$C$28*'Project Information'!$C$32*('Intermediate Freight Calcs'!E48+'Intermediate Freight Calcs'!F48),0)) ->  | I16: =IF(OR((ISBLANK('Project Information'!$C$28)),(ISBLANK('Project Information'!$C$32))),0,IF(AND((A16>='Project Information'!$C$10),(A16<('Project Information'!$C$8+'Project Cost'!$H$61))),'Project Information'!$C$32*'Railcar and Passenger Demand'!B14*'Project Information'!$C$28*'Intermediate Freight Calcs'!C80,0)) -> 
A17: ='Intermediate Freight Calcs'!A18 -> 13 | C17: =IF(OR((ISBLANK('Project Information'!$C$21)),(ISBLANK('Project Information'!$C$35)),(ISBLANK('Project Information'!$C$36))),0,IF(AND((A17>='Project Information'!$C$10),(A17<('Project Information'!$C$8+'Project Cost'!$H$61))),('Intermediate Freight Calcs'!H18*'Intermediate Freight Calcs'!B18),0)) -> 0 | E17: =IF(OR((ISBLANK('Project Information'!$C$23)),(ISBLANK('Project Information'!$D$23)),(ISBLANK('Project Information'!$C$28)),(ISBLANK('Project Information'!$C$29)),(ISBLANK('Project Information'!$C$31)),(ISBLANK('Project Information'!$C$35)),(ISBLANK('Project Information'!$C$36))),0,IF(AND((A17>='Project Information'!$C$10),(A17<('Project Information'!$C$8+'Project Cost'!$H$61))),('Intermediate Freight Calcs'!B18*('Intermediate Freight Calcs'!B49+'Intermediate Freight Calcs'!C49))-('Intermediate Freight Calcs'!D49*('Intermediate Freight Calcs'!E49+'Intermediate Freight Calcs'!F49)),0)) -> 0 | G17: =IF(OR((ISBLANK('Project Information'!$C$28)),(ISBLANK('Project Information'!$C$32))),0,IF(AND((A17>='Project Information'!$C$10),(A17<('Project Information'!$C$8+'Project Cost'!$H$61))),'Railcar and Passenger Demand'!B15*'Project Information'!$C$28*'Project Information'!$C$32*('Intermediate Freight Calcs'!E49+'Intermediate Freight Calcs'!F49),0)) ->  | I17: =IF(OR((ISBLANK('Project Information'!$C$28)),(ISBLANK('Project Information'!$C$32))),0,IF(AND((A17>='Project Information'!$C$10),(A17<('Project Information'!$C$8+'Project Cost'!$H$61))),'Project Information'!$C$32*'Railcar and Passenger Demand'!B15*'Project Information'!$C$28*'Intermediate Freight Calcs'!C81,0)) -> 
A18: ='Intermediate Freight Calcs'!A19 -> 14 | C18: =IF(OR((ISBLANK('Project Information'!$C$21)),(ISBLANK('Project Information'!$C$35)),(ISBLANK('Project Information'!$C$36))),0,IF(AND((A18>='Project Information'!$C$10),(A18<('Project Information'!$C$8+'Project Cost'!$H$61))),('Intermediate Freight Calcs'!H19*'Intermediate Freight Calcs'!B19),0)) -> 0 | E18: =IF(OR((ISBLANK('Project Information'!$C$23)),(ISBLANK('Project Information'!$D$23)),(ISBLANK('Project Information'!$C$28)),(ISBLANK('Project Information'!$C$29)),(ISBLANK('Project Information'!$C$31)),(ISBLANK('Project Information'!$C$35)),(ISBLANK('Project Information'!$C$36))),0,IF(AND((A18>='Project Information'!$C$10),(A18<('Project Information'!$C$8+'Project Cost'!$H$61))),('Intermediate Freight Calcs'!B19*('Intermediate Freight Calcs'!B50+'Intermediate Freight Calcs'!C50))-('Intermediate Freight Calcs'!D50*('Intermediate Freight Calcs'!E50+'Intermediate Freight Calcs'!F50)),0)) -> 0 | G18: =IF(OR((ISBLANK('Project Information'!$C$28)),(ISBLANK('Project Information'!$C$32))),0,IF(AND((A18>='Project Information'!$C$10),(A18<('Project Information'!$C$8+'Project Cost'!$H$61))),'Railcar and Passenger Demand'!B16*'Project Information'!$C$28*'Project Information'!$C$32*('Intermediate Freight Calcs'!E50+'Intermediate Freight Calcs'!F50),0)) ->  | I18: =IF(OR((ISBLANK('Project Information'!$C$28)),(ISBLANK('Project Information'!$C$32))),0,IF(AND((A18>='Project Information'!$C$10),(A18<('Project Information'!$C$8+'Project Cost'!$H$61))),'Project Information'!$C$32*'Railcar and Passenger Demand'!B16*'Project Information'!$C$28*'Intermediate Freight Calcs'!C82,0)) -> 
A19: ='Intermediate Freight Calcs'!A20 -> 15 | C19: =IF(OR((ISBLANK('Project Information'!$C$21)),(ISBLANK('Project Information'!$C$35)),(ISBLANK('Project Information'!$C$36))),0,IF(AND((A19>='Project Information'!$C$10),(A19<('Project Information'!$C$8+'Project Cost'!$H$61))),('Intermediate Freight Calcs'!H20*'Intermediate Freight Calcs'!B20),0)) -> 0 | E19: =IF(OR((ISBLANK('Project Information'!$C$23)),(ISBLANK('Project Information'!$D$23)),(ISBLANK('Project Information'!$C$28)),(ISBLANK('Project Information'!$C$29)),(ISBLANK('Project Information'!$C$31)),(ISBLANK('Project Information'!$C$35)),(ISBLANK('Project Information'!$C$36))),0,IF(AND((A19>='Project Information'!$C$10),(A19<('Project Information'!$C$8+'Project Cost'!$H$61))),('Intermediate Freight Calcs'!B20*('Intermediate Freight Calcs'!B51+'Intermediate Freight Calcs'!C51))-('Intermediate Freight Calcs'!D51*('Intermediate Freight Calcs'!E51+'Intermediate Freight Calcs'!F51)),0)) -> 0 | G19: =IF(OR((ISBLANK('Project Information'!$C$28)),(ISBLANK('Project Information'!$C$32))),0,IF(AND((A19>='Project Information'!$C$10),(A19<('Project Information'!$C$8+'Project Cost'!$H$61))),'Railcar and Passenger Demand'!B17*'Project Information'!$C$28*'Project Information'!$C$32*('Intermediate Freight Calcs'!E51+'Intermediate Freight Calcs'!F51),0)) -> 0 | I19: =IF(OR((ISBLANK('Project Information'!$C$28)),(ISBLANK('Project Information'!$C$32))),0,IF(AND((A19>='Project Information'!$C$10),(A19<('Project Information'!$C$8+'Project Cost'!$H$61))),'Project Information'!$C$32*'Railcar and Passenger Demand'!B17*'Project Information'!$C$28*'Intermediate Freight Calcs'!C83,0)) -> 0
A20: ='Intermediate Freight Calcs'!A21 -> 16 | C20: =IF(OR((ISBLANK('Project Information'!$C$21)),(ISBLANK('Project Information'!$C$35)),(ISBLANK('Project Information'!$C$36))),0,IF(AND((A20>='Project Information'!$C$10),(A20<('Project Information'!$C$8+'Project Cost'!$H$61))),('Intermediate Freight Calcs'!H21*'Intermediate Freight Calcs'!B21),0)) -> 0 | E20: =IF(OR((ISBLANK('Project Information'!$C$23)),(ISBLANK('Project Information'!$D$23)),(ISBLANK('Project Information'!$C$28)),(ISBLANK('Project Information'!$C$29)),(ISBLANK('Project Information'!$C$31)),(ISBLANK('Project Information'!$C$35)),(ISBLANK('Project Information'!$C$36))),0,IF(AND((A20>='Project Information'!$C$10),(A20<('Project Information'!$C$8+'Project Cost'!$H$61))),('Intermediate Freight Calcs'!B21*('Intermediate Freight Calcs'!B52+'Intermediate Freight Calcs'!C52))-('Intermediate Freight Calcs'!D52*('Intermediate Freight Calcs'!E52+'Intermediate Freight Calcs'!F52)),0)) -> 0 | G20: =IF(OR((ISBLANK('Project Information'!$C$28)),(ISBLANK('Project Information'!$C$32))),0,IF(AND((A20>='Project Information'!$C$10),(A20<('Project Information'!$C$8+'Project Cost'!$H$61))),'Railcar and Passenger Demand'!B18*'Project Information'!$C$28*'Project Information'!$C$32*('Intermediate Freight Calcs'!E52+'Intermediate Freight Calcs'!F52),0)) -> 0 | I20: =IF(OR((ISBLANK('Project Information'!$C$28)),(ISBLANK('Project Information'!$C$32))),0,IF(AND((A20>='Project Information'!$C$10),(A20<('Project Information'!$C$8+'Project Cost'!$H$61))),'Project Information'!$C$32*'Railcar and Passenger Demand'!B18*'Project Information'!$C$28*'Intermediate Freight Calcs'!C84,0)) -> 0
A21: ='Intermediate Freight Calcs'!A22 -> 17 | C21: =IF(OR((ISBLANK('Project Information'!$C$21)),(ISBLANK('Project Information'!$C$35)),(ISBLANK('Project Information'!$C$36))),0,IF(AND((A21>='Project Information'!$C$10),(A21<('Project Information'!$C$8+'Project Cost'!$H$61))),('Intermediate Freight Calcs'!H22*'Intermediate Freight Calcs'!B22),0)) -> 0 | E21: =IF(OR((ISBLANK('Project Information'!$C$23)),(ISBLANK('Project Information'!$D$23)),(ISBLANK('Project Information'!$C$28)),(ISBLANK('Project Information'!$C$29)),(ISBLANK('Project Information'!$C$31)),(ISBLANK('Project Information'!$C$35)),(ISBLANK('Project Information'!$C$36))),0,IF(AND((A21>='Project Information'!$C$10),(A21<('Project Information'!$C$8+'Project Cost'!$H$61))),('Intermediate Freight Calcs'!B22*('Intermediate Freight Calcs'!B53+'Intermediate Freight Calcs'!C53))-('Intermediate Freight Calcs'!D53*('Intermediate Freight Calcs'!E53+'Intermediate Freight Calcs'!F53)),0)) -> 0 | G21: =IF(OR((ISBLANK('Project Information'!$C$28)),(ISBLANK('Project Information'!$C$32))),0,IF(AND((A21>='Project Information'!$C$10),(A21<('Project Information'!$C$8+'Project Cost'!$H$61))),'Railcar and Passenger Demand'!B19*'Project Information'!$C$28*'Project Information'!$C$32*('Intermediate Freight Calcs'!E53+'Intermediate Freight Calcs'!F53),0)) -> 0 | I21: =IF(OR((ISBLANK('Project Information'!$C$28)),(ISBLANK('Project Information'!$C$32))),0,IF(AND((A21>='Project Information'!$C$10),(A21<('Project Information'!$C$8+'Project Cost'!$H$61))),'Project Information'!$C$32*'Railcar and Passenger Demand'!B19*'Project Information'!$C$28*'Intermediate Freight Calcs'!C85,0)) -> 0
A22: ='Intermediate Freight Calcs'!A23 -> 18 | C22: =IF(OR((ISBLANK('Project Information'!$C$21)),(ISBLANK('Project Information'!$C$35)),(ISBLANK('Project Information'!$C$36))),0,IF(AND((A22>='Project Information'!$C$10),(A22<('Project Information'!$C$8+'Project Cost'!$H$61))),('Intermediate Freight Calcs'!H23*'Intermediate Freight Calcs'!B23),0)) -> 0 | E22: =IF(OR((ISBLANK('Project Information'!$C$23)),(ISBLANK('Project Information'!$D$23)),(ISBLANK('Project Information'!$C$28)),(ISBLANK('Project Information'!$C$29)),(ISBLANK('Project Information'!$C$31)),(ISBLANK('Project Information'!$C$35)),(ISBLANK('Project Information'!$C$36))),0,IF(AND((A22>='Project Information'!$C$10),(A22<('Project Information'!$C$8+'Project Cost'!$H$61))),('Intermediate Freight Calcs'!B23*('Intermediate Freight Calcs'!B54+'Intermediate Freight Calcs'!C54))-('Intermediate Freight Calcs'!D54*('Intermediate Freight Calcs'!E54+'Intermediate Freight Calcs'!F54)),0)) -> 0 | G22: =IF(OR((ISBLANK('Project Information'!$C$28)),(ISBLANK('Project Information'!$C$32))),0,IF(AND((A22>='Project Information'!$C$10),(A22<('Project Information'!$C$8+'Project Cost'!$H$61))),'Railcar and Passenger Demand'!B20*'Project Information'!$C$28*'Project Information'!$C$32*('Intermediate Freight Calcs'!E54+'Intermediate Freight Calcs'!F54),0)) -> 0 | I22: =IF(OR((ISBLANK('Project Information'!$C$28)),(ISBLANK('Project Information'!$C$32))),0,IF(AND((A22>='Project Information'!$C$10),(A22<('Project Information'!$C$8+'Project Cost'!$H$61))),'Project Information'!$C$32*'Railcar and Passenger Demand'!B20*'Project Information'!$C$28*'Intermediate Freight Calcs'!C86,0)) -> 0
A23: ='Intermediate Freight Calcs'!A24 -> 19 | C23: =IF(OR((ISBLANK('Project Information'!$C$21)),(ISBLANK('Project Information'!$C$35)),(ISBLANK('Project Information'!$C$36))),0,IF(AND((A23>='Project Information'!$C$10),(A23<('Project Information'!$C$8+'Project Cost'!$H$61))),('Intermediate Freight Calcs'!H24*'Intermediate Freight Calcs'!B24),0)) -> 0 | E23: =IF(OR((ISBLANK('Project Information'!$C$23)),(ISBLANK('Project Information'!$D$23)),(ISBLANK('Project Information'!$C$28)),(ISBLANK('Project Information'!$C$29)),(ISBLANK('Project Information'!$C$31)),(ISBLANK('Project Information'!$C$35)),(ISBLANK('Project Information'!$C$36))),0,IF(AND((A23>='Project Information'!$C$10),(A23<('Project Information'!$C$8+'Project Cost'!$H$61))),('Intermediate Freight Calcs'!B24*('Intermediate Freight Calcs'!B55+'Intermediate Freight Calcs'!C55))-('Intermediate Freight Calcs'!D55*('Intermediate Freight Calcs'!E55+'Intermediate Freight Calcs'!F55)),0)) -> 0 | G23: =IF(OR((ISBLANK('Project Information'!$C$28)),(ISBLANK('Project Information'!$C$32))),0,IF(AND((A23>='Project Information'!$C$10),(A23<('Project Information'!$C$8+'Project Cost'!$H$61))),'Railcar and Passenger Demand'!B21*'Project Information'!$C$28*'Project Information'!$C$32*('Intermediate Freight Calcs'!E55+'Intermediate Freight Calcs'!F55),0)) -> 0 | I23: =IF(OR((ISBLANK('Project Information'!$C$28)),(ISBLANK('Project Information'!$C$32))),0,IF(AND((A23>='Project Information'!$C$10),(A23<('Project Information'!$C$8+'Project Cost'!$H$61))),'Project Information'!$C$32*'Railcar and Passenger Demand'!B21*'Project Information'!$C$28*'Intermediate Freight Calcs'!C87,0)) -> 0
A24: ='Intermediate Freight Calcs'!A25 -> 20 | C24: =IF(OR((ISBLANK('Project Information'!$C$21)),(ISBLANK('Project Information'!$C$35)),(ISBLANK('Project Information'!$C$36))),0,IF(AND((A24>='Project Information'!$C$10),(A24<('Project Information'!$C$8+'Project Cost'!$H$61))),('Intermediate Freight Calcs'!H25*'Intermediate Freight Calcs'!B25),0)) -> 0 | E24: =IF(OR((ISBLANK('Project Information'!$C$23)),(ISBLANK('Project Information'!$D$23)),(ISBLANK('Project Information'!$C$28)),(ISBLANK('Project Information'!$C$29)),(ISBLANK('Project Information'!$C$31)),(ISBLANK('Project Information'!$C$35)),(ISBLANK('Project Information'!$C$36))),0,IF(AND((A24>='Project Information'!$C$10),(A24<('Project Information'!$C$8+'Project Cost'!$H$61))),('Intermediate Freight Calcs'!B25*('Intermediate Freight Calcs'!B56+'Intermediate Freight Calcs'!C56))-('Intermediate Freight Calcs'!D56*('Intermediate Freight Calcs'!E56+'Intermediate Freight Calcs'!F56)),0)) -> 0 | G24: =IF(OR((ISBLANK('Project Information'!$C$28)),(ISBLANK('Project Information'!$C$32))),0,IF(AND((A24>='Project Information'!$C$10),(A24<('Project Information'!$C$8+'Project Cost'!$H$61))),'Railcar and Passenger Demand'!B22*'Project Information'!$C$28*'Project Information'!$C$32*('Intermediate Freight Calcs'!E56+'Intermediate Freight Calcs'!F56),0)) -> 0 | I24: =IF(OR((ISBLANK('Project Information'!$C$28)),(ISBLANK('Project Information'!$C$32))),0,IF(AND((A24>='Project Information'!$C$10),(A24<('Project Information'!$C$8+'Project Cost'!$H$61))),'Project Information'!$C$32*'Railcar and Passenger Demand'!B22*'Project Information'!$C$28*'Intermediate Freight Calcs'!C88,0)) -> 0
A25: ='Intermediate Freight Calcs'!A26 -> 21 | C25: =IF(OR((ISBLANK('Project Information'!$C$21)),(ISBLANK('Project Information'!$C$35)),(ISBLANK('Project Information'!$C$36))),0,IF(AND((A25>='Project Information'!$C$10),(A25<('Project Information'!$C$8+'Project Cost'!$H$61))),('Intermediate Freight Calcs'!H26*'Intermediate Freight Calcs'!B26),0)) -> 0 | E25: =IF(OR((ISBLANK('Project Information'!$C$23)),(ISBLANK('Project Information'!$D$23)),(ISBLANK('Project Information'!$C$28)),(ISBLANK('Project Information'!$C$29)),(ISBLANK('Project Information'!$C$31)),(ISBLANK('Project Information'!$C$35)),(ISBLANK('Project Information'!$C$36))),0,IF(AND((A25>='Project Information'!$C$10),(A25<('Project Information'!$C$8+'Project Cost'!$H$61))),('Intermediate Freight Calcs'!B26*('Intermediate Freight Calcs'!B57+'Intermediate Freight Calcs'!C57))-('Intermediate Freight Calcs'!D57*('Intermediate Freight Calcs'!E57+'Intermediate Freight Calcs'!F57)),0)) -> 0 | G25: =IF(OR((ISBLANK('Project Information'!$C$28)),(ISBLANK('Project Information'!$C$32))),0,IF(AND((A25>='Project Information'!$C$10),(A25<('Project Information'!$C$8+'Project Cost'!$H$61))),'Railcar and Passenger Demand'!B23*'Project Information'!$C$28*'Project Information'!$C$32*('Intermediate Freight Calcs'!E57+'Intermediate Freight Calcs'!F57),0)) -> 0 | I25: =IF(OR((ISBLANK('Project Information'!$C$28)),(ISBLANK('Project Information'!$C$32))),0,IF(AND((A25>='Project Information'!$C$10),(A25<('Project Information'!$C$8+'Project Cost'!$H$61))),'Project Information'!$C$32*'Railcar and Passenger Demand'!B23*'Project Information'!$C$28*'Intermediate Freight Calcs'!C89,0)) -> 0
A26: ='Intermediate Freight Calcs'!A27 -> 22 | C26: =IF(OR((ISBLANK('Project Information'!$C$21)),(ISBLANK('Project Information'!$C$35)),(ISBLANK('Project Information'!$C$36))),0,IF(AND((A26>='Project Information'!$C$10),(A26<('Project Information'!$C$8+'Project Cost'!$H$61))),('Intermediate Freight Calcs'!H27*'Intermediate Freight Calcs'!B27),0)) -> 0 | E26: =IF(OR((ISBLANK('Project Information'!$C$23)),(ISBLANK('Project Information'!$D$23)),(ISBLANK('Project Information'!$C$28)),(ISBLANK('Project Information'!$C$29)),(ISBLANK('Project Information'!$C$31)),(ISBLANK('Project Information'!$C$35)),(ISBLANK('Project Information'!$C$36))),0,IF(AND((A26>='Project Information'!$C$10),(A26<('Project Information'!$C$8+'Project Cost'!$H$61))),('Intermediate Freight Calcs'!B27*('Intermediate Freight Calcs'!B58+'Intermediate Freight Calcs'!C58))-('Intermediate Freight Calcs'!D58*('Intermediate Freight Calcs'!E58+'Intermediate Freight Calcs'!F58)),0)) -> 0 | G26: =IF(OR((ISBLANK('Project Information'!$C$28)),(ISBLANK('Project Information'!$C$32))),0,IF(AND((A26>='Project Information'!$C$10),(A26<('Project Information'!$C$8+'Project Cost'!$H$61))),'Railcar and Passenger Demand'!B24*'Project Information'!$C$28*'Project Information'!$C$32*('Intermediate Freight Calcs'!E58+'Intermediate Freight Calcs'!F58),0)) -> 0 | I26: =IF(OR((ISBLANK('Project Information'!$C$28)),(ISBLANK('Project Information'!$C$32))),0,IF(AND((A26>='Project Information'!$C$10),(A26<('Project Information'!$C$8+'Project Cost'!$H$61))),'Project Information'!$C$32*'Railcar and Passenger Demand'!B24*'Project Information'!$C$28*'Intermediate Freight Calcs'!C90,0)) -> 0
A27: ='Intermediate Freight Calcs'!A28 -> 23 | C27: =IF(OR((ISBLANK('Project Information'!$C$21)),(ISBLANK('Project Information'!$C$35)),(ISBLANK('Project Information'!$C$36))),0,IF(AND((A27>='Project Information'!$C$10),(A27<('Project Information'!$C$8+'Project Cost'!$H$61))),('Intermediate Freight Calcs'!H28*'Intermediate Freight Calcs'!B28),0)) -> 0 | E27: =IF(OR((ISBLANK('Project Information'!$C$23)),(ISBLANK('Project Information'!$D$23)),(ISBLANK('Project Information'!$C$28)),(ISBLANK('Project Information'!$C$29)),(ISBLANK('Project Information'!$C$31)),(ISBLANK('Project Information'!$C$35)),(ISBLANK('Project Information'!$C$36))),0,IF(AND((A27>='Project Information'!$C$10),(A27<('Project Information'!$C$8+'Project Cost'!$H$61))),('Intermediate Freight Calcs'!B28*('Intermediate Freight Calcs'!B59+'Intermediate Freight Calcs'!C59))-('Intermediate Freight Calcs'!D59*('Intermediate Freight Calcs'!E59+'Intermediate Freight Calcs'!F59)),0)) -> 0 | G27: =IF(OR((ISBLANK('Project Information'!$C$28)),(ISBLANK('Project Information'!$C$32))),0,IF(AND((A27>='Project Information'!$C$10),(A27<('Project Information'!$C$8+'Project Cost'!$H$61))),'Railcar and Passenger Demand'!B25*'Project Information'!$C$28*'Project Information'!$C$32*('Intermediate Freight Calcs'!E59+'Intermediate Freight Calcs'!F59),0)) -> 0 | I27: =IF(OR((ISBLANK('Project Information'!$C$28)),(ISBLANK('Project Information'!$C$32))),0,IF(AND((A27>='Project Information'!$C$10),(A27<('Project Information'!$C$8+'Project Cost'!$H$61))),'Project Information'!$C$32*'Railcar and Passenger Demand'!B25*'Project Information'!$C$28*'Intermediate Freight Calcs'!C91,0)) -> 0
A28: ='Intermediate Freight Calcs'!A29 -> 24 | C28: =IF(OR((ISBLANK('Project Information'!$C$21)),(ISBLANK('Project Information'!$C$35)),(ISBLANK('Project Information'!$C$36))),0,IF(AND((A28>='Project Information'!$C$10),(A28<('Project Information'!$C$8+'Project Cost'!$H$61))),('Intermediate Freight Calcs'!H29*'Intermediate Freight Calcs'!B29),0)) -> 0 | E28: =IF(OR((ISBLANK('Project Information'!$C$23)),(ISBLANK('Project Information'!$D$23)),(ISBLANK('Project Information'!$C$28)),(ISBLANK('Project Information'!$C$29)),(ISBLANK('Project Information'!$C$31)),(ISBLANK('Project Information'!$C$35)),(ISBLANK('Project Information'!$C$36))),0,IF(AND((A28>='Project Information'!$C$10),(A28<('Project Information'!$C$8+'Project Cost'!$H$61))),('Intermediate Freight Calcs'!B29*('Intermediate Freight Calcs'!B60+'Intermediate Freight Calcs'!C60))-('Intermediate Freight Calcs'!D60*('Intermediate Freight Calcs'!E60+'Intermediate Freight Calcs'!F60)),0)) -> 0 | G28: =IF(OR((ISBLANK('Project Information'!$C$28)),(ISBLANK('Project Information'!$C$32))),0,IF(AND((A28>='Project Information'!$C$10),(A28<('Project Information'!$C$8+'Project Cost'!$H$61))),'Railcar and Passenger Demand'!B26*'Project Information'!$C$28*'Project Information'!$C$32*('Intermediate Freight Calcs'!E60+'Intermediate Freight Calcs'!F60),0)) -> 0 | I28: =IF(OR((ISBLANK('Project Information'!$C$28)),(ISBLANK('Project Information'!$C$32))),0,IF(AND((A28>='Project Information'!$C$10),(A28<('Project Information'!$C$8+'Project Cost'!$H$61))),'Project Information'!$C$32*'Railcar and Passenger Demand'!B26*'Project Information'!$C$28*'Intermediate Freight Calcs'!C92,0)) -> 0
C31: Shipping Cost Reduction - (Mode Switch) | E31: Savings in Pavement Maintenance | G31: Reduced Accident Costs | I31: Total Benefits
C32: As the shipping costs per mile vary between truck and trains, a shift to rail from truck will result in a lower shipping cost per ton mile for long haul shippers. This is the benefit realized by reducing switching shipping modes. | E32: When trucks shift from truck freight to rail, the maintenance cost for the highway routes will decrease. This calculates the reduction in road pavement maintenance costs due to the shift. | G32: Reduction in the probability of having an accident on the highway due to reduction of truck mileage.
A33: ='Intermediate Freight Calcs'!A35 -> Year | C33: (Truck VMT * Truck shipping rate per VMT) - (Train ton miles * Rail shipping rate per ton mile) | E33: Total reduction in truck VMT * Pavement maintenance cost per truck mile | G33: Truck ton miles * Accident costs per truck ton miles - Train ton miles * Accident cost per freight train ton mile + Accident cost per rail crossing * Number of rail crossings removed | I33: Addition of All Freight Benefits
A34: ='Intermediate Freight Calcs'!A36 -> 0 | C34: =IF(OR((ISBLANK('Project Information'!$C$28)),(ISBLANK('Project Information'!$C$29)),(ISBLANK('Project Information'!$C$31)),(ISBLANK('Project Information'!$C$35)),(ISBLANK('Project Information'!$C$36))),0,IF(AND((A34>='Project Information'!$C$10),(A34<('Project Information'!$C$8+'Project Cost'!$H$61))),('Intermediate Freight Calcs'!B5*'Intermediate Freight Calcs'!B68)-('Intermediate Freight Calcs'!C68*'Intermediate Freight Calcs'!D36),0)) -> 0 | E34: =IF(OR((ISBLANK('Project Information'!$C$35)),(ISBLANK('Project Information'!$C$36))),0,IF(AND((A34>='Project Information'!$C$10),(A34<('Project Information'!$C$8+'Project Cost'!$H$61))),('Intermediate Freight Calcs'!B5*'Intermediate Freight Calcs'!E68),0)) -> 0 | G34: =IF(OR((ISBLANK('Project Information'!$C$28)),(ISBLANK('Project Information'!$C$31)),(ISBLANK('Project Information'!$C$33)),(ISBLANK('Project Information'!$C$35)),(ISBLANK('Project Information'!$C$36)),(ISBLANK('Project Information'!$C$37))),0,IF(AND((A34>='Project Information'!$C$10),(A34<('Project Information'!$C$8+'Project Cost'!$H$61))),('Intermediate Freight Calcs'!B99*'Intermediate Freight Calcs'!C99)-('Intermediate Freight Calcs'!D99*'Intermediate Freight Calcs'!E99)+('Project Information'!$C$33*'Intermediate Freight Calcs'!F99),0)) -> 0 | I34: =IFERROR(((SUMIF(C34:G34,">0"))+(SUMIF(C4:I4,">0"))),0) -> 0
A35: ='Intermediate Freight Calcs'!A37 -> 1 | C35: =IF(OR((ISBLANK('Project Information'!$C$28)),(ISBLANK('Project Information'!$C$29)),(ISBLANK('Project Information'!$C$31)),(ISBLANK('Project Information'!$C$35)),(ISBLANK('Project Information'!$C$36))),0,IF(AND((A35>='Project Information'!$C$10),(A35<('Project Information'!$C$8+'Project Cost'!$H$61))),('Intermediate Freight Calcs'!B6*'Intermediate Freight Calcs'!B69)-('Intermediate Freight Calcs'!C69*'Intermediate Freight Calcs'!D37),0)) -> 0 | E35: =IF(OR((ISBLANK('Project Information'!$C$35)),(ISBLANK('Project Information'!$C$36))),0,IF(AND((A35>='Project Information'!$C$10),(A35<('Project Information'!$C$8+'Project Cost'!$H$61))),('Intermediate Freight Calcs'!B6*'Intermediate Freight Calcs'!E69),0)) -> 0 | G35: =IF(OR((ISBLANK('Project Information'!$C$28)),(ISBLANK('Project Information'!$C$31)),(ISBLANK('Project Information'!$C$33)),(ISBLANK('Project Information'!$C$35)),(ISBLANK('Project Information'!$C$36)),(ISBLANK('Project Information'!$C$37))),0,IF(AND((A35>='Project Information'!$C$10),(A35<('Project Information'!$C$8+'Project Cost'!$H$61))),('Intermediate Freight Calcs'!B100*'Intermediate Freight Calcs'!C100)-('Intermediate Freight Calcs'!D100*'Intermediate Freight Calcs'!E100)+('Project Information'!$C$33*'Intermediate Freight Calcs'!F100),0)) -> 0 | I35: =IFERROR(((SUMIF(C35:G35,">0"))+(SUMIF(C5:I5,">0"))),0) -> 0
A36: ='Intermediate Freight Calcs'!A38 -> 2 | C36: =IF(OR((ISBLANK('Project Information'!$C$28)),(ISBLANK('Project Information'!$C$29)),(ISBLANK('Project Information'!$C$31)),(ISBLANK('Project Information'!$C$35)),(ISBLANK('Project Information'!$C$36))),0,IF(AND((A36>='Project Information'!$C$10),(A36<('Project Information'!$C$8+'Project Cost'!$H$61))),('Intermediate Freight Calcs'!B7*'Intermediate Freight Calcs'!B70)-('Intermediate Freight Calcs'!C70*'Intermediate Freight Calcs'!D38),0)) -> 0 | E36: =IF(OR((ISBLANK('Project Information'!$C$35)),(ISBLANK('Project Information'!$C$36))),0,IF(AND((A36>='Project Information'!$C$10),(A36<('Project Information'!$C$8+'Project Cost'!$H$61))),('Intermediate Freight Calcs'!B7*'Intermediate Freight Calcs'!E70),0)) -> 0 | G36: =IF(OR((ISBLANK('Project Information'!$C$28)),(ISBLANK('Project Information'!$C$31)),(ISBLANK('Project Information'!$C$33)),(ISBLANK('Project Information'!$C$35)),(ISBLANK('Project Information'!$C$36)),(ISBLANK('Project Information'!$C$37))),0,IF(AND((A36>='Project Information'!$C$10),(A36<('Project Information'!$C$8+'Project Cost'!$H$61))),('Intermediate Freight Calcs'!B101*'Intermediate Freight Calcs'!C101)-('Intermediate Freight Calcs'!D101*'Intermediate Freight Calcs'!E101)+('Project Information'!$C$33*'Intermediate Freight Calcs'!F101),0)) -> 0 | I36: 0
A37: ='Intermediate Freight Calcs'!A39 -> 3 | C37: =IF(OR((ISBLANK('Project Information'!$C$28)),(ISBLANK('Project Information'!$C$29)),(ISBLANK('Project Information'!$C$31)),(ISBLANK('Project Information'!$C$35)),(ISBLANK('Project Information'!$C$36))),0,IF(AND((A37>='Project Information'!$C$10),(A37<('Project Information'!$C$8+'Project Cost'!$H$61))),('Intermediate Freight Calcs'!B8*'Intermediate Freight Calcs'!B71)-('Intermediate Freight Calcs'!C71*'Intermediate Freight Calcs'!D39),0)) -> 0 | E37: =IF(OR((ISBLANK('Project Information'!$C$35)),(ISBLANK('Project Information'!$C$36))),0,IF(AND((A37>='Project Information'!$C$10),(A37<('Project Information'!$C$8+'Project Cost'!$H$61))),('Intermediate Freight Calcs'!B8*'Intermediate Freight Calcs'!E71),0)) -> 0 | G37: =IF(OR((ISBLANK('Project Information'!$C$28)),(ISBLANK('Project Information'!$C$31)),(ISBLANK('Project Information'!$C$33)),(ISBLANK('Project Information'!$C$35)),(ISBLANK('Project Information'!$C$36)),(ISBLANK('Project Information'!$C$37))),0,IF(AND((A37>='Project Information'!$C$10),(A37<('Project Information'!$C$8+'Project Cost'!$H$61))),('Intermediate Freight Calcs'!B102*'Intermediate Freight Calcs'!C102)-('Intermediate Freight Calcs'!D102*'Intermediate Freight Calcs'!E102)+('Project Information'!$C$33*'Intermediate Freight Calcs'!F102),0)) -> 0 | I37: 0
A38: ='Intermediate Freight Calcs'!A40 -> 4 | C38: =IF(OR((ISBLANK('Project Information'!$C$28)),(ISBLANK('Project Information'!$C$29)),(ISBLANK('Project Information'!$C$31)),(ISBLANK('Project Information'!$C$35)),(ISBLANK('Project Information'!$C$36))),0,IF(AND((A38>='Project Information'!$C$10),(A38<('Project Information'!$C$8+'Project Cost'!$H$61))),('Intermediate Freight Calcs'!B9*'Intermediate Freight Calcs'!B72)-('Intermediate Freight Calcs'!C72*'Intermediate Freight Calcs'!D40),0)) -> 0 | E38: =IF(OR((ISBLANK('Project Information'!$C$35)),(ISBLANK('Project Information'!$C$36))),0,IF(AND((A38>='Project Information'!$C$10),(A38<('Project Information'!$C$8+'Project Cost'!$H$61))),('Intermediate Freight Calcs'!B9*'Intermediate Freight Calcs'!E72),0)) -> 0 | G38: =IF(OR((ISBLANK('Project Information'!$C$28)),(ISBLANK('Project Information'!$C$31)),(ISBLANK('Project Information'!$C$33)),(ISBLANK('Project Information'!$C$35)),(ISBLANK('Project Information'!$C$36)),(ISBLANK('Project Information'!$C$37))),0,IF(AND((A38>='Project Information'!$C$10),(A38<('Project Information'!$C$8+'Project Cost'!$H$61))),('Intermediate Freight Calcs'!B103*'Intermediate Freight Calcs'!C103)-('Intermediate Freight Calcs'!D103*'Intermediate Freight Calcs'!E103)+('Project Information'!$C$33*'Intermediate Freight Calcs'!F103),0)) -> 0 | I38: 0
A39: ='Intermediate Freight Calcs'!A41 -> 5 | C39: =IF(OR((ISBLANK('Project Information'!$C$28)),(ISBLANK('Project Information'!$C$29)),(ISBLANK('Project Information'!$C$31)),(ISBLANK('Project Information'!$C$35)),(ISBLANK('Project Information'!$C$36))),0,IF(AND((A39>='Project Information'!$C$10),(A39<('Project Information'!$C$8+'Project Cost'!$H$61))),('Intermediate Freight Calcs'!B10*'Intermediate Freight Calcs'!B73)-('Intermediate Freight Calcs'!C73*'Intermediate Freight Calcs'!D41),0)) -> 0 | E39: =IF(OR((ISBLANK('Project Information'!$C$35)),(ISBLANK('Project Information'!$C$36))),0,IF(AND((A39>='Project Information'!$C$10),(A39<('Project Information'!$C$8+'Project Cost'!$H$61))),('Intermediate Freight Calcs'!B10*'Intermediate Freight Calcs'!E73),0)) -> 0 | G39: =IF(OR((ISBLANK('Project Information'!$C$28)),(ISBLANK('Project Information'!$C$31)),(ISBLANK('Project Information'!$C$33)),(ISBLANK('Project Information'!$C$35)),(ISBLANK('Project Information'!$C$36)),(ISBLANK('Project Information'!$C$37))),0,IF(AND((A39>='Project Information'!$C$10),(A39<('Project Information'!$C$8+'Project Cost'!$H$61))),('Intermediate Freight Calcs'!B104*'Intermediate Freight Calcs'!C104)-('Intermediate Freight Calcs'!D104*'Intermediate Freight Calcs'!E104)+('Project Information'!$C$33*'Intermediate Freight Calcs'!F104),0)) -> 0 | I39: 0
A40: ='Intermediate Freight Calcs'!A42 -> 6 | C40: =IF(OR((ISBLANK('Project Information'!$C$28)),(ISBLANK('Project Information'!$C$29)),(ISBLANK('Project Information'!$C$31)),(ISBLANK('Project Information'!$C$35)),(ISBLANK('Project Information'!$C$36))),0,IF(AND((A40>='Project Information'!$C$10),(A40<('Project Information'!$C$8+'Project Cost'!$H$61))),('Intermediate Freight Calcs'!B11*'Intermediate Freight Calcs'!B74)-('Intermediate Freight Calcs'!C74*'Intermediate Freight Calcs'!D42),0)) -> 0 | E40: =IF(OR((ISBLANK('Project Information'!$C$35)),(ISBLANK('Project Information'!$C$36))),0,IF(AND((A40>='Project Information'!$C$10),(A40<('Project Information'!$C$8+'Project Cost'!$H$61))),('Intermediate Freight Calcs'!B11*'Intermediate Freight Calcs'!E74),0)) -> 0 | G40: =IF(OR((ISBLANK('Project Information'!$C$28)),(ISBLANK('Project Information'!$C$31)),(ISBLANK('Project Information'!$C$33)),(ISBLANK('Project Information'!$C$35)),(ISBLANK('Project Information'!$C$36)),(ISBLANK('Project Information'!$C$37))),0,IF(AND((A40>='Project Information'!$C$10),(A40<('Project Information'!$C$8+'Project Cost'!$H$61))),('Intermediate Freight Calcs'!B105*'Intermediate Freight Calcs'!C105)-('Intermediate Freight Calcs'!D105*'Intermediate Freight Calcs'!E105)+('Project Information'!$C$33*'Intermediate Freight Calcs'!F105),0)) -> 0 | I40: 0
A41: ='Intermediate Freight Calcs'!A43 -> 7 | C41: =IF(OR((ISBLANK('Project Information'!$C$28)),(ISBLANK('Project Information'!$C$29)),(ISBLANK('Project Information'!$C$31)),(ISBLANK('Project Information'!$C$35)),(ISBLANK('Project Information'!$C$36))),0,IF(AND((A41>='Project Information'!$C$10),(A41<('Project Information'!$C$8+'Project Cost'!$H$61))),('Intermediate Freight Calcs'!B12*'Intermediate Freight Calcs'!B75)-('Intermediate Freight Calcs'!C75*'Intermediate Freight Calcs'!D43),0)) -> 0 | E41: =IF(OR((ISBLANK('Project Information'!$C$35)),(ISBLANK('Project Information'!$C$36))),0,IF(AND((A41>='Project Information'!$C$10),(A41<('Project Information'!$C$8+'Project Cost'!$H$61))),('Intermediate Freight Calcs'!B12*'Intermediate Freight Calcs'!E75),0)) -> 0 | G41: =IF(OR((ISBLANK('Project Information'!$C$28)),(ISBLANK('Project Information'!$C$31)),(ISBLANK('Project Information'!$C$33)),(ISBLANK('Project Information'!$C$35)),(ISBLANK('Project Information'!$C$36)),(ISBLANK('Project Information'!$C$37))),0,IF(AND((A41>='Project Information'!$C$10),(A41<('Project Information'!$C$8+'Project Cost'!$H$61))),('Intermediate Freight Calcs'!B106*'Intermediate Freight Calcs'!C106)-('Intermediate Freight Calcs'!D106*'Intermediate Freight Calcs'!E106)+('Project Information'!$C$33*'Intermediate Freight Calcs'!F106),0)) -> 0 | I41: 0
A42: ='Intermediate Freight Calcs'!A44 -> 8 | C42: =IF(OR((ISBLANK('Project Information'!$C$28)),(ISBLANK('Project Information'!$C$29)),(ISBLANK('Project Information'!$C$31)),(ISBLANK('Project Information'!$C$35)),(ISBLANK('Project Information'!$C$36))),0,IF(AND((A42>='Project Information'!$C$10),(A42<('Project Information'!$C$8+'Project Cost'!$H$61))),('Intermediate Freight Calcs'!B13*'Intermediate Freight Calcs'!B76)-('Intermediate Freight Calcs'!C76*'Intermediate Freight Calcs'!D44),0)) -> 0 | E42: =IF(OR((ISBLANK('Project Information'!$C$35)),(ISBLANK('Project Information'!$C$36))),0,IF(AND((A42>='Project Information'!$C$10),(A42<('Project Information'!$C$8+'Project Cost'!$H$61))),('Intermediate Freight Calcs'!B13*'Intermediate Freight Calcs'!E76),0)) -> 0 | G42: =IF(OR((ISBLANK('Project Information'!$C$28)),(ISBLANK('Project Information'!$C$31)),(ISBLANK('Project Information'!$C$33)),(ISBLANK('Project Information'!$C$35)),(ISBLANK('Project Information'!$C$36)),(ISBLANK('Project Information'!$C$37))),0,IF(AND((A42>='Project Information'!$C$10),(A42<('Project Information'!$C$8+'Project Cost'!$H$61))),('Intermediate Freight Calcs'!B107*'Intermediate Freight Calcs'!C107)-('Intermediate Freight Calcs'!D107*'Intermediate Freight Calcs'!E107)+('Project Information'!$C$33*'Intermediate Freight Calcs'!F107),0)) -> 0 | I42: 0
A43: ='Intermediate Freight Calcs'!A45 -> 9 | C43: =IF(OR((ISBLANK('Project Information'!$C$28)),(ISBLANK('Project Information'!$C$29)),(ISBLANK('Project Information'!$C$31)),(ISBLANK('Project Information'!$C$35)),(ISBLANK('Project Information'!$C$36))),0,IF(AND((A43>='Project Information'!$C$10),(A43<('Project Information'!$C$8+'Project Cost'!$H$61))),('Intermediate Freight Calcs'!B14*'Intermediate Freight Calcs'!B77)-('Intermediate Freight Calcs'!C77*'Intermediate Freight Calcs'!D45),0)) -> 0 | E43: =IF(OR((ISBLANK('Project Information'!$C$35)),(ISBLANK('Project Information'!$C$36))),0,IF(AND((A43>='Project Information'!$C$10),(A43<('Project Information'!$C$8+'Project Cost'!$H$61))),('Intermediate Freight Calcs'!B14*'Intermediate Freight Calcs'!E77),0)) -> 0 | G43: =IF(OR((ISBLANK('Project Information'!$C$28)),(ISBLANK('Project Information'!$C$31)),(ISBLANK('Project Information'!$C$33)),(ISBLANK('Project Information'!$C$35)),(ISBLANK('Project Information'!$C$36)),(ISBLANK('Project Information'!$C$37))),0,IF(AND((A43>='Project Information'!$C$10),(A43<('Project Information'!$C$8+'Project Cost'!$H$61))),('Intermediate Freight Calcs'!B108*'Intermediate Freight Calcs'!C108)-('Intermediate Freight Calcs'!D108*'Intermediate Freight Calcs'!E108)+('Project Information'!$C$33*'Intermediate Freight Calcs'!F108),0)) -> 0 | I43: 0
A44: ='Intermediate Freight Calcs'!A46 -> 10 | C44: =IF(OR((ISBLANK('Project Information'!$C$28)),(ISBLANK('Project Information'!$C$29)),(ISBLANK('Project Information'!$C$31)),(ISBLANK('Project Information'!$C$35)),(ISBLANK('Project Information'!$C$36))),0,IF(AND((A44>='Project Information'!$C$10),(A44<('Project Information'!$C$8+'Project Cost'!$H$61))),('Intermediate Freight Calcs'!B15*'Intermediate Freight Calcs'!B78)-('Intermediate Freight Calcs'!C78*'Intermediate Freight Calcs'!D46),0)) -> 0 | E44: =IF(OR((ISBLANK('Project Information'!$C$35)),(ISBLANK('Project Information'!$C$36))),0,IF(AND((A44>='Project Information'!$C$10),(A44<('Project Information'!$C$8+'Project Cost'!$H$61))),('Intermediate Freight Calcs'!B15*'Intermediate Freight Calcs'!E78),0)) -> 0 | G44: =IF(OR((ISBLANK('Project Information'!$C$28)),(ISBLANK('Project Information'!$C$31)),(ISBLANK('Project Information'!$C$33)),(ISBLANK('Project Information'!$C$35)),(ISBLANK('Project Information'!$C$36)),(ISBLANK('Project Information'!$C$37))),0,IF(AND((A44>='Project Information'!$C$10),(A44<('Project Information'!$C$8+'Project Cost'!$H$61))),('Intermediate Freight Calcs'!B109*'Intermediate Freight Calcs'!C109)-('Intermediate Freight Calcs'!D109*'Intermediate Freight Calcs'!E109)+('Project Information'!$C$33*'Intermediate Freight Calcs'!F109),0)) -> 0 | I44: 0
A45: ='Intermediate Freight Calcs'!A47 -> 11 | C45: =IF(OR((ISBLANK('Project Information'!$C$28)),(ISBLANK('Project Information'!$C$29)),(ISBLANK('Project Information'!$C$31)),(ISBLANK('Project Information'!$C$35)),(ISBLANK('Project Information'!$C$36))),0,IF(AND((A45>='Project Information'!$C$10),(A45<('Project Information'!$C$8+'Project Cost'!$H$61))),('Intermediate Freight Calcs'!B16*'Intermediate Freight Calcs'!B79)-('Intermediate Freight Calcs'!C79*'Intermediate Freight Calcs'!D47),0)) -> 0 | E45: =IF(OR((ISBLANK('Project Information'!$C$35)),(ISBLANK('Project Information'!$C$36))),0,IF(AND((A45>='Project Information'!$C$10),(A45<('Project Information'!$C$8+'Project Cost'!$H$61))),('Intermediate Freight Calcs'!B16*'Intermediate Freight Calcs'!E79),0)) -> 0 | G45: =IF(OR((ISBLANK('Project Information'!$C$28)),(ISBLANK('Project Information'!$C$31)),(ISBLANK('Project Information'!$C$33)),(ISBLANK('Project Information'!$C$35)),(ISBLANK('Project Information'!$C$36)),(ISBLANK('Project Information'!$C$37))),0,IF(AND((A45>='Project Information'!$C$10),(A45<('Project Information'!$C$8+'Project Cost'!$H$61))),('Intermediate Freight Calcs'!B110*'Intermediate Freight Calcs'!C110)-('Intermediate Freight Calcs'!D110*'Intermediate Freight Calcs'!E110)+('Project Information'!$C$33*'Intermediate Freight Calcs'!F110),0)) -> 0 | I45: 0
A46: ='Intermediate Freight Calcs'!A48 -> 12 | C46: =IF(OR((ISBLANK('Project Information'!$C$28)),(ISBLANK('Project Information'!$C$29)),(ISBLANK('Project Information'!$C$31)),(ISBLANK('Project Information'!$C$35)),(ISBLANK('Project Information'!$C$36))),0,IF(AND((A46>='Project Information'!$C$10),(A46<('Project Information'!$C$8+'Project Cost'!$H$61))),('Intermediate Freight Calcs'!B17*'Intermediate Freight Calcs'!B80)-('Intermediate Freight Calcs'!C80*'Intermediate Freight Calcs'!D48),0)) -> 0 | E46: =IF(OR((ISBLANK('Project Information'!$C$35)),(ISBLANK('Project Information'!$C$36))),0,IF(AND((A46>='Project Information'!$C$10),(A46<('Project Information'!$C$8+'Project Cost'!$H$61))),('Intermediate Freight Calcs'!B17*'Intermediate Freight Calcs'!E80),0)) -> 0 | G46: =IF(OR((ISBLANK('Project Information'!$C$28)),(ISBLANK('Project Information'!$C$31)),(ISBLANK('Project Information'!$C$33)),(ISBLANK('Project Information'!$C$35)),(ISBLANK('Project Information'!$C$36)),(ISBLANK('Project Information'!$C$37))),0,IF(AND((A46>='Project Information'!$C$10),(A46<('Project Information'!$C$8+'Project Cost'!$H$61))),('Intermediate Freight Calcs'!B111*'Intermediate Freight Calcs'!C111)-('Intermediate Freight Calcs'!D111*'Intermediate Freight Calcs'!E111)+('Project Information'!$C$33*'Intermediate Freight Calcs'!F111),0)) -> 0 | I46: 0
A47: ='Intermediate Freight Calcs'!A49 -> 13 | C47: =IF(OR((ISBLANK('Project Information'!$C$28)),(ISBLANK('Project Information'!$C$29)),(ISBLANK('Project Information'!$C$31)),(ISBLANK('Project Information'!$C$35)),(ISBLANK('Project Information'!$C$36))),0,IF(AND((A47>='Project Information'!$C$10),(A47<('Project Information'!$C$8+'Project Cost'!$H$61))),('Intermediate Freight Calcs'!B18*'Intermediate Freight Calcs'!B81)-('Intermediate Freight Calcs'!C81*'Intermediate Freight Calcs'!D49),0)) -> 0 | E47: =IF(OR((ISBLANK('Project Information'!$C$35)),(ISBLANK('Project Information'!$C$36))),0,IF(AND((A47>='Project Information'!$C$10),(A47<('Project Information'!$C$8+'Project Cost'!$H$61))),('Intermediate Freight Calcs'!B18*'Intermediate Freight Calcs'!E81),0)) -> 0 | G47: =IF(OR((ISBLANK('Project Information'!$C$28)),(ISBLANK('Project Information'!$C$31)),(ISBLANK('Project Information'!$C$33)),(ISBLANK('Project Information'!$C$35)),(ISBLANK('Project Information'!$C$36)),(ISBLANK('Project Information'!$C$37))),0,IF(AND((A47>='Project Information'!$C$10),(A47<('Project Information'!$C$8+'Project Cost'!$H$61))),('Intermediate Freight Calcs'!B112*'Intermediate Freight Calcs'!C112)-('Intermediate Freight Calcs'!D112*'Intermediate Freight Calcs'!E112)+('Project Information'!$C$33*'Intermediate Freight Calcs'!F112),0)) -> 0 | I47: 0
A48: ='Intermediate Freight Calcs'!A50 -> 14 | C48: =IF(OR((ISBLANK('Project Information'!$C$28)),(ISBLANK('Project Information'!$C$29)),(ISBLANK('Project Information'!$C$31)),(ISBLANK('Project Information'!$C$35)),(ISBLANK('Project Information'!$C$36))),0,IF(AND((A48>='Project Information'!$C$10),(A48<('Project Information'!$C$8+'Project Cost'!$H$61))),('Intermediate Freight Calcs'!B19*'Intermediate Freight Calcs'!B82)-('Intermediate Freight Calcs'!C82*'Intermediate Freight Calcs'!D50),0)) -> 0 | E48: =IF(OR((ISBLANK('Project Information'!$C$35)),(ISBLANK('Project Information'!$C$36))),0,IF(AND((A48>='Project Information'!$C$10),(A48<('Project Information'!$C$8+'Project Cost'!$H$61))),('Intermediate Freight Calcs'!B19*'Intermediate Freight Calcs'!E82),0)) -> 0 | G48: =IF(OR((ISBLANK('Project Information'!$C$28)),(ISBLANK('Project Information'!$C$31)),(ISBLANK('Project Information'!$C$33)),(ISBLANK('Project Information'!$C$35)),(ISBLANK('Project Information'!$C$36)),(ISBLANK('Project Information'!$C$37))),0,IF(AND((A48>='Project Information'!$C$10),(A48<('Project Information'!$C$8+'Project Cost'!$H$61))),('Intermediate Freight Calcs'!B113*'Intermediate Freight Calcs'!C113)-('Intermediate Freight Calcs'!D113*'Intermediate Freight Calcs'!E113)+('Project Information'!$C$33*'Intermediate Freight Calcs'!F113),0)) -> 0 | I48: 0
A49: ='Intermediate Freight Calcs'!A51 -> 15 | C49: =IF(OR((ISBLANK('Project Information'!$C$28)),(ISBLANK('Project Information'!$C$29)),(ISBLANK('Project Information'!$C$31)),(ISBLANK('Project Information'!$C$35)),(ISBLANK('Project Information'!$C$36))),0,IF(AND((A49>='Project Information'!$C$10),(A49<('Project Information'!$C$8+'Project Cost'!$H$61))),('Intermediate Freight Calcs'!B20*'Intermediate Freight Calcs'!B83)-('Intermediate Freight Calcs'!C83*'Intermediate Freight Calcs'!D51),0)) -> 0 | E49: =IF(OR((ISBLANK('Project Information'!$C$35)),(ISBLANK('Project Information'!$C$36))),0,IF(AND((A49>='Project Information'!$C$10),(A49<('Project Information'!$C$8+'Project Cost'!$H$61))),('Intermediate Freight Calcs'!B20*'Intermediate Freight Calcs'!E83),0)) -> 0 | G49: =IF(OR((ISBLANK('Project Information'!$C$28)),(ISBLANK('Project Information'!$C$31)),(ISBLANK('Project Information'!$C$33)),(ISBLANK('Project Information'!$C$35)),(ISBLANK('Project Information'!$C$36)),(ISBLANK('Project Information'!$C$37))),0,IF(AND((A49>='Project Information'!$C$10),(A49<('Project Information'!$C$8+'Project Cost'!$H$61))),('Intermediate Freight Calcs'!B114*'Intermediate Freight Calcs'!C114)-('Intermediate Freight Calcs'!D114*'Intermediate Freight Calcs'!E114)+('Project Information'!$C$33*'Intermediate Freight Calcs'!F114),0)) -> 0 | I49: 0
A50: ='Intermediate Freight Calcs'!A52 -> 16 | C50: =IF(OR((ISBLANK('Project Information'!$C$28)),(ISBLANK('Project Information'!$C$29)),(ISBLANK('Project Information'!$C$31)),(ISBLANK('Project Information'!$C$35)),(ISBLANK('Project Information'!$C$36))),0,IF(AND((A50>='Project Information'!$C$10),(A50<('Project Information'!$C$8+'Project Cost'!$H$61))),('Intermediate Freight Calcs'!B21*'Intermediate Freight Calcs'!B84)-('Intermediate Freight Calcs'!C84*'Intermediate Freight Calcs'!D52),0)) -> 0 | E50: =IF(OR((ISBLANK('Project Information'!$C$35)),(ISBLANK('Project Information'!$C$36))),0,IF(AND((A50>='Project Information'!$C$10),(A50<('Project Information'!$C$8+'Project Cost'!$H$61))),('Intermediate Freight Calcs'!B21*'Intermediate Freight Calcs'!E84),0)) -> 0 | G50: =IF(OR((ISBLANK('Project Information'!$C$28)),(ISBLANK('Project Information'!$C$31)),(ISBLANK('Project Information'!$C$33)),(ISBLANK('Project Information'!$C$35)),(ISBLANK('Project Information'!$C$36)),(ISBLANK('Project Information'!$C$37))),0,IF(AND((A50>='Project Information'!$C$10),(A50<('Project Information'!$C$8+'Project Cost'!$H$61))),('Intermediate Freight Calcs'!B115*'Intermediate Freight Calcs'!C115)-('Intermediate Freight Calcs'!D115*'Intermediate Freight Calcs'!E115)+('Project Information'!$C$33*'Intermediate Freight Calcs'!F115),0)) -> 0 | I50: 0
A51: ='Intermediate Freight Calcs'!A53 -> 17 | C51: =IF(OR((ISBLANK('Project Information'!$C$28)),(ISBLANK('Project Information'!$C$29)),(ISBLANK('Project Information'!$C$31)),(ISBLANK('Project Information'!$C$35)),(ISBLANK('Project Information'!$C$36))),0,IF(AND((A51>='Project Information'!$C$10),(A51<('Project Information'!$C$8+'Project Cost'!$H$61))),('Intermediate Freight Calcs'!B22*'Intermediate Freight Calcs'!B85)-('Intermediate Freight Calcs'!C85*'Intermediate Freight Calcs'!D53),0)) -> 0 | E51: =IF(OR((ISBLANK('Project Information'!$C$35)),(ISBLANK('Project Information'!$C$36))),0,IF(AND((A51>='Project Information'!$C$10),(A51<('Project Information'!$C$8+'Project Cost'!$H$61))),('Intermediate Freight Calcs'!B22*'Intermediate Freight Calcs'!E85),0)) -> 0 | G51: =IF(OR((ISBLANK('Project Information'!$C$28)),(ISBLANK('Project Information'!$C$31)),(ISBLANK('Project Information'!$C$33)),(ISBLANK('Project Information'!$C$35)),(ISBLANK('Project Information'!$C$36)),(ISBLANK('Project Information'!$C$37))),0,IF(AND((A51>='Project Information'!$C$10),(A51<('Project Information'!$C$8+'Project Cost'!$H$61))),('Intermediate Freight Calcs'!B116*'Intermediate Freight Calcs'!C116)-('Intermediate Freight Calcs'!D116*'Intermediate Freight Calcs'!E116)+('Project Information'!$C$33*'Intermediate Freight Calcs'!F116),0)) -> 0 | I51: 0
